Workbook

Sheet AEG Input File
E1: Dth | F1: Dth | G1: Dth | H1: Dth | I1: Dth | J1: Dth | K1: Dth | L1: Dth | M1: Dth | N1: Dth | O1: Dth | P1: Dth | Q1: Dth | R1: Dth | S1: Dth | T1: Dth | U1: Dth | V1: Dth | W1: Dth | X1: Dth | Y1: Dth | Z1: Dth | AA1: Dth | AB1: Dth | AC1: Capital Expense Costs | AD1: Capital Expense Costs | AE1: Capital Expense Costs | AF1: Capital Expense Costs | AG1: Capital Expense Costs | AH1: Capital Expense Costs | AI1: Capital Expense Costs | AJ1: Capital Expense Costs | AK1: Capital Expense Costs | AL1: Capital Expense Costs | AM1: Capital Expense Costs | AN1: Capital Expense Costs | AO1: Capital Expense Costs | AP1: Capital Expense Costs | AQ1: Capital Expense Costs | AR1: Capital Expense Costs | AS1: Capital Expense Costs | AT1: Capital Expense Costs | AU1: Capital Expense Costs | AV1: Capital Expense Costs | AW1: Capital Expense Costs | AX1: Capital Expense Costs | AY1: Capital Expense Costs | AZ1: Capital Expense Costs | BA1: O&M Costs | BB1: O&M Costs | BC1: O&M Costs | BD1: O&M Costs | BE1: O&M Costs | BF1: O&M Costs | BG1: O&M Costs | BH1: O&M Costs | BI1: O&M Costs | BJ1: O&M Costs | BK1: O&M Costs | BL1: O&M Costs | BM1: O&M Costs | BN1: O&M Costs | BO1: O&M Costs | BP1: O&M Costs | BQ1: O&M Costs | BR1: O&M Costs | BS1: O&M Costs | BT1: O&M Costs | BU1: O&M Costs | BV1: O&M Costs | BW1: O&M Costs | BX1: O&M Costs
B2: Row Labels | C2: Option | D2: Start Year | E2: 2023 | F2: 2024 | G2: 2025 | H2: 2026 | I2: 2027 | J2: 2028 | K2: 2029 | L2: 2030 | M2: 2031 | N2: 2032 | O2: 2033 | P2: 2034 | Q2: 2035 | R2: 2036 | S2: 2037 | T2: 2038 | U2: 2039 | V2: 2040 | W2: 2041 | X2: 2042 | Y2: 2043 | Z2: 2044 | AA2: 2045 | AB2: 2046 | AC2: 2023 | AD2: 2024 | AE2: 2025 | AF2: 2026 | AG2: 2027 | AH2: 2028 | AI2: 2029 | AJ2: 2030 | AK2: 2031 | AL2: 2032 | AM2: 2033 | AN2: 2034 | AO2: 2035 | AP2: 2036 | AQ2: 2037 | AR2: 2038 | AS2: 2039 | AT2: 2040 | AU2: 2041 | AV2: 2042 | AW2: 2043 | AX2: 2044 | AY2: 2045 | AZ2: 2046 | BA2: 2023 | BB2: 2024 | BC2: 2025 | BD2: 2026 | BE2: 2027 | BF2: 2028 | BG2: 2029 | BH2: 2030 | BI2: 2031 | BJ2: 2032 | BK2: 2033 | BL2: 2034 | BM2: 2035 | BN2: 2036 | BO2: 2037 | BP2: 2038 | BQ2: 2039 | BR2: 2040 | BS2: 2041 | BT2: 2042 | BU2: 2043 | BV2: 2044 | BW2: 2045 | BX2: 2046
A3: 2 | B3: Stand Alone | C3: Behavioral | D3: 2023 | E3: 0 | F3: 14.17343528 | G3: 22.95788276 | H3: 29.04788111 | I3: 29.39602317 | J3: 29.74846086 | K3: 30.10524846 | L3: 30.46644095 | M3: 30.83209403 | N3: 31.20226408 | O3: 31.57700826 | P3: 31.95638442 | Q3: 32.34045117 | R3: 32.72926789 | S3: 33.1228947 | T3: 33.52139252 | U3: 33.92482304 | V3: 34.33324875 | W3: 34.74673294 | X3: 35.16533973 | Y3: 35.58913406 | Z3: 36.0181817 | AA3: 36.45254928 | AB3: 36.89230429 | AC3: 0 | AD3: 78907.5 | AE3: 78907.5 | AF3: 78907.5 | AG3: 78907.5 | AH3: 78907.5 | AI3: 78907.5 | AJ3: 78907.5 | AK3: 78907.5 | AL3: 78907.5 | AM3: 78907.5 | AN3: 78907.5 | AO3: 78907.5 | AP3: 78907.5 | AQ3: 78907.5 | AR3: 78907.5 | AS3: 78907.5 | AT3: 78907.5 | AU3: 78907.5 | AV3: 78907.5 | AW3: 78907.5 | AX3: 78907.5 | AY3: 78907.5 | AZ3: 78907.5 | BA3: 0 | BB3: 179330.98 | BC3: 197525.89 | BD3: 210140.87 | BE3: 210903.77 | BF3: 211676.7 | BG3: 212459.8 | BH3: 213253.21 | BI3: 214057.06 | BJ3: 214871.49 | BK3: 215696.65 | BL3: 216532.67 | BM3: 217379.7 | BN3: 218237.89 | BO3: 219107.38 | BP3: 219988.34 | BQ3: 220880.91 | BR3: 221785.23 | BS3: 222701.49 | BT3: 223629.83 | BU3: 224570.39 | BV3: 225523.38 | BW3: 226488.93 | BX3: 227467.23
A4: 3 | B4: Stand Alone | C4: DLC Water Heating | D4: 2023 | AC4: 0 | AD4: 0 | AE4: 0 | AF4: 0 | AG4: 0 | AH4: 0 | AI4: 0 | AJ4: 0 | AK4: 0 | AL4: 0 | AM4: 0 | AN4: 0 | AO4: 0 | AP4: 0 | AQ4: 0 | AR4: 0 | AS4: 0 | AT4: 0 | AU4: 0 | AV4: 0 | AW4: 0 | AX4: 0 | AY4: 0 | AZ4: 0 | BA4: 0 | BB4: 0 | BC4: 0 | BD4: 0 | BE4: 0 | BF4: 0 | BG4: 0 | BH4: 0 | BI4: 0 | BJ4: 0 | BK4: 0 | BL4: 0 | BM4: 0 | BN4: 0 | BO4: 0 | BP4: 0 | BQ4: 0 | BR4: 0 | BS4: 0 | BT4: 0 | BU4: 0 | BV4: 0 | BW4: 0 | BX4: 0
A5: 4 | B5: Stand Alone | C5: DLC Smart Thermostats - BYOT | D5: 2023 | E5: 0 | F5: 16.11142203 | G5: 48.93655574 | H5: 115.5900221 | I5: 150.9114157 | J5: 170.2753358 | K5: 172.9174524 | L5: 175.6066138 | M5: 177.7394538 | N5: 179.8989029 | O5: 182.0853002 | P5: 184.2989894 | Q5: 186.5403184 | R5: 188.8096398 | S5: 191.1073107 | T5: 193.4336929 | U5: 195.7891528 | V5: 198.1740616 | W5: 200.5887953 | X5: 203.0337349 | Y5: 205.5092661 | Z5: 208.0157797 | AA5: 210.5536718 | AB5: 213.1233433 | AC5: 0 | AD5: 98024.85831 | AE5: 194519.4946 | AF5: 389422.2943 | AG5: 209734.1156 | AH5: 117767.2678 | AI5: 21129.67683 | AJ5: 21451.96867 | AK5: 19096.338 | AL5: 19301.76288 | AM5: 19510.14926 | AN5: 19721.54842 | AO5: 19936.01143 | AP5: 20153.57337 | AQ5: 20374.27964 | AR5: 20598.19647 | AS5: 20825.33724 | AT5: 21055.78354 | AU5: 21289.57984 | AV5: 21526.7599 | AW5: 21767.38352 | AX5: 22011.51551 | AY5: 22259.17833 | AZ5: 22510.46786 | BA5: 0 | BB5: 131719.6748 | BC5: 239688.2185 | BD5: 458706.4891 | BE5: 576110.2329 | BF5: 641307.9954 | BG5: 651419.384 | BH5: 661724.6838 | BI5: 669814.1262 | BJ5: 678015.4742 | BK5: 686330.3176 | BL5: 694760.2542 | BM5: 703306.9218 | BN5: 711971.9503 | BO5: 720757.0351 | BP5: 729663.8532 | BQ5: 738694.1517 | BR5: 747849.6379 | BS5: 757132.1258 | BT5: 766543.3784 | BU5: 776085.2336 | BV5: 785759.525 | BW5: 795568.1294 | BX5: 805512.9553
A6: 5 | B6: Stand Alone | C6: Time-of-Use | D6: 2023 | E6: 0 | F6: 2.152405507 | G6: 6.540417324 | H6: 15.45504345 | I6: 20.12286222 | J6: 22.64246161 | K6: 22.92985852 | L6: 23.22097477 | M6: 23.51585923 | N6: 23.81456143 | O6: 24.11713153 | P6: 24.4236204 | Q6: 24.73407956 | R6: 25.04856121 | S6: 25.36711827 | T6: 25.68980434 | U6: 26.01667374 | V6: 26.34778153 | W6: 26.68318349 | X6: 27.02293612 | Y6: 27.36709672 | Z6: 27.71572332 | AA6: 28.06887472 | AB6: 28.42661053 | AC6: 0 | AD6: 80966.58 | AE6: 154831.87 | AF6: 304268.76 | AG6: 164030.01 | AH6: 93054.05 | AI6: 19305.26 | AJ6: 19430.18 | AK6: 19556.77 | AL6: 19685.06 | AM6: 19815.04 | AN6: 19946.77 | AO6: 20080.25 | AP6: 20215.51 | AQ6: 20352.57 | AR6: 20491.47 | AS6: 20632.21 | AT6: 20774.84 | AU6: 20919.36 | AV6: 21065.81 | AW6: 21214.22 | AX6: 21364.61 | AY6: 21517.01 | AZ6: 21671.44 | BA6: 0 | BB6: 150000 | BC6: 150000 | BD6: 150000 | BE6: 150000 | BF6: 150000 | BG6: 150000 | BH6: 150000 | BI6: 150000 | BJ6: 150000 | BK6: 150000 | BL6: 150000 | BM6: 150000 | BN6: 150000 | BO6: 150000 | BP6: 150000 | BQ6: 150000 | BR6: 150000 | BS6: 150000 | BT6: 150000 | BU6: 150000 | BV6: 150000 | BW6: 150000 | BX6: 150000
A7: 6 | B7: Stand Alone | C7: Variable Peak Pricing | D7: 2023 | E7: 0 | F7: 11.0593679 | G7: 33.60403564 | H7: 79.40248632 | I7: 103.3771164 | J7: 116.3132332 | K7: 117.781676 | L7: 119.2690353 | M7: 120.7755587 | N7: 122.3014971 | O7: 123.8471045 | P7: 125.4126386 | Q7: 126.9983602 | R7: 128.6045337 | S7: 130.231427 | T7: 131.8793116 | U7: 133.5484626 | V7: 135.2391585 | W7: 136.9516818 | X7: 138.6863187 | Y7: 140.443359 | Z7: 142.2230965 | AA7: 144.025829 | AB7: 145.851858 | AC7: 0 | AD7: 153329.27 | AE7: 301598.69 | AF7: 601131.86 | AG7: 317700.44 | AH7: 174478.46 | AI7: 26403.44 | AJ7: 26610.06 | AK7: 26819.38 | AL7: 27031.44 | AM7: 27246.27 | AN7: 27463.91 | AO7: 27684.39 | AP7: 27907.75 | AQ7: 28134.04 | AR7: 28363.3 | AS7: 28595.55 | AT7: 28830.84 | AU7: 29069.2 | AV7: 29310.69 | AW7: 29555.35 | AX7: 29803.21 | AY7: 30054.32 | AZ7: 30308.72 | BA7: 0 | BB7: 150000 | BC7: 150000 | BD7: 150000 | BE7: 150000 | BF7: 150000 | BG7: 150000 | BH7: 150000 | BI7: 150000 | BJ7: 150000 | BK7: 150000 | BL7: 150000 | BM7: 150000 | BN7: 150000 | BO7: 150000 | BP7: 150000 | BQ7: 150000 | BR7: 150000 | BS7: 150000 | BT7: 150000 | BU7: 150000 | BV7: 150000 | BW7: 150000 | BX7: 150000
A8: 7 | B8: Stand Alone | C8: Third Party Contracts | D8: 2023 | E8: 0 | F8: 0.5626538926 | G8: 0.9133302936 | H8: 1.16348457 | I8: 1.185031907 | J8: 1.206978294 | K8: 1.22933112 | L8: 1.252097913 | M8: 1.27528634 | N8: 1.298904208 | O8: 1.322959471 | P8: 1.347460229 | Q8: 1.372414733 | R8: 1.397831386 | S8: 1.423718746 | T8: 1.450085532 | U8: 1.476940621 | V8: 1.504293058 | W8: 1.532152052 | X8: 1.560526986 | Y8: 1.589427413 | Z8: 1.618863067 | AA8: 1.648843859 | AB8: 1.679379885 | AC8: 0 | AD8: 19885.76063 | AE8: 20033.21011 | AF8: 20220.73865 | AG8: 20396.04519 | AH8: 20571.42193 | AI8: 20746.84479 | AJ8: 20922.28967 | AK8: 21097.73248 | AL8: 21273.14913 | AM8: 21448.51555 | AN8: 21623.80773 | AO8: 21799.0017 | AP8: 21974.07355 | AQ8: 22148.99946 | AR8: 22323.75569 | AS8: 22498.3186 | AT8: 22672.6647 | AU8: 22846.77058 | AV8: 23020.61301 | AW8: 23194.1689 | AX8: 23367.41531 | AY8: 23540.32951 | AZ8: 23712.88893 | BA8: 0 | BB8: 108374.6934 | BC8: 109478.4008 | BD8: 110708.9749 | BE8: 111673.9322 | BF8: 112639.4595 | BG8: 113605.4128 | BH8: 114571.677 | BI8: 115538.1176 | BJ8: 116504.6052 | BK8: 117471.0304 | BL8: 118437.234 | BM8: 119403.1124 | BN8: 120368.5373 | BO8: 121333.3756 | BP8: 122297.5102 | BQ8: 123260.7985 | BR8: 124223.1352 | BS8: 125184.4005 | BT8: 126144.4534 | BU8: 127103.1808 | BV8: 128060.4599 | BW8: 129016.185 | BX8: 129970.2189
C11: Behavioral | E11: =IFERROR(E3/$AA3,0) -> 0 | F11: 0.3888187675 | G11: 0.6298018442 | H11: 0.7968683038 | I11: 0.8064188583 | J11: 0.8160872544 | K11: 0.8258749814 | L11: 0.8357835475 | M11: 0.8458144804 | N11: 0.8559693273 | O11: 0.8662496556 | P11: 0.8766570528 | Q11: 0.8871931266 | R11: 0.8978595059 | S11: 0.9086578403 | T11: 0.9195898005 | U11: 0.9306570791 | V11: 0.9418613904 | W11: 0.9532044707 | X11: 0.9646880788 | Y11: 0.9763139962 | Z11: 0.9880840273 | AA11: 1
C12: DLC Water Heating | E12: =IFERROR(E4/$AA4,0) -> 0 | F12: 0 | G12: 0 | H12: 0 | I12: 0 | J12: 0 | K12: 0 | L12: 0 | M12: 0 | N12: 0 | O12: 0 | P12: 0 | Q12: 0 | R12: 0 | S12: 0 | T12: 0 | U12: 0 | V12: 0 | W12: 0 | X12: 0 | Y12: 0 | Z12: 0 | AA12: 0
C13: DLC Smart Thermostats - BYOT | E13: =IFERROR(E5/$AA5,0) -> 0 | F13: 0.07651931163 | G13: 0.2324184391 | H13: 0.5489812699 | I13: 0.7167360909 | J13: 0.8087027614 | K13: 0.8212511845 | L13: 0.8340230415 | M13: 0.8441527155 | N13: 0.8544087661 | O13: 0.8647928041 | P13: 0.8753064614 | Q13: 0.8859513909 | R13: 0.8967292671 | S13: 0.907641786 | T13: 0.9186906657 | U13: 0.9298776465 | V13: 0.9412044916 | W13: 0.9526729866 | X13: 0.9642849405 | Y13: 0.9760421859 | Z13: 0.9879465789 | AA13: 1
C14: Time-of-Use | E14: =IFERROR(E6/$AA6,0) -> 0 | F14: 0.07668299953 | G14: 0.2330131645 | H14: 0.550611437 | I14: 0.7169101866 | J14: 0.8066750744 | K14: 0.8169140639 | L14: 0.827285561 | M14: 0.8377913068 | N14: 0.8484330655 | O14: 0.8592126251 | P14: 0.870131797 | Q14: 0.8811924169 | R14: 0.892396345 | S14: 0.903745466 | T14: 0.91524169 | U14: 0.9268869522 | V14: 0.9386832138 | W14: 0.950632462 | X14: 0.9627367106 | Y14: 0.9749980001 | Z14: 0.9874183981 | AA14: 1
C15: Variable Peak Pricing | E15: =IFERROR(E7/$AA7,0) -> 0 | F15: 0.07678739275 | G15: 0.2333195086 | H15: 0.5513072681 | I15: 0.7177678973 | J15: 0.8075859311 | K15: 0.8177816215 | L15: 0.8281086533 | M15: 0.8385687454 | N15: 0.8491636392 | O15: 0.8598950994 | P15: 0.8707649139 | Q15: 0.8817748946 | R15: 0.8929268771 | S15: 0.9042227214 | T15: 0.9156643123 | U15: 0.9272535594 | V15: 0.9389923978 | W15: 0.9508827881 | X15: 0.962926717 | Y15: 0.9751261977 | Z15: 0.9874832697 | AA15: 1
C16: Third Party Contracts | E16: =IFERROR(E8/$AA8,0) -> 0 | F16: 0.3412414642 | G16: 0.5539216395 | H16: 0.7056365971 | I16: 0.7187047462 | J16: 0.732014913 | K16: 0.7455715795 | L16: 0.7593793109 | M16: 0.7734427568 | N16: 0.7877666528 | O16: 0.8023558226 | P16: 0.8172151788 | Q16: 0.8323497252 | R16: 0.8477645582 | S16: 0.8634648687 | T16: 0.8794559436 | U16: 0.8957431678 | V16: 0.9123320257 | W16: 0.9292281037 | X16: 0.9464370913 | Y16: 0.9639647834 | Z16: 0.9818170825 | AA16: 1

Sheet LC
C2: 2 | D2: 3 | E2: 4 | F2: 5 | G2: 6 | H2: 7 | I2: 8 | J2: 9 | K2: 10 | L2: 11 | M2: 12 | N2: 13 | O2: 14 | P2: 15 | Q2: 16 | R2: 17 | S2: 18 | T2: 19 | U2: 20 | V2: 21 | W2: 22 | X2: 23 | Y2: 24
A3: Revenue Requirement | B3: Levelization | C3: 2023 | D3: 2024 | E3: 2025 | F3: 2026 | G3: 2027 | H3: 2028 | I3: 2029 | J3: 2030 | K3: 2031 | L3: 2032 | M3: 2033 | N3: 2034 | O3: 2035 | P3: 2036 | Q3: 2037 | R3: 2038 | S3: 2039 | T3: 2040 | U3: 2041 | V3: 2042 | W3: 2043 | X3: 2044 | Y3: 2045
A4: Behavioral | B4: =-PMT($B$31,24,NPV($B$31,LC!C4:Y4)) -> 353099.0803 | C4: =VLOOKUP(C3,Behavioral!$A$28:$S$65,19,FALSE) -> 0 | D4: =VLOOKUP(D3,Behavioral!$A$28:$S$65,19,FALSE) -> 214714.9805 | E4: =VLOOKUP(E3,Behavioral!$A$28:$S$65,19,FALSE) -> 256259.1179 | F4: =VLOOKUP(F3,Behavioral!$A$28:$S$65,19,FALSE) -> 291383.2759 | G4: =VLOOKUP(G3,Behavioral!$A$28:$S$65,19,FALSE) -> 312671.7843 | H4: =VLOOKUP(H3,Behavioral!$A$28:$S$65,19,FALSE) -> 333554.5978 | I4: =VLOOKUP(I3,Behavioral!$A$28:$S$65,19,FALSE) -> 353978.1251 | J4: =VLOOKUP(J3,Behavioral!$A$28:$S$65,19,FALSE) -> 374108.0889 | K4: =VLOOKUP(K3,Behavioral!$A$28:$S$65,19,FALSE) -> 393985.287 | L4: =VLOOKUP(L3,Behavioral!$A$28:$S$65,19,FALSE) -> 413605.5556 | M4: =VLOOKUP(M3,Behavioral!$A$28:$S$65,19,FALSE) -> 432964.6203 | N4: =VLOOKUP(N3,Behavioral!$A$28:$S$65,19,FALSE) -> 443662.7831 | O4: =VLOOKUP(O3,Behavioral!$A$28:$S$65,19,FALSE) -> 454622.3529 | P4: =VLOOKUP(P3,Behavioral!$A$28:$S$65,19,FALSE) -> 465861.5627 | Q4: =VLOOKUP(Q3,Behavioral!$A$28:$S$65,19,FALSE) -> 477388.2338 | R4: =VLOOKUP(R3,Behavioral!$A$28:$S$65,19,FALSE) -> 489210.4585 | S4: =VLOOKUP(S3,Behavioral!$A$28:$S$65,19,FALSE) -> 501339.5796 | T4: =VLOOKUP(T3,Behavioral!$A$28:$S$65,19,FALSE) -> 513783.9887 | U4: =VLOOKUP(U3,Behavioral!$A$28:$S$65,19,FALSE) -> 526552.3964 | V4: =VLOOKUP(V3,Behavioral!$A$28:$S$65,19,FALSE) -> 539653.6842 | W4: =VLOOKUP(W3,Behavioral!$A$28:$S$65,19,FALSE) -> 553096.9871 | X4: =VLOOKUP(X3,Behavioral!$A$28:$S$65,19,FALSE) -> 566891.8203 | Y4: =VLOOKUP(Y3,Behavioral!$A$28:$S$65,19,FALSE) -> 581047.8381
A5: DLC Water Heating | B5: =-PMT($B$31,24,NPV($B$31,LC!C5:Y5)) -> 0 | C5: =VLOOKUP(C$3,'DLC-WH'!$A$28:$S$50,19,FALSE) -> 0 | D5: =VLOOKUP(D$3,'DLC-WH'!$A$28:$T$65,19,FALSE) -> 0 | E5: =VLOOKUP(E$3,'DLC-WH'!$A$28:$T$65,19,FALSE) -> 0 | F5: =VLOOKUP(F$3,'DLC-WH'!$A$28:$T$65,19,FALSE) -> 0 | G5: =VLOOKUP(G$3,'DLC-WH'!$A$28:$T$65,19,FALSE) -> 0 | H5: =VLOOKUP(H$3,'DLC-WH'!$A$28:$T$65,19,FALSE) -> 0 | I5: =VLOOKUP(I$3,'DLC-WH'!$A$28:$T$65,19,FALSE) -> 0 | J5: =VLOOKUP(J$3,'DLC-WH'!$A$28:$T$65,19,FALSE) -> 0 | K5: =VLOOKUP(K$3,'DLC-WH'!$A$28:$T$65,19,FALSE) -> 0 | L5: =VLOOKUP(L$3,'DLC-WH'!$A$28:$T$65,19,FALSE) -> 0 | M5: =VLOOKUP(M$3,'DLC-WH'!$A$28:$T$65,19,FALSE) -> 0 | N5: =VLOOKUP(N$3,'DLC-WH'!$A$28:$T$65,19,FALSE) -> 0 | O5: =VLOOKUP(O$3,'DLC-WH'!$A$28:$T$65,19,FALSE) -> 0 | P5: =VLOOKUP(P$3,'DLC-WH'!$A$28:$T$65,19,FALSE) -> 0 | Q5: =VLOOKUP(Q$3,'DLC-WH'!$A$28:$T$65,19,FALSE) -> 0 | R5: =VLOOKUP(R$3,'DLC-WH'!$A$28:$T$65,19,FALSE) -> 0 | S5: =VLOOKUP(S$3,'DLC-WH'!$A$28:$T$65,19,FALSE) -> 0 | T5: =VLOOKUP(T$3,'DLC-WH'!$A$28:$T$65,19,FALSE) -> 0 | U5: =VLOOKUP(U$3,'DLC-WH'!$A$28:$T$65,19,FALSE) -> 0 | V5: =VLOOKUP(V$3,'DLC-WH'!$A$28:$T$65,19,FALSE) -> 0 | W5: =VLOOKUP(W$3,'DLC-WH'!$A$28:$T$65,19,FALSE) -> 0 | X5: =VLOOKUP(X$3,'DLC-WH'!$A$28:$T$65,19,FALSE) -> 0 | Y5: =VLOOKUP(Y$3,'DLC-WH'!$A$28:$T$65,19,FALSE) -> 0
A6: DLC Smart Thermostats - BYOT | B6: =-PMT($B$31,24,NPV($B$31,LC!C6:Y6)) -> 840144.856 | C6: =VLOOKUP(C$3,'DLC-Smart TS'!$A$28:$S$50,19,FALSE) -> 0 | D6: =VLOOKUP(D$3,'DLC-Smart TS'!$A$28:$S$50,19,FALSE) -> 166400.3872 | E6: =VLOOKUP(E$3,'DLC-Smart TS'!$A$28:$S$50,19,FALSE) -> 333346.6758 | F6: =VLOOKUP(F$3,'DLC-Smart TS'!$A$28:$S$50,19,FALSE) -> 676000.0775 | G6: =VLOOKUP(G$3,'DLC-Smart TS'!$A$28:$S$50,19,FALSE) -> 864889.5427 | H6: =VLOOKUP(H$3,'DLC-Smart TS'!$A$28:$S$50,19,FALSE) -> 973854.7285 | I6: =VLOOKUP(I$3,'DLC-Smart TS'!$A$28:$S$50,19,FALSE) -> 994933.0984 | J6: =VLOOKUP(J$3,'DLC-Smart TS'!$A$28:$S$50,19,FALSE) -> 1018046.592 | K6: =VLOOKUP(K$3,'DLC-Smart TS'!$A$28:$S$50,19,FALSE) -> 1039400.586 | L6: =VLOOKUP(L$3,'DLC-Smart TS'!$A$28:$S$50,19,FALSE) -> 1062468.949 | M6: =VLOOKUP(M$3,'DLC-Smart TS'!$A$28:$S$50,19,FALSE) -> 1087055.398 | N6: =VLOOKUP(N$3,'DLC-Smart TS'!$A$28:$S$50,19,FALSE) -> 1102480.153 | O6: =VLOOKUP(O$3,'DLC-Smart TS'!$A$28:$S$50,19,FALSE) -> 1109180.328 | P6: =VLOOKUP(P$3,'DLC-Smart TS'!$A$28:$S$50,19,FALSE) -> 1096646.315 | Q6: =VLOOKUP(Q$3,'DLC-Smart TS'!$A$28:$S$50,19,FALSE) -> 1108493.624 | R6: =VLOOKUP(R$3,'DLC-Smart TS'!$A$28:$S$50,19,FALSE) -> 1133754.5 | S6: =VLOOKUP(S$3,'DLC-Smart TS'!$A$28:$S$50,19,FALSE) -> 1172610.839 | T6: =VLOOKUP(T$3,'DLC-Smart TS'!$A$28:$S$50,19,FALSE) -> 1212849.812 | U6: =VLOOKUP(U$3,'DLC-Smart TS'!$A$28:$S$50,19,FALSE) -> 1254854.597 | V6: =VLOOKUP(V$3,'DLC-Smart TS'!$A$28:$S$50,19,FALSE) -> 1298338.094 | W6: =VLOOKUP(W$3,'DLC-Smart TS'!$A$28:$S$50,19,FALSE) -> 1343353 | X6: =VLOOKUP(X$3,'DLC-Smart TS'!$A$28:$S$50,19,FALSE) -> 1389953.859 | Y6: =VLOOKUP(Y$3,'DLC-Smart TS'!$A$28:$S$50,19,FALSE) -> 1438197.19
A7: Time-of-Use | B7: =-PMT($B$31,24,NPV($B$31,LC!C7:Y7)) -> 265258.7808 | C7: =VLOOKUP(C$3,TOU!$A$28:$S$50,19,FALSE) -> 0 | D7: =VLOOKUP(D$3,TOU!$A$28:$S$50,19,FALSE) -> 182842.7545 | E7: =VLOOKUP(E$3,TOU!$A$28:$S$50,19,FALSE) -> 219933.1203 | F7: =VLOOKUP(F$3,TOU!$A$28:$S$50,19,FALSE) -> 289311.3886 | G7: =VLOOKUP(G$3,TOU!$A$28:$S$50,19,FALSE) -> 323345.2969 | H7: =VLOOKUP(H$3,TOU!$A$28:$S$50,19,FALSE) -> 339353.2201 | I7: =VLOOKUP(I$3,TOU!$A$28:$S$50,19,FALSE) -> 337362.5352 | J7: =VLOOKUP(J$3,TOU!$A$28:$S$50,19,FALSE) -> 336083.8274 | K7: =VLOOKUP(K$3,TOU!$A$28:$S$50,19,FALSE) -> 335474.7344 | L7: =VLOOKUP(L$3,TOU!$A$28:$S$50,19,FALSE) -> 335457.3533 | M7: =VLOOKUP(M$3,TOU!$A$28:$S$50,19,FALSE) -> 335851.8494 | N7: =VLOOKUP(N$3,TOU!$A$28:$S$50,19,FALSE) -> 327827.2601 | O7: =VLOOKUP(O$3,TOU!$A$28:$S$50,19,FALSE) -> 312362.482 | P7: =VLOOKUP(P$3,TOU!$A$28:$S$50,19,FALSE) -> 281359.548 | Q7: =VLOOKUP(Q$3,TOU!$A$28:$S$50,19,FALSE) -> 268513.5472 | R7: =VLOOKUP(R$3,TOU!$A$28:$S$50,19,FALSE) -> 265141.0535 | S7: =VLOOKUP(S$3,TOU!$A$28:$S$50,19,FALSE) -> 271251.2618 | T7: =VLOOKUP(T$3,TOU!$A$28:$S$50,19,FALSE) -> 277505.771 | U7: =VLOOKUP(U$3,TOU!$A$28:$S$50,19,FALSE) -> 283908.1033 | V7: =VLOOKUP(V$3,TOU!$A$28:$S$50,19,FALSE) -> 290461.8742 | W7: =VLOOKUP(W$3,TOU!$A$28:$S$50,19,FALSE) -> 297170.7979 | X7: =VLOOKUP(X$3,TOU!$A$28:$S$50,19,FALSE) -> 304038.6764 | Y7: =VLOOKUP(Y$3,TOU!$A$28:$S$50,19,FALSE) -> 311069.4137
A8: Variable Peak Pricing | B8: =-PMT($B$31,24,NPV($B$31,LC!C8:Y8)) -> 336828.3317 | C8: =VLOOKUP(C$3,VPPR!$A$28:$S$50,19,FALSE) -> 0 | D8: =VLOOKUP(D$3,VPPR!$A$28:$S$50,19,FALSE) -> 198539.0486 | E8: =VLOOKUP(E$3,VPPR!$A$28:$S$50,19,FALSE) -> 267165.9322 | F8: =VLOOKUP(F$3,VPPR!$A$28:$S$50,19,FALSE) -> 400706.9075 | G8: =VLOOKUP(G$3,VPPR!$A$28:$S$50,19,FALSE) -> 462845.587 | H8: =VLOOKUP(H$3,VPPR!$A$28:$S$50,19,FALSE) -> 488627.1923 | I8: =VLOOKUP(I$3,VPPR!$A$28:$S$50,19,FALSE) -> 478338.8315 | J8: =VLOOKUP(J$3,VPPR!$A$28:$S$50,19,FALSE) -> 469463.9822 | K8: =VLOOKUP(K$3,VPPR!$A$28:$S$50,19,FALSE) -> 461908.6604 | L8: =VLOOKUP(L$3,VPPR!$A$28:$S$50,19,FALSE) -> 455513.8124 | M8: =VLOOKUP(M$3,VPPR!$A$28:$S$50,19,FALSE) -> 449914.9306 | N8: =VLOOKUP(N$3,VPPR!$A$28:$S$50,19,FALSE) -> 428361.2566 | O8: =VLOOKUP(O$3,VPPR!$A$28:$S$50,19,FALSE) -> 391776.4824 | P8: =VLOOKUP(P$3,VPPR!$A$28:$S$50,19,FALSE) -> 323950.2599 | Q8: =VLOOKUP(Q$3,VPPR!$A$28:$S$50,19,FALSE) -> 292685.195 | R8: =VLOOKUP(R$3,VPPR!$A$28:$S$50,19,FALSE) -> 280402.4729 | S8: =VLOOKUP(S$3,VPPR!$A$28:$S$50,19,FALSE) -> 287029.0169 | T8: =VLOOKUP(T$3,VPPR!$A$28:$S$50,19,FALSE) -> 293817.5324 | U8: =VLOOKUP(U$3,VPPR!$A$28:$S$50,19,FALSE) -> 300772.1531 | V8: =VLOOKUP(V$3,VPPR!$A$28:$S$50,19,FALSE) -> 307897.1299 | W8: =VLOOKUP(W$3,VPPR!$A$28:$S$50,19,FALSE) -> 315196.8285 | X8: =VLOOKUP(X$3,VPPR!$A$28:$S$50,19,FALSE) -> 322675.7279 | Y8: =VLOOKUP(Y$3,VPPR!$A$28:$S$50,19,FALSE) -> 330338.432
A9: Third Party Contracts | B9: =-PMT($B$31,24,NPV($B$31,LC!C9:Y9)) -> 166790.5253 | C9: =VLOOKUP(C$3,'3rd party cont.'!$A$28:$S$50,19,FALSE) -> 0 | D9: =VLOOKUP(D$3,'3rd party cont.'!$A$28:$S$50,19,FALSE) -> 123728.0396 | E9: =VLOOKUP(E$3,'3rd party cont.'!$A$28:$S$50,19,FALSE) -> 131941.4883 | F9: =VLOOKUP(F$3,'3rd party cont.'!$A$28:$S$50,19,FALSE) -> 140124.1029 | G9: =VLOOKUP(G$3,'3rd party cont.'!$A$28:$S$50,19,FALSE) -> 147998.115 | H9: =VLOOKUP(H$3,'3rd party cont.'!$A$28:$S$50,19,FALSE) -> 155878.1045 | I9: =VLOOKUP(I$3,'3rd party cont.'!$A$28:$S$50,19,FALSE) -> 163727.6167 | J9: =VLOOKUP(J$3,'3rd party cont.'!$A$28:$S$50,19,FALSE) -> 171612.1754 | K9: =VLOOKUP(K$3,'3rd party cont.'!$A$28:$S$50,19,FALSE) -> 179543.478 | L9: =VLOOKUP(L$3,'3rd party cont.'!$A$28:$S$50,19,FALSE) -> 187522.0152 | M9: =VLOOKUP(M$3,'3rd party cont.'!$A$28:$S$50,19,FALSE) -> 195548.2805 | N9: =VLOOKUP(N$3,'3rd party cont.'!$A$28:$S$50,19,FALSE) -> 201506.9363 | O9: =VLOOKUP(O$3,'3rd party cont.'!$A$28:$S$50,19,FALSE) -> 207632.0318 | P9: =VLOOKUP(P$3,'3rd party cont.'!$A$28:$S$50,19,FALSE) -> 213925.901 | Q9: =VLOOKUP(Q$3,'3rd party cont.'!$A$28:$S$50,19,FALSE) -> 220394.3228 | R9: =VLOOKUP(R$3,'3rd party cont.'!$A$28:$S$50,19,FALSE) -> 227041.7399 | S9: =VLOOKUP(S$3,'3rd party cont.'!$A$28:$S$50,19,FALSE) -> 233873.4624 | T9: =VLOOKUP(T$3,'3rd party cont.'!$A$28:$S$50,19,FALSE) -> 240894.1341 | U9: =VLOOKUP(U$3,'3rd party cont.'!$A$28:$S$50,19,FALSE) -> 248108.4804 | V9: =VLOOKUP(V$3,'3rd party cont.'!$A$28:$S$50,19,FALSE) -> 255521.2978 | W9: =VLOOKUP(W$3,'3rd party cont.'!$A$28:$S$50,19,FALSE) -> 263137.5329 | X9: =VLOOKUP(X$3,'3rd party cont.'!$A$28:$S$50,19,FALSE) -> 270962.2261 | Y9: =VLOOKUP(Y$3,'3rd party cont.'!$A$28:$S$50,19,FALSE) -> 279000.5585
A11: Dth | B11: Avg
A12: Behavioral | B12: =AVERAGE(C12:Y12) -> 29.97422344 | C12: =HLOOKUP(C$3,'AEG Input File'!$E$2:$AB$8,2,FALSE)/10 -> 0 | D12: =HLOOKUP(D$3,'AEG Input File'!$E$2:$AB$8,2,FALSE) -> 14.17343528 | E12: =HLOOKUP(E$3,'AEG Input File'!$E$2:$AB$8,2,FALSE) -> 22.95788276 | F12: =HLOOKUP(F$3,'AEG Input File'!$E$2:$AB$8,2,FALSE) -> 29.04788111 | G12: =HLOOKUP(G$3,'AEG Input File'!$E$2:$AB$8,2,FALSE) -> 29.39602317 | H12: =HLOOKUP(H$3,'AEG Input File'!$E$2:$AB$8,2,FALSE) -> 29.74846086 | I12: =HLOOKUP(I$3,'AEG Input File'!$E$2:$AB$8,2,FALSE) -> 30.10524846 | J12: =HLOOKUP(J$3,'AEG Input File'!$E$2:$AB$8,2,FALSE) -> 30.46644095 | K12: =HLOOKUP(K$3,'AEG Input File'!$E$2:$AB$8,2,FALSE) -> 30.83209403 | L12: =HLOOKUP(L$3,'AEG Input File'!$E$2:$AB$8,2,FALSE) -> 31.20226408 | M12: =HLOOKUP(M$3,'AEG Input File'!$E$2:$AB$8,2,FALSE) -> 31.57700826 | N12: =HLOOKUP(N$3,'AEG Input File'!$E$2:$AB$8,2,FALSE) -> 31.95638442 | O12: =HLOOKUP(O$3,'AEG Input File'!$E$2:$AB$8,2,FALSE) -> 32.34045117 | P12: =HLOOKUP(P$3,'AEG Input File'!$E$2:$AB$8,2,FALSE) -> 32.72926789 | Q12: =HLOOKUP(Q$3,'AEG Input File'!$E$2:$AB$8,2,FALSE) -> 33.1228947 | R12: =HLOOKUP(R$3,'AEG Input File'!$E$2:$AB$8,2,FALSE) -> 33.52139252 | S12: =HLOOKUP(S$3,'AEG Input File'!$E$2:$AB$8,2,FALSE) -> 33.92482304 | T12: =HLOOKUP(T$3,'AEG Input File'!$E$2:$AB$8,2,FALSE) -> 34.33324875 | U12: =HLOOKUP(U$3,'AEG Input File'!$E$2:$AB$8,2,FALSE) -> 34.74673294 | V12: =HLOOKUP(V$3,'AEG Input File'!$E$2:$AB$8,2,FALSE) -> 35.16533973 | W12: =HLOOKUP(W$3,'AEG Input File'!$E$2:$AB$8,2,FALSE) -> 35.58913406 | X12: =HLOOKUP(X$3,'AEG Input File'!$E$2:$AB$8,2,FALSE) -> 36.0181817 | Y12: =HLOOKUP(Y$3,'AEG Input File'!$E$2:$AB$8,2,FALSE) -> 36.45254928
A13: DLC Water Heating | B13: =AVERAGE(C13:Y13) -> 0 | C13: =HLOOKUP(C$3,'AEG Input File'!$E$2:$AB$8,3,FALSE)/10 -> 0 | D13: =HLOOKUP(D$3,'AEG Input File'!$E$2:$AB$8,3,FALSE) -> 0 | E13: =HLOOKUP(E$3,'AEG Input File'!$E$2:$AB$8,3,FALSE) -> 0 | F13: =HLOOKUP(F$3,'AEG Input File'!$E$2:$AB$8,3,FALSE) -> 0 | G13: =HLOOKUP(G$3,'AEG Input File'!$E$2:$AB$8,3,FALSE) -> 0 | H13: =HLOOKUP(H$3,'AEG Input File'!$E$2:$AB$8,3,FALSE) -> 0 | I13: =HLOOKUP(I$3,'AEG Input File'!$E$2:$AB$8,3,FALSE) -> 0 | J13: =HLOOKUP(J$3,'AEG Input File'!$E$2:$AB$8,3,FALSE) -> 0 | K13: =HLOOKUP(K$3,'AEG Input File'!$E$2:$AB$8,3,FALSE) -> 0 | L13: =HLOOKUP(L$3,'AEG Input File'!$E$2:$AB$8,3,FALSE) -> 0 | M13: =HLOOKUP(M$3,'AEG Input File'!$E$2:$AB$8,3,FALSE) -> 0 | N13: =HLOOKUP(N$3,'AEG Input File'!$E$2:$AB$8,3,FALSE) -> 0 | O13: =HLOOKUP(O$3,'AEG Input File'!$E$2:$AB$8,3,FALSE) -> 0 | P13: =HLOOKUP(P$3,'AEG Input File'!$E$2:$AB$8,3,FALSE) -> 0 | Q13: =HLOOKUP(Q$3,'AEG Input File'!$E$2:$AB$8,3,FALSE) -> 0 | R13: =HLOOKUP(R$3,'AEG Input File'!$E$2:$AB$8,3,FALSE) -> 0 | S13: =HLOOKUP(S$3,'AEG Input File'!$E$2:$AB$8,3,FALSE) -> 0 | T13: =HLOOKUP(T$3,'AEG Input File'!$E$2:$AB$8,3,FALSE) -> 0 | U13: =HLOOKUP(U$3,'AEG Input File'!$E$2:$AB$8,3,FALSE) -> 0 | V13: =HLOOKUP(V$3,'AEG Input File'!$E$2:$AB$8,3,FALSE) -> 0 | W13: =HLOOKUP(W$3,'AEG Input File'!$E$2:$AB$8,3,FALSE) -> 0 | X13: =HLOOKUP(X$3,'AEG Input File'!$E$2:$AB$8,3,FALSE) -> 0 | Y13: =HLOOKUP(Y$3,'AEG Input File'!$E$2:$AB$8,3,FALSE) -> 0
A14: DLC Smart Thermostats - BYOT | B14: 163.301169 | C14: =HLOOKUP(C$3,'AEG Input File'!$E$2:$AB$8,4,FALSE)/10 -> 0 | D14: =HLOOKUP(D$3,'AEG Input File'!$E$2:$AB$8,4,FALSE) -> 16.11142203 | E14: =HLOOKUP(E$3,'AEG Input File'!$E$2:$AB$8,4,FALSE) -> 48.93655574 | F14: =HLOOKUP(F$3,'AEG Input File'!$E$2:$AB$8,4,FALSE) -> 115.5900221 | G14: =HLOOKUP(G$3,'AEG Input File'!$E$2:$AB$8,4,FALSE) -> 150.9114157 | H14: =HLOOKUP(H$3,'AEG Input File'!$E$2:$AB$8,4,FALSE) -> 170.2753358 | I14: =HLOOKUP(I$3,'AEG Input File'!$E$2:$AB$8,4,FALSE) -> 172.9174524 | J14: =HLOOKUP(J$3,'AEG Input File'!$E$2:$AB$8,4,FALSE) -> 175.6066138 | K14: =HLOOKUP(K$3,'AEG Input File'!$E$2:$AB$8,4,FALSE) -> 177.7394538 | L14: =HLOOKUP(L$3,'AEG Input File'!$E$2:$AB$8,4,FALSE) -> 179.8989029 | M14: =HLOOKUP(M$3,'AEG Input File'!$E$2:$AB$8,4,FALSE) -> 182.0853002 | N14: =HLOOKUP(N$3,'AEG Input File'!$E$2:$AB$8,4,FALSE) -> 184.2989894 | O14: =HLOOKUP(O$3,'AEG Input File'!$E$2:$AB$8,4,FALSE) -> 186.5403184 | P14: =HLOOKUP(P$3,'AEG Input File'!$E$2:$AB$8,4,FALSE) -> 188.8096398 | Q14: =HLOOKUP(Q$3,'AEG Input File'!$E$2:$AB$8,4,FALSE) -> 191.1073107 | R14: =HLOOKUP(R$3,'AEG Input File'!$E$2:$AB$8,4,FALSE) -> 193.4336929 | S14: =HLOOKUP(S$3,'AEG Input File'!$E$2:$AB$8,4,FALSE) -> 195.7891528 | T14: =HLOOKUP(T$3,'AEG Input File'!$E$2:$AB$8,4,FALSE) -> 198.1740616 | U14: =HLOOKUP(U$3,'AEG Input File'!$E$2:$AB$8,4,FALSE) -> 200.5887953 | V14: =HLOOKUP(V$3,'AEG Input File'!$E$2:$AB$8,4,FALSE) -> 203.0337349 | W14: =HLOOKUP(W$3,'AEG Input File'!$E$2:$AB$8,4,FALSE) -> 205.5092661 | X14: =HLOOKUP(X$3,'AEG Input File'!$E$2:$AB$8,4,FALSE) -> 208.0157797 | Y14: =HLOOKUP(Y$3,'AEG Input File'!$E$2:$AB$8,4,FALSE) -> 210.5536718
A15: Time-of-Use | B15: 21.695523 | C15: =HLOOKUP(C$3,'AEG Input File'!$E$2:$AB$8,5,FALSE)/10 -> 0 | D15: =HLOOKUP(D$3,'AEG Input File'!$E$2:$AB$8,5,FALSE) -> 2.152405507 | E15: =HLOOKUP(E$3,'AEG Input File'!$E$2:$AB$8,5,FALSE) -> 6.540417324 | F15: =HLOOKUP(F$3,'AEG Input File'!$E$2:$AB$8,5,FALSE) -> 15.45504345 | G15: =HLOOKUP(G$3,'AEG Input File'!$E$2:$AB$8,5,FALSE) -> 20.12286222 | H15: =HLOOKUP(H$3,'AEG Input File'!$E$2:$AB$8,5,FALSE) -> 22.64246161 | I15: =HLOOKUP(I$3,'AEG Input File'!$E$2:$AB$8,5,FALSE) -> 22.92985852 | J15: =HLOOKUP(J$3,'AEG Input File'!$E$2:$AB$8,5,FALSE) -> 23.22097477 | K15: =HLOOKUP(K$3,'AEG Input File'!$E$2:$AB$8,5,FALSE) -> 23.51585923 | L15: =HLOOKUP(L$3,'AEG Input File'!$E$2:$AB$8,5,FALSE) -> 23.81456143 | M15: =HLOOKUP(M$3,'AEG Input File'!$E$2:$AB$8,5,FALSE) -> 24.11713153 | N15: =HLOOKUP(N$3,'AEG Input File'!$E$2:$AB$8,5,FALSE) -> 24.4236204 | O15: =HLOOKUP(O$3,'AEG Input File'!$E$2:$AB$8,5,FALSE) -> 24.73407956 | P15: =HLOOKUP(P$3,'AEG Input File'!$E$2:$AB$8,5,FALSE) -> 25.04856121 | Q15: =HLOOKUP(Q$3,'AEG Input File'!$E$2:$AB$8,5,FALSE) -> 25.36711827 | R15: =HLOOKUP(R$3,'AEG Input File'!$E$2:$AB$8,5,FALSE) -> 25.68980434 | S15: =HLOOKUP(S$3,'AEG Input File'!$E$2:$AB$8,5,FALSE) -> 26.01667374 | T15: =HLOOKUP(T$3,'AEG Input File'!$E$2:$AB$8,5,FALSE) -> 26.34778153 | U15: =HLOOKUP(U$3,'AEG Input File'!$E$2:$AB$8,5,FALSE) -> 26.68318349 | V15: =HLOOKUP(V$3,'AEG Input File'!$E$2:$AB$8,5,FALSE) -> 27.02293612 | W15: =HLOOKUP(W$3,'AEG Input File'!$E$2:$AB$8,5,FALSE) -> 27.36709672 | X15: =HLOOKUP(X$3,'AEG Input File'!$E$2:$AB$8,5,FALSE) -> 27.71572332 | Y15: =HLOOKUP(Y$3,'AEG Input File'!$E$2:$AB$8,5,FALSE) -> 28.06887472
A16: Variable Peak Pricing | B16: 111.3902299 | C16: =HLOOKUP(C$3,'AEG Input File'!$E$2:$AB$8,6,FALSE)/10 -> 0 | D16: =HLOOKUP(D$3,'AEG Input File'!$E$2:$AB$8,6,FALSE) -> 11.0593679 | E16: =HLOOKUP(E$3,'AEG Input File'!$E$2:$AB$8,6,FALSE) -> 33.60403564 | F16: =HLOOKUP(F$3,'AEG Input File'!$E$2:$AB$8,6,FALSE) -> 79.40248632 | G16: =HLOOKUP(G$3,'AEG Input File'!$E$2:$AB$8,6,FALSE) -> 103.3771164 | H16: =HLOOKUP(H$3,'AEG Input File'!$E$2:$AB$8,6,FALSE) -> 116.3132332 | I16: =HLOOKUP(I$3,'AEG Input File'!$E$2:$AB$8,6,FALSE) -> 117.781676 | J16: =HLOOKUP(J$3,'AEG Input File'!$E$2:$AB$8,6,FALSE) -> 119.2690353 | K16: =HLOOKUP(K$3,'AEG Input File'!$E$2:$AB$8,6,FALSE) -> 120.7755587 | L16: =HLOOKUP(L$3,'AEG Input File'!$E$2:$AB$8,6,FALSE) -> 122.3014971 | M16: =HLOOKUP(M$3,'AEG Input File'!$E$2:$AB$8,6,FALSE) -> 123.8471045 | N16: =HLOOKUP(N$3,'AEG Input File'!$E$2:$AB$8,6,FALSE) -> 125.4126386 | O16: =HLOOKUP(O$3,'AEG Input File'!$E$2:$AB$8,6,FALSE) -> 126.9983602 | P16: =HLOOKUP(P$3,'AEG Input File'!$E$2:$AB$8,6,FALSE) -> 128.6045337 | Q16: =HLOOKUP(Q$3,'AEG Input File'!$E$2:$AB$8,6,FALSE) -> 130.231427 | R16: =HLOOKUP(R$3,'AEG Input File'!$E$2:$AB$8,6,FALSE) -> 131.8793116 | S16: =HLOOKUP(S$3,'AEG Input File'!$E$2:$AB$8,6,FALSE) -> 133.5484626 | T16: =HLOOKUP(T$3,'AEG Input File'!$E$2:$AB$8,6,FALSE) -> 135.2391585 | U16: =HLOOKUP(U$3,'AEG Input File'!$E$2:$AB$8,6,FALSE) -> 136.9516818 | V16: =HLOOKUP(V$3,'AEG Input File'!$E$2:$AB$8,6,FALSE) -> 138.6863187 | W16: =HLOOKUP(W$3,'AEG Input File'!$E$2:$AB$8,6,FALSE) -> 140.443359 | X16: =HLOOKUP(X$3,'AEG Input File'!$E$2:$AB$8,6,FALSE) -> 142.2230965 | Y16: =HLOOKUP(Y$3,'AEG Input File'!$E$2:$AB$8,6,FALSE) -> 144.025829
A17: Third Party Contracts | B17: 1.275331117 | C17: =HLOOKUP(C$3,'AEG Input File'!$E$2:$AB$8,7,FALSE)/10 -> 0 | D17: =HLOOKUP(D$3,'AEG Input File'!$E$2:$AB$8,7,FALSE) -> 0.5626538926 | E17: =HLOOKUP(E$3,'AEG Input File'!$E$2:$AB$8,7,FALSE) -> 0.9133302936 | F17: =HLOOKUP(F$3,'AEG Input File'!$E$2:$AB$8,7,FALSE) -> 1.16348457 | G17: =HLOOKUP(G$3,'AEG Input File'!$E$2:$AB$8,7,FALSE) -> 1.185031907 | H17: =HLOOKUP(H$3,'AEG Input File'!$E$2:$AB$8,7,FALSE) -> 1.206978294 | I17: =HLOOKUP(I$3,'AEG Input File'!$E$2:$AB$8,7,FALSE) -> 1.22933112 | J17: =HLOOKUP(J$3,'AEG Input File'!$E$2:$AB$8,7,FALSE) -> 1.252097913 | K17: =HLOOKUP(K$3,'AEG Input File'!$E$2:$AB$8,7,FALSE) -> 1.27528634 | L17: =HLOOKUP(L$3,'AEG Input File'!$E$2:$AB$8,7,FALSE) -> 1.298904208 | M17: =HLOOKUP(M$3,'AEG Input File'!$E$2:$AB$8,7,FALSE) -> 1.322959471 | N17: =HLOOKUP(N$3,'AEG Input File'!$E$2:$AB$8,7,FALSE) -> 1.347460229 | O17: =HLOOKUP(O$3,'AEG Input File'!$E$2:$AB$8,7,FALSE) -> 1.372414733 | P17: =HLOOKUP(P$3,'AEG Input File'!$E$2:$AB$8,7,FALSE) -> 1.397831386 | Q17: =HLOOKUP(Q$3,'AEG Input File'!$E$2:$AB$8,7,FALSE) -> 1.423718746 | R17: =HLOOKUP(R$3,'AEG Input File'!$E$2:$AB$8,7,FALSE) -> 1.450085532 | S17: =HLOOKUP(S$3,'AEG Input File'!$E$2:$AB$8,7,FALSE) -> 1.476940621 | T17: =HLOOKUP(T$3,'AEG Input File'!$E$2:$AB$8,7,FALSE) -> 1.504293058 | U17: =HLOOKUP(U$3,'AEG Input File'!$E$2:$AB$8,7,FALSE) -> 1.532152052 | V17: =HLOOKUP(V$3,'AEG Input File'!$E$2:$AB$8,7,FALSE) -> 1.560526986 | W17: =HLOOKUP(W$3,'AEG Input File'!$E$2:$AB$8,7,FALSE) -> 1.589427413 | X17: =HLOOKUP(X$3,'AEG Input File'!$E$2:$AB$8,7,FALSE) -> 1.618863067 | Y17: =HLOOKUP(Y$3,'AEG Input File'!$E$2:$AB$8,7,FALSE) -> 1.648843859
A19: Input into Plexos | B19: Per Dth Price
A20: Behavioral | B20: =-PMT($B$31,24,NPV($B$31,LC!C20:Y20)) -> 11848.86204 | C20: =IFERROR(C4/(C12*1000),0) -> 0 | D20: =IFERROR(D4/(D12),0) -> 15149.11355 | E20: =IFERROR(E4/(E12),0) -> 11162.14072 | F20: 10031.13703 | G20: 10636.53347 | H20: 11212.49934 | I20: 11758.02039 | J20: 12279.34991 | K20: 12778.41481 | L20: 13255.6264 | M20: 13711.38826 | N20: 13883.38484 | O20: 14057.39056 | P20: 14233.79112 | Q20: 14412.63628 | R20: 14593.97781 | S20: 14777.9571 | T20: 14964.61906 | U20: 15154.01167 | V20: 15346.18145 | W20: 15541.17575 | X20: 15739.04605 | Y20: 15939.84096
A21: DLC Water Heating | B21: =-PMT($B$31,24,NPV($B$31,LC!C21:Y21)) -> 0 | C21: =IFERROR(C5/(C13*1000),0) -> 0 | D21: =IFERROR(D5/(D13),0) -> 0 | E21: 0 | F21: 0 | G21: 0 | H21: 0 | I21: 0 | J21: 0 | K21: 0 | L21: 0 | M21: 0 | N21: 0 | O21: 0 | P21: 0 | Q21: 0 | R21: 0 | S21: 0 | T21: 0 | U21: 0 | V21: 0 | W21: 0 | X21: 0 | Y21: 0
A22: DLC Smart Thermostats - BYOT | B22: =-PMT($B$31,24,NPV($B$31,LC!C22:Y22)) -> 5756.486633 | C22: =IFERROR(C6/(C14*1000),0) -> 0 | D22: 10328.10058 | E22: 6811.813189 | F22: 5848.256321 | G22: 5731.107478 | H22: 5719.29413 | I22: 5753.803822 | J22: 5797.313494 | K22: 5847.888939 | L22: 5905.922338 | M22: 5970.033808 | N22: 5982.019525 | O22: 5946.062155 | P22: 5808.21147 | Q22: 5800.372678 | R22: 5861.204855 | S22: 5989.151198 | T22: 6120.123904 | U22: 6255.855891 | V22: 6394.691477 | W22: 6536.702825 | X22: 6681.963554 | Y22: 6830.549084
A23: Time-of-Use | B23: =-PMT($B$31,24,NPV($B$31,LC!C23:Y23)) -> 18882.81982 | C23: =IFERROR(C7/(C15*1000),0) -> 0 | D23: 84948.09823 | E23: 33626.77172 | F23: 18719.54547 | G23: 16068.55394 | H23: 14987.47027 | I23: 14712.80492 | J23: 14473.28679 | K23: 14265.89312 | L23: 14086.22847 | M23: 13925.86216 | N23: 13422.54976 | O23: 12628.82984 | P23: 11232.56324 | Q23: 10585.10251 | R23: 10320.86699 | S23: 10426.05463 | T23: 10532.41506 | U23: 10639.96368 | V23: 10748.71631 | W23: 10858.68921 | X23: 10969.89867 | Y23: 11082.3614
A24: Variable Peak Pricing | B24: =-PMT($B$31,24,NPV($B$31,LC!C24:Y24)) -> 4474.128867 | C24: =IFERROR(C8/(C16*1000),0) -> 0 | D24: 17952.11539 | E24: 7950.41212 | F24: 5046.528467 | G24: 4477.253796 | H24: 4200.959588 | I24: 4061.233019 | J24: 3936.17657 | K24: 3824.520999 | L24: 3724.515425 | M24: 3632.82559 | N24: 3415.614738 | O24: 3084.894025 | P24: 2518.964539 | Q24: 2247.423696 | R24: 2126.20516 | S24: 2149.249878 | T24: 2172.577348 | U24: 2196.191745 | V24: 2220.097359 | W24: 2244.298561 | X24: 2268.799764 | Y24: 2293.60549
A25: Third Party Contracts | B25: =-PMT($B$31,24,NPV($B$31,LC!C25:Y25)) -> 135937.155 | C25: =IFERROR(C9/(C17*1000),0) -> 0 | D25: 219900.7974 | E25: 144461.9643 | F25: 120434.8614 | G25: 124889.5613 | H25: 129147.3967 | I25: 133184.3097 | J25: 137059.7088 | K25: 140786.7961 | L25: 144369.3954 | M25: 147811.2405 | N25: 149545.7394 | O25: 151289.5678 | P25: 153041.2775 | Q25: 154801.8689 | R25: 156571.2745 | S25: 158349.9424 | T25: 160137.7689 | U25: 161934.633 | V25: 163740.3903 | W25: 165554.9229 | X25: 167378.1011 | Y25: 169209.8115
A31: WA Discount Factor | B31: 0.0658
A32: ID Discount Factor | B32: 0.0656
A33: OR Discount Factor | B33: 0.0671

Sheet Behavioral
A1: State Income Tax Rate ............ | D1: 0.0164024 | I1: Debt ........................... | L1: 0.5 | M1: 0.052 | N1: =ROUND(L1*M1,4) -> 0.026 | O1: =N1*(1-D2) -> 0.02054 | Q1: Gross Revenue | T1: 1
A2: Federal Income Tax Rate ........ | D2: 0.21 | I2: Preferred Stock ................. | L2: 0 | M2: 0 | N2: =ROUND(L2*M2,4) -> 0 | O2: =N2 -> 0 | Q2: Uncollectables | T2: 0
A3: Discount Factor ...................... | D3: =+O4 -> 0.06804 | I3: Common Equity ...................... | L3: 0.5 | M3: 0.095 | N3: =ROUND(L3*M3,4) -> 0.0475 | O3: =N3 -> 0.0475 | Q3: Commission Fees | T3: 0
A4: Capital Class ........................... | D4: 4 | E4: (1) General Structures. | N4: =SUM(N1:N3) -> 0.0735 | O4: =SUM(O1:O3) -> 0.06804 | Q4: Excise Tax | T4: 0
E5: (2) Generation, Transmission, | Q5: Franchise Fees | T5: 0
E6: and Distribution. | Q6: ERSA | T6: 0
E7: (3) Other Equipment. | N7: IRR CALC | T7: -
E8: (4) Transportation Equipment. | I8: Principal ...................... | L8: =T24 -> 7.104893511e-52 | N8: =L8 -> 7.104893511e-52 | O8: pv princ | Q8: Misc. Revenue Items | T8: =SUM(T2:T6) -> 0
A9: Book Life (Years) .............. | D9: 10 | I9: Interest ....................... | L9: =D3 -> 0.06804 | N9: =V20 -> 0 | O9: pv lvlized margin | T9: -
A10: Property Tax Rate ............... | D10: 0.015 | I10: Term ............................. | L10: 10 | N10: =IRR($AI$28:$AI$102,0.059065190478108) ->  | O10: IRR | Q10: Before State Income Tax | T10: =T1-T8 -> 1
A11: O&M Escalation Factor .......... | D11: 0.03 | I11: Levelized Gr. Mar. Requirement ....... | L11: =PMT($L$9,$L$10,-$L$8) -> 1.002431488e-52 | Q11: State Income Tax | T11: 0
T12: -
B13: Idaho | C13: Oregon | D13: Washington | Q13: Before Federal Income Tax | T13: =T10-T11 -> 1
A14: Electric | B14: 0.35 | C14: 0 | D14: 0.65 | E14: =SUM(B14:D14) -> 1 | K14: Lev ROE | L14: =PMT(L9,L10,-L15) -> 27822.39691 | Q14: Federal Income Tax | T14: =T13*D2 -> 0.21 | V14: (v) | W14: (w) | X14: (x) | Y14: (y) | Z14: (z) | AA14: (aa) | AB14: (ab) | AC14: (ac) | AD14: (ad) | AE14: (ae) | AF14: (af) | AG14: (ag) | AH14: (ah)
A15: Gas | B15: 0 | C15: 0 | D15: 0 | E15: =SUM(B15:D15) -> 0 | K15: NPV equity | L15: =NPV(L9,$M$28:$M$103) -> 197195.6884 | T15: - | V15: PV GM
B16: =SUM(B14:B15) -> 0.35 | C16: =SUM(C14:C15) -> 0 | D16: 0.65 | E16: 1 | Q16: Conversion Factor | T16: =T13-T14 -> 0.79 | V16: =NPV(O4,$V$29:$V$103)+V28 -> 0
A17: ...................................................................................................................................................................................................................... | V17: TERM
B18: Capital Additions | V18: =L10 -> 10 | AD18: pv of contribution to fixed costs | AG18: =NPV(O4,20,AG28:AG28) -> 18.72589042
B19: ----------------- | D19: Rate | E19: Accum. | G19: Book Dep. | I19: Rate | K19: Average | P19: Misc. | Q19: State | R19: Federal | S19: Total | T19: Present Val | V19: LEVELIZED | AE19: Interest ....................... | AG19: =O4 -> 0.06804 | AL19: Inter.
B20: Tax | C20: Book | D20: Base | E20: Book | F20: Tax | G20: on Tax | H20: Deferred | I20: Base | J20: Book | K20: Rate | L20: Interest | M20: Equity | N20: O&M & A&G | O20: Property | P20: Revenue | Q20: Income | R20: Income | S20: Gross Marg | T20: Gross Marg | V20: =PMT(L9,V18,-V16) -> 0 | AE20: Term ............................. | AG20: 50 | AH20: per kwh | AL20: Revenue | AN20: Net Book
B21: Basis | C21: Basis | D21: BOP | E21: Deprec. | F21: Deprec. | G21: Basis | H21: Taxes | I21: EOP | J21: Deprec. | K21: Base | L21: Expense | M21: Return | N21: Expense | O21: Taxes | P21: Items | Q21: Tax | R21: Taxes | S21: Reqmnt | T21: Reqmnt | AD21: levelized cont. to fixed costs | AG21: =PMT(AG19,AG20,-AG18) -> 1.323347304 | AH21: =AG21/(400*1000) -> 3.308368259e-06 | AL21: Requirement | AN21: BOP
A22: (a) | B22: (b) | C22: (c) | D22: (d) | E22: (e) | F22: (f) | G22: (g) | H22: (h) | I22: (i) | J22: (j) | K22: (k) | L22: (l) | M22: (m) | N22: (n) | O22: (o) | P22: (p) | Q22: (q) | R22: (r) | S22: (s) | T22: (t) | W22: - | X22: - | Y22: - | Z22: - | AA22: - | AB22: - | AC22: - | AD22: - | AE22: - | AF22: - | AG22: - | AH22: -
B23: - | C23: - | D23: - | E23: - | F23: - | G23: - | H23: - | I23: - | J23: - | K23: - | L23: - | M23: - | N23: - | O23: - | P23: - | Q23: - | R23: - | S23: - | T23: - | Z23: RES LOAD @ | AG23: ANNUAL | AH23: CUMULATIVE | AL23: - | AN23: -
A24: Total => | B24: =SUM(B25:B104) -> 2441342.987 | C24: =SUM(C25:C104) -> 2441342.987 | F24: =SUM(F25:F104) -> 2441342.987 | G24: =SUM(G25:G104) -> 2441342.987 | H24: =SUM(H25:H104) -> -2.455635695e-11 | J24: =SUM(J25:J104) -> 2441342.987 | L24: =SUM(L25:L104) -> 281362.9825 | M24: 514028.5257 | N24: 6696503.731 | O24: 201410.7965 | P24: 0 | Q24: 8084.214051 | R24: 101804.5434 | S24: 10629056.05 | T24: 7.104893511e-52 | V24: Offsets | X24: NEW | Y24: CUML | Z24: 12000 | AA24: COMM | AB24: COMM | AC24: TOTAL | AD24: TOTAL | AE24: REVENUE | AF24: ESTIMATED | AG24: (SHORTFALL) | AH24: (SHORTFALL)
A25: Period | B25: - | C25: - | D25: - | E25: - | F25: - | G25: - | H25: - | I25: - | J25: - | K25: - | L25: - | M25: - | N25: - | O25: - | P25: - | Q25: - | R25: - | S25: - | T25: - | W25: YR | X25: CUST | Y25: CUST | Z25: KWH EA | AA25: CUST | AB25: LOAD | AC25: CUST | AD25: LOAD | AE25: REQ | AF25: MARGIN | AG25: EXCESS | AH25: EXCESS | AI25: 0.05906519048 | AL25: - | AN25: -
W26: - | X26: - | Y26: - | Z26: - | AA26: - | AB26: - | AC26: - | AD26: - | AE26: - | AF26: - | AG26: - | AH26: - | AJ26: =NPV(AI25,$AI$28:$AI$103) -> 0
S27: =-PMT(O4,20,NPV(O4,S28:S51)) -> 384518.2655
A28: 2023 | B28: =HLOOKUP($A28,'AEG Input File'!$AC$2:$AZ$8,2,FALSE)*Inflation!$B4/100 -> 0 | C28: =B28 -> 0 | D28: =I27+C28 -> 0 | E28: =E27+J28 -> 0 | F28: =CA137 -> 0 | G28: =CA229 -> 0 | H28: =(F28-G28)*$D$2 -> 0 | I28: =D28-J28-H28 -> 0 | J28: =CA323 -> 0 | K28: =(+I28+D28)/2 -> 0 | L28: =IF(A28=1,$N$1*K28,$N$1*K28) -> 0 | M28: =IF(A28=1,($N$3+$N$2)*K28,($N$3+$N$2)*K28) -> 0 | N28: =HLOOKUP($A28,'AEG Input File'!$BA$2:$BX$8,2,FALSE)*Inflation!$B4/100 -> 0 | O28: =AN28*$D$10 -> 0 | P28: =AL28*$T$8 -> 0 | Q28: =(+AL28-(G28+L28+N28+O28+P28))*$D$1 -> 0 | R28: =(+AL28-(G28+L28+N28+O28+P28+Q28))*$D$2 -> 0 | S28: =J28+M28+L28+N28+O28+P28+Q28+R28 -> 0 | T28: =S28/(1+$D$3)^(A28-1) -> 0 | V28: 0 | W28: =1+W27 -> 1 | X28: 0 | Y28: =+X28 -> 0 | Z28: =X28*$Z$24 -> 0 | AA28: 0 | AB28: 0 | AC28: =Y28+AA28 -> 0 | AD28: 0 | AE28: =S28 -> 0 | AF28: =V28 -> 0 | AG28: =AF28-AE28 -> 0 | AH28: =AF28-AE28 -> 0 | AI28: =IF(A28=1,AF28-T24,AF28) -> 0 | AL28: =(+J28+L28+M28+N28+O28-(($D$1+(1-$D$1)*$D$2)*(G28+L28+N28+O28)))/$T$16 -> 0 | AN28: =C28-J27+AN27 -> 0
A29: =1+A28 -> 2024 | B29: =HLOOKUP($A29,'AEG Input File'!$AC$2:$AZ$8,2,FALSE)*Inflation!$B5/100 -> 87264.76894 | C29: =B29 -> 87264.76894 | D29: =I28+C29 -> 87264.76894 | E29: 8726.476894 | F29: 17452.95379 | G29: =CA230 -> 8726.476894 | H29: 1832.560148 | I29: 76705.73189 | J29: 8726.476894 | K29: 81985.25041 | L29: =IF(A29=1,$N$1*K29,$N$1*K29) -> 2131.616511 | M29: 3894.299395 | N29: =HLOOKUP($A29,'AEG Input File'!$BA$2:$BX$8,2,FALSE)*Inflation!$B5/100 -> 198324.3232 | O29: 1308.971534 | P29: =AL29*$T$8 -> 0 | Q29: 24.22517957 | R29: 305.0677939 | S29: 214714.9805 | T29: =S29/(1+$D$3)^(A29-1) -> 3.157280969e-53 | V29: 0 | W29: =1+W28 -> 2 | X29: 0 | Y29: =+X29 -> 0 | Z29: =X29*$Z$24 -> 0 | AA29: 0 | AB29: 0 | AC29: 0 | AD29: 0 | AE29: 214714.9805 | AF29: 0 | AG29: -214714.9805 | AH29: =AF29-AE29 -> -214714.9805 | AI29: =IF(A29=1,AF29-T25,AF29) -> 0 | AL29: =(+J29+L29+M29+N29+O29-(($D$1+(1-$D$1)*$D$2)*(G29+L29+N29+O29)))/$T$16 -> 211968.3171 | AN29: =C29-J28+AN28 -> 87264.76894
A30: 2025 | B30: =HLOOKUP($A30,'AEG Input File'!$AC$2:$AZ$8,2,FALSE)*Inflation!$B6/100 -> 89317.49082 | C30: 89317.49082 | D30: 166023.2227 | E30: 26384.70287 | F30: 45788.22422 | G30: 17658.22598 | H30: 5907.299632 | I30: 142457.6971 | J30: 17658.22598 | K30: 154240.4599 | L30: 4010.251958 | M30: 7326.421846 | N30: =HLOOKUP($A30,'AEG Input File'!$BA$2:$BX$8,2,FALSE)*Inflation!$B6/100 -> 223584.7906 | O30: 2517.836743 | P30: 0 | Q30: 85.45504297 | R30: 1076.135735 | S30: 256259.1179 | T30: 3.528114693e-53 | V30: 0 | W30: 3 | X30: 0 | Y30: 0 | Z30: 0 | AA30: 0 | AB30: 0 | AC30: 0 | AD30: 0 | AE30: 256259.1179 | AF30: 0 | AG30: -256259.1179 | AH30: -256259.1179 | AI30: 0 | AL30: 252981.0162 | AN30: 167855.7829
A31: 2026 | B31: =HLOOKUP($A31,'AEG Input File'!$AC$2:$AZ$8,2,FALSE)*Inflation!$B7/100 -> 91312.24812 | C31: 91312.24812 | D31: 233769.9452 | E31: 53174.15366 | F31: 63598.88232 | G31: 26789.45079 | H31: 7729.980622 | I31: 199250.5138 | J31: 26789.45079 | K31: 216510.2295 | L31: 5629.265968 | M31: 10284.2359 | N31: =HLOOKUP($A31,'AEG Input File'!$BA$2:$BX$8,2,FALSE)*Inflation!$B7/100 -> 243176.3173 | O31: 3622.647075 | P31: 0 | Q31: 138.4064042 | R31: 1742.952463 | S31: =J31+M31+L31+N31+O31+P31+Q31+R31 -> 291383.2759 | T31: 3.75612876e-53 | V31: 0 | W31: 4 | X31: 0 | Y31: 0 | Z31: 0 | AA31: 0 | AB31: 0 | AC31: 0 | AD31: 0 | AE31: 291383.2759 | AF31: 0 | AG31: -291383.2759 | AH31: -291383.2759 | AI31: 0 | AL31: 287655.8612 | AN31: 241509.805
A32: 2027 | B32: =HLOOKUP($A32,'AEG Input File'!$AC$2:$AZ$8,2,FALSE)*Inflation!$B8/100 -> 93351.55499 | C32: 93351.55499 | D32: 292602.0688 | E32: 89298.75994 | F32: 75092.09002 | G32: 36124.60629 | H32: 8183.171583 | I32: 248294.2909 | J32: 36124.60629 | K32: 270448.1799 | L32: 7031.652677 | M32: 12846.28854 | N32: =HLOOKUP($A32,'AEG Input File'!$BA$2:$BX$8,2,FALSE)*Inflation!$B8/100 -> 249509.8043 | O32: 4621.078638 | P32: 0 | Q32: 186.7397186 | R32: 2351.614105 | S32: 312671.7843 | T32: 3.773783868e-53 | V32: 0 | W32: 5 | X32: 0 | Y32: 0 | Z32: 0 | AA32: 0 | AB32: 0 | AC32: 0 | AD32: 0 | AE32: 312671.7843 | AF32: 0 | AG32: -312671.7843 | AH32: -312671.7843 | AI32: 0 | AL32: 308672.044 | AN32: 308071.9092
A33: 2028 | B33: =HLOOKUP($A33,'AEG Input File'!$AC$2:$AZ$8,2,FALSE)*Inflation!$B9/100 -> 95436.40639 | C33: 95436.40639 | D33: 343730.6973 | E33: 134967.0069 | F33: 86834.00684 | G33: 45668.24693 | H33: 8644.809582 | I33: 289417.6408 | J33: 45668.24693 | K33: 316574.1691 | L33: 8230.928396 | M33: 15037.27303 | N33: =HLOOKUP($A33,'AEG Input File'!$BA$2:$BX$8,2,FALSE)*Inflation!$B9/100 -> 256017.0271 | O33: 5510.75564 | P33: 0 | Q33: 227.3497903 | R33: 2863.016918 | S33: 333554.5978 | T33: 3.769361106e-53 | V33: 0 | W33: 6 | X33: 0 | Y33: 0 | Z33: 0 | AA33: 0 | AB33: 0 | AC33: 0 | AD33: 0 | AE33: 333554.5978 | AF33: 0 | AG33: -333554.5978 | AH33: -333554.5978 | AI33: 0 | AL33: 329287.7217 | AN33: 367383.7093
A34: 2029 | B34: =HLOOKUP($A34,'AEG Input File'!$AC$2:$AZ$8,2,FALSE)*Inflation!$B10/100 -> 97536.00733 | C34: 97536.00733 | D34: 386953.6481 | E34: 190388.8545 | F34: 93805.34668 | G34: 55421.84766 | H34: 8060.534796 | I34: 323471.2657 | J34: 55421.84766 | K34: 355212.4569 | L34: 9235.52388 | M34: 16872.5917 | N34: =HLOOKUP($A34,'AEG Input File'!$BA$2:$BX$8,2,FALSE)*Inflation!$B10/100 -> 262617.3762 | O34: 6288.772046 | P34: 0 | Q34: 260.5762149 | R34: 3281.43743 | S34: 353978.1251 | T34: 3.745326816e-53 | V34: 0 | W34: 7 | X34: 0 | Y34: 0 | Z34: 0 | AA34: 0 | AB34: 0 | AC34: 0 | AD34: 0 | AE34: 353978.1251 | AF34: 0 | AG34: -353978.1251 | AH34: -353978.1251 | AI34: 0 | AL34: 349449.9885 | AN34: 419251.4697
A35: 2030 | B35: =HLOOKUP($A35,'AEG Input File'!$AC$2:$AZ$8,2,FALSE)*Inflation!$B11/100 -> 99681.79949 | C35: 99681.79949 | D35: 423153.0652 | E35: 255778.8821 | F35: 95889.62986 | G35: 65390.02761 | H35: 6404.916473 | I35: 351358.1211 | J35: 65390.02761 | K35: 387255.5931 | L35: 10068.64542 | M35: 18394.64067 | N35: =HLOOKUP($A35,'AEG Input File'!$BA$2:$BX$8,2,FALSE)*Inflation!$B11/100 -> 269397.2527 | O35: 6952.671323 | P35: 0 | Q35: 287.2691724 | R35: 3617.581964 | S35: 374108.0889 | T35: 3.706149004e-53 | V35: 0 | W35: 8 | X35: 0 | Y35: 0 | Z35: 0 | AA35: 0 | AB35: 0 | AC35: 0 | AD35: 0 | AE35: 374108.0889 | AF35: 0 | AG35: -374108.0889 | AH35: -374108.0889 | AI35: 0 | AL35: 369322.447 | AN35: 463511.4215
A36: 2031 | B36: =HLOOKUP($A36,'AEG Input File'!$AC$2:$AZ$8,2,FALSE)*Inflation!$B12/100 -> 101874.7991 | C36: 101874.7991 | D36: 453232.9202 | E36: 331356.3896 | F36: 98008.0077 | G36: 75577.50751 | H36: 4710.405039 | I36: 372945.0076 | J36: 75577.50751 | K36: 413088.9639 | L36: 10740.31306 | M36: 19621.72579 | N36: =HLOOKUP($A36,'AEG Input File'!$BA$2:$BX$8,2,FALSE)*Inflation!$B12/100 -> 276361.8158 | O36: 7499.942895 | P36: 0 | Q36: 307.8040603 | R36: 3876.177897 | S36: 393985.287 | T36: 3.654418351e-53 | V36: 0 | W36: 9 | X36: 0 | Y36: 0 | Z36: 0 | AA36: 0 | AB36: 0 | AC36: 0 | AD36: 0 | AE36: 393985.287 | AF36: 0 | AG36: -393985.287 | AH36: -393985.287 | AI36: 0 | AL36: 388945.3733 | AN36: 499996.193
A37: 2032 | B37: =HLOOKUP($A37,'AEG Input File'!$AC$2:$AZ$8,2,FALSE)*Inflation!$B13/100 -> 104116.0447 | C37: 104116.0447 | D37: 477061.0523 | E37: 417345.5016 | F37: 100169.5218 | G37: 85989.11198 | H37: 2977.886055 | I37: 388094.0542 | J37: 85989.11198 | K37: 432577.5533 | L37: 11247.01638 | M37: 20547.43378 | N37: =HLOOKUP($A37,'AEG Input File'!$BA$2:$BX$8,2,FALSE)*Inflation!$B13/100 -> 283516.3913 | O37: 7928.020952 | P37: 0 | Q37: 322.0466267 | R37: 4055.5346 | S37: 413605.5556 | T37: 3.592006425e-53 | V37: 0 | W37: 10 | X37: 0 | Y37: 0 | Z37: 0 | AA37: 0 | AB37: 0 | AC37: 0 | AD37: 0 | AE37: 413605.5556 | AF37: 0 | AG37: -413605.5556 | AH37: -413605.5556 | AI37: 0 | AL37: 408314.6568 | AN37: 528534.7302
A38: 2033 | B38: =HLOOKUP($A38,'AEG Input File'!$AC$2:$AZ$8,2,FALSE)*Inflation!$B14/100 -> 106406.5976 | C38: 106406.5976 | D38: 494500.6519 | E38: 513975.2734 | F38: 102375.0436 | G38: 96629.77174 | H38: 1206.507088 | I38: 396664.3731 | J38: 96629.77174 | K38: 445582.5125 | L38: 11585.14532 | M38: 21165.16934 | N38: =HLOOKUP($A38,'AEG Input File'!$BA$2:$BX$8,2,FALSE)*Inflation!$B14/100 -> 290866.4785 | O38: 8234.283237 | P38: 0 | Q38: 329.8588071 | R38: 4153.913421 | S38: 432964.6203 | T38: 3.520591471e-53 | V38: 0 | W38: 11 | X38: 0 | Y38: 0 | Z38: 0 | AA38: 0 | AB38: 0 | AC38: 0 | AD38: 0 | AE38: 432964.6203 | AF38: 0 | AG38: -432964.6203 | AH38: -432964.6203 | AI38: 0 | AL38: 427426.0777 | AN38: 548952.2158
A39: 2034 | B39: =HLOOKUP($A39,'AEG Input File'!$AC$2:$AZ$8,2,FALSE)*Inflation!$B15/100 -> 108747.5428 | C39: 108747.5428 | D39: 505411.9158 | E39: 612753.3225 | F39: 104627.2946 | G39: 98778.04913 | H39: 1228.341539 | I39: 405405.5252 | J39: 98778.04913 | K39: 455408.7205 | L39: 11840.62673 | M39: 21631.91422 | N39: =HLOOKUP($A39,'AEG Input File'!$BA$2:$BX$8,2,FALSE)*Inflation!$B15/100 -> 298417.7144 | O39: 8416.049803 | P39: 0 | Q39: 336.8224311 | R39: 4241.60637 | S39: 443662.7831 | T39: 3.377759345e-53 | V39: 0 | W39: 12 | X39: 0 | Y39: 0 | Z39: 0 | AA39: 0 | AB39: 0 | AC39: 0 | AD39: 0 | AE39: 443662.7831 | AF39: 0 | AG39: -443662.7831 | AH39: -443662.7831 | AI39: 0 | AL39: 437987.388 | AN39: 561069.9869
A40: 2035 | B40: =HLOOKUP($A40,'AEG Input File'!$AC$2:$AZ$8,2,FALSE)*Inflation!$B16/100 -> 111139.9887 | C40: 111139.9887 | D40: 516545.5139 | E40: 713713.6214 | F40: 106929.095 | G40: 100960.2989 | H40: 1253.447184 | I40: 414331.7678 | J40: 100960.2989 | K40: 465438.6409 | L40: 12101.40466 | M40: 22108.33544 | N40: =HLOOKUP($A40,'AEG Input File'!$BA$2:$BX$8,2,FALSE)*Inflation!$B16/100 -> 306175.9327 | O40: 8601.478897 | P40: 0 | Q40: 343.9197238 | R40: 4330.982609 | S40: 454622.3529 | T40: 3.240701068e-53 | V40: 0 | W40: 13 | X40: 0 | Y40: 0 | Z40: 0 | AA40: 0 | AB40: 0 | AC40: 0 | AD40: 0 | AE40: 454622.3529 | AF40: 0 | AG40: -454622.3529 | AH40: -454622.3529 | AI40: 0 | AL40: 448806.7616 | AN40: 573431.9265
A41: 2036 | B41: =HLOOKUP($A41,'AEG Input File'!$AC$2:$AZ$8,2,FALSE)*Inflation!$B17/100 -> 113585.0685 | C41: 113585.0685 | D41: 527916.8363 | E41: 816901.2024 | F41: 109281.5351 | G41: 103187.581 | H41: 1279.730375 | I41: 423449.5249 | J41: 103187.581 | K41: 475683.1806 | L41: 12367.7627 | M41: 22594.95108 | N41: =HLOOKUP($A41,'AEG Input File'!$BA$2:$BX$8,2,FALSE)*Inflation!$B17/100 -> 314147.1429 | O41: 8790.85044 | P41: 0 | Q41: 351.1566982 | R41: 4422.117859 | S41: 465861.5627 | T41: 3.109263638e-53 | V41: 0 | W41: 14 | X41: 0 | Y41: 0 | Z41: 0 | AA41: 0 | AB41: 0 | AC41: 0 | AD41: 0 | AE41: 465861.5627 | AF41: 0 | AG41: -465861.5627 | AH41: -465861.5627 | AI41: 0 | AL41: 459902.1978 | AN41: 586056.696
A42: 2037 | B42: =HLOOKUP($A42,'AEG Input File'!$AC$2:$AZ$8,2,FALSE)*Inflation!$B18/100 -> 116083.94 | C42: 116083.94 | D42: 539533.4649 | E42: 922362.0218 | F42: 111685.7289 | G42: 105460.8195 | H42: 1307.230983 | I42: 432765.4145 | J42: 105460.8195 | K42: 486149.4397 | L42: 12639.88543 | M42: 23092.09839 | N42: =HLOOKUP($A42,'AEG Input File'!$BA$2:$BX$8,2,FALSE)*Inflation!$B18/100 -> 322337.5212 | O42: 8984.295826 | P42: 0 | Q42: 358.5383609 | R42: 4515.07517 | S42: 477388.2338 | T42: 2.983217111e-53 | V42: 0 | W42: 15 | X42: 0 | Y42: 0 | Z42: 0 | AA42: 0 | AB42: 0 | AC42: 0 | AD42: 0 | AE42: 477388.2338 | AF42: 0 | AG42: -477388.2338 | AH42: -477388.2338 | AI42: 0 | AL42: 471281.4182 | AN42: 598953.0551
A43: 2038 | B43: =HLOOKUP($A43,'AEG Input File'!$AC$2:$AZ$8,2,FALSE)*Inflation!$B19/100 -> 118637.7867 | C43: 118637.7867 | D43: 551403.2012 | E43: 1030142.979 | F43: 114142.8149 | G43: 107780.9575 | H43: 1335.990064 | I43: 442286.2536 | J43: 107780.9575 | K43: 496844.7274 | L43: 12917.96291 | M43: 23600.12455 | N43: =HLOOKUP($A43,'AEG Input File'!$BA$2:$BX$8,2,FALSE)*Inflation!$B19/100 -> 330753.474 | O43: 9181.950334 | P43: 0 | Q43: 366.0698557 | R43: 4609.919317 | S43: 489210.4585 | T43: 2.862340961e-53 | V43: 0 | W43: 16 | X43: 0 | Y43: 0 | Z43: 0 | AA43: 0 | AB43: 0 | AC43: 0 | AD43: 0 | AE43: 489210.4585 | AF43: 0 | AG43: -489210.4585 | AH43: -489210.4585 | AI43: 0 | AL43: 482952.4113 | AN43: 612130.0223
A44: 2039 | B44: =HLOOKUP($A44,'AEG Input File'!$AC$2:$AZ$8,2,FALSE)*Inflation!$B20/100 -> 121247.818 | C44: 121247.818 | D44: 563534.0716 | E44: 1140295.118 | F44: 116653.9569 | G44: 110152.1385 | H44: 1365.381846 | I44: 452016.5512 | J44: 110152.1385 | K44: =(+I44+D44)/2 -> 507775.3114 | L44: 13202.1581 | M44: 24119.32729 | N44: =HLOOKUP($A44,'AEG Input File'!$BA$2:$BX$8,2,FALSE)*Inflation!$B20/100 -> 339401.5571 | O44: 9383.953241 | P44: 0 | Q44: 373.7544041 | R44: =(+AL44-(G44+L44+N44+O44+P44+Q44))*$D$2 -> 4706.69087 | S44: 501339.5796 | T44: 2.746439945e-53 | V44: 0 | W44: 17 | X44: 0 | Y44: 0 | Z44: 0 | AA44: 0 | AB44: 0 | AC44: =Y44+AA44 -> 0 | AD44: 0 | AE44: 501339.5796 | AF44: 0 | AG44: -501339.5796 | AH44: -501339.5796 | AI44: 0 | AL44: 494926.3751 | AN44: 625596.8828
A45: 2040 | B45: =HLOOKUP($A45,'AEG Input File'!$AC$2:$AZ$8,2,FALSE)*Inflation!$B21/100 -> 123915.27 | C45: 123915.27 | D45: 575931.8212 | E45: 1252870.603 | F45: 119220.3439 | G45: 112575.4856 | H45: 1395.420246 | I45: 461960.9153 | J45: 112575.4856 | K45: 518946.3682 | L45: 13492.60557 | M45: 24649.95249 | N45: =HLOOKUP($A45,'AEG Input File'!$BA$2:$BX$8,2,FALSE)*Inflation!$B21/100 -> 348288.5233 | O45: 9590.400213 | P45: 0 | Q45: 381.5949305 | R45: 4805.426654 | S45: 513783.9887 | T45: 2.635306677e-53 | V45: 0 | W45: 18 | X45: 0 | Y45: 0 | Z45: 0 | AA45: 0 | AB45: 0 | AC45: 0 | AD45: 0 | AE45: 513783.9887 | AF45: 0 | AG45: -513783.9887 | AH45: -513783.9887 | AI45: 0 | AL45: 507211.5937 | AN45: 639360.0142
A46: 2041 | B46: =HLOOKUP($A46,'AEG Input File'!$AC$2:$AZ$8,2,FALSE)*Inflation!$B22/100 -> 126641.4059 | C46: 126641.4059 | D46: 588602.3212 | E46: 1367922.75 | F46: 121843.1915 | G46: 115052.1463 | H46: 1426.119492 | I46: 472124.0555 | J46: 115052.1463 | K46: 530363.1883 | L46: 13789.4429 | M46: 25192.25145 | N46: =HLOOKUP($A46,'AEG Input File'!$BA$2:$BX$8,2,FALSE)*Inflation!$B22/100 -> 357421.4085 | O46: 9801.389017 | P46: 0 | Q46: 389.5943874 | R46: 4906.16385 | S46: 526552.3964 | T46: 2.528742874e-53 | V46: 0 | W46: 19 | X46: 0 | Y46: 0 | Z46: 0 | AA46: 0 | AB46: 0 | AC46: 0 | AD46: 0 | AE46: 526552.3964 | AF46: 0 | AG46: -526552.3964 | AH46: -526552.3964 | AI46: 0 | AL46: 519816.6661 | AN46: 653425.9345
A47: 2042 | B47: =HLOOKUP($A47,'AEG Input File'!$AC$2:$AZ$8,2,FALSE)*Inflation!$B23/100 -> 129427.5168 | C47: 129427.5168 | D47: 601551.5723 | E47: 1485506.043 | F47: 124523.7417 | G47: 117583.2935 | H47: 1457.49412 | I47: =D47-J47-H47 -> 482510.7847 | J47: 117583.2935 | K47: 542031.1785 | L47: 14092.81064 | M47: 25746.48098 | N47: =HLOOKUP($A47,'AEG Input File'!$BA$2:$BX$8,2,FALSE)*Inflation!$B23/100 -> 366807.3832 | O47: 10017.01958 | P47: 0 | Q47: 397.7557976 | R47: 5008.940525 | S47: 539653.6842 | T47: 2.426558168e-53 | V47: 0 | W47: 20 | X47: 0 | Y47: 0 | Z47: 0 | AA47: 0 | AB47: 0 | AC47: 0 | AD47: 0 | AE47: 539653.6842 | AF47: 0 | AG47: -539653.6842 | AH47: -539653.6842 | AI47: 0 | AL47: 532750.3604 | AN47: 667801.305
A48: 2043 | B48: =HLOOKUP($A48,'AEG Input File'!$AC$2:$AZ$8,2,FALSE)*Inflation!$B24/100 -> 132274.9222 | C48: 132274.9222 | D48: =I47+C48 -> 614785.7069 | E48: 1605676.169 | F48: 127263.264 | G48: 120170.126 | H48: 1489.558991 | I48: 493126.0219 | J48: 120170.126 | K48: 553955.8644 | L48: 14402.85247 | M48: 26312.90356 | N48: =HLOOKUP($A48,'AEG Input File'!$BA$2:$BX$8,2,FALSE)*Inflation!$B24/100 -> 376453.8335 | O48: 10237.39401 | P48: 0 | Q48: 406.0822351 | R48: 5113.795389 | S48: 553096.9871 | T48: 2.328570198e-53 | V48: 0 | W48: 21 | X48: 0 | Y48: 0 | Z48: 0 | AA48: 0 | AB48: 0 | AC48: 0 | AD48: 0 | AE48: 553096.9871 | AF48: 0 | AG48: -553096.9871 | AH48: -553096.9871 | AI48: 0 | AL48: 546021.6948 | AN48: 682492.9338
A49: 2044 | B49: =HLOOKUP($A49,'AEG Input File'!$AC$2:$AZ$8,2,FALSE)*Inflation!$B25/100 -> 135184.9705 | C49: 135184.9705 | D49: 628310.9924 | E49: 1728490.038 | F49: 130063.0558 | G49: 122813.8687 | H49: 1522.329289 | I49: 503974.7944 | J49: 122813.8687 | K49: 566142.8934 | L49: 14719.71523 | M49: 26891.78744 | N49: =HLOOKUP($A49,'AEG Input File'!$BA$2:$BX$8,2,FALSE)*Inflation!$B25/100 -> 386368.4881 | O49: 10462.61667 | P49: 0 | Q49: 414.5767928 | R49: 5220.767391 | S49: 566891.8203 | T49: 2.234604735e-53 | V49: 0 | W49: 22 | X49: 0 | Y49: 0 | Z49: 0 | AA49: 0 | AB49: 0 | AC49: 0 | AD49: 0 | AE49: 566891.8203 | AF49: 0 | AG49: -566891.8203 | AH49: -566891.8203 | AI49: 0 | AL49: 559640.0626 | AN49: 697507.7783
A50: 2045 | B50: =HLOOKUP($A50,'AEG Input File'!$AC$2:$AZ$8,2,FALSE)*Inflation!$B26/100 -> 138159.0398 | C50: 138159.0398 | D50: 642133.8343 | E50: 1854005.812 | F50: 132924.443 | G50: 125515.7738 | H50: 1555.820533 | I50: 515062.2399 | J50: 125515.7738 | K50: 578598.0371 | L50: 15043.54896 | M50: 27483.40676 | N50: =HLOOKUP($A50,'AEG Input File'!$BA$2:$BX$8,2,FALSE)*Inflation!$B26/100 -> 396559.1751 | O50: 10692.79424 | P50: 0 | Q50: 423.2426506 | R50: 5329.896578 | S50: 581047.8381 | T50: 2.144494297e-53 | V50: 0 | W50: 23 | X50: 0 | Y50: 0 | Z50: 0 | AA50: 0 | AB50: 0 | AC50: 0 | AD50: 0 | AE50: 581047.8381 | AF50: 0 | AG50: -581047.8381 | AH50: -581047.8381 | AI50: 0 | AL50: 573614.9946 | AN50: 712852.9494
A51: 2046 | B51: ='AEG Input File'!$AZ$484*Inflation!B26/100 -> 0 | C51: 0 | D51: 515062.2399 | E51: 1968163.079 | F51: 107609.073 | G51: 114157.267 | H51: -1375.120728 | I51: 402280.0936 | J51: 114157.267 | K51: 458671.1668 | L51: 11925.45034 | M51: 21786.88042 | N51: ='AEG Input File'!$BX$484*Inflation!$B$26/100 -> 0 | O51: 8810.057634 | P51: 0 | Q51: 416.0594139 | R51: 5239.438046 | S51: 162335.1528 | T51: 5.609679665e-54 | V51: 0 | W51: 24 | X51: 0 | Y51: 0 | Z51: 0 | AA51: 0 | AB51: 0 | AC51: 0 | AD51: 0 | AE51: 162335.1528 | AF51: 0 | AG51: -162335.1528 | AH51: -162335.1528 | AI51: 0 | AL51: 160258.5394 | AN51: 587337.1756
A52: 2047 | B52: 0 | C52: 0 | D52: 402280.0936 | E52: 2070711.952 | F52: 64792.94026 | G52: 102548.873 | H52: -7928.745873 | I52: 307659.9665 | J52: 102548.873 | K52: 354970.0301 | L52: 9229.220782 | M52: 16861.07643 | N52: 0 | O52: 7097.698629 | P52: 0 | Q52: 318.0964412 | R52: 4005.789896 | S52: 140060.7552 | T52: 4.531629897e-54 | V52: 0 | W52: 25 | X52: 0 | Y52: 0 | Z52: 0 | AA52: 0 | AB52: 0 | AC52: 0 | AD52: 0 | AE52: 140060.7552 | AF52: 0 | AG52: -140060.7552 | AH52: -140060.7552 | AI52: 0 | AL52: 138269.0788 | AN52: 473179.9086
A53: 2048 | B53: 0 | C53: 0 | D53: 307659.9665 | E53: 2161397.046 | F53: 39108.26551 | G53: 90685.09432 | H53: -10831.13405 | I53: 227806.0062 | J53: 90685.09432 | K53: 267732.9864 | L53: 6961.057646 | M53: 12717.31685 | N53: 0 | O53: 5559.465534 | P53: 0 | Q53: 236.2773858 | R53: 2975.442168 | S53: 119134.6539 | T53: 3.609013936e-54 | V53: 0 | W53: 26 | X53: 0 | Y53: 0 | Z53: 0 | AA53: 0 | AB53: 0 | AC53: 0 | AD53: 0 | AE53: 119134.6539 | AF53: 0 | AG53: -119134.6539 | AH53: -119134.6539 | AI53: 0 | AL53: 117610.6671 | AN53: 370631.0356
A54: 2049 | B54: 0 | C54: 0 | D54: 227806.0062 | E54: 2239957.359 | F54: 23702.57569 | G54: 78560.31253 | H54: -11520.12474 | I54: 160765.8185 | J54: 78560.31253 | K54: 194285.9124 | L54: 5051.433721 | M54: 9228.580837 | N54: 0 | O54: 4199.189119 | P54: 0 | Q54: 167.9841595 | R54: 2115.425266 | S54: 99322.92563 | T54: 2.817165992e-54 | V54: 0 | W54: 27 | X54: 0 | Y54: 0 | Z54: 0 | AA54: 0 | AB54: 0 | AC54: 0 | AD54: 0 | AE54: 99322.92563 | AF54: 0 | AG54: -99322.92563 | AH54: -99322.92563 | AI54: 0 | AL54: 98052.37318 | AN54: 279945.9413
A55: 2050 | B55: 0 | C55: 0 | D55: 160765.8185 | E55: 2306126.144 | F55: 7957.960695 | G55: 66168.78553 | H55: -12224.27322 | I55: 106821.3061 | J55: 66168.78553 | K55: 133793.5623 | L55: 3478.63262 | M55: 6355.194209 | N55: 0 | O55: 3020.784431 | P55: 0 | Q55: 112.3993603 | R55: 1415.445643 | S55: 80551.24179 | T55: 2.139181605e-54 | V55: 0 | W55: 28 | X55: 0 | Y55: 0 | Z55: 0 | AA55: 0 | AB55: 0 | AC55: 0 | AD55: 0 | AE55: 80551.24179 | AF55: 0 | AG55: -80551.24179 | AH55: -80551.24179 | AI55: 0 | AL55: 79520.81929 | AN55: 201385.6287
A56: 2051 | B56: 0 | C56: 0 | D56: 106821.3061 | E56: 2359630.789 | F56: 0 | G56: 53504.64494 | H56: -11235.97544 | I56: 64552.63664 | J56: 53504.64494 | K56: 85686.97139 | L56: 2227.861256 | M56: 4070.131141 | N56: 0 | O56: 2028.252648 | P56: 0 | Q56: 68.96634566 | R56: 868.493497 | S56: 62768.34983 | T56: 1.560732983e-54 | V56: 0 | W56: 29 | X56: 0 | Y56: 0 | Z56: 0 | AA56: 0 | AB56: 0 | AC56: 0 | AD56: 0 | AE56: 62768.34983 | AF56: 0 | AG56: -62768.34983 | AH56: -62768.34983 | AI56: 0 | AL56: 61965.40851 | AN56: 135216.8432
A57: 2052 | B57: 0 | C57: 0 | D57: 64552.63664 | E57: 2400192.682 | F57: 0 | G57: 40561.89326 | H57: -8517.997584 | I57: 32508.74097 | J57: 40561.89326 | K57: 48530.6888 | L57: 1261.797909 | M57: 2305.207718 | N57: 0 | O57: 1225.682974 | P57: 0 | Q57: 36.27999943 | R57: 456.8741939 | S57: 45847.73605 | T57: 1.067378067e-54 | V57: 0 | W57: 30 | X57: 0 | Y57: 0 | Z57: 0 | AA57: 0 | AB57: 0 | AC57: 0 | AD57: 0 | AE57: 45847.73605 | AF57: 0 | AG57: -45847.73605 | AH57: -45847.73605 | AI57: 0 | AL57: 45261.24554 | AN57: 81712.19828
A58: 2053 | B58: 0 | C58: 0 | D58: 32508.74097 | E58: 2427527.083 | F58: 0 | G58: 27334.40103 | H58: -5740.224217 | I58: 10914.56415 | J58: 27334.40103 | K58: 21711.65256 | L58: 564.5029665 | M58: 1031.303496 | N58: 0 | O58: 617.2545753 | P58: 0 | Q58: 13.74052051 | R58: 173.0344358 | S58: 29734.23703 | T58: 6.481412468e-55 | V58: 0 | W58: 31 | X58: 0 | Y58: 0 | Z58: 0 | AA58: 0 | AB58: 0 | AC58: 0 | AD58: 0 | AE58: 29734.23703 | AF58: 0 | AG58: -29734.23703 | AH58: -29734.23703 | AI58: 0 | AL58: 29353.8726 | AN58: 41150.30502
A59: 2054 | B59: 0 | C59: 0 | D59: 10914.56415 | E59: 2441342.987 | F59: 0 | G59: 13815.90398 | H59: -2901.339837 | I59: -1.573425834e-10 | J59: 13815.90398 | K59: 5457.282074 | L59: 141.8893339 | M59: 259.2208985 | N59: 0 | O59: 207.2385598 | P59: 0 | Q59: 1.571139982 | R59: 19.78537276 | S59: 14445.60929 | T59: 2.948228956e-55 | V59: 0 | W59: 32 | X59: 0 | Y59: 0 | Z59: 0 | AA59: 0 | AB59: 0 | AC59: 0 | AD59: 0 | AE59: 14445.60929 | AF59: 0 | AG59: -14445.60929 | AH59: -14445.60929 | AI59: 0 | AL59: 14260.81908 | AN59: 13815.90398
A60: 2055 | B60: 0 | C60: 0 | D60: -1.573425834e-10 | E60: 2441342.987 | F60: 0 | G60: 0 | H60: 0 | I60: -1.573425834e-10 | J60: 0 | K60: -1.573425834e-10 | L60: -4.090907169e-12 | M60: -7.473772712e-12 | N60: 0 | O60: -2.401066013e-12 | P60: 0 | Q60: -1.534278502e-13 | R60: -1.932117599e-12 | S60: -1.605129134e-11 | T60: -3.067240306e-70 | V60: 0 | W60: 33 | X60: 0 | Y60: 0 | Z60: 0 | AA60: 0 | AB60: 0 | AC60: 0 | AD60: 0 | AE60: -1.605129134e-11 | AF60: 0 | AG60: 1.605129134e-11 | AH60: 1.605129134e-11 | AI60: 0 | AL60: -1.584596103e-11 | AN60: -1.600710675e-10
A61: 2056 | B61: 0 | C61: 0 | D61: -1.573425834e-10 | E61: 2441342.987 | F61: 0 | G61: 0 | H61: 0 | I61: -1.573425834e-10 | J61: 0 | K61: -1.573425834e-10 | L61: -4.090907169e-12 | M61: -7.473772712e-12 | N61: 0 | O61: -2.401066013e-12 | P61: 0 | Q61: -1.534278502e-13 | R61: -1.932117599e-12 | S61: -1.605129134e-11 | T61: -2.871840292e-70 | V61: 0 | W61: 34 | X61: 0 | Y61: 0 | Z61: 0 | AA61: 0 | AB61: 0 | AC61: 0 | AD61: 0 | AE61: -1.605129134e-11 | AF61: 0 | AG61: 1.605129134e-11 | AH61: 1.605129134e-11 | AI61: 0 | AL61: -1.584596103e-11 | AN61: -1.600710675e-10
A62: 2057 | B62: 0 | C62: 0 | D62: -1.573425834e-10 | E62: 2441342.987 | F62: 0 | G62: 0 | H62: 0 | I62: -1.573425834e-10 | J62: 0 | K62: -1.573425834e-10 | L62: -4.090907169e-12 | M62: -7.473772712e-12 | N62: 0 | O62: -2.401066013e-12 | P62: 0 | Q62: -1.534278502e-13 | R62: -1.932117599e-12 | S62: -1.605129134e-11 | T62: -2.68888833e-70 | V62: 0 | W62: 35 | X62: 0 | Y62: 0 | Z62: 0 | AA62: 0 | AB62: 0 | AC62: 0 | AD62: 0 | AE62: -1.605129134e-11 | AF62: 0 | AG62: 1.605129134e-11 | AH62: 1.605129134e-11 | AI62: 0 | AL62: -1.584596103e-11 | AN62: -1.600710675e-10
A63: 2058 | B63: 0 | C63: 0 | D63: -1.573425834e-10 | E63: 2441342.987 | F63: 0 | G63: 0 | H63: 0 | I63: -1.573425834e-10 | J63: 0 | K63: -1.573425834e-10 | L63: -4.090907169e-12 | M63: -7.473772712e-12 | N63: 0 | O63: -2.401066013e-12 | P63: 0 | Q63: -1.534278502e-13 | R63: -1.932117599e-12 | S63: -1.605129134e-11 | T63: -2.51759141e-70 | V63: 0 | W63: 36 | X63: 0 | Y63: 0 | Z63: 0 | AA63: 0 | AB63: 0 | AC63: 0 | AD63: 0 | AE63: -1.605129134e-11 | AF63: 0 | AG63: 1.605129134e-11 | AH63: 1.605129134e-11 | AI63: 0 | AL63: -1.584596103e-11 | AN63: -1.600710675e-10
A64: 2059 | B64: 0 | C64: 0 | D64: -1.573425834e-10 | E64: 2441342.987 | F64: 0 | G64: 0 | H64: 0 | I64: -1.573425834e-10 | J64: 0 | K64: -1.573425834e-10 | L64: -4.090907169e-12 | M64: -7.473772712e-12 | N64: 0 | O64: -2.401066013e-12 | P64: 0 | Q64: -1.534278502e-13 | R64: -1.932117599e-12 | S64: -1.605129134e-11 | T64: -2.357207043e-70 | V64: 0 | W64: 37 | X64: 0 | Y64: 0 | Z64: 0 | AA64: 0 | AB64: 0 | AC64: 0 | AD64: 0 | AE64: -1.605129134e-11 | AF64: 0 | AG64: 1.605129134e-11 | AH64: 1.605129134e-11 | AI64: 0 | AL64: -1.584596103e-11 | AN64: -1.600710675e-10
A65: 2060 | B65: 0 | C65: 0 | D65: -1.573425834e-10 | E65: 2441342.987 | F65: 0 | G65: 0 | H65: 0 | I65: -1.573425834e-10 | J65: 0 | K65: -1.573425834e-10 | L65: -4.090907169e-12 | M65: -7.473772712e-12 | N65: 0 | O65: -2.401066013e-12 | P65: 0 | Q65: -1.534278502e-13 | R65: -1.932117599e-12 | S65: -1.605129134e-11 | T65: -2.207040039e-70 | V65: 0 | W65: 38 | X65: 0 | Y65: 0 | Z65: 0 | AA65: 0 | AB65: 0 | AC65: 0 | AD65: 0 | AE65: -1.605129134e-11 | AF65: 0 | AG65: 1.605129134e-11 | AH65: 1.605129134e-11 | AI65: 0 | AL65: -1.584596103e-11 | AN65: -1.600710675e-10
A66: 2061 | B66: 0 | C66: 0 | D66: -1.573425834e-10 | E66: 2441342.987 | F66: 0 | G66: 0 | H66: 0 | I66: -1.573425834e-10 | J66: 0 | K66: -1.573425834e-10 | L66: -4.090907169e-12 | M66: -7.473772712e-12 | N66: 0 | O66: -2.401066013e-12 | P66: 0 | Q66: -1.534278502e-13 | R66: -1.932117599e-12 | S66: -1.605129134e-11 | T66: -2.066439496e-70 | V66: 0 | W66: 39 | X66: 0 | Y66: 0 | Z66: 0 | AA66: 0 | AB66: 0 | AC66: 0 | AD66: 0 | AE66: -1.605129134e-11 | AF66: 0 | AG66: 1.605129134e-11 | AH66: 1.605129134e-11 | AI66: 0 | AL66: -1.584596103e-11 | AN66: -1.600710675e-10
A67: 2062 | B67: 0 | C67: 0 | D67: -1.573425834e-10 | E67: 2441342.987 | F67: 0 | G67: 0 | H67: 0 | I67: -1.573425834e-10 | J67: 0 | K67: -1.573425834e-10 | L67: -4.090907169e-12 | M67: -7.473772712e-12 | N67: 0 | O67: -2.401066013e-12 | P67: 0 | Q67: -1.534278502e-13 | R67: -1.932117599e-12 | S67: -1.605129134e-11 | T67: -1.934795977e-70 | V67: 0 | W67: 40 | X67: 0 | Y67: 0 | Z67: 0 | AA67: 0 | AB67: 0 | AC67: 0 | AD67: 0 | AE67: -1.605129134e-11 | AF67: 0 | AG67: 1.605129134e-11 | AH67: 1.605129134e-11 | AI67: 0 | AL67: -1.584596103e-11 | AN67: -1.600710675e-10
A68: 2063 | B68: 0 | C68: 0 | D68: -1.573425834e-10 | E68: 2441342.987 | F68: 0 | G68: 0 | H68: 0 | I68: -1.573425834e-10 | J68: 0 | K68: -1.573425834e-10 | L68: -4.090907169e-12 | M68: -7.473772712e-12 | N68: 0 | O68: -2.401066013e-12 | P68: 0 | Q68: -1.534278502e-13 | R68: -1.932117599e-12 | S68: -1.605129134e-11 | T68: -1.811538873e-70 | V68: 0 | W68: 41 | X68: 0 | Y68: 0 | Z68: 0 | AA68: 0 | AB68: 0 | AC68: 0 | AD68: 0 | AE68: -1.605129134e-11 | AF68: 0 | AG68: 1.605129134e-11 | AH68: 1.605129134e-11 | AI68: 0 | AL68: -1.584596103e-11 | AN68: -1.600710675e-10
A69: 2064 | B69: 0 | C69: 0 | D69: -1.573425834e-10 | E69: 2441342.987 | F69: 0 | G69: 0 | H69: 0 | I69: -1.573425834e-10 | J69: 0 | K69: -1.573425834e-10 | L69: -4.090907169e-12 | M69: -7.473772712e-12 | N69: 0 | O69: -2.401066013e-12 | P69: 0 | Q69: -1.534278502e-13 | R69: -1.932117599e-12 | S69: -1.605129134e-11 | T69: -1.696133921e-70 | V69: 0 | W69: 42 | X69: 0 | Y69: 0 | Z69: 0 | AA69: 0 | AB69: 0 | AC69: 0 | AD69: 0 | AE69: -1.605129134e-11 | AF69: 0 | AG69: 1.605129134e-11 | AH69: 1.605129134e-11 | AI69: 0 | AL69: -1.584596103e-11 | AN69: -1.600710675e-10
A70: 2065 | B70: 0 | C70: 0 | D70: -1.573425834e-10 | E70: 2441342.987 | F70: 0 | G70: 0 | H70: 0 | I70: -1.573425834e-10 | J70: 0 | K70: -1.573425834e-10 | L70: -4.090907169e-12 | M70: -7.473772712e-12 | N70: 0 | O70: -2.401066013e-12 | P70: 0 | Q70: -1.534278502e-13 | R70: -1.932117599e-12 | S70: -1.605129134e-11 | T70: -1.588080896e-70 | V70: 0 | W70: 43 | X70: 0 | Y70: 0 | Z70: 0 | AA70: 0 | AB70: 0 | AC70: 0 | AD70: 0 | AE70: -1.605129134e-11 | AF70: 0 | AG70: 1.605129134e-11 | AH70: 1.605129134e-11 | AI70: 0 | AL70: -1.584596103e-11 | AN70: -1.600710675e-10
A71: 2066 | B71: 0 | C71: 0 | D71: -1.573425834e-10 | E71: 2441342.987 | F71: 0 | G71: 0 | H71: 0 | I71: -1.573425834e-10 | J71: 0 | K71: -1.573425834e-10 | L71: -4.090907169e-12 | M71: -7.473772712e-12 | N71: 0 | O71: -2.401066013e-12 | P71: 0 | Q71: -1.534278502e-13 | R71: -1.932117599e-12 | S71: -1.605129134e-11 | T71: -1.486911442e-70 | V71: 0 | W71: 44 | X71: 0 | Y71: 0 | Z71: 0 | AA71: 0 | AB71: 0 | AC71: 0 | AD71: 0 | AE71: -1.605129134e-11 | AF71: 0 | AG71: 1.605129134e-11 | AH71: 1.605129134e-11 | AI71: 0 | AL71: -1.584596103e-11 | AN71: -1.600710675e-10
A72: 2067 | B72: 0 | C72: 0 | D72: -1.573425834e-10 | E72: 2441342.987 | F72: 0 | G72: 0 | H72: 0 | I72: -1.573425834e-10 | J72: 0 | K72: -1.573425834e-10 | L72: -4.090907169e-12 | M72: -7.473772712e-12 | N72: 0 | O72: -2.401066013e-12 | P72: 0 | Q72: -1.534278502e-13 | R72: -1.932117599e-12 | S72: -1.605129134e-11 | T72: -1.392187036e-70 | V72: 0 | W72: 45 | X72: 0 | Y72: 0 | Z72: 0 | AA72: 0 | AB72: 0 | AC72: 0 | AD72: 0 | AE72: -1.605129134e-11 | AF72: 0 | AG72: 1.605129134e-11 | AH72: 1.605129134e-11 | AI72: 0 | AL72: -1.584596103e-11 | AN72: -1.600710675e-10
A73: 2068 | B73: 0 | C73: 0 | D73: -1.573425834e-10 | E73: 2441342.987 | F73: 0 | G73: 0 | H73: 0 | I73: -1.573425834e-10 | J73: 0 | K73: -1.573425834e-10 | L73: -4.090907169e-12 | M73: -7.473772712e-12 | N73: 0 | O73: -2.401066013e-12 | P73: 0 | Q73: -1.534278502e-13 | R73: -1.932117599e-12 | S73: -1.605129134e-11 | T73: -1.303497094e-70 | V73: 0 | W73: 46 | X73: 0 | Y73: 0 | Z73: 0 | AA73: 0 | AB73: 0 | AC73: 0 | AD73: 0 | AE73: -1.605129134e-11 | AF73: 0 | AG73: 1.605129134e-11 | AH73: 1.605129134e-11 | AI73: 0 | AL73: -1.584596103e-11 | AN73: -1.600710675e-10
A74: 2069 | B74: 0 | C74: 0 | D74: -1.573425834e-10 | E74: 2441342.987 | F74: 0 | G74: 0 | H74: 0 | I74: -1.573425834e-10 | J74: 0 | K74: -1.573425834e-10 | L74: -4.090907169e-12 | M74: -7.473772712e-12 | N74: 0 | O74: -2.401066013e-12 | P74: 0 | Q74: -1.534278502e-13 | R74: -1.932117599e-12 | S74: -1.605129134e-11 | T74: -1.220457187e-70 | V74: 0 | W74: 47 | X74: 0 | Y74: 0 | Z74: 0 | AA74: 0 | AB74: 0 | AC74: 0 | AD74: 0 | AE74: -1.605129134e-11 | AF74: 0 | AG74: 1.605129134e-11 | AH74: 1.605129134e-11 | AI74: 0 | AL74: -1.584596103e-11 | AN74: -1.600710675e-10
A75: 2070 | B75: 0 | C75: 0 | D75: -1.573425834e-10 | E75: 2441342.987 | F75: 0 | G75: 0 | H75: 0 | I75: -1.573425834e-10 | J75: 0 | K75: -1.573425834e-10 | L75: -4.090907169e-12 | M75: -7.473772712e-12 | N75: 0 | O75: -2.401066013e-12 | P75: 0 | Q75: -1.534278502e-13 | R75: -1.932117599e-12 | S75: -1.605129134e-11 | T75: -1.142707377e-70 | V75: 0 | W75: 48 | X75: 0 | Y75: 0 | Z75: 0 | AA75: 0 | AB75: 0 | AC75: 0 | AD75: 0 | AE75: -1.605129134e-11 | AF75: 0 | AG75: 1.605129134e-11 | AH75: 1.605129134e-11 | AI75: 0 | AL75: -1.584596103e-11 | AN75: -1.600710675e-10
A76: 2071 | B76: 0 | C76: 0 | D76: -1.573425834e-10 | E76: 2441342.987 | F76: 0 | G76: 0 | H76: 0 | I76: -1.573425834e-10 | J76: 0 | K76: -1.573425834e-10 | L76: -4.090907169e-12 | M76: -7.473772712e-12 | N76: 0 | O76: -2.401066013e-12 | P76: 0 | Q76: -1.534278502e-13 | R76: -1.932117599e-12 | S76: -1.605129134e-11 | T76: -1.069910656e-70 | V76: 0 | W76: 49 | X76: 0 | Y76: 0 | Z76: 0 | AA76: 0 | AB76: 0 | AC76: 0 | AD76: 0 | AE76: -1.605129134e-11 | AF76: 0 | AG76: 1.605129134e-11 | AH76: 1.605129134e-11 | AI76: 0 | AL76: -1.584596103e-11 | AN76: -1.600710675e-10
A77: 2072 | B77: 0 | C77: 0 | D77: -1.573425834e-10 | E77: 2441342.987 | F77: 0 | G77: 0 | H77: 0 | I77: -1.573425834e-10 | J77: 0 | K77: -1.573425834e-10 | L77: -4.090907169e-12 | M77: -7.473772712e-12 | N77: 0 | O77: -2.401066013e-12 | P77: 0 | Q77: -1.534278502e-13 | R77: -1.932117599e-12 | S77: -1.605129134e-11 | T77: -1.001751485e-70 | V77: 0 | W77: 50 | X77: 0 | Y77: 0 | Z77: 0 | AA77: 0 | AB77: 0 | AC77: 0 | AD77: 0 | AE77: -1.605129134e-11 | AF77: 0 | AG77: 1.605129134e-11 | AH77: 1.605129134e-11 | AI77: 0 | AL77: -1.584596103e-11 | AN77: -1.600710675e-10
A78: 2073 | B78: 0 | C78: 0 | D78: -1.573425834e-10 | E78: 2441342.987 | F78: 0 | G78: 0 | H78: 0 | I78: -1.573425834e-10 | J78: 0 | K78: -1.573425834e-10 | L78: -4.090907169e-12 | M78: -7.473772712e-12 | N78: 0 | O78: -2.401066013e-12 | P78: 0 | Q78: -1.534278502e-13 | R78: -1.932117599e-12 | S78: -1.605129134e-11 | T78: -9.379344264e-71 | V78: 0 | W78: 51 | X78: 0 | Y78: 0 | Z78: 0 | AA78: 0 | AB78: 0 | AC78: 0 | AD78: 0 | AE78: -1.605129134e-11 | AF78: 0 | AG78: 1.605129134e-11 | AH78: 1.605129134e-11 | AI78: 0 | AL78: -1.584596103e-11 | AN78: -1.600710675e-10
A79: 2074 | B79: 0 | C79: 0 | D79: -1.573425834e-10 | E79: 2441342.987 | F79: 0 | G79: 0 | H79: 0 | I79: -1.573425834e-10 | J79: 0 | K79: -1.573425834e-10 | L79: -4.090907169e-12 | M79: -7.473772712e-12 | N79: 0 | O79: -2.401066013e-12 | P79: 0 | Q79: -1.534278502e-13 | R79: -1.932117599e-12 | S79: -1.605129134e-11 | T79: -8.781828643e-71 | V79: 0 | W79: 52 | X79: 0 | Y79: 0 | Z79: 0 | AA79: 0 | AB79: 0 | AC79: 0 | AD79: 0 | AE79: -1.605129134e-11 | AF79: 0 | AG79: 1.605129134e-11 | AH79: 1.605129134e-11 | AI79: 0 | AL79: -1.584596103e-11 | AN79: -1.600710675e-10
A80: 2075 | B80: 0 | C80: 0 | D80: -1.573425834e-10 | E80: 2441342.987 | F80: 0 | G80: 0 | H80: 0 | I80: -1.573425834e-10 | J80: 0 | K80: -1.573425834e-10 | L80: -4.090907169e-12 | M80: -7.473772712e-12 | N80: 0 | O80: -2.401066013e-12 | P80: 0 | Q80: -1.534278502e-13 | R80: -1.932117599e-12 | S80: -1.605129134e-11 | T80: -8.222378041e-71 | V80: 0 | W80: 53 | X80: 0 | Y80: 0 | Z80: 0 | AA80: 0 | AB80: 0 | AC80: 0 | AD80: 0 | AE80: -1.605129134e-11 | AF80: 0 | AG80: 1.605129134e-11 | AH80: 1.605129134e-11 | AI80: 0 | AL80: -1.584596103e-11 | AN80: -1.600710675e-10
A81: 2076 | B81: 0 | C81: 0 | D81: -1.573425834e-10 | E81: 2441342.987 | F81: 0 | G81: 0 | H81: 0 | I81: -1.573425834e-10 | J81: 0 | K81: -1.573425834e-10 | L81: -4.090907169e-12 | M81: -7.473772712e-12 | N81: 0 | O81: -2.401066013e-12 | P81: 0 | Q81: -1.534278502e-13 | R81: -1.932117599e-12 | S81: -1.605129134e-11 | T81: -7.698567508e-71 | V81: 0 | W81: 54 | X81: 0 | Y81: 0 | Z81: 0 | AA81: 0 | AB81: 0 | AC81: 0 | AD81: 0 | AE81: -1.605129134e-11 | AF81: 0 | AG81: 1.605129134e-11 | AH81: 1.605129134e-11 | AI81: 0 | AL81: -1.584596103e-11 | AN81: -1.600710675e-10
A82: 2077 | B82: 0 | C82: 0 | D82: -1.573425834e-10 | E82: 2441342.987 | F82: 0 | G82: 0 | H82: 0 | I82: -1.573425834e-10 | J82: 0 | K82: -1.573425834e-10 | L82: -4.090907169e-12 | M82: -7.473772712e-12 | N82: 0 | O82: -2.401066013e-12 | P82: 0 | Q82: -1.534278502e-13 | R82: -1.932117599e-12 | S82: -1.605129134e-11 | T82: -7.208126576e-71 | V82: 0 | W82: 55 | X82: 0 | Y82: 0 | Z82: 0 | AA82: 0 | AB82: 0 | AC82: 0 | AD82: 0 | AE82: -1.605129134e-11 | AF82: 0 | AG82: 1.605129134e-11 | AH82: 1.605129134e-11 | AI82: 0 | AL82: -1.584596103e-11 | AN82: -1.600710675e-10
A83: 2078 | B83: 0 | C83: 0 | D83: -1.573425834e-10 | E83: 2441342.987 | F83: 0 | G83: 0 | H83: 0 | I83: -1.573425834e-10 | J83: 0 | K83: -1.573425834e-10 | L83: -4.090907169e-12 | M83: -7.473772712e-12 | N83: 0 | O83: -2.401066013e-12 | P83: 0 | Q83: -1.534278502e-13 | R83: -1.932117599e-12 | S83: -1.605129134e-11 | T83: -6.748929418e-71 | V83: 0 | W83: 56 | X83: 0 | Y83: 0 | Z83: 0 | AA83: 0 | AB83: 0 | AC83: 0 | AD83: 0 | AE83: -1.605129134e-11 | AF83: 0 | AG83: 1.605129134e-11 | AH83: 1.605129134e-11 | AI83: 0 | AL83: -1.584596103e-11 | AN83: -1.600710675e-10
A84: 2079 | B84: 0 | C84: 0 | D84: -1.573425834e-10 | E84: 2441342.987 | F84: 0 | G84: 0 | H84: 0 | I84: -1.573425834e-10 | J84: 0 | K84: -1.573425834e-10 | L84: -4.090907169e-12 | M84: -7.473772712e-12 | N84: 0 | O84: -2.401066013e-12 | P84: 0 | Q84: -1.534278502e-13 | R84: -1.932117599e-12 | S84: -1.605129134e-11 | T84: -6.318985635e-71 | V84: 0 | W84: 57 | X84: 0 | Y84: 0 | Z84: 0 | AA84: 0 | AB84: 0 | AC84: 0 | AD84: 0 | AE84: -1.605129134e-11 | AF84: 0 | AG84: 1.605129134e-11 | AH84: 1.605129134e-11 | AI84: 0 | AL84: -1.584596103e-11 | AN84: -1.600710675e-10
A85: 2080 | B85: 0 | C85: 0 | D85: -1.573425834e-10 | E85: 2441342.987 | F85: 0 | G85: 0 | H85: 0 | I85: -1.573425834e-10 | J85: 0 | K85: -1.573425834e-10 | L85: -4.090907169e-12 | M85: -7.473772712e-12 | N85: 0 | O85: -2.401066013e-12 | P85: 0 | Q85: -1.534278502e-13 | R85: -1.932117599e-12 | S85: -1.605129134e-11 | T85: -5.916431627e-71 | V85: 0 | W85: 58 | X85: 0 | Y85: 0 | Z85: 0 | AA85: 0 | AB85: 0 | AC85: 0 | AD85: 0 | AE85: -1.605129134e-11 | AF85: 0 | AG85: 1.605129134e-11 | AH85: 1.605129134e-11 | AI85: 0 | AL85: -1.584596103e-11 | AN85: -1.600710675e-10
A86: 2081 | B86: 0 | C86: 0 | D86: -1.573425834e-10 | E86: 2441342.987 | F86: 0 | G86: 0 | H86: 0 | I86: -1.573425834e-10 | J86: 0 | K86: -1.573425834e-10 | L86: -4.090907169e-12 | M86: -7.473772712e-12 | N86: 0 | O86: -2.401066013e-12 | P86: 0 | Q86: -1.534278502e-13 | R86: -1.932117599e-12 | S86: -1.605129134e-11 | T86: -5.539522516e-71 | V86: 0 | W86: 59 | X86: 0 | Y86: 0 | Z86: 0 | AA86: 0 | AB86: 0 | AC86: 0 | AD86: 0 | AE86: -1.605129134e-11 | AF86: 0 | AG86: 1.605129134e-11 | AH86: 1.605129134e-11 | AI86: 0 | AL86: -1.584596103e-11 | AN86: -1.600710675e-10
A87: 2082 | B87: 0 | C87: 0 | D87: -1.573425834e-10 | E87: 2441342.987 | F87: 0 | G87: 0 | H87: 0 | I87: -1.573425834e-10 | J87: 0 | K87: -1.573425834e-10 | L87: -4.090907169e-12 | M87: -7.473772712e-12 | N87: 0 | O87: -2.401066013e-12 | P87: 0 | Q87: -1.534278502e-13 | R87: -1.932117599e-12 | S87: -1.605129134e-11 | T87: -5.186624579e-71 | V87: 0 | W87: 60 | X87: 0 | Y87: 0 | Z87: 0 | AA87: 0 | AB87: 0 | AC87: 0 | AD87: 0 | AE87: -1.605129134e-11 | AF87: 0 | AG87: 1.605129134e-11 | AH87: 1.605129134e-11 | AI87: 0 | AL87: -1.584596103e-11 | AN87: -1.600710675e-10
A88: 2083 | B88: 0 | C88: 0 | D88: -1.573425834e-10 | E88: 2441342.987 | F88: 0 | G88: 0 | H88: 0 | I88: -1.573425834e-10 | J88: 0 | K88: -1.573425834e-10 | L88: -4.090907169e-12 | M88: =IF(A88=1,($N$3+$N$2)*K88,($N$3+$N$2)*K88) -> -7.473772712e-12 | N88: 0 | O88: -2.401066013e-12 | P88: 0 | Q88: -1.534278502e-13 | R88: -1.932117599e-12 | S88: -1.605129134e-11 | T88: -4.856208175e-71 | V88: 0 | W88: 61 | X88: 0 | Y88: 0 | Z88: 0 | AA88: 0 | AB88: 0 | AC88: 0 | AD88: 0 | AE88: -1.605129134e-11 | AF88: 0 | AG88: 1.605129134e-11 | AH88: 1.605129134e-11 | AI88: 0 | AL88: -1.584596103e-11 | AN88: -1.600710675e-10
A89: 2084 | B89: 0 | C89: 0 | D89: -1.573425834e-10 | E89: 2441342.987 | F89: 0 | G89: 0 | H89: 0 | I89: -1.573425834e-10 | J89: 0 | K89: -1.573425834e-10 | L89: -4.090907169e-12 | M89: =IF(A89=1,($N$3+$N$2)*K89,($N$3+$N$2)*K89) -> -7.473772712e-12 | N89: 0 | O89: -2.401066013e-12 | P89: 0 | Q89: -1.534278502e-13 | R89: -1.932117599e-12 | S89: -1.605129134e-11 | T89: -4.546841106e-71 | V89: 0 | W89: 62 | X89: 0 | Y89: 0 | Z89: 0 | AA89: 0 | AB89: 0 | AC89: 0 | AD89: 0 | AE89: -1.605129134e-11 | AF89: 0 | AG89: 1.605129134e-11 | AH89: 1.605129134e-11 | AI89: 0 | AL89: -1.584596103e-11 | AN89: -1.600710675e-10
A90: 2085 | B90: 0 | C90: 0 | D90: -1.573425834e-10 | E90: 2441342.987 | F90: 0 | G90: 0 | H90: 0 | I90: -1.573425834e-10 | J90: 0 | K90: -1.573425834e-10 | L90: -4.090907169e-12 | M90: -7.473772712e-12 | N90: 0 | O90: -2.401066013e-12 | P90: 0 | Q90: -1.534278502e-13 | R90: -1.932117599e-12 | S90: -1.605129134e-11 | T90: -4.257182415e-71 | V90: 0 | W90: 63 | X90: 0 | Y90: 0 | Z90: 0 | AA90: 0 | AB90: 0 | AC90: 0 | AD90: 0 | AE90: -1.605129134e-11 | AF90: 0 | AG90: 1.605129134e-11 | AH90: 1.605129134e-11 | AI90: 0 | AL90: -1.584596103e-11 | AN90: -1.600710675e-10
A91: 2086 | B91: 0 | C91: 0 | D91: -1.573425834e-10 | E91: 2441342.987 | F91: 0 | G91: 0 | H91: 0 | I91: -1.573425834e-10 | J91: 0 | K91: -1.573425834e-10 | L91: -4.090907169e-12 | M91: -7.473772712e-12 | N91: 0 | O91: -2.401066013e-12 | P91: 0 | Q91: -1.534278502e-13 | R91: -1.932117599e-12 | S91: -1.605129134e-11 | T91: -3.985976569e-71 | V91: 0 | W91: 64 | X91: 0 | Y91: 0 | Z91: 0 | AA91: 0 | AB91: 0 | AC91: 0 | AD91: 0 | AE91: -1.605129134e-11 | AF91: 0 | AG91: 1.605129134e-11 | AH91: 1.605129134e-11 | AI91: 0 | AL91: -1.584596103e-11 | AN91: -1.600710675e-10
A92: =1+A91 -> 2087 | B92: 0 | C92: 0 | D92: =I91+C92 -> -1.573425834e-10 | E92: =E91+J92 -> 2441342.987 | F92: =CA201 -> 0 | G92: 0 | H92: =(F92-G92)*$D$2 -> 0 | I92: =D92-J92-H92 -> -1.573425834e-10 | J92: =CA387 -> 0 | K92: =(+I92+D92)/2 -> -1.573425834e-10 | L92: -4.090907169e-12 | M92: -7.473772712e-12 | N92: 0 | O92: =AN92*$D$10 -> -2.401066013e-12 | P92: 0 | Q92: =(+AL92-(G92+L92+N92+O92+P92))*$D$1 -> -1.534278502e-13 | R92: =(+AL92-(G92+L92+N92+O92+P92+Q92))*$D$2 -> -1.932117599e-12 | S92: =J92+M92+L92+N92+O92+P92+Q92+R92 -> -1.605129134e-11 | T92: -3.732048021e-71 | V92: 0 | W92: 65 | X92: 0 | Y92: 0 | Z92: 0 | AA92: 0 | AB92: 0 | AC92: 0 | AD92: 0 | AE92: =S92 -> -1.605129134e-11 | AF92: =V92 -> 0 | AG92: =AF92-AE92 -> 1.605129134e-11 | AH92: 1.605129134e-11 | AI92: 0 | AL92: -1.584596103e-11 | AN92: -1.600710675e-10
A93: 2088 | B93: 0 | C93: =B93 -> 0 | D93: -1.573425834e-10 | E93: 2441342.987 | F93: 0 | G93: =CA294 -> 0 | H93: 0 | I93: -1.573425834e-10 | J93: 0 | K93: -1.573425834e-10 | L93: =IF(A93=1,$N$1*K93,$N$1*K93) -> -4.090907169e-12 | M93: -7.473772712e-12 | N93: 0 | O93: -2.401066013e-12 | P93: =AL93*$T$8 -> 0 | Q93: -1.534278502e-13 | R93: -1.932117599e-12 | S93: -1.605129134e-11 | T93: =S93/(1+$D$3)^(A93-1) -> -3.494296114e-71 | V93: 0 | W93: =1+W92 -> 66 | X93: 0 | Y93: =+X93 -> 0 | Z93: =X93*$Z$24 -> 0 | AA93: 0 | AB93: 0 | AC93: 0 | AD93: 0 | AE93: -1.605129134e-11 | AF93: 0 | AG93: 1.605129134e-11 | AH93: =AF93-AE93 -> 1.605129134e-11 | AI93: =IF(A93=1,AF93-T89,AF93) -> 0 | AL93: =(+J93+L93+M93+N93+O93-(($D$1+(1-$D$1)*$D$2)*(G93+L93+N93+O93)))/$T$16 -> -1.584596103e-11 | AN93: =C93-J92+AN92 -> -1.600710675e-10
A94: 2089 | B94: 0 | C94: 0 | D94: -1.573425834e-10 | E94: 2441342.987 | F94: 0 | G94: 0 | H94: 0 | I94: -1.573425834e-10 | J94: 0 | K94: -1.573425834e-10 | L94: -4.090907169e-12 | M94: -7.473772712e-12 | N94: 0 | O94: -2.401066013e-12 | P94: 0 | Q94: -1.534278502e-13 | R94: -1.932117599e-12 | S94: -1.605129134e-11 | T94: -3.271690305e-71 | V94: 0 | W94: 67 | X94: 0 | Y94: 0 | Z94: 0 | AA94: 0 | AB94: 0 | AC94: 0 | AD94: 0 | AE94: -1.605129134e-11 | AF94: 0 | AG94: 1.605129134e-11 | AH94: 1.605129134e-11 | AI94: 0 | AL94: -1.584596103e-11 | AN94: -1.600710675e-10
A95: 2090 | B95: 0 | C95: 0 | D95: -1.573425834e-10 | E95: 2441342.987 | F95: 0 | G95: 0 | H95: 0 | I95: -1.573425834e-10 | J95: 0 | K95: -1.573425834e-10 | L95: -4.090907169e-12 | M95: -7.473772712e-12 | N95: 0 | O95: -2.401066013e-12 | P95: 0 | Q95: -1.534278502e-13 | R95: -1.932117599e-12 | S95: -1.605129134e-11 | T95: -3.063265707e-71 | V95: 0 | W95: 68 | X95: 0 | Y95: 0 | Z95: 0 | AA95: 0 | AB95: 0 | AC95: 0 | AD95: 0 | AE95: -1.605129134e-11 | AF95: 0 | AG95: 1.605129134e-11 | AH95: 1.605129134e-11 | AI95: 0 | AL95: -1.584596103e-11 | AN95: -1.600710675e-10
A96: 2091 | B96: 0 | C96: 0 | D96: -1.573425834e-10 | E96: 2441342.987 | F96: 0 | G96: 0 | H96: 0 | I96: -1.573425834e-10 | J96: 0 | K96: -1.573425834e-10 | L96: -4.090907169e-12 | M96: -7.473772712e-12 | N96: 0 | O96: -2.401066013e-12 | P96: 0 | Q96: -1.534278502e-13 | R96: -1.932117599e-12 | S96: -1.605129134e-11 | T96: -2.868118897e-71 | V96: 0 | W96: 69 | X96: 0 | Y96: 0 | Z96: 0 | AA96: 0 | AB96: 0 | AC96: 0 | AD96: 0 | AE96: -1.605129134e-11 | AF96: 0 | AG96: 1.605129134e-11 | AH96: 1.605129134e-11 | AI96: 0 | AL96: -1.584596103e-11 | AN96: -1.600710675e-10
A97: 2092 | B97: 0 | C97: 0 | D97: -1.573425834e-10 | E97: 2441342.987 | F97: 0 | G97: 0 | H97: 0 | I97: -1.573425834e-10 | J97: 0 | K97: -1.573425834e-10 | L97: -4.090907169e-12 | M97: -7.473772712e-12 | N97: 0 | O97: -2.401066013e-12 | P97: 0 | Q97: -1.534278502e-13 | R97: -1.932117599e-12 | S97: -1.605129134e-11 | T97: -2.685404008e-71 | V97: 0 | W97: 70 | X97: 0 | Y97: 0 | Z97: 0 | AA97: 0 | AB97: 0 | AC97: 0 | AD97: 0 | AE97: -1.605129134e-11 | AF97: 0 | AG97: 1.605129134e-11 | AH97: 1.605129134e-11 | AI97: 0 | AL97: -1.584596103e-11 | AN97: -1.600710675e-10
A98: 2093 | B98: 0 | C98: 0 | D98: -1.573425834e-10 | E98: 2441342.987 | F98: 0 | G98: 0 | H98: 0 | I98: -1.573425834e-10 | J98: 0 | K98: -1.573425834e-10 | L98: -4.090907169e-12 | M98: -7.473772712e-12 | N98: 0 | O98: -2.401066013e-12 | P98: 0 | Q98: -1.534278502e-13 | R98: -1.932117599e-12 | S98: -1.605129134e-11 | T98: -2.514329059e-71 | V98: 0 | W98: 71 | X98: 0 | Y98: 0 | Z98: 0 | AA98: 0 | AB98: 0 | AC98: 0 | AD98: 0 | AE98: -1.605129134e-11 | AF98: 0 | AG98: 1.605129134e-11 | AH98: 1.605129134e-11 | AI98: 0 | AL98: -1.584596103e-11 | AN98: -1.600710675e-10
A99: 2094 | B99: 0 | C99: 0 | D99: -1.573425834e-10 | E99: 2441342.987 | F99: 0 | G99: 0 | H99: 0 | I99: -1.573425834e-10 | J99: 0 | K99: -1.573425834e-10 | L99: -4.090907169e-12 | M99: -7.473772712e-12 | N99: 0 | O99: -2.401066013e-12 | P99: 0 | Q99: -1.534278502e-13 | R99: -1.932117599e-12 | S99: -1.605129134e-11 | T99: -2.354152522e-71 | V99: 0 | W99: 72 | X99: 0 | Y99: 0 | Z99: 0 | AA99: 0 | AB99: 0 | AC99: 0 | AD99: 0 | AE99: -1.605129134e-11 | AF99: 0 | AG99: 1.605129134e-11 | AH99: 1.605129134e-11 | AI99: 0 | AL99: -1.584596103e-11 | AN99: -1.600710675e-10
A100: 2095 | B100: 0 | C100: 0 | D100: -1.573425834e-10 | E100: 2441342.987 | F100: 0 | G100: 0 | H100: 0 | I100: -1.573425834e-10 | J100: 0 | K100: -1.573425834e-10 | L100: -4.090907169e-12 | M100: -7.473772712e-12 | N100: 0 | O100: -2.401066013e-12 | P100: 0 | Q100: -1.534278502e-13 | R100: -1.932117599e-12 | S100: -1.605129134e-11 | T100: -2.204180107e-71 | V100: 0 | W100: 73 | X100: 0 | Y100: 0 | Z100: 0 | AA100: 0 | AB100: 0 | AC100: 0 | AD100: 0 | AE100: -1.605129134e-11 | AF100: 0 | AG100: 1.605129134e-11 | AH100: 1.605129134e-11 | AI100: 0 | AL100: -1.584596103e-11 | AN100: -1.600710675e-10
A101: 2096 | B101: 0 | C101: 0 | D101: -1.573425834e-10 | E101: 2441342.987 | F101: 0 | G101: 0 | H101: 0 | I101: -1.573425834e-10 | J101: 0 | K101: -1.573425834e-10 | L101: -4.090907169e-12 | M101: -7.473772712e-12 | N101: 0 | O101: -2.401066013e-12 | P101: 0 | Q101: -1.534278502e-13 | R101: -1.932117599e-12 | S101: -1.605129134e-11 | T101: -2.063761757e-71 | V101: 0 | W101: 74 | X101: 0 | Y101: 0 | Z101: 0 | AA101: 0 | AB101: 0 | AC101: 0 | AD101: 0 | AE101: -1.605129134e-11 | AF101: 0 | AG101: 1.605129134e-11 | AH101: 1.605129134e-11 | AI101: 0 | AL101: -1.584596103e-11 | AN101: -1.600710675e-10
A102: 2097 | B102: 0 | C102: 0 | D102: -1.573425834e-10 | E102: 2441342.987 | F102: 0 | G102: 0 | H102: 0 | I102: -1.573425834e-10 | J102: 0 | K102: -1.573425834e-10 | L102: -4.090907169e-12 | M102: -7.473772712e-12 | N102: 0 | O102: -2.401066013e-12 | P102: 0 | Q102: -1.534278502e-13 | R102: -1.932117599e-12 | S102: -1.605129134e-11 | T102: -1.932288825e-71 | V102: 0 | W102: 75 | X102: 0 | Y102: 0 | Z102: 0 | AA102: 0 | AB102: 0 | AC102: 0 | AD102: 0 | AE102: -1.605129134e-11 | AF102: 0 | AG102: 1.605129134e-11 | AH102: 1.605129134e-11 | AI102: 0 | AL102: -1.584596103e-11 | AN102: -1.600710675e-10
A103: 2098 | B103: 0 | C103: 0 | D103: -1.573425834e-10 | E103: 2441342.987 | F103: 0 | G103: 0 | H103: 0 | I103: -1.573425834e-10 | J103: 0 | K103: -1.573425834e-10 | L103: -4.090907169e-12 | M103: -7.473772712e-12 | N103: 0 | O103: -2.401066013e-12 | P103: 0 | Q103: -1.534278502e-13 | R103: -1.932117599e-12 | S103: -1.605129134e-11 | T103: -1.80919144e-71 | V103: 0 | W103: 76 | X103: 0 | Y103: 0 | Z103: 0 | AA103: 0 | AB103: 0 | AC103: 0 | AD103: 0 | AE103: -1.605129134e-11 | AF103: 0 | AG103: 1.605129134e-11 | AH103: 1.605129134e-11 | AI103: 0 | AL103: -1.584596103e-11 | AN103: -1.600710675e-10
A104: = | B104: = | C104: = | D104: = | E104: = | F104: = | G104: = | H104: = | I104: = | J104: = | K104: = | L104: = | M104: = | N104: = | O104: = | P104: = | Q104: = | R104: = | S104: = | T104: =
A106: (a) Time Period in Years
A107: (b) Capital Additions Tax Basis
A108: (c) Capital Additions Book Basis
A109: (d) Rate Base Beginning of Period = Previous(i) + Previous(c)
A110: (e) Accumulated Depreciation = Previous(e) + (j)
A111: (f) Tax Depreciation = Modified ACRS Schedules Times The Tax Basis
A112: (g) Book Depreciation on Tax Basis = Straight Line Depreciation of Tax Basis
A113: (h) Deferred Taxes = [(f)-(g)] * Federal Income Tax Rate
A114: (i) Rate Base End of Period = (d) - (j) - (h)
A115: (j) Book Depreciation = Straight Line Per Book Life
A116: (k) Average Rate Base = [(d) + (i)] / 2
A117: (l) Interest Expense = Weighted Cost of Debt * (k)
A118: (m) Equity Return = [Weighted Cost of Preferred + Weighted Cost of Common] * (k)
A119: (n) Operating and Maintenance Expense = Previous(n) * [1 + O&M Escalation Factor]
A120: (o) Property Taxes = Property Tax Rate * (d)
A121: (p) Miscellaneous Revenue Items = Revenue Requirements * Miscellaneous Revenue Items Percentage
A122: (q) State Income Tax = [Revenue Requirement - [(g) + (l) + (m) + (n) + (o) + (p)] * State Income Tax Rate
A123: (r) Federal Income Taxes = [Revenue Requirements - [(g) + (l) + (n) + (o) + Miscellaneous Revenue Items + State Tax] * Federal Income Tax Rate
A124: (s) Total Revenue Requirements = (j) + (l) + (m) + (n) + (o) + (p) + (q) + (r)
A125: (t) Present Value Revenue Requirements = Total Revenue Requirements / [1 + Discount Factor] ^ [(a) - .5]
A127: Revenue Requirements = [(j) + (l) + (m) + (n) + (o) - Federal Income Tax Rate * [(g) + (l) + (n) + (o)]] / Conversion Factor
A130: TAX DEPRECIATION
A132: Class => | B132: =$D$4 -> 4
C133: 1 | D133: 2 | E133: 3 | F133: 4 | G133: 5 | H133: 6 | I133: 7 | J133: 8 | K133: 9 | L133: 10 | M133: 11 | N133: 12 | O133: 13 | P133: 14 | Q133: 15 | R133: 16 | S133: 17 | T133: 18 | U133: 19 | V133: 20 | W133: 21 | X133: 22 | Y133: 23 | Z133: 24 | AA133: 25 | AB133: 26 | AC133: 27 | AD133: 28 | AE133: 29 | AF133: 30 | AG133: 31 | AH133: 32 | AI133: 33 | AJ133: 34 | AK133: 35 | AL133: 36 | AM133: 37 | AN133: 38 | AO133: 39 | AP133: 40 | AQ133: 41 | AR133: 42 | AS133: 43 | AT133: 44 | AU133: 45 | AV133: 46 | AW133: 47 | AX133: 48 | AY133: 49 | AZ133: 50 | BA133: 51 | BB133: 52 | BC133: 53 | BD133: 54 | BE133: 55 | BF133: 56 | BG133: 57 | BH133: 58 | BI133: 59 | BJ133: 60 | BK133: 61 | BL133: 62 | BM133: 63 | BN133: 64 | BO133: 65 | BP133: 66 | BQ133: 67 | BR133: 68 | BS133: 69 | BT133: 70 | BU133: 71 | BV133: 72 | BW133: 73 | BX133: 74 | BY133: 75 | BZ133: 76 | CA133: Total
C134: - | D134: - | E134: - | F134: - | G134: - | H134: - | I134: - | J134: - | K134: - | L134: - | M134: - | N134: - | O134: - | P134: - | Q134: - | R134: - | S134: - | T134: - | U134: - | V134: - | W134: - | X134: - | Y134: - | Z134: - | AA134: - | AB134: - | AC134: - | AD134: - | AE134: - | AF134: - | AG134: - | AH134: - | AI134: - | AJ134: - | AK134: - | AL134: - | AM134: - | AN134: - | AO134: - | AP134: - | AQ134: - | AR134: - | AS134: - | AT134: - | AU134: - | AV134: - | AW134: - | AX134: - | AY134: - | AZ134: - | BA134: - | BB134: - | BC134: - | BD134: - | BE134: - | BF134: - | BG134: - | BH134: - | BI134: - | BJ134: - | BK134: - | BL134: - | BM134: - | BN134: - | BO134: - | BP134: - | BQ134: - | BR134: - | BS134: - | BT134: - | BU134: - | BV134: - | BW134: - | BX134: - | BY134: - | BZ134: - | CA134: -
A135: Rate | B135: Capital | C135: =$B28 -> 0 | D135: =$B29 -> 87264.76894 | E135: =$B30 -> 89317.49082 | F135: =$B31 -> 91312.24812 | G135: =$B32 -> 93351.55499 | H135: =$B33 -> 95436.40639 | I135: =$B34 -> 97536.00733 | J135: =$B35 -> 99681.79949 | K135: =$B36 -> 101874.7991 | L135: =$B37 -> 104116.0447 | M135: =$B38 -> 106406.5976 | N135: =$B39 -> 108747.5428 | O135: =$B40 -> 111139.9887 | P135: =$B41 -> 113585.0685 | Q135: =$B42 -> 116083.94 | R135: =$B43 -> 118637.7867 | S135: =$B44 -> 121247.818 | T135: =$B45 -> 123915.27 | U135: =$B46 -> 126641.4059 | V135: =$B47 -> 129427.5168 | W135: =$B48 -> 132274.9222 | X135: =$B49 -> 135184.9705 | Y135: =$B50 -> 138159.0398 | Z135: =$B51 -> 0 | AA135: =$B52 -> 0 | AB135: =$B53 -> 0 | AC135: =$B54 -> 0 | AD135: =$B55 -> 0 | AE135: =$B56 -> 0 | AF135: =$B57 -> 0 | AG135: =$B58 -> 0 | AH135: =$B59 -> 0 | AI135: =$B60 -> 0 | AJ135: =$B61 -> 0 | AK135: =$B62 -> 0 | AL135: =$B63 -> 0 | AM135: =$B64 -> 0 | AN135: =$B65 -> 0 | AO135: =$B66 -> 0 | AP135: =$B67 -> 0 | AQ135: =$B68 -> 0 | AR135: =$B69 -> 0 | AS135: =$B70 -> 0 | AT135: =$B71 -> 0 | AU135: =$B72 -> 0 | AV135: =$B73 -> 0 | AW135: =$B74 -> 0 | AX135: =$B75 -> 0 | AY135: =$B76 -> 0 | AZ135: =$B77 -> 0 | BA135: =$B78 -> 0 | BB135: =$B79 -> 0 | BC135: =$B80 -> 0 | BD135: =$B81 -> 0 | BE135: =$B82 -> 0 | BF135: =$B83 -> 0 | BG135: =$B84 -> 0 | BH135: =$B85 -> 0 | BI135: =$B86 -> 0 | BJ135: =$B87 -> 0 | BK135: =$B88 -> 0 | BL135: =$B89 -> 0 | BM135: =$B90 -> 0 | BN135: =$B91 -> 0 | BO135: =$B92 -> 0 | BP135: =$B93 -> 0 | BQ135: =$B94 -> 0 | BR135: =$B95 -> 0 | BS135: =$B96 -> 0 | BT135: =$B97 -> 0 | BU135: =$B98 -> 0 | BV135: =$B99 -> 0 | BW135: =$B100 -> 0 | BX135: =$B101 -> 0 | BY135: =$B102 -> 0 | BZ135: =$B103 -> 0 | CA135: =SUM($C135:$BZ135) -> 2441342.987 | CC135: 31.5 Year | CD135: 20 Years | CE135: 7 Years | CF135: 5 Years
C136: - | D136: - | E136: - | F136: - | G136: - | H136: - | I136: - | J136: - | K136: - | L136: - | M136: - | N136: - | O136: - | P136: - | Q136: - | R136: - | S136: - | T136: - | U136: - | V136: - | W136: - | X136: - | Y136: - | Z136: - | AA136: - | AB136: - | AC136: - | AD136: - | AE136: - | AF136: - | AG136: - | AH136: - | AI136: - | AJ136: - | AK136: - | AL136: - | AM136: - | AN136: - | AO136: - | AP136: - | AQ136: - | AR136: - | AS136: - | AT136: - | AU136: - | AV136: - | AW136: - | AX136: - | AY136: - | AZ136: - | BA136: - | BB136: - | BC136: - | BD136: - | BE136: - | BF136: - | BG136: - | BH136: - | BI136: - | BJ136: - | BK136: - | BL136: - | BM136: - | BN136: - | BO136: - | BP136: - | BQ136: - | BR136: - | BS136: - | BT136: - | BU136: - | BV136: - | BW136: - | BX136: - | BY136: - | BZ136: - | CA136: -
A137: =IF($B$132=1,CC137,IF($B$132=2,CD137,IF($B$132=3,CE137,IF($B$132=4,CF137,#VALUE!)))) -> 0.2 | B137: =+B136+1 -> 1 | C137: =C$135*$A137 -> 0 | CA137: =SUM($C137:$BZ137) -> 0 | CC137: 0.01587 | CD137: 0.0375 | CE137: 0.14286 | CF137: 0.2
A138: =IF($B$132=1,CC138,IF($B$132=2,CD138,IF($B$132=3,CE138,IF($B$132=4,CF138,#VALUE!)))) -> 0.32 | B138: =+B137+1 -> 2 | C138: =C$135*$A138 -> 0 | D138: =D$135*$A137 -> 17452.95379 | CA138: 17452.95379 | CC138: 0.03175 | CD138: 0.07219 | CE138: 0.2449 | CF138: 0.32
A139: 0.192 | B139: 3 | C139: 0 | D139: =D$135*$A138 -> 27924.72606 | E139: =E$135*$A137 -> 17863.49816 | CA139: 45788.22422 | CC139: 0.03175 | CD139: 0.06678 | CE139: 0.17493 | CF139: 0.192
A140: 0.1152 | B140: 4 | C140: 0 | D140: 16754.83564 | E140: =E$135*$A138 -> 28581.59706 | F140: =F$135*$A137 -> 18262.44962 | CA140: 63598.88232 | CC140: 0.03175 | CD140: 0.06178 | CE140: 0.12495 | CF140: 0.1152
A141: 0.1152 | B141: 5 | C141: 0 | D141: 10052.90138 | E141: 17148.95824 | F141: =F$135*$A138 -> 29219.9194 | G141: =G$135*$A137 -> 18670.311 | CA141: 75092.09002 | CC141: 0.03175 | CD141: 0.05715 | CE141: 0.08925 | CF141: 0.1152
A142: 0.0576 | B142: 6 | C142: 0 | D142: 10052.90138 | E142: 10289.37494 | F142: 17531.95164 | G142: =G$135*$A138 -> 29872.4976 | H142: =H$135*$A137 -> 19087.28128 | CA142: 86834.00684 | CC142: 0.03175 | CD142: 0.05286 | CE142: 0.08925 | CF142: 0.0576
A143: 0 | B143: 7 | C143: 0 | D143: 5026.450691 | E143: 10289.37494 | F143: 10519.17098 | G143: 17923.49856 | H143: =H$135*$A138 -> 30539.65004 | I143: =I$135*$A137 -> 19507.20147 | CA143: 93805.34668 | CC143: 0.03175 | CD143: 0.0489 | CE143: 0.08925 | CF143: 0
A144: 0 | B144: 8 | C144: 0 | D144: 0 | E144: 5144.687471 | F144: 10519.17098 | G144: 10754.09914 | H144: 18323.79003 | I144: =I$135*$A138 -> 31211.52234 | J144: =J$135*$A137 -> 19936.3599 | CA144: 95889.62986 | CC144: 0.03175 | CD144: 0.04523 | CE144: 0.04461 | CF144: 0
A145: 0 | B145: 9 | C145: 0 | D145: 0 | E145: 0 | F145: 5259.585492 | G145: 10754.09914 | H145: 10994.27402 | I145: 18726.91341 | J145: =J$135*$A138 -> 31898.17584 | K145: =K$135*$A137 -> 20374.95982 | CA145: 98008.0077 | CC145: 0.03175 | CD145: 0.04461 | CE145: 0 | CF145: 0
A146: 0 | B146: 10 | C146: 0 | D146: 0 | E146: 0 | F146: 0 | G146: 5377.049568 | H146: 10994.27402 | I146: 11236.14804 | J146: 19138.9055 | K146: =K$135*$A138 -> 32599.9357 | L146: =L$135*$A137 -> 20823.20893 | CA146: 100169.5218 | CC146: 0.03175 | CD146: 0.04461 | CE146: 0 | CF146: 0
A147: 0 | B147: 11 | C147: 0 | D147: 0 | E147: 0 | F147: 0 | G147: 0 | H147: 5497.137008 | I147: 11236.14804 | J147: 11483.3433 | K147: 19559.96142 | L147: =L$135*$A138 -> 33317.13429 | M147: =M$135*$A137 -> 21281.31953 | CA147: 102375.0436 | CC147: 0.03175 | CD147: 0.04461 | CE147: 0 | CF147: 0
A148: 0 | B148: 12 | C148: 0 | D148: 0 | E148: 0 | F148: 0 | G148: 0 | H148: 0 | I148: 5618.074022 | J148: 11483.3433 | K148: 11735.97685 | L148: 19990.28057 | M148: =M$135*$A138 -> 34050.11124 | N148: =N$135*$A137 -> 21749.50856 | CA148: 104627.2946 | CC148: 0.03175 | CD148: 0.04461 | CE148: 0 | CF148: 0
A149: 0 | B149: 13 | C149: 0 | D149: 0 | E149: 0 | F149: 0 | G149: 0 | H149: 0 | I149: 0 | J149: 5741.671651 | K149: 11735.97685 | L149: 11994.16834 | M149: 20430.06675 | N149: =N$135*$A138 -> 34799.21369 | O149: =O$135*$A137 -> 22227.99775 | CA149: 106929.095 | CC149: 0.03175 | CD149: 0.04461 | CE149: 0 | CF149: 0
A150: 0 | B150: 14 | C150: 0 | D150: 0 | E150: 0 | F150: 0 | G150: 0 | H150: 0 | I150: 0 | J150: 0 | K150: 5867.988427 | L150: 11994.16834 | M150: 12258.04005 | N150: 20879.52822 | O150: =O$135*$A138 -> 35564.79639 | P150: =P$135*$A137 -> 22717.0137 | CA150: 109281.5351 | CC150: 0.03175 | CD150: 0.04461 | CE150: 0 | CF150: 0
A151: 0 | B151: 15 | C151: 0 | D151: 0 | E151: 0 | F151: 0 | G151: 0 | H151: 0 | I151: 0 | J151: 0 | K151: 0 | L151: 5997.084172 | M151: 12258.04005 | N151: 12527.71693 | O151: 21338.87784 | P151: =P$135*$A138 -> 36347.22191 | Q151: =Q$135*$A137 -> 23216.788 | CA151: 111685.7289 | CC151: 0.03175 | CD151: 0.04461 | CE151: 0 | CF151: 0
A152: 0 | B152: 16 | C152: 0 | D152: 0 | E152: 0 | F152: 0 | G152: 0 | H152: 0 | I152: 0 | J152: 0 | K152: 0 | L152: 0 | M152: 6129.020024 | N152: 12527.71693 | O152: 12803.3267 | P152: 21808.33315 | Q152: =Q$135*$A138 -> 37146.8608 | R152: =R$135*$A137 -> 23727.55733 | CA152: 114142.8149 | CC152: 0.03175 | CD152: 0.04461 | CE152: 0 | CF152: 0
A153: 0 | B153: 17 | C153: 0 | D153: 0 | E153: 0 | F153: 0 | G153: 0 | H153: 0 | I153: 0 | J153: 0 | K153: 0 | L153: 0 | M153: 0 | N153: 6263.858465 | O153: 12803.3267 | P153: 13084.99989 | Q153: 22288.11648 | R153: =R$135*$A138 -> 37964.09173 | S153: =S$135*$A137 -> 24249.56359 | CA153: 116653.9569 | CC153: 0.03175 | CD153: 0.04461 | CE153: 0 | CF153: 0
A154: 0 | B154: 18 | C154: 0 | D154: 0 | E154: 0 | F154: 0 | G154: 0 | H154: 0 | I154: 0 | J154: 0 | K154: 0 | L154: 0 | M154: 0 | N154: 0 | O154: 6401.663351 | P154: 13084.99989 | Q154: 13372.86989 | R154: 22778.45504 | S154: =S$135*$A138 -> 38799.30175 | T154: =T$135*$A137 -> 24783.05399 | CA154: 119220.3439 | CC154: 0.03175 | CD154: 0.04461 | CE154: 0 | CF154: 0
A155: 0 | B155: 19 | C155: 0 | D155: 0 | E155: 0 | F155: 0 | G155: 0 | H155: 0 | I155: 0 | J155: 0 | K155: 0 | L155: 0 | M155: 0 | N155: 0 | O155: 0 | P155: 6542.499945 | Q155: 13372.86989 | R155: 13667.07302 | S155: 23279.58105 | T155: =T$135*$A138 -> 39652.88639 | U155: =U$135*$A137 -> 25328.28118 | CA155: 121843.1915 | CC155: 0.03175 | CD155: 0.04461 | CE155: 0 | CF155: 0
A156: 0 | B156: 20 | C156: 0 | D156: 0 | E156: 0 | F156: 0 | G156: 0 | H156: 0 | I156: 0 | J156: 0 | K156: 0 | L156: 0 | M156: 0 | N156: 0 | O156: 0 | P156: 0 | Q156: 6686.434943 | R156: 13667.07302 | S156: 13967.74863 | T156: 23791.73183 | U156: =U$135*$A138 -> 40525.24989 | V156: =V$135*$A137 -> 25885.50337 | CA156: 124523.7417 | CC156: 0.03175 | CD156: 0.04461 | CE156: 0 | CF156: 0
A157: 0 | B157: 21 | C157: 0 | D157: 0 | E157: 0 | F157: 0 | G157: 0 | H157: 0 | I157: 0 | J157: 0 | K157: 0 | L157: 0 | M157: 0 | N157: 0 | O157: 0 | P157: 0 | Q157: 0 | R157: 6833.536512 | S157: 13967.74863 | T157: 14275.0391 | U157: 24315.14993 | V157: =V$135*$A138 -> 41416.80539 | W157: =W$135*$A137 -> 26454.98444 | CA157: 127263.264 | CC157: 0.03175 | CD157: 0.02229 | CE157: 0 | CF157: 0
A158: 0 | B158: 22 | C158: 0 | D158: 0 | E158: 0 | F158: 0 | G158: 0 | H158: 0 | I158: 0 | J158: 0 | K158: 0 | L158: 0 | M158: 0 | N158: 0 | O158: 0 | P158: 0 | Q158: 0 | R158: 0 | S158: 6983.874315 | T158: 14275.0391 | U158: 14589.08996 | V158: 24850.08323 | W158: =W$135*$A138 -> 42327.97511 | X158: =X$135*$A137 -> 27036.9941 | CA158: 130063.0558 | CC158: 0.03175 | CD158: 0 | CE158: 0 | CF158: 0
A159: 0 | B159: 23 | C159: 0 | D159: 0 | E159: 0 | F159: 0 | G159: 0 | H159: 0 | I159: 0 | J159: 0 | K159: 0 | L159: 0 | M159: 0 | N159: 0 | O159: 0 | P159: 0 | Q159: 0 | R159: 0 | S159: 0 | T159: 7137.51955 | U159: 14589.08996 | V159: 14910.04994 | W159: 25396.78506 | X159: =X$135*$A138 -> 43259.19056 | Y159: =Y$135*$A137 -> 27631.80797 | CA159: 132924.443 | CC159: 0.03175 | CD159: 0 | CE159: 0 | CF159: 0
A160: 0 | B160: 24 | C160: 0 | D160: 0 | E160: 0 | F160: 0 | G160: 0 | H160: 0 | I160: 0 | J160: 0 | K160: 0 | L160: 0 | M160: 0 | N160: 0 | O160: 0 | P160: 0 | Q160: 0 | R160: 0 | S160: 0 | T160: 0 | U160: 7294.54498 | V160: 14910.04994 | W160: 15238.07104 | X160: 25955.51434 | Y160: =Y$135*$A138 -> 44210.89275 | Z160: =Z$135*$A137 -> 0 | CA160: 107609.073 | CC160: 0.03175 | CD160: 0 | CE160: 0 | CF160: 0
A161: 0 | B161: 25 | C161: 0 | D161: 0 | E161: 0 | F161: 0 | G161: 0 | H161: 0 | I161: 0 | J161: 0 | K161: 0 | L161: 0 | M161: 0 | N161: 0 | O161: 0 | P161: 0 | Q161: 0 | R161: 0 | S161: 0 | T161: 0 | U161: 0 | V161: 7455.02497 | W161: 15238.07104 | X161: 15573.3086 | Y161: 26526.53565 | Z161: =Z$135*$A138 -> 0 | AA161: =AA$135*$A137 -> 0 | CA161: 64792.94026 | CC161: 0.03175 | CD161: 0 | CE161: 0 | CF161: 0
A162: 0 | B162: 26 | C162: 0 | D162: 0 | E162: 0 | F162: 0 | G162: 0 | H162: 0 | I162: 0 | J162: 0 | K162: 0 | L162: 0 | M162: 0 | N162: 0 | O162: 0 | P162: 0 | Q162: 0 | R162: 0 | S162: 0 | T162: 0 | U162: 0 | V162: 0 | W162: 7619.035519 | X162: 15573.3086 | Y162: 15915.92139 | Z162: 0 | AA162: =AA$135*$A138 -> 0 | AB162: =AB$135*$A137 -> 0 | CA162: 39108.26551 | CC162: 0.03175 | CD162: 0 | CE162: 0 | CF162: 0
A163: 0 | B163: 27 | C163: 0 | D163: 0 | E163: 0 | F163: 0 | G163: 0 | H163: 0 | I163: 0 | J163: 0 | K163: 0 | L163: 0 | M163: 0 | N163: 0 | O163: 0 | P163: 0 | Q163: 0 | R163: 0 | S163: 0 | T163: 0 | U163: 0 | V163: 0 | W163: 0 | X163: 7786.654301 | Y163: 15915.92139 | Z163: 0 | AA163: 0 | AB163: =AB$135*$A138 -> 0 | AC163: =AC$135*$A137 -> 0 | CA163: 23702.57569 | CC163: 0.03175 | CD163: 0 | CE163: 0 | CF163: 0
A164: 0 | B164: 28 | C164: 0 | D164: 0 | E164: 0 | F164: 0 | G164: 0 | H164: 0 | I164: 0 | J164: 0 | K164: 0 | L164: 0 | M164: 0 | N164: 0 | O164: 0 | P164: 0 | Q164: 0 | R164: 0 | S164: 0 | T164: 0 | U164: 0 | V164: 0 | W164: 0 | X164: 0 | Y164: 7957.960695 | Z164: 0 | AA164: 0 | AB164: 0 | AC164: =AC$135*$A138 -> 0 | AD164: =AD$135*$A137 -> 0 | CA164: 7957.960695 | CC164: 0.03175 | CD164: 0 | CE164: 0 | CF164: 0
A165: 0 | B165: 29 | C165: 0 | D165: 0 | E165: 0 | F165: 0 | G165: 0 | H165: 0 | I165: 0 | J165: 0 | K165: 0 | L165: 0 | M165: 0 | N165: 0 | O165: 0 | P165: 0 | Q165: 0 | R165: 0 | S165: 0 | T165: 0 | U165: 0 | V165: 0 | W165: 0 | X165: 0 | Y165: 0 | Z165: 0 | AA165: 0 | AB165: 0 | AC165: 0 | AD165: =AD$135*$A138 -> 0 | AE165: =AE$135*$A137 -> 0 | CA165: 0 | CC165: 0.03175 | CD165: 0 | CE165: 0 | CF165: 0
A166: 0 | B166: 30 | C166: 0 | D166: 0 | E166: 0 | F166: 0 | G166: 0 | H166: 0 | I166: 0 | J166: 0 | K166: 0 | L166: 0 | M166: 0 | N166: 0 | O166: 0 | P166: 0 | Q166: 0 | R166: 0 | S166: 0 | T166: 0 | U166: 0 | V166: 0 | W166: 0 | X166: 0 | Y166: 0 | Z166: 0 | AA166: 0 | AB166: 0 | AC166: 0 | AD166: 0 | AE166: =AE$135*$A138 -> 0 | AF166: =AF$135*$A137 -> 0 | CA166: 0 | CC166: 0.03175 | CD166: 0 | CE166: 0 | CF166: 0
A167: 0 | B167: 31 | C167: 0 | D167: 0 | E167: 0 | F167: 0 | G167: 0 | H167: 0 | I167: 0 | J167: 0 | K167: 0 | L167: 0 | M167: 0 | N167: 0 | O167: 0 | P167: 0 | Q167: 0 | R167: 0 | S167: 0 | T167: 0 | U167: 0 | V167: 0 | W167: 0 | X167: 0 | Y167: 0 | Z167: 0 | AA167: 0 | AB167: 0 | AC167: 0 | AD167: 0 | AE167: 0 | AF167: =AF$135*$A138 -> 0 | AG167: =AG$135*$A137 -> 0 | CA167: 0 | CC167: 0.03175 | CD167: 0 | CE167: 0 | CF167: 0
A168: 0 | B168: 32 | C168: 0 | D168: 0 | E168: 0 | F168: 0 | G168: 0 | H168: 0 | I168: 0 | J168: 0 | K168: 0 | L168: 0 | M168: 0 | N168: 0 | O168: 0 | P168: 0 | Q168: 0 | R168: 0 | S168: 0 | T168: 0 | U168: 0 | V168: 0 | W168: 0 | X168: 0 | Y168: 0 | Z168: 0 | AA168: 0 | AB168: 0 | AC168: 0 | AD168: 0 | AE168: 0 | AF168: 0 | AG168: =AG$135*$A138 -> 0 | AH168: =AH$135*$A137 -> 0 | CA168: 0 | CC168: 0.03163 | CD168: 0 | CE168: 0 | CF168: 0
A169: 0 | B169: 33 | C169: 0 | D169: 0 | E169: 0 | F169: 0 | G169: 0 | H169: 0 | I169: 0 | J169: 0 | K169: 0 | L169: 0 | M169: 0 | N169: 0 | O169: 0 | P169: 0 | Q169: 0 | R169: 0 | S169: 0 | T169: 0 | U169: 0 | V169: 0 | W169: 0 | X169: 0 | Y169: 0 | Z169: 0 | AA169: 0 | AB169: 0 | AC169: 0 | AD169: 0 | AE169: 0 | AF169: 0 | AG169: 0 | AH169: =AH$135*$A138 -> 0 | AI169: =AI$135*$A137 -> 0 | CA169: 0
A170: 0 | B170: 34 | C170: 0 | D170: 0 | E170: 0 | F170: 0 | G170: 0 | H170: 0 | I170: 0 | J170: 0 | K170: 0 | L170: 0 | M170: 0 | N170: 0 | O170: 0 | P170: 0 | Q170: 0 | R170: 0 | S170: 0 | T170: 0 | U170: 0 | V170: 0 | W170: 0 | X170: 0 | Y170: 0 | Z170: 0 | AA170: 0 | AB170: 0 | AC170: 0 | AD170: 0 | AE170: 0 | AF170: 0 | AG170: 0 | AH170: 0 | AI170: =AI$135*$A138 -> 0 | AJ170: =AJ$135*$A137 -> 0 | CA170: 0
A171: 0 | B171: 35 | C171: 0 | D171: 0 | E171: 0 | F171: 0 | G171: 0 | H171: 0 | I171: 0 | J171: 0 | K171: 0 | L171: 0 | M171: 0 | N171: 0 | O171: 0 | P171: 0 | Q171: 0 | R171: 0 | S171: 0 | T171: 0 | U171: 0 | V171: 0 | W171: 0 | X171: 0 | Y171: 0 | Z171: 0 | AA171: 0 | AB171: 0 | AC171: 0 | AD171: 0 | AE171: 0 | AF171: 0 | AG171: 0 | AH171: 0 | AI171: 0 | AJ171: =AJ$135*$A138 -> 0 | AK171: =AK$135*$A137 -> 0 | CA171: 0
A172: 0 | B172: 36 | C172: 0 | D172: 0 | E172: 0 | F172: 0 | G172: 0 | H172: 0 | I172: 0 | J172: 0 | K172: 0 | L172: 0 | M172: 0 | N172: 0 | O172: 0 | P172: 0 | Q172: 0 | R172: 0 | S172: 0 | T172: 0 | U172: 0 | V172: 0 | W172: 0 | X172: 0 | Y172: 0 | Z172: 0 | AA172: 0 | AB172: 0 | AC172: 0 | AD172: 0 | AE172: 0 | AF172: 0 | AG172: 0 | AH172: 0 | AI172: 0 | AJ172: 0 | AK172: =AK$135*$A138 -> 0 | AL172: =AL$135*$A137 -> 0 | CA172: 0
A173: 0 | B173: 37 | C173: 0 | D173: 0 | E173: 0 | F173: 0 | G173: 0 | H173: 0 | I173: 0 | J173: 0 | K173: 0 | L173: 0 | M173: 0 | N173: 0 | O173: 0 | P173: 0 | Q173: 0 | R173: 0 | S173: 0 | T173: 0 | U173: 0 | V173: 0 | W173: 0 | X173: 0 | Y173: 0 | Z173: 0 | AA173: 0 | AB173: 0 | AC173: 0 | AD173: 0 | AE173: 0 | AF173: 0 | AG173: 0 | AH173: 0 | AI173: 0 | AJ173: 0 | AK173: 0 | AL173: =AL$135*$A138 -> 0 | AM173: =AM$135*$A137 -> 0 | CA173: 0
A174: 0 | B174: 38 | C174: 0 | D174: 0 | E174: 0 | F174: 0 | G174: 0 | H174: 0 | I174: 0 | J174: 0 | K174: 0 | L174: 0 | M174: 0 | N174: 0 | O174: 0 | P174: 0 | Q174: 0 | R174: 0 | S174: 0 | T174: 0 | U174: 0 | V174: 0 | W174: 0 | X174: 0 | Y174: 0 | Z174: 0 | AA174: 0 | AB174: 0 | AC174: 0 | AD174: 0 | AE174: 0 | AF174: 0 | AG174: 0 | AH174: 0 | AI174: 0 | AJ174: 0 | AK174: 0 | AL174: 0 | AM174: =AM$135*$A138 -> 0 | AN174: =AN$135*$A137 -> 0 | CA174: 0
A175: 0 | B175: 39 | C175: 0 | D175: 0 | E175: 0 | F175: 0 | G175: 0 | H175: 0 | I175: 0 | J175: 0 | K175: 0 | L175: 0 | M175: 0 | N175: 0 | O175: 0 | P175: 0 | Q175: 0 | R175: 0 | S175: 0 | T175: 0 | U175: 0 | V175: 0 | W175: 0 | X175: 0 | Y175: 0 | Z175: 0 | AA175: 0 | AB175: 0 | AC175: 0 | AD175: 0 | AE175: 0 | AF175: 0 | AG175: 0 | AH175: 0 | AI175: 0 | AJ175: 0 | AK175: 0 | AL175: 0 | AM175: 0 | AN175: =AN$135*$A138 -> 0 | AO175: =AO$135*$A137 -> 0 | CA175: 0
A176: 0 | B176: 40 | C176: 0 | D176: 0 | E176: 0 | F176: 0 | G176: 0 | H176: 0 | I176: 0 | J176: 0 | K176: 0 | L176: 0 | M176: 0 | N176: 0 | O176: 0 | P176: 0 | Q176: 0 | R176: 0 | S176: 0 | T176: 0 | U176: 0 | V176: 0 | W176: 0 | X176: 0 | Y176: 0 | Z176: 0 | AA176: 0 | AB176: 0 | AC176: 0 | AD176: 0 | AE176: 0 | AF176: 0 | AG176: 0 | AH176: 0 | AI176: 0 | AJ176: 0 | AK176: 0 | AL176: 0 | AM176: 0 | AN176: 0 | AO176: =AO$135*$A138 -> 0 | AP176: =AP$135*$A137 -> 0 | CA176: 0
A177: 0 | B177: 41 | C177: 0 | D177: 0 | E177: 0 | F177: 0 | G177: 0 | H177: 0 | I177: 0 | J177: 0 | K177: 0 | L177: 0 | M177: 0 | N177: 0 | O177: 0 | P177: 0 | Q177: 0 | R177: 0 | S177: 0 | T177: 0 | U177: 0 | V177: 0 | W177: 0 | X177: 0 | Y177: 0 | Z177: 0 | AA177: 0 | AB177: 0 | AC177: 0 | AD177: 0 | AE177: 0 | AF177: 0 | AG177: 0 | AH177: 0 | AI177: 0 | AJ177: 0 | AK177: 0 | AL177: 0 | AM177: 0 | AN177: 0 | AO177: 0 | AP177: =AP$135*$A138 -> 0 | AQ177: =AQ$135*$A137 -> 0 | CA177: 0
A178: 0 | B178: 42 | C178: 0 | D178: 0 | E178: 0 | F178: 0 | G178: 0 | H178: 0 | I178: 0 | J178: 0 | K178: 0 | L178: 0 | M178: 0 | N178: 0 | O178: 0 | P178: 0 | Q178: 0 | R178: 0 | S178: 0 | T178: 0 | U178: 0 | V178: 0 | W178: 0 | X178: 0 | Y178: 0 | Z178: 0 | AA178: 0 | AB178: 0 | AC178: 0 | AD178: 0 | AE178: 0 | AF178: 0 | AG178: 0 | AH178: 0 | AI178: 0 | AJ178: 0 | AK178: 0 | AL178: 0 | AM178: 0 | AN178: 0 | AO178: 0 | AP178: 0 | AQ178: =AQ$135*$A138 -> 0 | AR178: =AR$135*$A137 -> 0 | CA178: 0
A179: 0 | B179: 43 | C179: 0 | D179: 0 | E179: 0 | F179: 0 | G179: 0 | H179: 0 | I179: 0 | J179: 0 | K179: 0 | L179: 0 | M179: 0 | N179: 0 | O179: 0 | P179: 0 | Q179: 0 | R179: 0 | S179: 0 | T179: 0 | U179: 0 | V179: 0 | W179: 0 | X179: 0 | Y179: 0 | Z179: 0 | AA179: 0 | AB179: 0 | AC179: 0 | AD179: 0 | AE179: 0 | AF179: 0 | AG179: 0 | AH179: 0 | AI179: 0 | AJ179: 0 | AK179: 0 | AL179: 0 | AM179: 0 | AN179: 0 | AO179: 0 | AP179: 0 | AQ179: 0 | AR179: =AR$135*$A138 -> 0 | AS179: =AS$135*$A137 -> 0 | CA179: 0
A180: 0 | B180: 44 | C180: 0 | D180: 0 | E180: 0 | F180: 0 | G180: 0 | H180: 0 | I180: 0 | J180: 0 | K180: 0 | L180: 0 | M180: 0 | N180: 0 | O180: 0 | P180: 0 | Q180: 0 | R180: 0 | S180: 0 | T180: 0 | U180: 0 | V180: 0 | W180: 0 | X180: 0 | Y180: 0 | Z180: 0 | AA180: 0 | AB180: 0 | AC180: 0 | AD180: 0 | AE180: 0 | AF180: 0 | AG180: 0 | AH180: 0 | AI180: 0 | AJ180: 0 | AK180: 0 | AL180: 0 | AM180: 0 | AN180: 0 | AO180: 0 | AP180: 0 | AQ180: 0 | AR180: 0 | AS180: =AS$135*$A138 -> 0 | AT180: =AT$135*$A137 -> 0 | CA180: 0
A181: 0 | B181: 45 | C181: 0 | D181: 0 | E181: 0 | F181: 0 | G181: 0 | H181: 0 | I181: 0 | J181: 0 | K181: 0 | L181: 0 | M181: 0 | N181: 0 | O181: 0 | P181: 0 | Q181: 0 | R181: 0 | S181: 0 | T181: 0 | U181: 0 | V181: 0 | W181: 0 | X181: 0 | Y181: 0 | Z181: 0 | AA181: 0 | AB181: 0 | AC181: 0 | AD181: 0 | AE181: 0 | AF181: 0 | AG181: 0 | AH181: 0 | AI181: 0 | AJ181: 0 | AK181: 0 | AL181: 0 | AM181: 0 | AN181: 0 | AO181: 0 | AP181: 0 | AQ181: 0 | AR181: 0 | AS181: 0 | AT181: =AT$135*$A138 -> 0 | AU181: =AU$135*$A137 -> 0 | CA181: 0
A182: 0 | B182: 46 | C182: 0 | D182: 0 | E182: 0 | F182: 0 | G182: 0 | H182: 0 | I182: 0 | J182: 0 | K182: 0 | L182: 0 | M182: 0 | N182: 0 | O182: 0 | P182: 0 | Q182: 0 | R182: 0 | S182: 0 | T182: 0 | U182: 0 | V182: 0 | W182: 0 | X182: 0 | Y182: 0 | Z182: 0 | AA182: 0 | AB182: 0 | AC182: 0 | AD182: 0 | AE182: 0 | AF182: 0 | AG182: 0 | AH182: 0 | AI182: 0 | AJ182: 0 | AK182: 0 | AL182: 0 | AM182: 0 | AN182: 0 | AO182: 0 | AP182: 0 | AQ182: 0 | AR182: 0 | AS182: 0 | AT182: 0 | AU182: =AU$135*$A138 -> 0 | AV182: =AV$135*$A137 -> 0 | CA182: 0
A183: 0 | B183: 47 | C183: 0 | D183: 0 | E183: 0 | F183: 0 | G183: 0 | H183: 0 | I183: 0 | J183: 0 | K183: 0 | L183: 0 | M183: 0 | N183: 0 | O183: 0 | P183: 0 | Q183: 0 | R183: 0 | S183: 0 | T183: 0 | U183: 0 | V183: 0 | W183: 0 | X183: 0 | Y183: 0 | Z183: 0 | AA183: 0 | AB183: 0 | AC183: 0 | AD183: 0 | AE183: 0 | AF183: 0 | AG183: 0 | AH183: 0 | AI183: 0 | AJ183: 0 | AK183: 0 | AL183: 0 | AM183: 0 | AN183: 0 | AO183: 0 | AP183: 0 | AQ183: 0 | AR183: 0 | AS183: 0 | AT183: 0 | AU183: 0 | AV183: =AV$135*$A138 -> 0 | AW183: =AW$135*$A137 -> 0 | CA183: 0
A184: 0 | B184: 48 | C184: 0 | D184: 0 | E184: 0 | F184: 0 | G184: 0 | H184: 0 | I184: 0 | J184: 0 | K184: 0 | L184: 0 | M184: 0 | N184: 0 | O184: 0 | P184: 0 | Q184: 0 | R184: 0 | S184: 0 | T184: 0 | U184: 0 | V184: 0 | W184: 0 | X184: 0 | Y184: 0 | Z184: 0 | AA184: 0 | AB184: 0 | AC184: 0 | AD184: 0 | AE184: 0 | AF184: 0 | AG184: 0 | AH184: 0 | AI184: 0 | AJ184: 0 | AK184: 0 | AL184: 0 | AM184: 0 | AN184: 0 | AO184: 0 | AP184: 0 | AQ184: 0 | AR184: 0 | AS184: 0 | AT184: 0 | AU184: 0 | AV184: 0 | AW184: =AW$135*$A138 -> 0 | AX184: =AX$135*$A137 -> 0 | CA184: 0
A185: 0 | B185: 49 | C185: 0 | D185: 0 | E185: 0 | F185: 0 | G185: 0 | H185: 0 | I185: 0 | J185: 0 | K185: 0 | L185: 0 | M185: 0 | N185: 0 | O185: 0 | P185: 0 | Q185: 0 | R185: 0 | S185: 0 | T185: 0 | U185: 0 | V185: 0 | W185: 0 | X185: 0 | Y185: 0 | Z185: 0 | AA185: 0 | AB185: 0 | AC185: 0 | AD185: 0 | AE185: 0 | AF185: 0 | AG185: 0 | AH185: 0 | AI185: 0 | AJ185: 0 | AK185: 0 | AL185: 0 | AM185: 0 | AN185: 0 | AO185: 0 | AP185: 0 | AQ185: 0 | AR185: 0 | AS185: 0 | AT185: 0 | AU185: 0 | AV185: 0 | AW185: 0 | AX185: =AX$135*$A138 -> 0 | AY185: =AY$135*$A137 -> 0 | CA185: 0
A186: 0 | B186: 50 | C186: 0 | D186: 0 | E186: 0 | F186: 0 | G186: 0 | H186: 0 | I186: 0 | J186: 0 | K186: 0 | L186: 0 | M186: 0 | N186: 0 | O186: 0 | P186: 0 | Q186: 0 | R186: 0 | S186: 0 | T186: 0 | U186: 0 | V186: 0 | W186: 0 | X186: 0 | Y186: 0 | Z186: 0 | AA186: 0 | AB186: 0 | AC186: 0 | AD186: 0 | AE186: 0 | AF186: 0 | AG186: 0 | AH186: 0 | AI186: 0 | AJ186: 0 | AK186: 0 | AL186: 0 | AM186: 0 | AN186: 0 | AO186: 0 | AP186: 0 | AQ186: 0 | AR186: 0 | AS186: 0 | AT186: 0 | AU186: 0 | AV186: 0 | AW186: 0 | AX186: 0 | AY186: =AY$135*$A138 -> 0 | AZ186: =AZ$135*$A137 -> 0 | CA186: 0
A187: 0 | B187: 51 | C187: 0 | D187: 0 | E187: 0 | F187: 0 | G187: 0 | H187: 0 | I187: 0 | J187: 0 | K187: 0 | L187: 0 | M187: 0 | N187: 0 | O187: 0 | P187: 0 | Q187: 0 | R187: 0 | S187: 0 | T187: 0 | U187: 0 | V187: 0 | W187: 0 | X187: 0 | Y187: 0 | Z187: 0 | AA187: 0 | AB187: 0 | AC187: 0 | AD187: 0 | AE187: 0 | AF187: 0 | AG187: 0 | AH187: 0 | AI187: 0 | AJ187: 0 | AK187: 0 | AL187: 0 | AM187: 0 | AN187: 0 | AO187: 0 | AP187: 0 | AQ187: 0 | AR187: 0 | AS187: 0 | AT187: 0 | AU187: 0 | AV187: 0 | AW187: 0 | AX187: 0 | AY187: 0 | AZ187: =AZ$135*$A138 -> 0 | BA187: =BA$135*$A137 -> 0 | CA187: 0
A188: 0 | B188: 52 | C188: 0 | D188: 0 | E188: 0 | F188: 0 | G188: 0 | H188: 0 | I188: 0 | J188: 0 | K188: 0 | L188: 0 | M188: 0 | N188: 0 | O188: 0 | P188: 0 | Q188: 0 | R188: 0 | S188: 0 | T188: 0 | U188: 0 | V188: 0 | W188: 0 | X188: 0 | Y188: 0 | Z188: 0 | AA188: 0 | AB188: 0 | AC188: 0 | AD188: 0 | AE188: 0 | AF188: 0 | AG188: 0 | AH188: 0 | AI188: 0 | AJ188: 0 | AK188: 0 | AL188: 0 | AM188: 0 | AN188: 0 | AO188: 0 | AP188: 0 | AQ188: 0 | AR188: 0 | AS188: 0 | AT188: 0 | AU188: 0 | AV188: 0 | AW188: 0 | AX188: 0 | AY188: 0 | AZ188: 0 | BA188: =BA$135*$A138 -> 0 | BB188: =BB$135*$A137 -> 0 | CA188: 0
A189: 0 | B189: 53 | C189: 0 | D189: 0 | E189: 0 | F189: 0 | G189: 0 | H189: 0 | I189: 0 | J189: 0 | K189: 0 | L189: 0 | M189: 0 | N189: 0 | O189: 0 | P189: 0 | Q189: 0 | R189: 0 | S189: 0 | T189: 0 | U189: 0 | V189: 0 | W189: 0 | X189: 0 | Y189: 0 | Z189: 0 | AA189: 0 | AB189: 0 | AC189: 0 | AD189: 0 | AE189: 0 | AF189: 0 | AG189: 0 | AH189: 0 | AI189: 0 | AJ189: 0 | AK189: 0 | AL189: 0 | AM189: 0 | AN189: 0 | AO189: 0 | AP189: 0 | AQ189: 0 | AR189: 0 | AS189: 0 | AT189: 0 | AU189: 0 | AV189: 0 | AW189: 0 | AX189: 0 | AY189: 0 | AZ189: 0 | BA189: 0 | BB189: =BB$135*$A138 -> 0 | BC189: =BC$135*$A137 -> 0 | CA189: 0
A190: 0 | B190: 54 | C190: 0 | D190: 0 | E190: 0 | F190: 0 | G190: 0 | H190: 0 | I190: 0 | J190: 0 | K190: 0 | L190: 0 | M190: 0 | N190: 0 | O190: 0 | P190: 0 | Q190: 0 | R190: 0 | S190: 0 | T190: 0 | U190: 0 | V190: 0 | W190: 0 | X190: 0 | Y190: 0 | Z190: 0 | AA190: 0 | AB190: 0 | AC190: 0 | AD190: 0 | AE190: 0 | AF190: 0 | AG190: 0 | AH190: 0 | AI190: 0 | AJ190: 0 | AK190: 0 | AL190: 0 | AM190: 0 | AN190: 0 | AO190: 0 | AP190: 0 | AQ190: 0 | AR190: 0 | AS190: 0 | AT190: 0 | AU190: 0 | AV190: 0 | AW190: 0 | AX190: 0 | AY190: 0 | AZ190: 0 | BA190: 0 | BB190: 0 | BC190: =BC$135*$A138 -> 0 | BD190: =BD$135*$A137 -> 0 | CA190: 0
A191: 0 | B191: 55 | C191: 0 | D191: 0 | E191: 0 | F191: 0 | G191: 0 | H191: 0 | I191: 0 | J191: 0 | K191: 0 | L191: 0 | M191: 0 | N191: 0 | O191: 0 | P191: 0 | Q191: 0 | R191: 0 | S191: 0 | T191: 0 | U191: 0 | V191: 0 | W191: 0 | X191: 0 | Y191: 0 | Z191: 0 | AA191: 0 | AB191: 0 | AC191: 0 | AD191: 0 | AE191: 0 | AF191: 0 | AG191: 0 | AH191: 0 | AI191: 0 | AJ191: 0 | AK191: 0 | AL191: 0 | AM191: 0 | AN191: 0 | AO191: 0 | AP191: 0 | AQ191: 0 | AR191: 0 | AS191: 0 | AT191: 0 | AU191: 0 | AV191: 0 | AW191: 0 | AX191: 0 | AY191: 0 | AZ191: 0 | BA191: 0 | BB191: 0 | BC191: 0 | BD191: =BD$135*$A138 -> 0 | BE191: =BE$135*$A137 -> 0 | CA191: 0
A192: 0 | B192: 56 | C192: 0 | D192: 0 | E192: 0 | F192: 0 | G192: 0 | H192: 0 | I192: 0 | J192: 0 | K192: 0 | L192: 0 | M192: 0 | N192: 0 | O192: 0 | P192: 0 | Q192: 0 | R192: 0 | S192: 0 | T192: 0 | U192: 0 | V192: 0 | W192: 0 | X192: 0 | Y192: 0 | Z192: 0 | AA192: 0 | AB192: 0 | AC192: 0 | AD192: 0 | AE192: 0 | AF192: 0 | AG192: 0 | AH192: 0 | AI192: 0 | AJ192: 0 | AK192: 0 | AL192: 0 | AM192: 0 | AN192: 0 | AO192: 0 | AP192: 0 | AQ192: 0 | AR192: 0 | AS192: 0 | AT192: 0 | AU192: 0 | AV192: 0 | AW192: 0 | AX192: 0 | AY192: 0 | AZ192: 0 | BA192: 0 | BB192: 0 | BC192: 0 | BD192: 0 | BE192: =BE$135*$A138 -> 0 | BF192: =BF$135*$A137 -> 0 | CA192: 0
A193: 0 | B193: 57 | C193: 0 | D193: 0 | E193: 0 | F193: 0 | G193: 0 | H193: 0 | I193: 0 | J193: 0 | K193: 0 | L193: 0 | M193: 0 | N193: 0 | O193: 0 | P193: 0 | Q193: 0 | R193: 0 | S193: 0 | T193: 0 | U193: 0 | V193: 0 | W193: 0 | X193: 0 | Y193: 0 | Z193: 0 | AA193: 0 | AB193: 0 | AC193: 0 | AD193: 0 | AE193: 0 | AF193: 0 | AG193: 0 | AH193: 0 | AI193: 0 | AJ193: 0 | AK193: 0 | AL193: 0 | AM193: 0 | AN193: 0 | AO193: 0 | AP193: 0 | AQ193: 0 | AR193: 0 | AS193: 0 | AT193: 0 | AU193: 0 | AV193: 0 | AW193: 0 | AX193: 0 | AY193: 0 | AZ193: 0 | BA193: 0 | BB193: 0 | BC193: 0 | BD193: 0 | BE193: 0 | BF193: =BF$135*$A138 -> 0 | BG193: =BG$135*$A137 -> 0 | CA193: 0
A194: 0 | B194: 58 | C194: 0 | D194: 0 | E194: 0 | F194: 0 | G194: 0 | H194: 0 | I194: 0 | J194: 0 | K194: 0 | L194: 0 | M194: 0 | N194: 0 | O194: 0 | P194: 0 | Q194: 0 | R194: 0 | S194: 0 | T194: 0 | U194: 0 | V194: 0 | W194: 0 | X194: 0 | Y194: 0 | Z194: 0 | AA194: 0 | AB194: 0 | AC194: 0 | AD194: 0 | AE194: 0 | AF194: 0 | AG194: 0 | AH194: 0 | AI194: 0 | AJ194: 0 | AK194: 0 | AL194: 0 | AM194: 0 | AN194: 0 | AO194: 0 | AP194: 0 | AQ194: 0 | AR194: 0 | AS194: 0 | AT194: 0 | AU194: 0 | AV194: 0 | AW194: 0 | AX194: 0 | AY194: 0 | AZ194: 0 | BA194: 0 | BB194: 0 | BC194: 0 | BD194: 0 | BE194: 0 | BF194: 0 | BG194: =BG$135*$A138 -> 0 | BH194: =BH$135*$A137 -> 0 | CA194: 0
A195: 0 | B195: 59 | C195: 0 | D195: 0 | E195: 0 | F195: 0 | G195: 0 | H195: 0 | I195: 0 | J195: 0 | K195: 0 | L195: 0 | M195: 0 | N195: 0 | O195: 0 | P195: 0 | Q195: 0 | R195: 0 | S195: 0 | T195: 0 | U195: 0 | V195: 0 | W195: 0 | X195: 0 | Y195: 0 | Z195: 0 | AA195: 0 | AB195: 0 | AC195: 0 | AD195: 0 | AE195: 0 | AF195: 0 | AG195: 0 | AH195: 0 | AI195: 0 | AJ195: 0 | AK195: 0 | AL195: 0 | AM195: 0 | AN195: 0 | AO195: 0 | AP195: 0 | AQ195: 0 | AR195: 0 | AS195: 0 | AT195: 0 | AU195: 0 | AV195: 0 | AW195: 0 | AX195: 0 | AY195: 0 | AZ195: 0 | BA195: 0 | BB195: 0 | BC195: 0 | BD195: 0 | BE195: 0 | BF195: 0 | BG195: 0 | BH195: =BH$135*$A138 -> 0 | BI195: =BI$135*$A137 -> 0 | CA195: 0
A196: 0 | B196: 60 | C196: 0 | D196: 0 | E196: 0 | F196: 0 | G196: 0 | H196: 0 | I196: 0 | J196: 0 | K196: 0 | L196: 0 | M196: 0 | N196: 0 | O196: 0 | P196: 0 | Q196: 0 | R196: 0 | S196: 0 | T196: 0 | U196: 0 | V196: 0 | W196: 0 | X196: 0 | Y196: 0 | Z196: 0 | AA196: 0 | AB196: 0 | AC196: 0 | AD196: 0 | AE196: 0 | AF196: 0 | AG196: 0 | AH196: 0 | AI196: 0 | AJ196: 0 | AK196: 0 | AL196: 0 | AM196: 0 | AN196: 0 | AO196: 0 | AP196: 0 | AQ196: 0 | AR196: 0 | AS196: 0 | AT196: 0 | AU196: 0 | AV196: 0 | AW196: 0 | AX196: 0 | AY196: 0 | AZ196: 0 | BA196: 0 | BB196: 0 | BC196: 0 | BD196: 0 | BE196: 0 | BF196: 0 | BG196: 0 | BH196: 0 | BI196: =BI$135*$A138 -> 0 | BJ196: =BJ$135*$A137 -> 0 | CA196: 0
A197: 0 | B197: 61 | C197: 0 | D197: 0 | E197: 0 | F197: 0 | G197: 0 | H197: 0 | I197: 0 | J197: 0 | K197: 0 | L197: 0 | M197: 0 | N197: 0 | O197: 0 | P197: 0 | Q197: 0 | R197: 0 | S197: 0 | T197: 0 | U197: 0 | V197: 0 | W197: 0 | X197: 0 | Y197: 0 | Z197: 0 | AA197: 0 | AB197: 0 | AC197: 0 | AD197: 0 | AE197: 0 | AF197: 0 | AG197: 0 | AH197: 0 | AI197: 0 | AJ197: 0 | AK197: 0 | AL197: 0 | AM197: 0 | AN197: 0 | AO197: 0 | AP197: 0 | AQ197: 0 | AR197: 0 | AS197: 0 | AT197: 0 | AU197: 0 | AV197: 0 | AW197: 0 | AX197: 0 | AY197: 0 | AZ197: 0 | BA197: 0 | BB197: 0 | BC197: 0 | BD197: 0 | BE197: 0 | BF197: 0 | BG197: 0 | BH197: 0 | BI197: 0 | BJ197: =BJ$135*$A138 -> 0 | BK197: =BK$135*$A137 -> 0 | CA197: 0
A198: 0 | B198: 62 | C198: 0 | D198: 0 | E198: 0 | F198: 0 | G198: 0 | H198: 0 | I198: 0 | J198: 0 | K198: 0 | L198: 0 | M198: 0 | N198: 0 | O198: 0 | P198: 0 | Q198: 0 | R198: 0 | S198: 0 | T198: 0 | U198: 0 | V198: 0 | W198: 0 | X198: 0 | Y198: 0 | Z198: 0 | AA198: 0 | AB198: 0 | AC198: 0 | AD198: 0 | AE198: 0 | AF198: 0 | AG198: 0 | AH198: 0 | AI198: 0 | AJ198: 0 | AK198: 0 | AL198: 0 | AM198: 0 | AN198: 0 | AO198: 0 | AP198: 0 | AQ198: 0 | AR198: 0 | AS198: 0 | AT198: 0 | AU198: 0 | AV198: 0 | AW198: 0 | AX198: 0 | AY198: 0 | AZ198: 0 | BA198: 0 | BB198: 0 | BC198: 0 | BD198: 0 | BE198: 0 | BF198: 0 | BG198: 0 | BH198: 0 | BI198: 0 | BJ198: 0 | BK198: =BK$135*$A138 -> 0 | BL198: =BL$135*$A137 -> 0 | CA198: 0
A199: 0 | B199: 63 | C199: 0 | D199: 0 | E199: 0 | F199: 0 | G199: 0 | H199: 0 | I199: 0 | J199: 0 | K199: 0 | L199: 0 | M199: 0 | N199: 0 | O199: 0 | P199: 0 | Q199: 0 | R199: 0 | S199: 0 | T199: 0 | U199: 0 | V199: 0 | W199: 0 | X199: 0 | Y199: 0 | Z199: 0 | AA199: 0 | AB199: 0 | AC199: 0 | AD199: 0 | AE199: 0 | AF199: 0 | AG199: 0 | AH199: 0 | AI199: 0 | AJ199: 0 | AK199: 0 | AL199: 0 | AM199: 0 | AN199: 0 | AO199: 0 | AP199: 0 | AQ199: 0 | AR199: 0 | AS199: 0 | AT199: 0 | AU199: 0 | AV199: 0 | AW199: 0 | AX199: 0 | AY199: 0 | AZ199: 0 | BA199: 0 | BB199: 0 | BC199: 0 | BD199: 0 | BE199: 0 | BF199: 0 | BG199: 0 | BH199: 0 | BI199: 0 | BJ199: 0 | BK199: 0 | BL199: =BL$135*$A138 -> 0 | BM199: =BM$135*$A137 -> 0 | CA199: 0
A200: 0 | B200: 64 | C200: 0 | D200: 0 | E200: 0 | F200: 0 | G200: 0 | H200: 0 | I200: 0 | J200: 0 | K200: 0 | L200: 0 | M200: 0 | N200: 0 | O200: 0 | P200: 0 | Q200: 0 | R200: 0 | S200: 0 | T200: 0 | U200: 0 | V200: 0 | W200: 0 | X200: 0 | Y200: 0 | Z200: 0 | AA200: 0 | AB200: 0 | AC200: 0 | AD200: 0 | AE200: 0 | AF200: 0 | AG200: 0 | AH200: 0 | AI200: 0 | AJ200: 0 | AK200: 0 | AL200: 0 | AM200: 0 | AN200: 0 | AO200: 0 | AP200: 0 | AQ200: 0 | AR200: 0 | AS200: 0 | AT200: 0 | AU200: 0 | AV200: 0 | AW200: 0 | AX200: 0 | AY200: 0 | AZ200: 0 | BA200: 0 | BB200: 0 | BC200: 0 | BD200: 0 | BE200: 0 | BF200: 0 | BG200: 0 | BH200: 0 | BI200: 0 | BJ200: 0 | BK200: 0 | BL200: 0 | BM200: =BM$135*$A138 -> 0 | BN200: =BN$135*$A137 -> 0 | CA200: 0
A201: 0 | B201: 65 | C201: 0 | D201: 0 | E201: 0 | F201: 0 | G201: 0 | H201: 0 | I201: 0 | J201: 0 | K201: 0 | L201: 0 | M201: 0 | N201: 0 | O201: 0 | P201: 0 | Q201: 0 | R201: 0 | S201: 0 | T201: 0 | U201: 0 | V201: 0 | W201: 0 | X201: 0 | Y201: 0 | Z201: 0 | AA201: 0 | AB201: 0 | AC201: 0 | AD201: 0 | AE201: 0 | AF201: 0 | AG201: 0 | AH201: 0 | AI201: 0 | AJ201: 0 | AK201: 0 | AL201: 0 | AM201: 0 | AN201: 0 | AO201: 0 | AP201: 0 | AQ201: 0 | AR201: 0 | AS201: 0 | AT201: 0 | AU201: 0 | AV201: 0 | AW201: 0 | AX201: 0 | AY201: 0 | AZ201: 0 | BA201: 0 | BB201: 0 | BC201: 0 | BD201: 0 | BE201: 0 | BF201: 0 | BG201: 0 | BH201: 0 | BI201: 0 | BJ201: 0 | BK201: 0 | BL201: 0 | BM201: 0 | BN201: =BN$135*$A138 -> 0 | BO201: =BO$135*$A137 -> 0 | CA201: =SUM($C201:$BZ201) -> 0
A202: =IF($B$132=1,CC202,IF($B$132=2,CD202,IF($B$132=3,CE202,IF($B$132=4,CF202,#VALUE!)))) -> 0 | B202: =+B201+1 -> 66 | C202: =C$135*$A202 -> 0 | D202: 0 | E202: 0 | F202: 0 | G202: 0 | H202: 0 | I202: 0 | J202: 0 | K202: 0 | L202: 0 | M202: 0 | N202: 0 | O202: 0 | P202: 0 | Q202: 0 | R202: 0 | S202: 0 | T202: 0 | U202: 0 | V202: 0 | W202: 0 | X202: 0 | Y202: 0 | Z202: 0 | AA202: 0 | AB202: 0 | AC202: 0 | AD202: 0 | AE202: 0 | AF202: 0 | AG202: 0 | AH202: 0 | AI202: 0 | AJ202: 0 | AK202: 0 | AL202: 0 | AM202: 0 | AN202: 0 | AO202: 0 | AP202: 0 | AQ202: 0 | AR202: 0 | AS202: 0 | AT202: 0 | AU202: 0 | AV202: 0 | AW202: 0 | AX202: 0 | AY202: 0 | AZ202: 0 | BA202: 0 | BB202: 0 | BC202: 0 | BD202: 0 | BE202: 0 | BF202: 0 | BG202: 0 | BH202: 0 | BI202: 0 | BJ202: 0 | BK202: 0 | BL202: 0 | BM202: 0 | BN202: 0 | BO202: =BO$135*$A138 -> 0 | BP202: =BP$135*$A137 -> 0 | CA202: 0
A203: 0 | B203: 67 | C203: 0 | D203: =D$135*$A202 -> 0 | E203: 0 | F203: 0 | G203: 0 | H203: 0 | I203: 0 | J203: 0 | K203: 0 | L203: 0 | M203: 0 | N203: 0 | O203: 0 | P203: 0 | Q203: 0 | R203: 0 | S203: 0 | T203: 0 | U203: 0 | V203: 0 | W203: 0 | X203: 0 | Y203: 0 | Z203: 0 | AA203: 0 | AB203: 0 | AC203: 0 | AD203: 0 | AE203: 0 | AF203: 0 | AG203: 0 | AH203: 0 | AI203: 0 | AJ203: 0 | AK203: 0 | AL203: 0 | AM203: 0 | AN203: 0 | AO203: 0 | AP203: 0 | AQ203: 0 | AR203: 0 | AS203: 0 | AT203: 0 | AU203: 0 | AV203: 0 | AW203: 0 | AX203: 0 | AY203: 0 | AZ203: 0 | BA203: 0 | BB203: 0 | BC203: 0 | BD203: 0 | BE203: 0 | BF203: 0 | BG203: 0 | BH203: 0 | BI203: 0 | BJ203: 0 | BK203: 0 | BL203: 0 | BM203: 0 | BN203: 0 | BO203: 0 | BP203: =BP$135*$A138 -> 0 | BQ203: =BQ$135*$A137 -> 0 | CA203: 0
A204: 0 | B204: 68 | C204: 0 | D204: 0 | E204: =E$135*$A202 -> 0 | F204: 0 | G204: 0 | H204: 0 | I204: 0 | J204: 0 | K204: 0 | L204: 0 | M204: 0 | N204: 0 | O204: 0 | P204: 0 | Q204: 0 | R204: 0 | S204: 0 | T204: 0 | U204: 0 | V204: 0 | W204: 0 | X204: 0 | Y204: 0 | Z204: 0 | AA204: 0 | AB204: 0 | AC204: 0 | AD204: 0 | AE204: 0 | AF204: 0 | AG204: 0 | AH204: 0 | AI204: 0 | AJ204: 0 | AK204: 0 | AL204: 0 | AM204: 0 | AN204: 0 | AO204: 0 | AP204: 0 | AQ204: 0 | AR204: 0 | AS204: 0 | AT204: 0 | AU204: 0 | AV204: 0 | AW204: 0 | AX204: 0 | AY204: 0 | AZ204: 0 | BA204: 0 | BB204: 0 | BC204: 0 | BD204: 0 | BE204: 0 | BF204: 0 | BG204: 0 | BH204: 0 | BI204: 0 | BJ204: 0 | BK204: 0 | BL204: 0 | BM204: 0 | BN204: 0 | BO204: 0 | BP204: 0 | BQ204: =BQ$135*$A138 -> 0 | BR204: =BR$135*$A137 -> 0 | CA204: 0
A205: 0 | B205: 69 | C205: 0 | D205: 0 | E205: 0 | F205: =F$135*$A202 -> 0 | G205: 0 | H205: 0 | I205: 0 | J205: 0 | K205: 0 | L205: 0 | M205: 0 | N205: 0 | O205: 0 | P205: 0 | Q205: 0 | R205: 0 | S205: 0 | T205: 0 | U205: 0 | V205: 0 | W205: 0 | X205: 0 | Y205: 0 | Z205: 0 | AA205: 0 | AB205: 0 | AC205: 0 | AD205: 0 | AE205: 0 | AF205: 0 | AG205: 0 | AH205: 0 | AI205: 0 | AJ205: 0 | AK205: 0 | AL205: 0 | AM205: 0 | AN205: 0 | AO205: 0 | AP205: 0 | AQ205: 0 | AR205: 0 | AS205: 0 | AT205: 0 | AU205: 0 | AV205: 0 | AW205: 0 | AX205: 0 | AY205: 0 | AZ205: 0 | BA205: 0 | BB205: 0 | BC205: 0 | BD205: 0 | BE205: 0 | BF205: 0 | BG205: 0 | BH205: 0 | BI205: 0 | BJ205: 0 | BK205: 0 | BL205: 0 | BM205: 0 | BN205: 0 | BO205: 0 | BP205: 0 | BQ205: 0 | BR205: =BR$135*$A138 -> 0 | BS205: =BS$135*$A137 -> 0 | CA205: 0
... 177 more rows

Sheet DLC-WH
A1: State Income Tax Rate ............ | D1: 0.0164024 | I1: Debt ........................... | L1: 0.5 | M1: 0.052 | N1: =ROUND(L1*M1,4) -> 0.026 | O1: =N1*(1-D2) -> 0.02054 | Q1: Gross Revenue | T1: 1
A2: Federal Income Tax Rate ........ | D2: 0.21 | I2: Preferred Stock ................. | L2: 0 | M2: 0 | N2: =ROUND(L2*M2,4) -> 0 | O2: =N2 -> 0 | Q2: Uncollectables | T2: 0
A3: Discount Factor ...................... | D3: =+O4 -> 0.06804 | I3: Common Equity ...................... | L3: 0.5 | M3: 0.095 | N3: =ROUND(L3*M3,4) -> 0.0475 | O3: =N3 -> 0.0475 | Q3: Commission Fees | T3: 0
A4: Capital Class ........................... | D4: 4 | E4: (1) General Structures. | N4: =SUM(N1:N3) -> 0.0735 | O4: =SUM(O1:O3) -> 0.06804 | Q4: Excise Tax | T4: 0
E5: (2) Generation, Transmission, | Q5: Franchise Fees | T5: 0
E6: and Distribution. | Q6: ERSA | T6: 0
E7: (3) Other Equipment. | N7: IRR CALC | T7: -
E8: (4) Transportation Equipment. | I8: Principal ...................... | L8: =T24 -> 0 | N8: =L8 -> 0 | O8: pv princ | Q8: Misc. Revenue Items | T8: =SUM(T2:T6) -> 0
A9: Book Life (Years) .............. | D9: 10 | I9: Interest ....................... | L9: =D3 -> 0.06804 | N9: =V20 -> 0 | O9: pv lvlized margin | T9: -
A10: Property Tax Rate ............... | D10: 0.015 | I10: Term ............................. | L10: 10 | N10: =IRR($AI$28:$AI$102,0.059065190478108) ->  | O10: IRR | Q10: Before State Income Tax | T10: =T1-T8 -> 1
A11: O&M Escalation Factor .......... | D11: 0.03 | I11: Levelized Gr. Mar. Requirement ....... | L11: =PMT($L$9,$L$10,-$L$8) -> 0 | Q11: State Income Tax | T11: 0
T12: -
B13: Idaho | C13: Oregon | D13: Washington | Q13: Before Federal Income Tax | T13: =T10-T11 -> 1
A14: Electric | B14: 0.35 | C14: 0 | D14: 0.65 | E14: =SUM(B14:D14) -> 1 | K14: Lev ROE | L14: =PMT(L9,L10,-L15) -> 0 | Q14: Federal Income Tax | T14: =T13*D2 -> 0.21 | V14: (v) | W14: (w) | X14: (x) | Y14: (y) | Z14: (z) | AA14: (aa) | AB14: (ab) | AC14: (ac) | AD14: (ad) | AE14: (ae) | AF14: (af) | AG14: (ag) | AH14: (ah)
A15: Gas | B15: 0 | C15: 0 | D15: 0 | E15: =SUM(B15:D15) -> 0 | K15: NPV equity | L15: =NPV(L9,$M$28:$M$103) -> 0 | T15: - | V15: PV GM
B16: =SUM(B14:B15) -> 0.35 | C16: =SUM(C14:C15) -> 0 | D16: 0.65 | E16: 1 | Q16: Conversion Factor | T16: =T13-T14 -> 0.79 | V16: =NPV(O4,$V$29:$V$103)+V28 -> 0
A17: ...................................................................................................................................................................................................................... | V17: TERM
B18: Capital Additions | V18: =L10 -> 10 | AD18: pv of contribution to fixed costs | AG18: =NPV(O4,20,AG28:AG28) -> 18.72589042
B19: ----------------- | D19: Rate | E19: Accum. | G19: Book Dep. | I19: Rate | K19: Average | P19: Misc. | Q19: State | R19: Federal | S19: Total | T19: Present Val | V19: LEVELIZED | AE19: Interest ....................... | AG19: =O4 -> 0.06804 | AL19: Inter.
B20: Tax | C20: Book | D20: Base | E20: Book | F20: Tax | G20: on Tax | H20: Deferred | I20: Base | J20: Book | K20: Rate | L20: Interest | M20: Equity | N20: O&M & A&G | O20: Property | P20: Revenue | Q20: Income | R20: Income | S20: Gross Marg | T20: Gross Marg | V20: =PMT(L9,V18,-V16) -> 0 | AE20: Term ............................. | AG20: 50 | AH20: per kwh | AL20: Revenue | AN20: Net Book
B21: Basis | C21: Basis | D21: BOP | E21: Deprec. | F21: Deprec. | G21: Basis | H21: Taxes | I21: EOP | J21: Deprec. | K21: Base | L21: Expense | M21: Return | N21: Expense | O21: Taxes | P21: Items | Q21: Tax | R21: Taxes | S21: Reqmnt | T21: Reqmnt | AD21: levelized cont. to fixed costs | AG21: =PMT(AG19,AG20,-AG18) -> 1.323347304 | AH21: =AG21/(400*1000) -> 3.308368259e-06 | AL21: Requirement | AN21: BOP
A22: (a) | B22: (b) | C22: (c) | D22: (d) | E22: (e) | F22: (f) | G22: (g) | H22: (h) | I22: (i) | J22: (j) | K22: (k) | L22: (l) | M22: (m) | N22: (n) | O22: (o) | P22: (p) | Q22: (q) | R22: (r) | S22: (s) | T22: (t) | W22: - | X22: - | Y22: - | Z22: - | AA22: - | AB22: - | AC22: - | AD22: - | AE22: - | AF22: - | AG22: - | AH22: -
B23: - | C23: - | D23: - | E23: - | F23: - | G23: - | H23: - | I23: - | J23: - | K23: - | L23: - | M23: - | N23: - | O23: - | P23: - | Q23: - | R23: - | S23: - | T23: - | Z23: RES LOAD @ | AG23: ANNUAL | AH23: CUMULATIVE | AL23: - | AN23: -
A24: Total => | B24: =SUM(B25:B104) -> 0 | C24: =SUM(C25:C104) -> 0 | F24: =SUM(F25:F104) -> 0 | G24: =SUM(G25:G104) -> 0 | H24: =SUM(H25:H104) -> 0 | J24: =SUM(J25:J104) -> 0 | L24: =SUM(L25:L104) -> 0 | M24: 0 | N24: 0 | O24: 0 | P24: 0 | Q24: 0 | R24: 0 | S24: 0 | T24: 0 | V24: Offsets | X24: NEW | Y24: CUML | Z24: 12000 | AA24: COMM | AB24: COMM | AC24: TOTAL | AD24: TOTAL | AE24: REVENUE | AF24: ESTIMATED | AG24: (SHORTFALL) | AH24: (SHORTFALL)
A25: Period | B25: - | C25: - | D25: - | E25: - | F25: - | G25: - | H25: - | I25: - | J25: - | K25: - | L25: - | M25: - | N25: - | O25: - | P25: - | Q25: - | R25: - | S25: - | T25: - | W25: YR | X25: CUST | Y25: CUST | Z25: KWH EA | AA25: CUST | AB25: LOAD | AC25: CUST | AD25: LOAD | AE25: REQ | AF25: MARGIN | AG25: EXCESS | AH25: EXCESS | AI25: 0.05906519048 | AL25: - | AN25: -
W26: - | X26: - | Y26: - | Z26: - | AA26: - | AB26: - | AC26: - | AD26: - | AE26: - | AF26: - | AG26: - | AH26: - | AJ26: =NPV(AI25,$AI$28:$AI$103) -> 0
S27: =-PMT(O4,20,NPV(O4,S28:S51)) -> 0
A28: 2023 | B28: =HLOOKUP($A28,'AEG Input File'!$AC$2:$AZ$8,3,FALSE)*Inflation!$B4/100 -> 0 | C28: =B28 -> 0 | D28: =I27+C28 -> 0 | E28: =E27+J28 -> 0 | F28: =CA137 -> 0 | G28: =CA229 -> 0 | H28: =(F28-G28)*$D$2 -> 0 | I28: =D28-J28-H28 -> 0 | J28: =CA323 -> 0 | K28: =(+I28+D28)/2 -> 0 | L28: =IF(A28=1,$N$1*K28,$N$1*K28) -> 0 | M28: =IF(A28=1,($N$3+$N$2)*K28,($N$3+$N$2)*K28) -> 0 | N28: =HLOOKUP($A28,'AEG Input File'!$BA$2:$BX$8,3,FALSE)*Inflation!$B4/100 -> 0 | O28: =AN28*$D$10 -> 0 | P28: =AL28*$T$8 -> 0 | Q28: =(+AL28-(G28+L28+N28+O28+P28))*$D$1 -> 0 | R28: =(+AL28-(G28+L28+N28+O28+P28+Q28))*$D$2 -> 0 | S28: =J28+M28+L28+N28+O28+P28+Q28+R28 -> 0 | T28: =S28/(1+$D$3)^(A28-1) -> 0 | V28: 0 | W28: =1+W27 -> 1 | X28: 0 | Y28: =+X28 -> 0 | Z28: =X28*$Z$24 -> 0 | AA28: 0 | AB28: 0 | AC28: =Y28+AA28 -> 0 | AD28: 0 | AE28: =S28 -> 0 | AF28: =V28 -> 0 | AG28: =AF28-AE28 -> 0 | AH28: =AF28-AE28 -> 0 | AI28: =IF(A28=1,AF28-T24,AF28) -> 0 | AL28: =(+J28+L28+M28+N28+O28-(($D$1+(1-$D$1)*$D$2)*(G28+L28+N28+O28)))/$T$16 -> 0 | AN28: =C28-J27+AN27 -> 0
A29: =1+A28 -> 2024 | B29: =HLOOKUP($A29,'AEG Input File'!$AC$2:$AZ$8,3,FALSE)*Inflation!$B5/100 -> 0 | C29: =B29 -> 0 | D29: =I28+C29 -> 0 | E29: 0 | F29: 0 | G29: =CA230 -> 0 | H29: 0 | I29: 0 | J29: 0 | K29: 0 | L29: =IF(A29=1,$N$1*K29,$N$1*K29) -> 0 | M29: 0 | N29: =HLOOKUP($A29,'AEG Input File'!$BA$2:$BX$8,3,FALSE)*Inflation!$B5/100 -> 0 | O29: 0 | P29: =AL29*$T$8 -> 0 | Q29: 0 | R29: 0 | S29: 0 | T29: =S29/(1+$D$3)^(A29-1) -> 0 | V29: 0 | W29: =1+W28 -> 2 | X29: 0 | Y29: =+X29 -> 0 | Z29: =X29*$Z$24 -> 0 | AA29: 0 | AB29: 0 | AC29: 0 | AD29: 0 | AE29: 0 | AF29: 0 | AG29: 0 | AH29: =AF29-AE29 -> 0 | AI29: =IF(A29=1,AF29-T25,AF29) -> 0 | AL29: =(+J29+L29+M29+N29+O29-(($D$1+(1-$D$1)*$D$2)*(G29+L29+N29+O29)))/$T$16 -> 0 | AN29: =C29-J28+AN28 -> 0
A30: 2025 | B30: =HLOOKUP($A30,'AEG Input File'!$AC$2:$AZ$8,3,FALSE)*Inflation!$B6/100 -> 0 | C30: 0 | D30: 0 | E30: 0 | F30: 0 | G30: 0 | H30: 0 | I30: 0 | J30: 0 | K30: 0 | L30: 0 | M30: 0 | N30: =HLOOKUP($A30,'AEG Input File'!$BA$2:$BX$8,3,FALSE)*Inflation!$B6/100 -> 0 | O30: 0 | P30: 0 | Q30: 0 | R30: 0 | S30: 0 | T30: 0 | V30: 0 | W30: 3 | X30: 0 | Y30: 0 | Z30: 0 | AA30: 0 | AB30: 0 | AC30: 0 | AD30: 0 | AE30: 0 | AF30: 0 | AG30: 0 | AH30: 0 | AI30: 0 | AL30: 0 | AN30: 0
A31: 2026 | B31: =HLOOKUP($A31,'AEG Input File'!$AC$2:$AZ$8,3,FALSE)*Inflation!$B7/100 -> 0 | C31: 0 | D31: 0 | E31: 0 | F31: 0 | G31: 0 | H31: 0 | I31: 0 | J31: 0 | K31: 0 | L31: 0 | M31: 0 | N31: =HLOOKUP($A31,'AEG Input File'!$BA$2:$BX$8,3,FALSE)*Inflation!$B7/100 -> 0 | O31: 0 | P31: 0 | Q31: 0 | R31: 0 | S31: 0 | T31: 0 | V31: 0 | W31: 4 | X31: 0 | Y31: 0 | Z31: 0 | AA31: 0 | AB31: 0 | AC31: 0 | AD31: 0 | AE31: 0 | AF31: 0 | AG31: 0 | AH31: 0 | AI31: 0 | AL31: 0 | AN31: 0
A32: 2027 | B32: =HLOOKUP($A32,'AEG Input File'!$AC$2:$AZ$8,3,FALSE)*Inflation!$B8/100 -> 0 | C32: 0 | D32: 0 | E32: 0 | F32: 0 | G32: 0 | H32: 0 | I32: 0 | J32: 0 | K32: 0 | L32: 0 | M32: 0 | N32: =HLOOKUP($A32,'AEG Input File'!$BA$2:$BX$8,3,FALSE)*Inflation!$B8/100 -> 0 | O32: 0 | P32: 0 | Q32: 0 | R32: 0 | S32: 0 | T32: 0 | V32: 0 | W32: 5 | X32: 0 | Y32: 0 | Z32: 0 | AA32: 0 | AB32: 0 | AC32: 0 | AD32: 0 | AE32: 0 | AF32: 0 | AG32: 0 | AH32: 0 | AI32: 0 | AL32: 0 | AN32: 0
A33: 2028 | B33: =HLOOKUP($A33,'AEG Input File'!$AC$2:$AZ$8,3,FALSE)*Inflation!$B9/100 -> 0 | C33: 0 | D33: 0 | E33: 0 | F33: 0 | G33: 0 | H33: 0 | I33: 0 | J33: 0 | K33: 0 | L33: 0 | M33: 0 | N33: =HLOOKUP($A33,'AEG Input File'!$BA$2:$BX$8,3,FALSE)*Inflation!$B9/100 -> 0 | O33: 0 | P33: 0 | Q33: 0 | R33: 0 | S33: 0 | T33: 0 | V33: 0 | W33: 6 | X33: 0 | Y33: 0 | Z33: 0 | AA33: 0 | AB33: 0 | AC33: 0 | AD33: 0 | AE33: 0 | AF33: 0 | AG33: 0 | AH33: 0 | AI33: 0 | AL33: 0 | AN33: 0
A34: 2029 | B34: =HLOOKUP($A34,'AEG Input File'!$AC$2:$AZ$8,3,FALSE)*Inflation!$B10/100 -> 0 | C34: 0 | D34: 0 | E34: 0 | F34: 0 | G34: 0 | H34: 0 | I34: 0 | J34: 0 | K34: 0 | L34: 0 | M34: 0 | N34: =HLOOKUP($A34,'AEG Input File'!$BA$2:$BX$8,3,FALSE)*Inflation!$B10/100 -> 0 | O34: 0 | P34: 0 | Q34: 0 | R34: 0 | S34: 0 | T34: 0 | V34: 0 | W34: 7 | X34: 0 | Y34: 0 | Z34: 0 | AA34: 0 | AB34: 0 | AC34: 0 | AD34: 0 | AE34: 0 | AF34: 0 | AG34: 0 | AH34: 0 | AI34: 0 | AL34: 0 | AN34: 0
A35: 2030 | B35: =HLOOKUP($A35,'AEG Input File'!$AC$2:$AZ$8,3,FALSE)*Inflation!$B11/100 -> 0 | C35: 0 | D35: 0 | E35: 0 | F35: 0 | G35: 0 | H35: 0 | I35: 0 | J35: 0 | K35: 0 | L35: 0 | M35: 0 | N35: =HLOOKUP($A35,'AEG Input File'!$BA$2:$BX$8,3,FALSE)*Inflation!$B11/100 -> 0 | O35: 0 | P35: 0 | Q35: 0 | R35: 0 | S35: 0 | T35: 0 | V35: 0 | W35: 8 | X35: 0 | Y35: 0 | Z35: 0 | AA35: 0 | AB35: 0 | AC35: 0 | AD35: 0 | AE35: 0 | AF35: 0 | AG35: 0 | AH35: 0 | AI35: 0 | AL35: 0 | AN35: 0
A36: 2031 | B36: =HLOOKUP($A36,'AEG Input File'!$AC$2:$AZ$8,3,FALSE)*Inflation!$B12/100 -> 0 | C36: 0 | D36: 0 | E36: 0 | F36: 0 | G36: 0 | H36: 0 | I36: 0 | J36: 0 | K36: 0 | L36: 0 | M36: 0 | N36: =HLOOKUP($A36,'AEG Input File'!$BA$2:$BX$8,3,FALSE)*Inflation!$B12/100 -> 0 | O36: 0 | P36: 0 | Q36: 0 | R36: 0 | S36: 0 | T36: 0 | V36: 0 | W36: 9 | X36: 0 | Y36: 0 | Z36: 0 | AA36: 0 | AB36: 0 | AC36: 0 | AD36: 0 | AE36: 0 | AF36: 0 | AG36: 0 | AH36: 0 | AI36: 0 | AL36: 0 | AN36: 0
A37: 2032 | B37: =HLOOKUP($A37,'AEG Input File'!$AC$2:$AZ$8,3,FALSE)*Inflation!$B13/100 -> 0 | C37: 0 | D37: 0 | E37: 0 | F37: 0 | G37: 0 | H37: 0 | I37: 0 | J37: 0 | K37: 0 | L37: 0 | M37: 0 | N37: =HLOOKUP($A37,'AEG Input File'!$BA$2:$BX$8,3,FALSE)*Inflation!$B13/100 -> 0 | O37: 0 | P37: 0 | Q37: 0 | R37: 0 | S37: 0 | T37: 0 | V37: 0 | W37: 10 | X37: 0 | Y37: 0 | Z37: 0 | AA37: 0 | AB37: 0 | AC37: 0 | AD37: 0 | AE37: 0 | AF37: 0 | AG37: 0 | AH37: 0 | AI37: 0 | AL37: 0 | AN37: 0
A38: 2033 | B38: =HLOOKUP($A38,'AEG Input File'!$AC$2:$AZ$8,3,FALSE)*Inflation!$B14/100 -> 0 | C38: 0 | D38: 0 | E38: 0 | F38: 0 | G38: 0 | H38: 0 | I38: 0 | J38: 0 | K38: 0 | L38: 0 | M38: 0 | N38: =HLOOKUP($A38,'AEG Input File'!$BA$2:$BX$8,3,FALSE)*Inflation!$B14/100 -> 0 | O38: 0 | P38: 0 | Q38: 0 | R38: 0 | S38: 0 | T38: 0 | V38: 0 | W38: 11 | X38: 0 | Y38: 0 | Z38: 0 | AA38: 0 | AB38: 0 | AC38: 0 | AD38: 0 | AE38: 0 | AF38: 0 | AG38: 0 | AH38: 0 | AI38: 0 | AL38: 0 | AN38: 0
A39: 2034 | B39: =HLOOKUP($A39,'AEG Input File'!$AC$2:$AZ$8,3,FALSE)*Inflation!$B15/100 -> 0 | C39: 0 | D39: 0 | E39: 0 | F39: 0 | G39: 0 | H39: 0 | I39: 0 | J39: 0 | K39: 0 | L39: 0 | M39: 0 | N39: =HLOOKUP($A39,'AEG Input File'!$BA$2:$BX$8,3,FALSE)*Inflation!$B15/100 -> 0 | O39: 0 | P39: 0 | Q39: 0 | R39: 0 | S39: 0 | T39: 0 | V39: 0 | W39: 12 | X39: 0 | Y39: 0 | Z39: 0 | AA39: 0 | AB39: 0 | AC39: 0 | AD39: 0 | AE39: 0 | AF39: 0 | AG39: 0 | AH39: 0 | AI39: 0 | AL39: 0 | AN39: 0
A40: 2035 | B40: =HLOOKUP($A40,'AEG Input File'!$AC$2:$AZ$8,3,FALSE)*Inflation!$B16/100 -> 0 | C40: 0 | D40: 0 | E40: 0 | F40: 0 | G40: 0 | H40: 0 | I40: 0 | J40: 0 | K40: 0 | L40: 0 | M40: 0 | N40: =HLOOKUP($A40,'AEG Input File'!$BA$2:$BX$8,3,FALSE)*Inflation!$B16/100 -> 0 | O40: 0 | P40: 0 | Q40: 0 | R40: 0 | S40: 0 | T40: 0 | V40: 0 | W40: 13 | X40: 0 | Y40: 0 | Z40: 0 | AA40: 0 | AB40: 0 | AC40: 0 | AD40: 0 | AE40: 0 | AF40: 0 | AG40: 0 | AH40: 0 | AI40: 0 | AL40: 0 | AN40: 0
A41: 2036 | B41: =HLOOKUP($A41,'AEG Input File'!$AC$2:$AZ$8,3,FALSE)*Inflation!$B17/100 -> 0 | C41: 0 | D41: 0 | E41: 0 | F41: 0 | G41: 0 | H41: 0 | I41: 0 | J41: 0 | K41: 0 | L41: 0 | M41: 0 | N41: =HLOOKUP($A41,'AEG Input File'!$BA$2:$BX$8,3,FALSE)*Inflation!$B17/100 -> 0 | O41: 0 | P41: 0 | Q41: 0 | R41: 0 | S41: 0 | T41: 0 | V41: 0 | W41: 14 | X41: 0 | Y41: 0 | Z41: 0 | AA41: 0 | AB41: 0 | AC41: 0 | AD41: 0 | AE41: 0 | AF41: 0 | AG41: 0 | AH41: 0 | AI41: 0 | AL41: 0 | AN41: 0
A42: 2037 | B42: =HLOOKUP($A42,'AEG Input File'!$AC$2:$AZ$8,3,FALSE)*Inflation!$B18/100 -> 0 | C42: 0 | D42: 0 | E42: 0 | F42: 0 | G42: 0 | H42: 0 | I42: 0 | J42: 0 | K42: 0 | L42: 0 | M42: 0 | N42: =HLOOKUP($A42,'AEG Input File'!$BA$2:$BX$8,3,FALSE)*Inflation!$B18/100 -> 0 | O42: 0 | P42: 0 | Q42: 0 | R42: 0 | S42: 0 | T42: 0 | V42: 0 | W42: 15 | X42: 0 | Y42: 0 | Z42: 0 | AA42: 0 | AB42: 0 | AC42: 0 | AD42: 0 | AE42: 0 | AF42: 0 | AG42: 0 | AH42: 0 | AI42: 0 | AL42: 0 | AN42: 0
A43: 2038 | B43: =HLOOKUP($A43,'AEG Input File'!$AC$2:$AZ$8,3,FALSE)*Inflation!$B19/100 -> 0 | C43: 0 | D43: 0 | E43: 0 | F43: 0 | G43: 0 | H43: 0 | I43: 0 | J43: 0 | K43: 0 | L43: 0 | M43: 0 | N43: =HLOOKUP($A43,'AEG Input File'!$BA$2:$BX$8,3,FALSE)*Inflation!$B19/100 -> 0 | O43: 0 | P43: 0 | Q43: 0 | R43: 0 | S43: 0 | T43: 0 | V43: 0 | W43: 16 | X43: 0 | Y43: 0 | Z43: 0 | AA43: 0 | AB43: 0 | AC43: 0 | AD43: 0 | AE43: 0 | AF43: 0 | AG43: 0 | AH43: 0 | AI43: 0 | AL43: 0 | AN43: 0
A44: 2039 | B44: =HLOOKUP($A44,'AEG Input File'!$AC$2:$AZ$8,3,FALSE)*Inflation!$B20/100 -> 0 | C44: 0 | D44: 0 | E44: 0 | F44: 0 | G44: 0 | H44: 0 | I44: 0 | J44: 0 | K44: =(+I44+D44)/2 -> 0 | L44: 0 | M44: 0 | N44: =HLOOKUP($A44,'AEG Input File'!$BA$2:$BX$8,3,FALSE)*Inflation!$B20/100 -> 0 | O44: 0 | P44: 0 | Q44: 0 | R44: =(+AL44-(G44+L44+N44+O44+P44+Q44))*$D$2 -> 0 | S44: 0 | T44: 0 | V44: 0 | W44: 17 | X44: 0 | Y44: 0 | Z44: 0 | AA44: 0 | AB44: 0 | AC44: =Y44+AA44 -> 0 | AD44: 0 | AE44: 0 | AF44: 0 | AG44: 0 | AH44: 0 | AI44: 0 | AL44: 0 | AN44: 0
A45: 2040 | B45: =HLOOKUP($A45,'AEG Input File'!$AC$2:$AZ$8,3,FALSE)*Inflation!$B21/100 -> 0 | C45: 0 | D45: 0 | E45: 0 | F45: 0 | G45: 0 | H45: 0 | I45: 0 | J45: 0 | K45: 0 | L45: 0 | M45: 0 | N45: =HLOOKUP($A45,'AEG Input File'!$BA$2:$BX$8,3,FALSE)*Inflation!$B21/100 -> 0 | O45: 0 | P45: 0 | Q45: 0 | R45: 0 | S45: 0 | T45: 0 | V45: 0 | W45: 18 | X45: 0 | Y45: 0 | Z45: 0 | AA45: 0 | AB45: 0 | AC45: 0 | AD45: 0 | AE45: 0 | AF45: 0 | AG45: 0 | AH45: 0 | AI45: 0 | AL45: 0 | AN45: 0
A46: 2041 | B46: =HLOOKUP($A46,'AEG Input File'!$AC$2:$AZ$8,3,FALSE)*Inflation!$B22/100 -> 0 | C46: 0 | D46: 0 | E46: 0 | F46: 0 | G46: 0 | H46: 0 | I46: 0 | J46: 0 | K46: 0 | L46: 0 | M46: 0 | N46: =HLOOKUP($A46,'AEG Input File'!$BA$2:$BX$8,3,FALSE)*Inflation!$B22/100 -> 0 | O46: 0 | P46: 0 | Q46: 0 | R46: 0 | S46: 0 | T46: 0 | V46: 0 | W46: 19 | X46: 0 | Y46: 0 | Z46: 0 | AA46: 0 | AB46: 0 | AC46: 0 | AD46: 0 | AE46: 0 | AF46: 0 | AG46: 0 | AH46: 0 | AI46: 0 | AL46: 0 | AN46: 0
A47: 2042 | B47: =HLOOKUP($A47,'AEG Input File'!$AC$2:$AZ$8,3,FALSE)*Inflation!$B23/100 -> 0 | C47: 0 | D47: 0 | E47: 0 | F47: 0 | G47: 0 | H47: 0 | I47: =D47-J47-H47 -> 0 | J47: 0 | K47: 0 | L47: 0 | M47: 0 | N47: =HLOOKUP($A47,'AEG Input File'!$BA$2:$BX$8,3,FALSE)*Inflation!$B23/100 -> 0 | O47: 0 | P47: 0 | Q47: 0 | R47: 0 | S47: 0 | T47: 0 | V47: 0 | W47: 20 | X47: 0 | Y47: 0 | Z47: 0 | AA47: 0 | AB47: 0 | AC47: 0 | AD47: 0 | AE47: 0 | AF47: 0 | AG47: 0 | AH47: 0 | AI47: 0 | AL47: 0 | AN47: 0
A48: 2043 | B48: =HLOOKUP($A48,'AEG Input File'!$AC$2:$AZ$8,3,FALSE)*Inflation!$B24/100 -> 0 | C48: 0 | D48: =I47+C48 -> 0 | E48: 0 | F48: 0 | G48: 0 | H48: 0 | I48: 0 | J48: 0 | K48: 0 | L48: 0 | M48: 0 | N48: =HLOOKUP($A48,'AEG Input File'!$BA$2:$BX$8,3,FALSE)*Inflation!$B24/100 -> 0 | O48: 0 | P48: 0 | Q48: 0 | R48: 0 | S48: 0 | T48: 0 | V48: 0 | W48: 21 | X48: 0 | Y48: 0 | Z48: 0 | AA48: 0 | AB48: 0 | AC48: 0 | AD48: 0 | AE48: 0 | AF48: 0 | AG48: 0 | AH48: 0 | AI48: 0 | AL48: 0 | AN48: 0
A49: 2044 | B49: =HLOOKUP($A49,'AEG Input File'!$AC$2:$AZ$8,3,FALSE)*Inflation!$B25/100 -> 0 | C49: 0 | D49: 0 | E49: 0 | F49: 0 | G49: 0 | H49: 0 | I49: 0 | J49: 0 | K49: 0 | L49: 0 | M49: 0 | N49: =HLOOKUP($A49,'AEG Input File'!$BA$2:$BX$8,3,FALSE)*Inflation!$B25/100 -> 0 | O49: 0 | P49: 0 | Q49: 0 | R49: 0 | S49: 0 | T49: 0 | V49: 0 | W49: 22 | X49: 0 | Y49: 0 | Z49: 0 | AA49: 0 | AB49: 0 | AC49: 0 | AD49: 0 | AE49: 0 | AF49: 0 | AG49: 0 | AH49: 0 | AI49: 0 | AL49: 0 | AN49: 0
A50: 2045 | B50: =HLOOKUP($A50,'AEG Input File'!$AC$2:$AZ$8,3,FALSE)*Inflation!$B26/100 -> 0 | C50: 0 | D50: 0 | E50: 0 | F50: 0 | G50: 0 | H50: 0 | I50: 0 | J50: 0 | K50: 0 | L50: 0 | M50: 0 | N50: =HLOOKUP($A50,'AEG Input File'!$BA$2:$BX$8,3,FALSE)*Inflation!$B26/100 -> 0 | O50: 0 | P50: 0 | Q50: 0 | R50: 0 | S50: 0 | T50: 0 | V50: 0 | W50: 23 | X50: 0 | Y50: 0 | Z50: 0 | AA50: 0 | AB50: 0 | AC50: 0 | AD50: 0 | AE50: 0 | AF50: 0 | AG50: 0 | AH50: 0 | AI50: 0 | AL50: 0 | AN50: 0
A51: 2046 | B51: ='AEG Input File'!$AZ$628*Inflation!B26/100 -> 0 | C51: 0 | D51: 0 | E51: 0 | F51: 0 | G51: 0 | H51: 0 | I51: 0 | J51: 0 | K51: 0 | L51: 0 | M51: 0 | N51: ='AEG Input File'!$BX$628*Inflation!$B$26/100 -> 0 | O51: 0 | P51: 0 | Q51: 0 | R51: 0 | S51: 0 | T51: 0 | V51: 0 | W51: 24 | X51: 0 | Y51: 0 | Z51: 0 | AA51: 0 | AB51: 0 | AC51: 0 | AD51: 0 | AE51: 0 | AF51: 0 | AG51: 0 | AH51: 0 | AI51: 0 | AL51: 0 | AN51: 0
A52: 2047 | B52: 0 | C52: 0 | D52: 0 | E52: 0 | F52: 0 | G52: 0 | H52: 0 | I52: 0 | J52: 0 | K52: 0 | L52: 0 | M52: 0 | N52: 0 | O52: 0 | P52: 0 | Q52: 0 | R52: 0 | S52: 0 | T52: 0 | V52: 0 | W52: 25 | X52: 0 | Y52: 0 | Z52: 0 | AA52: 0 | AB52: 0 | AC52: 0 | AD52: 0 | AE52: 0 | AF52: 0 | AG52: 0 | AH52: 0 | AI52: 0 | AL52: 0 | AN52: 0
A53: 2048 | B53: 0 | C53: 0 | D53: 0 | E53: 0 | F53: 0 | G53: 0 | H53: 0 | I53: 0 | J53: 0 | K53: 0 | L53: 0 | M53: 0 | N53: 0 | O53: 0 | P53: 0 | Q53: 0 | R53: 0 | S53: 0 | T53: 0 | V53: 0 | W53: 26 | X53: 0 | Y53: 0 | Z53: 0 | AA53: 0 | AB53: 0 | AC53: 0 | AD53: 0 | AE53: 0 | AF53: 0 | AG53: 0 | AH53: 0 | AI53: 0 | AL53: 0 | AN53: 0
A54: 2049 | B54: 0 | C54: 0 | D54: 0 | E54: 0 | F54: 0 | G54: 0 | H54: 0 | I54: 0 | J54: 0 | K54: 0 | L54: 0 | M54: 0 | N54: 0 | O54: 0 | P54: 0 | Q54: 0 | R54: 0 | S54: 0 | T54: 0 | V54: 0 | W54: 27 | X54: 0 | Y54: 0 | Z54: 0 | AA54: 0 | AB54: 0 | AC54: 0 | AD54: 0 | AE54: 0 | AF54: 0 | AG54: 0 | AH54: 0 | AI54: 0 | AL54: 0 | AN54: 0
A55: 2050 | B55: 0 | C55: 0 | D55: 0 | E55: 0 | F55: 0 | G55: 0 | H55: 0 | I55: 0 | J55: 0 | K55: 0 | L55: 0 | M55: 0 | N55: 0 | O55: 0 | P55: 0 | Q55: 0 | R55: 0 | S55: 0 | T55: 0 | V55: 0 | W55: 28 | X55: 0 | Y55: 0 | Z55: 0 | AA55: 0 | AB55: 0 | AC55: 0 | AD55: 0 | AE55: 0 | AF55: 0 | AG55: 0 | AH55: 0 | AI55: 0 | AL55: 0 | AN55: 0
A56: 2051 | B56: 0 | C56: 0 | D56: 0 | E56: 0 | F56: 0 | G56: 0 | H56: 0 | I56: 0 | J56: 0 | K56: 0 | L56: 0 | M56: 0 | N56: 0 | O56: 0 | P56: 0 | Q56: 0 | R56: 0 | S56: 0 | T56: 0 | V56: 0 | W56: 29 | X56: 0 | Y56: 0 | Z56: 0 | AA56: 0 | AB56: 0 | AC56: 0 | AD56: 0 | AE56: 0 | AF56: 0 | AG56: 0 | AH56: 0 | AI56: 0 | AL56: 0 | AN56: 0
A57: 2052 | B57: 0 | C57: 0 | D57: 0 | E57: 0 | F57: 0 | G57: 0 | H57: 0 | I57: 0 | J57: 0 | K57: 0 | L57: 0 | M57: 0 | N57: 0 | O57: 0 | P57: 0 | Q57: 0 | R57: 0 | S57: 0 | T57: 0 | V57: 0 | W57: 30 | X57: 0 | Y57: 0 | Z57: 0 | AA57: 0 | AB57: 0 | AC57: 0 | AD57: 0 | AE57: 0 | AF57: 0 | AG57: 0 | AH57: 0 | AI57: 0 | AL57: 0 | AN57: 0
A58: 2053 | B58: 0 | C58: 0 | D58: 0 | E58: 0 | F58: 0 | G58: 0 | H58: 0 | I58: 0 | J58: 0 | K58: 0 | L58: 0 | M58: 0 | N58: 0 | O58: 0 | P58: 0 | Q58: 0 | R58: 0 | S58: 0 | T58: 0 | V58: 0 | W58: 31 | X58: 0 | Y58: 0 | Z58: 0 | AA58: 0 | AB58: 0 | AC58: 0 | AD58: 0 | AE58: 0 | AF58: 0 | AG58: 0 | AH58: 0 | AI58: 0 | AL58: 0 | AN58: 0
A59: 2054 | B59: 0 | C59: 0 | D59: 0 | E59: 0 | F59: 0 | G59: 0 | H59: 0 | I59: 0 | J59: 0 | K59: 0 | L59: 0 | M59: 0 | N59: 0 | O59: 0 | P59: 0 | Q59: 0 | R59: 0 | S59: 0 | T59: 0 | V59: 0 | W59: 32 | X59: 0 | Y59: 0 | Z59: 0 | AA59: 0 | AB59: 0 | AC59: 0 | AD59: 0 | AE59: 0 | AF59: 0 | AG59: 0 | AH59: 0 | AI59: 0 | AL59: 0 | AN59: 0
A60: 2055 | B60: 0 | C60: 0 | D60: 0 | E60: 0 | F60: 0 | G60: 0 | H60: 0 | I60: 0 | J60: 0 | K60: 0 | L60: 0 | M60: 0 | N60: 0 | O60: 0 | P60: 0 | Q60: 0 | R60: 0 | S60: 0 | T60: 0 | V60: 0 | W60: 33 | X60: 0 | Y60: 0 | Z60: 0 | AA60: 0 | AB60: 0 | AC60: 0 | AD60: 0 | AE60: 0 | AF60: 0 | AG60: 0 | AH60: 0 | AI60: 0 | AL60: 0 | AN60: 0
A61: 2056 | B61: 0 | C61: 0 | D61: 0 | E61: 0 | F61: 0 | G61: 0 | H61: 0 | I61: 0 | J61: 0 | K61: 0 | L61: 0 | M61: 0 | N61: 0 | O61: 0 | P61: 0 | Q61: 0 | R61: 0 | S61: 0 | T61: 0 | V61: 0 | W61: 34 | X61: 0 | Y61: 0 | Z61: 0 | AA61: 0 | AB61: 0 | AC61: 0 | AD61: 0 | AE61: 0 | AF61: 0 | AG61: 0 | AH61: 0 | AI61: 0 | AL61: 0 | AN61: 0
A62: 2057 | B62: 0 | C62: 0 | D62: 0 | E62: 0 | F62: 0 | G62: 0 | H62: 0 | I62: 0 | J62: 0 | K62: 0 | L62: 0 | M62: 0 | N62: 0 | O62: 0 | P62: 0 | Q62: 0 | R62: 0 | S62: 0 | T62: 0 | V62: 0 | W62: 35 | X62: 0 | Y62: 0 | Z62: 0 | AA62: 0 | AB62: 0 | AC62: 0 | AD62: 0 | AE62: 0 | AF62: 0 | AG62: 0 | AH62: 0 | AI62: 0 | AL62: 0 | AN62: 0
A63: 2058 | B63: 0 | C63: 0 | D63: 0 | E63: 0 | F63: 0 | G63: 0 | H63: 0 | I63: 0 | J63: 0 | K63: 0 | L63: 0 | M63: 0 | N63: 0 | O63: 0 | P63: 0 | Q63: 0 | R63: 0 | S63: 0 | T63: 0 | V63: 0 | W63: 36 | X63: 0 | Y63: 0 | Z63: 0 | AA63: 0 | AB63: 0 | AC63: 0 | AD63: 0 | AE63: 0 | AF63: 0 | AG63: 0 | AH63: 0 | AI63: 0 | AL63: 0 | AN63: 0
A64: 2059 | B64: 0 | C64: 0 | D64: 0 | E64: 0 | F64: 0 | G64: 0 | H64: 0 | I64: 0 | J64: 0 | K64: 0 | L64: 0 | M64: 0 | N64: 0 | O64: 0 | P64: 0 | Q64: 0 | R64: 0 | S64: 0 | T64: 0 | V64: 0 | W64: 37 | X64: 0 | Y64: 0 | Z64: 0 | AA64: 0 | AB64: 0 | AC64: 0 | AD64: 0 | AE64: 0 | AF64: 0 | AG64: 0 | AH64: 0 | AI64: 0 | AL64: 0 | AN64: 0
A65: 2060 | B65: 0 | C65: 0 | D65: 0 | E65: 0 | F65: 0 | G65: 0 | H65: 0 | I65: 0 | J65: 0 | K65: 0 | L65: 0 | M65: 0 | N65: 0 | O65: 0 | P65: 0 | Q65: 0 | R65: 0 | S65: 0 | T65: 0 | V65: 0 | W65: 38 | X65: 0 | Y65: 0 | Z65: 0 | AA65: 0 | AB65: 0 | AC65: 0 | AD65: 0 | AE65: 0 | AF65: 0 | AG65: 0 | AH65: 0 | AI65: 0 | AL65: 0 | AN65: 0
A66: 2061 | B66: 0 | C66: 0 | D66: 0 | E66: 0 | F66: 0 | G66: 0 | H66: 0 | I66: 0 | J66: 0 | K66: 0 | L66: 0 | M66: 0 | N66: 0 | O66: 0 | P66: 0 | Q66: 0 | R66: 0 | S66: 0 | T66: 0 | V66: 0 | W66: 39 | X66: 0 | Y66: 0 | Z66: 0 | AA66: 0 | AB66: 0 | AC66: 0 | AD66: 0 | AE66: 0 | AF66: 0 | AG66: 0 | AH66: 0 | AI66: 0 | AL66: 0 | AN66: 0
A67: 2062 | B67: 0 | C67: 0 | D67: 0 | E67: 0 | F67: 0 | G67: 0 | H67: 0 | I67: 0 | J67: 0 | K67: 0 | L67: 0 | M67: 0 | N67: 0 | O67: 0 | P67: 0 | Q67: 0 | R67: 0 | S67: 0 | T67: 0 | V67: 0 | W67: 40 | X67: 0 | Y67: 0 | Z67: 0 | AA67: 0 | AB67: 0 | AC67: 0 | AD67: 0 | AE67: 0 | AF67: 0 | AG67: 0 | AH67: 0 | AI67: 0 | AL67: 0 | AN67: 0
A68: 2063 | B68: 0 | C68: 0 | D68: 0 | E68: 0 | F68: 0 | G68: 0 | H68: 0 | I68: 0 | J68: 0 | K68: 0 | L68: 0 | M68: 0 | N68: 0 | O68: 0 | P68: 0 | Q68: 0 | R68: 0 | S68: 0 | T68: 0 | V68: 0 | W68: 41 | X68: 0 | Y68: 0 | Z68: 0 | AA68: 0 | AB68: 0 | AC68: 0 | AD68: 0 | AE68: 0 | AF68: 0 | AG68: 0 | AH68: 0 | AI68: 0 | AL68: 0 | AN68: 0
A69: 2064 | B69: 0 | C69: 0 | D69: 0 | E69: 0 | F69: 0 | G69: 0 | H69: 0 | I69: 0 | J69: 0 | K69: 0 | L69: 0 | M69: 0 | N69: 0 | O69: 0 | P69: 0 | Q69: 0 | R69: 0 | S69: 0 | T69: 0 | V69: 0 | W69: 42 | X69: 0 | Y69: 0 | Z69: 0 | AA69: 0 | AB69: 0 | AC69: 0 | AD69: 0 | AE69: 0 | AF69: 0 | AG69: 0 | AH69: 0 | AI69: 0 | AL69: 0 | AN69: 0
A70: 2065 | B70: 0 | C70: 0 | D70: 0 | E70: 0 | F70: 0 | G70: 0 | H70: 0 | I70: 0 | J70: 0 | K70: 0 | L70: 0 | M70: 0 | N70: 0 | O70: 0 | P70: 0 | Q70: 0 | R70: 0 | S70: 0 | T70: 0 | V70: 0 | W70: 43 | X70: 0 | Y70: 0 | Z70: 0 | AA70: 0 | AB70: 0 | AC70: 0 | AD70: 0 | AE70: 0 | AF70: 0 | AG70: 0 | AH70: 0 | AI70: 0 | AL70: 0 | AN70: 0
A71: 2066 | B71: 0 | C71: 0 | D71: 0 | E71: 0 | F71: 0 | G71: 0 | H71: 0 | I71: 0 | J71: 0 | K71: 0 | L71: 0 | M71: 0 | N71: 0 | O71: 0 | P71: 0 | Q71: 0 | R71: 0 | S71: 0 | T71: 0 | V71: 0 | W71: 44 | X71: 0 | Y71: 0 | Z71: 0 | AA71: 0 | AB71: 0 | AC71: 0 | AD71: 0 | AE71: 0 | AF71: 0 | AG71: 0 | AH71: 0 | AI71: 0 | AL71: 0 | AN71: 0
A72: 2067 | B72: 0 | C72: 0 | D72: 0 | E72: 0 | F72: 0 | G72: 0 | H72: 0 | I72: 0 | J72: 0 | K72: 0 | L72: 0 | M72: 0 | N72: 0 | O72: 0 | P72: 0 | Q72: 0 | R72: 0 | S72: 0 | T72: 0 | V72: 0 | W72: 45 | X72: 0 | Y72: 0 | Z72: 0 | AA72: 0 | AB72: 0 | AC72: 0 | AD72: 0 | AE72: 0 | AF72: 0 | AG72: 0 | AH72: 0 | AI72: 0 | AL72: 0 | AN72: 0
A73: 2068 | B73: 0 | C73: 0 | D73: 0 | E73: 0 | F73: 0 | G73: 0 | H73: 0 | I73: 0 | J73: 0 | K73: 0 | L73: 0 | M73: 0 | N73: 0 | O73: 0 | P73: 0 | Q73: 0 | R73: 0 | S73: 0 | T73: 0 | V73: 0 | W73: 46 | X73: 0 | Y73: 0 | Z73: 0 | AA73: 0 | AB73: 0 | AC73: 0 | AD73: 0 | AE73: 0 | AF73: 0 | AG73: 0 | AH73: 0 | AI73: 0 | AL73: 0 | AN73: 0
A74: 2069 | B74: 0 | C74: 0 | D74: 0 | E74: 0 | F74: 0 | G74: 0 | H74: 0 | I74: 0 | J74: 0 | K74: 0 | L74: 0 | M74: 0 | N74: 0 | O74: 0 | P74: 0 | Q74: 0 | R74: 0 | S74: 0 | T74: 0 | V74: 0 | W74: 47 | X74: 0 | Y74: 0 | Z74: 0 | AA74: 0 | AB74: 0 | AC74: 0 | AD74: 0 | AE74: 0 | AF74: 0 | AG74: 0 | AH74: 0 | AI74: 0 | AL74: 0 | AN74: 0
A75: 2070 | B75: 0 | C75: 0 | D75: 0 | E75: 0 | F75: 0 | G75: 0 | H75: 0 | I75: 0 | J75: 0 | K75: 0 | L75: 0 | M75: 0 | N75: 0 | O75: 0 | P75: 0 | Q75: 0 | R75: 0 | S75: 0 | T75: 0 | V75: 0 | W75: 48 | X75: 0 | Y75: 0 | Z75: 0 | AA75: 0 | AB75: 0 | AC75: 0 | AD75: 0 | AE75: 0 | AF75: 0 | AG75: 0 | AH75: 0 | AI75: 0 | AL75: 0 | AN75: 0
A76: 2071 | B76: 0 | C76: 0 | D76: 0 | E76: 0 | F76: 0 | G76: 0 | H76: 0 | I76: 0 | J76: 0 | K76: 0 | L76: 0 | M76: 0 | N76: 0 | O76: 0 | P76: 0 | Q76: 0 | R76: 0 | S76: 0 | T76: 0 | V76: 0 | W76: 49 | X76: 0 | Y76: 0 | Z76: 0 | AA76: 0 | AB76: 0 | AC76: 0 | AD76: 0 | AE76: 0 | AF76: 0 | AG76: 0 | AH76: 0 | AI76: 0 | AL76: 0 | AN76: 0
A77: 2072 | B77: 0 | C77: 0 | D77: 0 | E77: 0 | F77: 0 | G77: 0 | H77: 0 | I77: 0 | J77: 0 | K77: 0 | L77: 0 | M77: 0 | N77: 0 | O77: 0 | P77: 0 | Q77: 0 | R77: 0 | S77: 0 | T77: 0 | V77: 0 | W77: 50 | X77: 0 | Y77: 0 | Z77: 0 | AA77: 0 | AB77: 0 | AC77: 0 | AD77: 0 | AE77: 0 | AF77: 0 | AG77: 0 | AH77: 0 | AI77: 0 | AL77: 0 | AN77: 0
A78: 2073 | B78: 0 | C78: 0 | D78: 0 | E78: 0 | F78: 0 | G78: 0 | H78: 0 | I78: 0 | J78: 0 | K78: 0 | L78: 0 | M78: 0 | N78: 0 | O78: 0 | P78: 0 | Q78: 0 | R78: 0 | S78: 0 | T78: 0 | V78: 0 | W78: 51 | X78: 0 | Y78: 0 | Z78: 0 | AA78: 0 | AB78: 0 | AC78: 0 | AD78: 0 | AE78: 0 | AF78: 0 | AG78: 0 | AH78: 0 | AI78: 0 | AL78: 0 | AN78: 0
A79: 2074 | B79: 0 | C79: 0 | D79: 0 | E79: 0 | F79: 0 | G79: 0 | H79: 0 | I79: 0 | J79: 0 | K79: 0 | L79: 0 | M79: 0 | N79: 0 | O79: 0 | P79: 0 | Q79: 0 | R79: 0 | S79: 0 | T79: 0 | V79: 0 | W79: 52 | X79: 0 | Y79: 0 | Z79: 0 | AA79: 0 | AB79: 0 | AC79: 0 | AD79: 0 | AE79: 0 | AF79: 0 | AG79: 0 | AH79: 0 | AI79: 0 | AL79: 0 | AN79: 0
A80: 2075 | B80: 0 | C80: 0 | D80: 0 | E80: 0 | F80: 0 | G80: 0 | H80: 0 | I80: 0 | J80: 0 | K80: 0 | L80: 0 | M80: 0 | N80: 0 | O80: 0 | P80: 0 | Q80: 0 | R80: 0 | S80: 0 | T80: 0 | V80: 0 | W80: 53 | X80: 0 | Y80: 0 | Z80: 0 | AA80: 0 | AB80: 0 | AC80: 0 | AD80: 0 | AE80: 0 | AF80: 0 | AG80: 0 | AH80: 0 | AI80: 0 | AL80: 0 | AN80: 0
A81: 2076 | B81: 0 | C81: 0 | D81: 0 | E81: 0 | F81: 0 | G81: 0 | H81: 0 | I81: 0 | J81: 0 | K81: 0 | L81: 0 | M81: 0 | N81: 0 | O81: 0 | P81: 0 | Q81: 0 | R81: 0 | S81: 0 | T81: 0 | V81: 0 | W81: 54 | X81: 0 | Y81: 0 | Z81: 0 | AA81: 0 | AB81: 0 | AC81: 0 | AD81: 0 | AE81: 0 | AF81: 0 | AG81: 0 | AH81: 0 | AI81: 0 | AL81: 0 | AN81: 0
A82: 2077 | B82: 0 | C82: 0 | D82: 0 | E82: 0 | F82: 0 | G82: 0 | H82: 0 | I82: 0 | J82: 0 | K82: 0 | L82: 0 | M82: 0 | N82: 0 | O82: 0 | P82: 0 | Q82: 0 | R82: 0 | S82: 0 | T82: 0 | V82: 0 | W82: 55 | X82: 0 | Y82: 0 | Z82: 0 | AA82: 0 | AB82: 0 | AC82: 0 | AD82: 0 | AE82: 0 | AF82: 0 | AG82: 0 | AH82: 0 | AI82: 0 | AL82: 0 | AN82: 0
A83: 2078 | B83: 0 | C83: 0 | D83: 0 | E83: 0 | F83: 0 | G83: 0 | H83: 0 | I83: 0 | J83: 0 | K83: 0 | L83: 0 | M83: 0 | N83: 0 | O83: 0 | P83: 0 | Q83: 0 | R83: 0 | S83: 0 | T83: 0 | V83: 0 | W83: 56 | X83: 0 | Y83: 0 | Z83: 0 | AA83: 0 | AB83: 0 | AC83: 0 | AD83: 0 | AE83: 0 | AF83: 0 | AG83: 0 | AH83: 0 | AI83: 0 | AL83: 0 | AN83: 0
A84: 2079 | B84: 0 | C84: 0 | D84: 0 | E84: 0 | F84: 0 | G84: 0 | H84: 0 | I84: 0 | J84: 0 | K84: 0 | L84: 0 | M84: 0 | N84: 0 | O84: 0 | P84: 0 | Q84: 0 | R84: 0 | S84: 0 | T84: 0 | V84: 0 | W84: 57 | X84: 0 | Y84: 0 | Z84: 0 | AA84: 0 | AB84: 0 | AC84: 0 | AD84: 0 | AE84: 0 | AF84: 0 | AG84: 0 | AH84: 0 | AI84: 0 | AL84: 0 | AN84: 0
A85: 2080 | B85: 0 | C85: 0 | D85: 0 | E85: 0 | F85: 0 | G85: 0 | H85: 0 | I85: 0 | J85: 0 | K85: 0 | L85: 0 | M85: 0 | N85: 0 | O85: 0 | P85: 0 | Q85: 0 | R85: 0 | S85: 0 | T85: 0 | V85: 0 | W85: 58 | X85: 0 | Y85: 0 | Z85: 0 | AA85: 0 | AB85: 0 | AC85: 0 | AD85: 0 | AE85: 0 | AF85: 0 | AG85: 0 | AH85: 0 | AI85: 0 | AL85: 0 | AN85: 0
A86: 2081 | B86: 0 | C86: 0 | D86: 0 | E86: 0 | F86: 0 | G86: 0 | H86: 0 | I86: 0 | J86: 0 | K86: 0 | L86: 0 | M86: 0 | N86: 0 | O86: 0 | P86: 0 | Q86: 0 | R86: 0 | S86: 0 | T86: 0 | V86: 0 | W86: 59 | X86: 0 | Y86: 0 | Z86: 0 | AA86: 0 | AB86: 0 | AC86: 0 | AD86: 0 | AE86: 0 | AF86: 0 | AG86: 0 | AH86: 0 | AI86: 0 | AL86: 0 | AN86: 0
A87: 2082 | B87: 0 | C87: 0 | D87: 0 | E87: 0 | F87: 0 | G87: 0 | H87: 0 | I87: 0 | J87: 0 | K87: 0 | L87: 0 | M87: 0 | N87: 0 | O87: 0 | P87: 0 | Q87: 0 | R87: 0 | S87: 0 | T87: 0 | V87: 0 | W87: 60 | X87: 0 | Y87: 0 | Z87: 0 | AA87: 0 | AB87: 0 | AC87: 0 | AD87: 0 | AE87: 0 | AF87: 0 | AG87: 0 | AH87: 0 | AI87: 0 | AL87: 0 | AN87: 0
A88: 2083 | B88: 0 | C88: 0 | D88: 0 | E88: 0 | F88: 0 | G88: 0 | H88: 0 | I88: 0 | J88: 0 | K88: 0 | L88: 0 | M88: =IF(A88=1,($N$3+$N$2)*K88,($N$3+$N$2)*K88) -> 0 | N88: 0 | O88: 0 | P88: 0 | Q88: 0 | R88: 0 | S88: 0 | T88: 0 | V88: 0 | W88: 61 | X88: 0 | Y88: 0 | Z88: 0 | AA88: 0 | AB88: 0 | AC88: 0 | AD88: 0 | AE88: 0 | AF88: 0 | AG88: 0 | AH88: 0 | AI88: 0 | AL88: 0 | AN88: 0
A89: 2084 | B89: 0 | C89: 0 | D89: 0 | E89: 0 | F89: 0 | G89: 0 | H89: 0 | I89: 0 | J89: 0 | K89: 0 | L89: 0 | M89: =IF(A89=1,($N$3+$N$2)*K89,($N$3+$N$2)*K89) -> 0 | N89: 0 | O89: 0 | P89: 0 | Q89: 0 | R89: 0 | S89: 0 | T89: 0 | V89: 0 | W89: 62 | X89: 0 | Y89: 0 | Z89: 0 | AA89: 0 | AB89: 0 | AC89: 0 | AD89: 0 | AE89: 0 | AF89: 0 | AG89: 0 | AH89: 0 | AI89: 0 | AL89: 0 | AN89: 0
A90: 2085 | B90: 0 | C90: 0 | D90: 0 | E90: 0 | F90: 0 | G90: 0 | H90: 0 | I90: 0 | J90: 0 | K90: 0 | L90: 0 | M90: 0 | N90: 0 | O90: 0 | P90: 0 | Q90: 0 | R90: 0 | S90: 0 | T90: 0 | V90: 0 | W90: 63 | X90: 0 | Y90: 0 | Z90: 0 | AA90: 0 | AB90: 0 | AC90: 0 | AD90: 0 | AE90: 0 | AF90: 0 | AG90: 0 | AH90: 0 | AI90: 0 | AL90: 0 | AN90: 0
A91: 2086 | B91: 0 | C91: 0 | D91: 0 | E91: 0 | F91: 0 | G91: 0 | H91: 0 | I91: 0 | J91: 0 | K91: 0 | L91: 0 | M91: 0 | N91: 0 | O91: 0 | P91: 0 | Q91: 0 | R91: 0 | S91: 0 | T91: 0 | V91: 0 | W91: 64 | X91: 0 | Y91: 0 | Z91: 0 | AA91: 0 | AB91: 0 | AC91: 0 | AD91: 0 | AE91: 0 | AF91: 0 | AG91: 0 | AH91: 0 | AI91: 0 | AL91: 0 | AN91: 0
A92: =1+A91 -> 2087 | B92: 0 | C92: 0 | D92: =I91+C92 -> 0 | E92: =E91+J92 -> 0 | F92: =CA201 -> 0 | G92: 0 | H92: =(F92-G92)*$D$2 -> 0 | I92: =D92-J92-H92 -> 0 | J92: =CA387 -> 0 | K92: =(+I92+D92)/2 -> 0 | L92: 0 | M92: 0 | N92: 0 | O92: =AN92*$D$10 -> 0 | P92: 0 | Q92: =(+AL92-(G92+L92+N92+O92+P92))*$D$1 -> 0 | R92: =(+AL92-(G92+L92+N92+O92+P92+Q92))*$D$2 -> 0 | S92: =J92+M92+L92+N92+O92+P92+Q92+R92 -> 0 | T92: 0 | V92: 0 | W92: 65 | X92: 0 | Y92: 0 | Z92: 0 | AA92: 0 | AB92: 0 | AC92: 0 | AD92: 0 | AE92: =S92 -> 0 | AF92: =V92 -> 0 | AG92: =AF92-AE92 -> 0 | AH92: 0 | AI92: 0 | AL92: 0 | AN92: 0
A93: 2088 | B93: 0 | C93: =B93 -> 0 | D93: 0 | E93: 0 | F93: 0 | G93: =CA294 -> 0 | H93: 0 | I93: 0 | J93: 0 | K93: 0 | L93: =IF(A93=1,$N$1*K93,$N$1*K93) -> 0 | M93: 0 | N93: 0 | O93: 0 | P93: =AL93*$T$8 -> 0 | Q93: 0 | R93: 0 | S93: 0 | T93: =S93/(1+$D$3)^(A93-1) -> 0 | V93: 0 | W93: =1+W92 -> 66 | X93: 0 | Y93: =+X93 -> 0 | Z93: =X93*$Z$24 -> 0 | AA93: 0 | AB93: 0 | AC93: 0 | AD93: 0 | AE93: 0 | AF93: 0 | AG93: 0 | AH93: =AF93-AE93 -> 0 | AI93: =IF(A93=1,AF93-T89,AF93) -> 0 | AL93: =(+J93+L93+M93+N93+O93-(($D$1+(1-$D$1)*$D$2)*(G93+L93+N93+O93)))/$T$16 -> 0 | AN93: =C93-J92+AN92 -> 0
A94: 2089 | B94: 0 | C94: 0 | D94: 0 | E94: 0 | F94: 0 | G94: 0 | H94: 0 | I94: 0 | J94: 0 | K94: 0 | L94: 0 | M94: 0 | N94: 0 | O94: 0 | P94: 0 | Q94: 0 | R94: 0 | S94: 0 | T94: 0 | V94: 0 | W94: 67 | X94: 0 | Y94: 0 | Z94: 0 | AA94: 0 | AB94: 0 | AC94: 0 | AD94: 0 | AE94: 0 | AF94: 0 | AG94: 0 | AH94: 0 | AI94: 0 | AL94: 0 | AN94: 0
A95: 2090 | B95: 0 | C95: 0 | D95: 0 | E95: 0 | F95: 0 | G95: 0 | H95: 0 | I95: 0 | J95: 0 | K95: 0 | L95: 0 | M95: 0 | N95: 0 | O95: 0 | P95: 0 | Q95: 0 | R95: 0 | S95: 0 | T95: 0 | V95: 0 | W95: 68 | X95: 0 | Y95: 0 | Z95: 0 | AA95: 0 | AB95: 0 | AC95: 0 | AD95: 0 | AE95: 0 | AF95: 0 | AG95: 0 | AH95: 0 | AI95: 0 | AL95: 0 | AN95: 0
A96: 2091 | B96: 0 | C96: 0 | D96: 0 | E96: 0 | F96: 0 | G96: 0 | H96: 0 | I96: 0 | J96: 0 | K96: 0 | L96: 0 | M96: 0 | N96: 0 | O96: 0 | P96: 0 | Q96: 0 | R96: 0 | S96: 0 | T96: 0 | V96: 0 | W96: 69 | X96: 0 | Y96: 0 | Z96: 0 | AA96: 0 | AB96: 0 | AC96: 0 | AD96: 0 | AE96: 0 | AF96: 0 | AG96: 0 | AH96: 0 | AI96: 0 | AL96: 0 | AN96: 0
A97: 2092 | B97: 0 | C97: 0 | D97: 0 | E97: 0 | F97: 0 | G97: 0 | H97: 0 | I97: 0 | J97: 0 | K97: 0 | L97: 0 | M97: 0 | N97: 0 | O97: 0 | P97: 0 | Q97: 0 | R97: 0 | S97: 0 | T97: 0 | V97: 0 | W97: 70 | X97: 0 | Y97: 0 | Z97: 0 | AA97: 0 | AB97: 0 | AC97: 0 | AD97: 0 | AE97: 0 | AF97: 0 | AG97: 0 | AH97: 0 | AI97: 0 | AL97: 0 | AN97: 0
A98: 2093 | B98: 0 | C98: 0 | D98: 0 | E98: 0 | F98: 0 | G98: 0 | H98: 0 | I98: 0 | J98: 0 | K98: 0 | L98: 0 | M98: 0 | N98: 0 | O98: 0 | P98: 0 | Q98: 0 | R98: 0 | S98: 0 | T98: 0 | V98: 0 | W98: 71 | X98: 0 | Y98: 0 | Z98: 0 | AA98: 0 | AB98: 0 | AC98: 0 | AD98: 0 | AE98: 0 | AF98: 0 | AG98: 0 | AH98: 0 | AI98: 0 | AL98: 0 | AN98: 0
A99: 2094 | B99: 0 | C99: 0 | D99: 0 | E99: 0 | F99: 0 | G99: 0 | H99: 0 | I99: 0 | J99: 0 | K99: 0 | L99: 0 | M99: 0 | N99: 0 | O99: 0 | P99: 0 | Q99: 0 | R99: 0 | S99: 0 | T99: 0 | V99: 0 | W99: 72 | X99: 0 | Y99: 0 | Z99: 0 | AA99: 0 | AB99: 0 | AC99: 0 | AD99: 0 | AE99: 0 | AF99: 0 | AG99: 0 | AH99: 0 | AI99: 0 | AL99: 0 | AN99: 0
A100: 2095 | B100: 0 | C100: 0 | D100: 0 | E100: 0 | F100: 0 | G100: 0 | H100: 0 | I100: 0 | J100: 0 | K100: 0 | L100: 0 | M100: 0 | N100: 0 | O100: 0 | P100: 0 | Q100: 0 | R100: 0 | S100: 0 | T100: 0 | V100: 0 | W100: 73 | X100: 0 | Y100: 0 | Z100: 0 | AA100: 0 | AB100: 0 | AC100: 0 | AD100: 0 | AE100: 0 | AF100: 0 | AG100: 0 | AH100: 0 | AI100: 0 | AL100: 0 | AN100: 0
A101: 2096 | B101: 0 | C101: 0 | D101: 0 | E101: 0 | F101: 0 | G101: 0 | H101: 0 | I101: 0 | J101: 0 | K101: 0 | L101: 0 | M101: 0 | N101: 0 | O101: 0 | P101: 0 | Q101: 0 | R101: 0 | S101: 0 | T101: 0 | V101: 0 | W101: 74 | X101: 0 | Y101: 0 | Z101: 0 | AA101: 0 | AB101: 0 | AC101: 0 | AD101: 0 | AE101: 0 | AF101: 0 | AG101: 0 | AH101: 0 | AI101: 0 | AL101: 0 | AN101: 0
A102: 2097 | B102: 0 | C102: 0 | D102: 0 | E102: 0 | F102: 0 | G102: 0 | H102: 0 | I102: 0 | J102: 0 | K102: 0 | L102: 0 | M102: 0 | N102: 0 | O102: 0 | P102: 0 | Q102: 0 | R102: 0 | S102: 0 | T102: 0 | V102: 0 | W102: 75 | X102: 0 | Y102: 0 | Z102: 0 | AA102: 0 | AB102: 0 | AC102: 0 | AD102: 0 | AE102: 0 | AF102: 0 | AG102: 0 | AH102: 0 | AI102: 0 | AL102: 0 | AN102: 0
A103: 2098 | B103: 0 | C103: 0 | D103: 0 | E103: 0 | F103: 0 | G103: 0 | H103: 0 | I103: 0 | J103: 0 | K103: 0 | L103: 0 | M103: 0 | N103: 0 | O103: 0 | P103: 0 | Q103: 0 | R103: 0 | S103: 0 | T103: 0 | V103: 0 | W103: 76 | X103: 0 | Y103: 0 | Z103: 0 | AA103: 0 | AB103: 0 | AC103: 0 | AD103: 0 | AE103: 0 | AF103: 0 | AG103: 0 | AH103: 0 | AI103: 0 | AL103: 0 | AN103: 0
A104: = | B104: = | C104: = | D104: = | E104: = | F104: = | G104: = | H104: = | I104: = | J104: = | K104: = | L104: = | M104: = | N104: = | O104: = | P104: = | Q104: = | R104: = | S104: = | T104: =
A106: (a) Time Period in Years
A107: (b) Capital Additions Tax Basis
A108: (c) Capital Additions Book Basis
A109: (d) Rate Base Beginning of Period = Previous(i) + Previous(c)
A110: (e) Accumulated Depreciation = Previous(e) + (j)
A111: (f) Tax Depreciation = Modified ACRS Schedules Times The Tax Basis
A112: (g) Book Depreciation on Tax Basis = Straight Line Depreciation of Tax Basis
A113: (h) Deferred Taxes = [(f)-(g)] * Federal Income Tax Rate
A114: (i) Rate Base End of Period = (d) - (j) - (h)
A115: (j) Book Depreciation = Straight Line Per Book Life
A116: (k) Average Rate Base = [(d) + (i)] / 2
A117: (l) Interest Expense = Weighted Cost of Debt * (k)
A118: (m) Equity Return = [Weighted Cost of Preferred + Weighted Cost of Common] * (k)
A119: (n) Operating and Maintenance Expense = Previous(n) * [1 + O&M Escalation Factor]
A120: (o) Property Taxes = Property Tax Rate * (d)
A121: (p) Miscellaneous Revenue Items = Revenue Requirements * Miscellaneous Revenue Items Percentage
A122: (q) State Income Tax = [Revenue Requirement - [(g) + (l) + (m) + (n) + (o) + (p)] * State Income Tax Rate
A123: (r) Federal Income Taxes = [Revenue Requirements - [(g) + (l) + (n) + (o) + Miscellaneous Revenue Items + State Tax] * Federal Income Tax Rate
A124: (s) Total Revenue Requirements = (j) + (l) + (m) + (n) + (o) + (p) + (q) + (r)
A125: (t) Present Value Revenue Requirements = Total Revenue Requirements / [1 + Discount Factor] ^ [(a) - .5]
A127: Revenue Requirements = [(j) + (l) + (m) + (n) + (o) - Federal Income Tax Rate * [(g) + (l) + (n) + (o)]] / Conversion Factor
A130: TAX DEPRECIATION
A132: Class => | B132: =$D$4 -> 4
C133: 1 | D133: 2 | E133: 3 | F133: 4 | G133: 5 | H133: 6 | I133: 7 | J133: 8 | K133: 9 | L133: 10 | M133: 11 | N133: 12 | O133: 13 | P133: 14 | Q133: 15 | R133: 16 | S133: 17 | T133: 18 | U133: 19 | V133: 20 | W133: 21 | X133: 22 | Y133: 23 | Z133: 24 | AA133: 25 | AB133: 26 | AC133: 27 | AD133: 28 | AE133: 29 | AF133: 30 | AG133: 31 | AH133: 32 | AI133: 33 | AJ133: 34 | AK133: 35 | AL133: 36 | AM133: 37 | AN133: 38 | AO133: 39 | AP133: 40 | AQ133: 41 | AR133: 42 | AS133: 43 | AT133: 44 | AU133: 45 | AV133: 46 | AW133: 47 | AX133: 48 | AY133: 49 | AZ133: 50 | BA133: 51 | BB133: 52 | BC133: 53 | BD133: 54 | BE133: 55 | BF133: 56 | BG133: 57 | BH133: 58 | BI133: 59 | BJ133: 60 | BK133: 61 | BL133: 62 | BM133: 63 | BN133: 64 | BO133: 65 | BP133: 66 | BQ133: 67 | BR133: 68 | BS133: 69 | BT133: 70 | BU133: 71 | BV133: 72 | BW133: 73 | BX133: 74 | BY133: 75 | BZ133: 76 | CA133: Total
C134: - | D134: - | E134: - | F134: - | G134: - | H134: - | I134: - | J134: - | K134: - | L134: - | M134: - | N134: - | O134: - | P134: - | Q134: - | R134: - | S134: - | T134: - | U134: - | V134: - | W134: - | X134: - | Y134: - | Z134: - | AA134: - | AB134: - | AC134: - | AD134: - | AE134: - | AF134: - | AG134: - | AH134: - | AI134: - | AJ134: - | AK134: - | AL134: - | AM134: - | AN134: - | AO134: - | AP134: - | AQ134: - | AR134: - | AS134: - | AT134: - | AU134: - | AV134: - | AW134: - | AX134: - | AY134: - | AZ134: - | BA134: - | BB134: - | BC134: - | BD134: - | BE134: - | BF134: - | BG134: - | BH134: - | BI134: - | BJ134: - | BK134: - | BL134: - | BM134: - | BN134: - | BO134: - | BP134: - | BQ134: - | BR134: - | BS134: - | BT134: - | BU134: - | BV134: - | BW134: - | BX134: - | BY134: - | BZ134: - | CA134: -
A135: Rate | B135: Capital | C135: =$B28 -> 0 | D135: =$B29 -> 0 | E135: =$B30 -> 0 | F135: =$B31 -> 0 | G135: =$B32 -> 0 | H135: =$B33 -> 0 | I135: =$B34 -> 0 | J135: =$B35 -> 0 | K135: =$B36 -> 0 | L135: =$B37 -> 0 | M135: =$B38 -> 0 | N135: =$B39 -> 0 | O135: =$B40 -> 0 | P135: =$B41 -> 0 | Q135: =$B42 -> 0 | R135: =$B43 -> 0 | S135: =$B44 -> 0 | T135: =$B45 -> 0 | U135: =$B46 -> 0 | V135: =$B47 -> 0 | W135: =$B48 -> 0 | X135: =$B49 -> 0 | Y135: =$B50 -> 0 | Z135: =$B51 -> 0 | AA135: =$B52 -> 0 | AB135: =$B53 -> 0 | AC135: =$B54 -> 0 | AD135: =$B55 -> 0 | AE135: =$B56 -> 0 | AF135: =$B57 -> 0 | AG135: =$B58 -> 0 | AH135: =$B59 -> 0 | AI135: =$B60 -> 0 | AJ135: =$B61 -> 0 | AK135: =$B62 -> 0 | AL135: =$B63 -> 0 | AM135: =$B64 -> 0 | AN135: =$B65 -> 0 | AO135: =$B66 -> 0 | AP135: =$B67 -> 0 | AQ135: =$B68 -> 0 | AR135: =$B69 -> 0 | AS135: =$B70 -> 0 | AT135: =$B71 -> 0 | AU135: =$B72 -> 0 | AV135: =$B73 -> 0 | AW135: =$B74 -> 0 | AX135: =$B75 -> 0 | AY135: =$B76 -> 0 | AZ135: =$B77 -> 0 | BA135: =$B78 -> 0 | BB135: =$B79 -> 0 | BC135: =$B80 -> 0 | BD135: =$B81 -> 0 | BE135: =$B82 -> 0 | BF135: =$B83 -> 0 | BG135: =$B84 -> 0 | BH135: =$B85 -> 0 | BI135: =$B86 -> 0 | BJ135: =$B87 -> 0 | BK135: =$B88 -> 0 | BL135: =$B89 -> 0 | BM135: =$B90 -> 0 | BN135: =$B91 -> 0 | BO135: =$B92 -> 0 | BP135: =$B93 -> 0 | BQ135: =$B94 -> 0 | BR135: =$B95 -> 0 | BS135: =$B96 -> 0 | BT135: =$B97 -> 0 | BU135: =$B98 -> 0 | BV135: =$B99 -> 0 | BW135: =$B100 -> 0 | BX135: =$B101 -> 0 | BY135: =$B102 -> 0 | BZ135: =$B103 -> 0 | CA135: =SUM($C135:$BZ135) -> 0 | CC135: 31.5 Year | CD135: 20 Years | CE135: 7 Years | CF135: 5 Years
C136: - | D136: - | E136: - | F136: - | G136: - | H136: - | I136: - | J136: - | K136: - | L136: - | M136: - | N136: - | O136: - | P136: - | Q136: - | R136: - | S136: - | T136: - | U136: - | V136: - | W136: - | X136: - | Y136: - | Z136: - | AA136: - | AB136: - | AC136: - | AD136: - | AE136: - | AF136: - | AG136: - | AH136: - | AI136: - | AJ136: - | AK136: - | AL136: - | AM136: - | AN136: - | AO136: - | AP136: - | AQ136: - | AR136: - | AS136: - | AT136: - | AU136: - | AV136: - | AW136: - | AX136: - | AY136: - | AZ136: - | BA136: - | BB136: - | BC136: - | BD136: - | BE136: - | BF136: - | BG136: - | BH136: - | BI136: - | BJ136: - | BK136: - | BL136: - | BM136: - | BN136: - | BO136: - | BP136: - | BQ136: - | BR136: - | BS136: - | BT136: - | BU136: - | BV136: - | BW136: - | BX136: - | BY136: - | BZ136: - | CA136: -
A137: =IF($B$132=1,CC137,IF($B$132=2,CD137,IF($B$132=3,CE137,IF($B$132=4,CF137,#VALUE!)))) -> 0.2 | B137: =+B136+1 -> 1 | C137: =C$135*$A137 -> 0 | CA137: =SUM($C137:$BZ137) -> 0 | CC137: 0.01587 | CD137: 0.0375 | CE137: 0.14286 | CF137: 0.2
A138: =IF($B$132=1,CC138,IF($B$132=2,CD138,IF($B$132=3,CE138,IF($B$132=4,CF138,#VALUE!)))) -> 0.32 | B138: =+B137+1 -> 2 | C138: =C$135*$A138 -> 0 | D138: =D$135*$A137 -> 0 | CA138: 0 | CC138: 0.03175 | CD138: 0.07219 | CE138: 0.2449 | CF138: 0.32
A139: 0.192 | B139: 3 | C139: 0 | D139: =D$135*$A138 -> 0 | E139: =E$135*$A137 -> 0 | CA139: 0 | CC139: 0.03175 | CD139: 0.06678 | CE139: 0.17493 | CF139: 0.192
A140: 0.1152 | B140: 4 | C140: 0 | D140: 0 | E140: =E$135*$A138 -> 0 | F140: =F$135*$A137 -> 0 | CA140: 0 | CC140: 0.03175 | CD140: 0.06178 | CE140: 0.12495 | CF140: 0.1152
A141: 0.1152 | B141: 5 | C141: 0 | D141: 0 | E141: 0 | F141: =F$135*$A138 -> 0 | G141: =G$135*$A137 -> 0 | CA141: 0 | CC141: 0.03175 | CD141: 0.05715 | CE141: 0.08925 | CF141: 0.1152
A142: 0.0576 | B142: 6 | C142: 0 | D142: 0 | E142: 0 | F142: 0 | G142: =G$135*$A138 -> 0 | H142: =H$135*$A137 -> 0 | CA142: 0 | CC142: 0.03175 | CD142: 0.05286 | CE142: 0.08925 | CF142: 0.0576
A143: 0 | B143: 7 | C143: 0 | D143: 0 | E143: 0 | F143: 0 | G143: 0 | H143: =H$135*$A138 -> 0 | I143: =I$135*$A137 -> 0 | CA143: 0 | CC143: 0.03175 | CD143: 0.0489 | CE143: 0.08925 | CF143: 0
A144: 0 | B144: 8 | C144: 0 | D144: 0 | E144: 0 | F144: 0 | G144: 0 | H144: 0 | I144: =I$135*$A138 -> 0 | J144: =J$135*$A137 -> 0 | CA144: 0 | CC144: 0.03175 | CD144: 0.04523 | CE144: 0.04461 | CF144: 0
A145: 0 | B145: 9 | C145: 0 | D145: 0 | E145: 0 | F145: 0 | G145: 0 | H145: 0 | I145: 0 | J145: =J$135*$A138 -> 0 | K145: =K$135*$A137 -> 0 | CA145: 0 | CC145: 0.03175 | CD145: 0.04461 | CE145: 0 | CF145: 0
A146: 0 | B146: 10 | C146: 0 | D146: 0 | E146: 0 | F146: 0 | G146: 0 | H146: 0 | I146: 0 | J146: 0 | K146: =K$135*$A138 -> 0 | L146: =L$135*$A137 -> 0 | CA146: 0 | CC146: 0.03175 | CD146: 0.04461 | CE146: 0 | CF146: 0
A147: 0 | B147: 11 | C147: 0 | D147: 0 | E147: 0 | F147: 0 | G147: 0 | H147: 0 | I147: 0 | J147: 0 | K147: 0 | L147: =L$135*$A138 -> 0 | M147: =M$135*$A137 -> 0 | CA147: 0 | CC147: 0.03175 | CD147: 0.04461 | CE147: 0 | CF147: 0
A148: 0 | B148: 12 | C148: 0 | D148: 0 | E148: 0 | F148: 0 | G148: 0 | H148: 0 | I148: 0 | J148: 0 | K148: 0 | L148: 0 | M148: =M$135*$A138 -> 0 | N148: =N$135*$A137 -> 0 | CA148: 0 | CC148: 0.03175 | CD148: 0.04461 | CE148: 0 | CF148: 0
A149: 0 | B149: 13 | C149: 0 | D149: 0 | E149: 0 | F149: 0 | G149: 0 | H149: 0 | I149: 0 | J149: 0 | K149: 0 | L149: 0 | M149: 0 | N149: =N$135*$A138 -> 0 | O149: =O$135*$A137 -> 0 | CA149: 0 | CC149: 0.03175 | CD149: 0.04461 | CE149: 0 | CF149: 0
A150: 0 | B150: 14 | C150: 0 | D150: 0 | E150: 0 | F150: 0 | G150: 0 | H150: 0 | I150: 0 | J150: 0 | K150: 0 | L150: 0 | M150: 0 | N150: 0 | O150: =O$135*$A138 -> 0 | P150: =P$135*$A137 -> 0 | CA150: 0 | CC150: 0.03175 | CD150: 0.04461 | CE150: 0 | CF150: 0
A151: 0 | B151: 15 | C151: 0 | D151: 0 | E151: 0 | F151: 0 | G151: 0 | H151: 0 | I151: 0 | J151: 0 | K151: 0 | L151: 0 | M151: 0 | N151: 0 | O151: 0 | P151: =P$135*$A138 -> 0 | Q151: =Q$135*$A137 -> 0 | CA151: 0 | CC151: 0.03175 | CD151: 0.04461 | CE151: 0 | CF151: 0
A152: 0 | B152: 16 | C152: 0 | D152: 0 | E152: 0 | F152: 0 | G152: 0 | H152: 0 | I152: 0 | J152: 0 | K152: 0 | L152: 0 | M152: 0 | N152: 0 | O152: 0 | P152: 0 | Q152: =Q$135*$A138 -> 0 | R152: =R$135*$A137 -> 0 | CA152: 0 | CC152: 0.03175 | CD152: 0.04461 | CE152: 0 | CF152: 0
A153: 0 | B153: 17 | C153: 0 | D153: 0 | E153: 0 | F153: 0 | G153: 0 | H153: 0 | I153: 0 | J153: 0 | K153: 0 | L153: 0 | M153: 0 | N153: 0 | O153: 0 | P153: 0 | Q153: 0 | R153: =R$135*$A138 -> 0 | S153: =S$135*$A137 -> 0 | CA153: 0 | CC153: 0.03175 | CD153: 0.04461 | CE153: 0 | CF153: 0
A154: 0 | B154: 18 | C154: 0 | D154: 0 | E154: 0 | F154: 0 | G154: 0 | H154: 0 | I154: 0 | J154: 0 | K154: 0 | L154: 0 | M154: 0 | N154: 0 | O154: 0 | P154: 0 | Q154: 0 | R154: 0 | S154: =S$135*$A138 -> 0 | T154: =T$135*$A137 -> 0 | CA154: 0 | CC154: 0.03175 | CD154: 0.04461 | CE154: 0 | CF154: 0
A155: 0 | B155: 19 | C155: 0 | D155: 0 | E155: 0 | F155: 0 | G155: 0 | H155: 0 | I155: 0 | J155: 0 | K155: 0 | L155: 0 | M155: 0 | N155: 0 | O155: 0 | P155: 0 | Q155: 0 | R155: 0 | S155: 0 | T155: =T$135*$A138 -> 0 | U155: =U$135*$A137 -> 0 | CA155: 0 | CC155: 0.03175 | CD155: 0.04461 | CE155: 0 | CF155: 0
A156: 0 | B156: 20 | C156: 0 | D156: 0 | E156: 0 | F156: 0 | G156: 0 | H156: 0 | I156: 0 | J156: 0 | K156: 0 | L156: 0 | M156: 0 | N156: 0 | O156: 0 | P156: 0 | Q156: 0 | R156: 0 | S156: 0 | T156: 0 | U156: =U$135*$A138 -> 0 | V156: =V$135*$A137 -> 0 | CA156: 0 | CC156: 0.03175 | CD156: 0.04461 | CE156: 0 | CF156: 0
A157: 0 | B157: 21 | C157: 0 | D157: 0 | E157: 0 | F157: 0 | G157: 0 | H157: 0 | I157: 0 | J157: 0 | K157: 0 | L157: 0 | M157: 0 | N157: 0 | O157: 0 | P157: 0 | Q157: 0 | R157: 0 | S157: 0 | T157: 0 | U157: 0 | V157: =V$135*$A138 -> 0 | W157: =W$135*$A137 -> 0 | CA157: 0 | CC157: 0.03175 | CD157: 0.02229 | CE157: 0 | CF157: 0
A158: 0 | B158: 22 | C158: 0 | D158: 0 | E158: 0 | F158: 0 | G158: 0 | H158: 0 | I158: 0 | J158: 0 | K158: 0 | L158: 0 | M158: 0 | N158: 0 | O158: 0 | P158: 0 | Q158: 0 | R158: 0 | S158: 0 | T158: 0 | U158: 0 | V158: 0 | W158: =W$135*$A138 -> 0 | X158: =X$135*$A137 -> 0 | CA158: 0 | CC158: 0.03175 | CD158: 0 | CE158: 0 | CF158: 0
A159: 0 | B159: 23 | C159: 0 | D159: 0 | E159: 0 | F159: 0 | G159: 0 | H159: 0 | I159: 0 | J159: 0 | K159: 0 | L159: 0 | M159: 0 | N159: 0 | O159: 0 | P159: 0 | Q159: 0 | R159: 0 | S159: 0 | T159: 0 | U159: 0 | V159: 0 | W159: 0 | X159: =X$135*$A138 -> 0 | Y159: =Y$135*$A137 -> 0 | CA159: 0 | CC159: 0.03175 | CD159: 0 | CE159: 0 | CF159: 0
A160: 0 | B160: 24 | C160: 0 | D160: 0 | E160: 0 | F160: 0 | G160: 0 | H160: 0 | I160: 0 | J160: 0 | K160: 0 | L160: 0 | M160: 0 | N160: 0 | O160: 0 | P160: 0 | Q160: 0 | R160: 0 | S160: 0 | T160: 0 | U160: 0 | V160: 0 | W160: 0 | X160: 0 | Y160: =Y$135*$A138 -> 0 | Z160: =Z$135*$A137 -> 0 | CA160: 0 | CC160: 0.03175 | CD160: 0 | CE160: 0 | CF160: 0
A161: 0 | B161: 25 | C161: 0 | D161: 0 | E161: 0 | F161: 0 | G161: 0 | H161: 0 | I161: 0 | J161: 0 | K161: 0 | L161: 0 | M161: 0 | N161: 0 | O161: 0 | P161: 0 | Q161: 0 | R161: 0 | S161: 0 | T161: 0 | U161: 0 | V161: 0 | W161: 0 | X161: 0 | Y161: 0 | Z161: =Z$135*$A138 -> 0 | AA161: =AA$135*$A137 -> 0 | CA161: 0 | CC161: 0.03175 | CD161: 0 | CE161: 0 | CF161: 0
A162: 0 | B162: 26 | C162: 0 | D162: 0 | E162: 0 | F162: 0 | G162: 0 | H162: 0 | I162: 0 | J162: 0 | K162: 0 | L162: 0 | M162: 0 | N162: 0 | O162: 0 | P162: 0 | Q162: 0 | R162: 0 | S162: 0 | T162: 0 | U162: 0 | V162: 0 | W162: 0 | X162: 0 | Y162: 0 | Z162: 0 | AA162: =AA$135*$A138 -> 0 | AB162: =AB$135*$A137 -> 0 | CA162: 0 | CC162: 0.03175 | CD162: 0 | CE162: 0 | CF162: 0
A163: 0 | B163: 27 | C163: 0 | D163: 0 | E163: 0 | F163: 0 | G163: 0 | H163: 0 | I163: 0 | J163: 0 | K163: 0 | L163: 0 | M163: 0 | N163: 0 | O163: 0 | P163: 0 | Q163: 0 | R163: 0 | S163: 0 | T163: 0 | U163: 0 | V163: 0 | W163: 0 | X163: 0 | Y163: 0 | Z163: 0 | AA163: 0 | AB163: =AB$135*$A138 -> 0 | AC163: =AC$135*$A137 -> 0 | CA163: 0 | CC163: 0.03175 | CD163: 0 | CE163: 0 | CF163: 0
A164: 0 | B164: 28 | C164: 0 | D164: 0 | E164: 0 | F164: 0 | G164: 0 | H164: 0 | I164: 0 | J164: 0 | K164: 0 | L164: 0 | M164: 0 | N164: 0 | O164: 0 | P164: 0 | Q164: 0 | R164: 0 | S164: 0 | T164: 0 | U164: 0 | V164: 0 | W164: 0 | X164: 0 | Y164: 0 | Z164: 0 | AA164: 0 | AB164: 0 | AC164: =AC$135*$A138 -> 0 | AD164: =AD$135*$A137 -> 0 | CA164: 0 | CC164: 0.03175 | CD164: 0 | CE164: 0 | CF164: 0
A165: 0 | B165: 29 | C165: 0 | D165: 0 | E165: 0 | F165: 0 | G165: 0 | H165: 0 | I165: 0 | J165: 0 | K165: 0 | L165: 0 | M165: 0 | N165: 0 | O165: 0 | P165: 0 | Q165: 0 | R165: 0 | S165: 0 | T165: 0 | U165: 0 | V165: 0 | W165: 0 | X165: 0 | Y165: 0 | Z165: 0 | AA165: 0 | AB165: 0 | AC165: 0 | AD165: =AD$135*$A138 -> 0 | AE165: =AE$135*$A137 -> 0 | CA165: 0 | CC165: 0.03175 | CD165: 0 | CE165: 0 | CF165: 0
A166: 0 | B166: 30 | C166: 0 | D166: 0 | E166: 0 | F166: 0 | G166: 0 | H166: 0 | I166: 0 | J166: 0 | K166: 0 | L166: 0 | M166: 0 | N166: 0 | O166: 0 | P166: 0 | Q166: 0 | R166: 0 | S166: 0 | T166: 0 | U166: 0 | V166: 0 | W166: 0 | X166: 0 | Y166: 0 | Z166: 0 | AA166: 0 | AB166: 0 | AC166: 0 | AD166: 0 | AE166: =AE$135*$A138 -> 0 | AF166: =AF$135*$A137 -> 0 | CA166: 0 | CC166: 0.03175 | CD166: 0 | CE166: 0 | CF166: 0
A167: 0 | B167: 31 | C167: 0 | D167: 0 | E167: 0 | F167: 0 | G167: 0 | H167: 0 | I167: 0 | J167: 0 | K167: 0 | L167: 0 | M167: 0 | N167: 0 | O167: 0 | P167: 0 | Q167: 0 | R167: 0 | S167: 0 | T167: 0 | U167: 0 | V167: 0 | W167: 0 | X167: 0 | Y167: 0 | Z167: 0 | AA167: 0 | AB167: 0 | AC167: 0 | AD167: 0 | AE167: 0 | AF167: =AF$135*$A138 -> 0 | AG167: =AG$135*$A137 -> 0 | CA167: 0 | CC167: 0.03175 | CD167: 0 | CE167: 0 | CF167: 0
A168: 0 | B168: 32 | C168: 0 | D168: 0 | E168: 0 | F168: 0 | G168: 0 | H168: 0 | I168: 0 | J168: 0 | K168: 0 | L168: 0 | M168: 0 | N168: 0 | O168: 0 | P168: 0 | Q168: 0 | R168: 0 | S168: 0 | T168: 0 | U168: 0 | V168: 0 | W168: 0 | X168: 0 | Y168: 0 | Z168: 0 | AA168: 0 | AB168: 0 | AC168: 0 | AD168: 0 | AE168: 0 | AF168: 0 | AG168: =AG$135*$A138 -> 0 | AH168: =AH$135*$A137 -> 0 | CA168: 0 | CC168: 0.03163 | CD168: 0 | CE168: 0 | CF168: 0
A169: 0 | B169: 33 | C169: 0 | D169: 0 | E169: 0 | F169: 0 | G169: 0 | H169: 0 | I169: 0 | J169: 0 | K169: 0 | L169: 0 | M169: 0 | N169: 0 | O169: 0 | P169: 0 | Q169: 0 | R169: 0 | S169: 0 | T169: 0 | U169: 0 | V169: 0 | W169: 0 | X169: 0 | Y169: 0 | Z169: 0 | AA169: 0 | AB169: 0 | AC169: 0 | AD169: 0 | AE169: 0 | AF169: 0 | AG169: 0 | AH169: =AH$135*$A138 -> 0 | AI169: =AI$135*$A137 -> 0 | CA169: 0
A170: 0 | B170: 34 | C170: 0 | D170: 0 | E170: 0 | F170: 0 | G170: 0 | H170: 0 | I170: 0 | J170: 0 | K170: 0 | L170: 0 | M170: 0 | N170: 0 | O170: 0 | P170: 0 | Q170: 0 | R170: 0 | S170: 0 | T170: 0 | U170: 0 | V170: 0 | W170: 0 | X170: 0 | Y170: 0 | Z170: 0 | AA170: 0 | AB170: 0 | AC170: 0 | AD170: 0 | AE170: 0 | AF170: 0 | AG170: 0 | AH170: 0 | AI170: =AI$135*$A138 -> 0 | AJ170: =AJ$135*$A137 -> 0 | CA170: 0
A171: 0 | B171: 35 | C171: 0 | D171: 0 | E171: 0 | F171: 0 | G171: 0 | H171: 0 | I171: 0 | J171: 0 | K171: 0 | L171: 0 | M171: 0 | N171: 0 | O171: 0 | P171: 0 | Q171: 0 | R171: 0 | S171: 0 | T171: 0 | U171: 0 | V171: 0 | W171: 0 | X171: 0 | Y171: 0 | Z171: 0 | AA171: 0 | AB171: 0 | AC171: 0 | AD171: 0 | AE171: 0 | AF171: 0 | AG171: 0 | AH171: 0 | AI171: 0 | AJ171: =AJ$135*$A138 -> 0 | AK171: =AK$135*$A137 -> 0 | CA171: 0
A172: 0 | B172: 36 | C172: 0 | D172: 0 | E172: 0 | F172: 0 | G172: 0 | H172: 0 | I172: 0 | J172: 0 | K172: 0 | L172: 0 | M172: 0 | N172: 0 | O172: 0 | P172: 0 | Q172: 0 | R172: 0 | S172: 0 | T172: 0 | U172: 0 | V172: 0 | W172: 0 | X172: 0 | Y172: 0 | Z172: 0 | AA172: 0 | AB172: 0 | AC172: 0 | AD172: 0 | AE172: 0 | AF172: 0 | AG172: 0 | AH172: 0 | AI172: 0 | AJ172: 0 | AK172: =AK$135*$A138 -> 0 | AL172: =AL$135*$A137 -> 0 | CA172: 0
A173: 0 | B173: 37 | C173: 0 | D173: 0 | E173: 0 | F173: 0 | G173: 0 | H173: 0 | I173: 0 | J173: 0 | K173: 0 | L173: 0 | M173: 0 | N173: 0 | O173: 0 | P173: 0 | Q173: 0 | R173: 0 | S173: 0 | T173: 0 | U173: 0 | V173: 0 | W173: 0 | X173: 0 | Y173: 0 | Z173: 0 | AA173: 0 | AB173: 0 | AC173: 0 | AD173: 0 | AE173: 0 | AF173: 0 | AG173: 0 | AH173: 0 | AI173: 0 | AJ173: 0 | AK173: 0 | AL173: =AL$135*$A138 -> 0 | AM173: =AM$135*$A137 -> 0 | CA173: 0
A174: 0 | B174: 38 | C174: 0 | D174: 0 | E174: 0 | F174: 0 | G174: 0 | H174: 0 | I174: 0 | J174: 0 | K174: 0 | L174: 0 | M174: 0 | N174: 0 | O174: 0 | P174: 0 | Q174: 0 | R174: 0 | S174: 0 | T174: 0 | U174: 0 | V174: 0 | W174: 0 | X174: 0 | Y174: 0 | Z174: 0 | AA174: 0 | AB174: 0 | AC174: 0 | AD174: 0 | AE174: 0 | AF174: 0 | AG174: 0 | AH174: 0 | AI174: 0 | AJ174: 0 | AK174: 0 | AL174: 0 | AM174: =AM$135*$A138 -> 0 | AN174: =AN$135*$A137 -> 0 | CA174: 0
A175: 0 | B175: 39 | C175: 0 | D175: 0 | E175: 0 | F175: 0 | G175: 0 | H175: 0 | I175: 0 | J175: 0 | K175: 0 | L175: 0 | M175: 0 | N175: 0 | O175: 0 | P175: 0 | Q175: 0 | R175: 0 | S175: 0 | T175: 0 | U175: 0 | V175: 0 | W175: 0 | X175: 0 | Y175: 0 | Z175: 0 | AA175: 0 | AB175: 0 | AC175: 0 | AD175: 0 | AE175: 0 | AF175: 0 | AG175: 0 | AH175: 0 | AI175: 0 | AJ175: 0 | AK175: 0 | AL175: 0 | AM175: 0 | AN175: =AN$135*$A138 -> 0 | AO175: =AO$135*$A137 -> 0 | CA175: 0
A176: 0 | B176: 40 | C176: 0 | D176: 0 | E176: 0 | F176: 0 | G176: 0 | H176: 0 | I176: 0 | J176: 0 | K176: 0 | L176: 0 | M176: 0 | N176: 0 | O176: 0 | P176: 0 | Q176: 0 | R176: 0 | S176: 0 | T176: 0 | U176: 0 | V176: 0 | W176: 0 | X176: 0 | Y176: 0 | Z176: 0 | AA176: 0 | AB176: 0 | AC176: 0 | AD176: 0 | AE176: 0 | AF176: 0 | AG176: 0 | AH176: 0 | AI176: 0 | AJ176: 0 | AK176: 0 | AL176: 0 | AM176: 0 | AN176: 0 | AO176: =AO$135*$A138 -> 0 | AP176: =AP$135*$A137 -> 0 | CA176: 0
A177: 0 | B177: 41 | C177: 0 | D177: 0 | E177: 0 | F177: 0 | G177: 0 | H177: 0 | I177: 0 | J177: 0 | K177: 0 | L177: 0 | M177: 0 | N177: 0 | O177: 0 | P177: 0 | Q177: 0 | R177: 0 | S177: 0 | T177: 0 | U177: 0 | V177: 0 | W177: 0 | X177: 0 | Y177: 0 | Z177: 0 | AA177: 0 | AB177: 0 | AC177: 0 | AD177: 0 | AE177: 0 | AF177: 0 | AG177: 0 | AH177: 0 | AI177: 0 | AJ177: 0 | AK177: 0 | AL177: 0 | AM177: 0 | AN177: 0 | AO177: 0 | AP177: =AP$135*$A138 -> 0 | AQ177: =AQ$135*$A137 -> 0 | CA177: 0
A178: 0 | B178: 42 | C178: 0 | D178: 0 | E178: 0 | F178: 0 | G178: 0 | H178: 0 | I178: 0 | J178: 0 | K178: 0 | L178: 0 | M178: 0 | N178: 0 | O178: 0 | P178: 0 | Q178: 0 | R178: 0 | S178: 0 | T178: 0 | U178: 0 | V178: 0 | W178: 0 | X178: 0 | Y178: 0 | Z178: 0 | AA178: 0 | AB178: 0 | AC178: 0 | AD178: 0 | AE178: 0 | AF178: 0 | AG178: 0 | AH178: 0 | AI178: 0 | AJ178: 0 | AK178: 0 | AL178: 0 | AM178: 0 | AN178: 0 | AO178: 0 | AP178: 0 | AQ178: =AQ$135*$A138 -> 0 | AR178: =AR$135*$A137 -> 0 | CA178: 0
A179: 0 | B179: 43 | C179: 0 | D179: 0 | E179: 0 | F179: 0 | G179: 0 | H179: 0 | I179: 0 | J179: 0 | K179: 0 | L179: 0 | M179: 0 | N179: 0 | O179: 0 | P179: 0 | Q179: 0 | R179: 0 | S179: 0 | T179: 0 | U179: 0 | V179: 0 | W179: 0 | X179: 0 | Y179: 0 | Z179: 0 | AA179: 0 | AB179: 0 | AC179: 0 | AD179: 0 | AE179: 0 | AF179: 0 | AG179: 0 | AH179: 0 | AI179: 0 | AJ179: 0 | AK179: 0 | AL179: 0 | AM179: 0 | AN179: 0 | AO179: 0 | AP179: 0 | AQ179: 0 | AR179: =AR$135*$A138 -> 0 | AS179: =AS$135*$A137 -> 0 | CA179: 0
A180: 0 | B180: 44 | C180: 0 | D180: 0 | E180: 0 | F180: 0 | G180: 0 | H180: 0 | I180: 0 | J180: 0 | K180: 0 | L180: 0 | M180: 0 | N180: 0 | O180: 0 | P180: 0 | Q180: 0 | R180: 0 | S180: 0 | T180: 0 | U180: 0 | V180: 0 | W180: 0 | X180: 0 | Y180: 0 | Z180: 0 | AA180: 0 | AB180: 0 | AC180: 0 | AD180: 0 | AE180: 0 | AF180: 0 | AG180: 0 | AH180: 0 | AI180: 0 | AJ180: 0 | AK180: 0 | AL180: 0 | AM180: 0 | AN180: 0 | AO180: 0 | AP180: 0 | AQ180: 0 | AR180: 0 | AS180: =AS$135*$A138 -> 0 | AT180: =AT$135*$A137 -> 0 | CA180: 0
A181: 0 | B181: 45 | C181: 0 | D181: 0 | E181: 0 | F181: 0 | G181: 0 | H181: 0 | I181: 0 | J181: 0 | K181: 0 | L181: 0 | M181: 0 | N181: 0 | O181: 0 | P181: 0 | Q181: 0 | R181: 0 | S181: 0 | T181: 0 | U181: 0 | V181: 0 | W181: 0 | X181: 0 | Y181: 0 | Z181: 0 | AA181: 0 | AB181: 0 | AC181: 0 | AD181: 0 | AE181: 0 | AF181: 0 | AG181: 0 | AH181: 0 | AI181: 0 | AJ181: 0 | AK181: 0 | AL181: 0 | AM181: 0 | AN181: 0 | AO181: 0 | AP181: 0 | AQ181: 0 | AR181: 0 | AS181: 0 | AT181: =AT$135*$A138 -> 0 | AU181: =AU$135*$A137 -> 0 | CA181: 0
A182: 0 | B182: 46 | C182: 0 | D182: 0 | E182: 0 | F182: 0 | G182: 0 | H182: 0 | I182: 0 | J182: 0 | K182: 0 | L182: 0 | M182: 0 | N182: 0 | O182: 0 | P182: 0 | Q182: 0 | R182: 0 | S182: 0 | T182: 0 | U182: 0 | V182: 0 | W182: 0 | X182: 0 | Y182: 0 | Z182: 0 | AA182: 0 | AB182: 0 | AC182: 0 | AD182: 0 | AE182: 0 | AF182: 0 | AG182: 0 | AH182: 0 | AI182: 0 | AJ182: 0 | AK182: 0 | AL182: 0 | AM182: 0 | AN182: 0 | AO182: 0 | AP182: 0 | AQ182: 0 | AR182: 0 | AS182: 0 | AT182: 0 | AU182: =AU$135*$A138 -> 0 | AV182: =AV$135*$A137 -> 0 | CA182: 0
A183: 0 | B183: 47 | C183: 0 | D183: 0 | E183: 0 | F183: 0 | G183: 0 | H183: 0 | I183: 0 | J183: 0 | K183: 0 | L183: 0 | M183: 0 | N183: 0 | O183: 0 | P183: 0 | Q183: 0 | R183: 0 | S183: 0 | T183: 0 | U183: 0 | V183: 0 | W183: 0 | X183: 0 | Y183: 0 | Z183: 0 | AA183: 0 | AB183: 0 | AC183: 0 | AD183: 0 | AE183: 0 | AF183: 0 | AG183: 0 | AH183: 0 | AI183: 0 | AJ183: 0 | AK183: 0 | AL183: 0 | AM183: 0 | AN183: 0 | AO183: 0 | AP183: 0 | AQ183: 0 | AR183: 0 | AS183: 0 | AT183: 0 | AU183: 0 | AV183: =AV$135*$A138 -> 0 | AW183: =AW$135*$A137 -> 0 | CA183: 0
A184: 0 | B184: 48 | C184: 0 | D184: 0 | E184: 0 | F184: 0 | G184: 0 | H184: 0 | I184: 0 | J184: 0 | K184: 0 | L184: 0 | M184: 0 | N184: 0 | O184: 0 | P184: 0 | Q184: 0 | R184: 0 | S184: 0 | T184: 0 | U184: 0 | V184: 0 | W184: 0 | X184: 0 | Y184: 0 | Z184: 0 | AA184: 0 | AB184: 0 | AC184: 0 | AD184: 0 | AE184: 0 | AF184: 0 | AG184: 0 | AH184: 0 | AI184: 0 | AJ184: 0 | AK184: 0 | AL184: 0 | AM184: 0 | AN184: 0 | AO184: 0 | AP184: 0 | AQ184: 0 | AR184: 0 | AS184: 0 | AT184: 0 | AU184: 0 | AV184: 0 | AW184: =AW$135*$A138 -> 0 | AX184: =AX$135*$A137 -> 0 | CA184: 0
A185: 0 | B185: 49 | C185: 0 | D185: 0 | E185: 0 | F185: 0 | G185: 0 | H185: 0 | I185: 0 | J185: 0 | K185: 0 | L185: 0 | M185: 0 | N185: 0 | O185: 0 | P185: 0 | Q185: 0 | R185: 0 | S185: 0 | T185: 0 | U185: 0 | V185: 0 | W185: 0 | X185: 0 | Y185: 0 | Z185: 0 | AA185: 0 | AB185: 0 | AC185: 0 | AD185: 0 | AE185: 0 | AF185: 0 | AG185: 0 | AH185: 0 | AI185: 0 | AJ185: 0 | AK185: 0 | AL185: 0 | AM185: 0 | AN185: 0 | AO185: 0 | AP185: 0 | AQ185: 0 | AR185: 0 | AS185: 0 | AT185: 0 | AU185: 0 | AV185: 0 | AW185: 0 | AX185: =AX$135*$A138 -> 0 | AY185: =AY$135*$A137 -> 0 | CA185: 0
A186: 0 | B186: 50 | C186: 0 | D186: 0 | E186: 0 | F186: 0 | G186: 0 | H186: 0 | I186: 0 | J186: 0 | K186: 0 | L186: 0 | M186: 0 | N186: 0 | O186: 0 | P186: 0 | Q186: 0 | R186: 0 | S186: 0 | T186: 0 | U186: 0 | V186: 0 | W186: 0 | X186: 0 | Y186: 0 | Z186: 0 | AA186: 0 | AB186: 0 | AC186: 0 | AD186: 0 | AE186: 0 | AF186: 0 | AG186: 0 | AH186: 0 | AI186: 0 | AJ186: 0 | AK186: 0 | AL186: 0 | AM186: 0 | AN186: 0 | AO186: 0 | AP186: 0 | AQ186: 0 | AR186: 0 | AS186: 0 | AT186: 0 | AU186: 0 | AV186: 0 | AW186: 0 | AX186: 0 | AY186: =AY$135*$A138 -> 0 | AZ186: =AZ$135*$A137 -> 0 | CA186: 0
A187: 0 | B187: 51 | C187: 0 | D187: 0 | E187: 0 | F187: 0 | G187: 0 | H187: 0 | I187: 0 | J187: 0 | K187: 0 | L187: 0 | M187: 0 | N187: 0 | O187: 0 | P187: 0 | Q187: 0 | R187: 0 | S187: 0 | T187: 0 | U187: 0 | V187: 0 | W187: 0 | X187: 0 | Y187: 0 | Z187: 0 | AA187: 0 | AB187: 0 | AC187: 0 | AD187: 0 | AE187: 0 | AF187: 0 | AG187: 0 | AH187: 0 | AI187: 0 | AJ187: 0 | AK187: 0 | AL187: 0 | AM187: 0 | AN187: 0 | AO187: 0 | AP187: 0 | AQ187: 0 | AR187: 0 | AS187: 0 | AT187: 0 | AU187: 0 | AV187: 0 | AW187: 0 | AX187: 0 | AY187: 0 | AZ187: =AZ$135*$A138 -> 0 | BA187: =BA$135*$A137 -> 0 | CA187: 0
A188: 0 | B188: 52 | C188: 0 | D188: 0 | E188: 0 | F188: 0 | G188: 0 | H188: 0 | I188: 0 | J188: 0 | K188: 0 | L188: 0 | M188: 0 | N188: 0 | O188: 0 | P188: 0 | Q188: 0 | R188: 0 | S188: 0 | T188: 0 | U188: 0 | V188: 0 | W188: 0 | X188: 0 | Y188: 0 | Z188: 0 | AA188: 0 | AB188: 0 | AC188: 0 | AD188: 0 | AE188: 0 | AF188: 0 | AG188: 0 | AH188: 0 | AI188: 0 | AJ188: 0 | AK188: 0 | AL188: 0 | AM188: 0 | AN188: 0 | AO188: 0 | AP188: 0 | AQ188: 0 | AR188: 0 | AS188: 0 | AT188: 0 | AU188: 0 | AV188: 0 | AW188: 0 | AX188: 0 | AY188: 0 | AZ188: 0 | BA188: =BA$135*$A138 -> 0 | BB188: =BB$135*$A137 -> 0 | CA188: 0
A189: 0 | B189: 53 | C189: 0 | D189: 0 | E189: 0 | F189: 0 | G189: 0 | H189: 0 | I189: 0 | J189: 0 | K189: 0 | L189: 0 | M189: 0 | N189: 0 | O189: 0 | P189: 0 | Q189: 0 | R189: 0 | S189: 0 | T189: 0 | U189: 0 | V189: 0 | W189: 0 | X189: 0 | Y189: 0 | Z189: 0 | AA189: 0 | AB189: 0 | AC189: 0 | AD189: 0 | AE189: 0 | AF189: 0 | AG189: 0 | AH189: 0 | AI189: 0 | AJ189: 0 | AK189: 0 | AL189: 0 | AM189: 0 | AN189: 0 | AO189: 0 | AP189: 0 | AQ189: 0 | AR189: 0 | AS189: 0 | AT189: 0 | AU189: 0 | AV189: 0 | AW189: 0 | AX189: 0 | AY189: 0 | AZ189: 0 | BA189: 0 | BB189: =BB$135*$A138 -> 0 | BC189: =BC$135*$A137 -> 0 | CA189: 0
A190: 0 | B190: 54 | C190: 0 | D190: 0 | E190: 0 | F190: 0 | G190: 0 | H190: 0 | I190: 0 | J190: 0 | K190: 0 | L190: 0 | M190: 0 | N190: 0 | O190: 0 | P190: 0 | Q190: 0 | R190: 0 | S190: 0 | T190: 0 | U190: 0 | V190: 0 | W190: 0 | X190: 0 | Y190: 0 | Z190: 0 | AA190: 0 | AB190: 0 | AC190: 0 | AD190: 0 | AE190: 0 | AF190: 0 | AG190: 0 | AH190: 0 | AI190: 0 | AJ190: 0 | AK190: 0 | AL190: 0 | AM190: 0 | AN190: 0 | AO190: 0 | AP190: 0 | AQ190: 0 | AR190: 0 | AS190: 0 | AT190: 0 | AU190: 0 | AV190: 0 | AW190: 0 | AX190: 0 | AY190: 0 | AZ190: 0 | BA190: 0 | BB190: 0 | BC190: =BC$135*$A138 -> 0 | BD190: =BD$135*$A137 -> 0 | CA190: 0
A191: 0 | B191: 55 | C191: 0 | D191: 0 | E191: 0 | F191: 0 | G191: 0 | H191: 0 | I191: 0 | J191: 0 | K191: 0 | L191: 0 | M191: 0 | N191: 0 | O191: 0 | P191: 0 | Q191: 0 | R191: 0 | S191: 0 | T191: 0 | U191: 0 | V191: 0 | W191: 0 | X191: 0 | Y191: 0 | Z191: 0 | AA191: 0 | AB191: 0 | AC191: 0 | AD191: 0 | AE191: 0 | AF191: 0 | AG191: 0 | AH191: 0 | AI191: 0 | AJ191: 0 | AK191: 0 | AL191: 0 | AM191: 0 | AN191: 0 | AO191: 0 | AP191: 0 | AQ191: 0 | AR191: 0 | AS191: 0 | AT191: 0 | AU191: 0 | AV191: 0 | AW191: 0 | AX191: 0 | AY191: 0 | AZ191: 0 | BA191: 0 | BB191: 0 | BC191: 0 | BD191: =BD$135*$A138 -> 0 | BE191: =BE$135*$A137 -> 0 | CA191: 0
A192: 0 | B192: 56 | C192: 0 | D192: 0 | E192: 0 | F192: 0 | G192: 0 | H192: 0 | I192: 0 | J192: 0 | K192: 0 | L192: 0 | M192: 0 | N192: 0 | O192: 0 | P192: 0 | Q192: 0 | R192: 0 | S192: 0 | T192: 0 | U192: 0 | V192: 0 | W192: 0 | X192: 0 | Y192: 0 | Z192: 0 | AA192: 0 | AB192: 0 | AC192: 0 | AD192: 0 | AE192: 0 | AF192: 0 | AG192: 0 | AH192: 0 | AI192: 0 | AJ192: 0 | AK192: 0 | AL192: 0 | AM192: 0 | AN192: 0 | AO192: 0 | AP192: 0 | AQ192: 0 | AR192: 0 | AS192: 0 | AT192: 0 | AU192: 0 | AV192: 0 | AW192: 0 | AX192: 0 | AY192: 0 | AZ192: 0 | BA192: 0 | BB192: 0 | BC192: 0 | BD192: 0 | BE192: =BE$135*$A138 -> 0 | BF192: =BF$135*$A137 -> 0 | CA192: 0
A193: 0 | B193: 57 | C193: 0 | D193: 0 | E193: 0 | F193: 0 | G193: 0 | H193: 0 | I193: 0 | J193: 0 | K193: 0 | L193: 0 | M193: 0 | N193: 0 | O193: 0 | P193: 0 | Q193: 0 | R193: 0 | S193: 0 | T193: 0 | U193: 0 | V193: 0 | W193: 0 | X193: 0 | Y193: 0 | Z193: 0 | AA193: 0 | AB193: 0 | AC193: 0 | AD193: 0 | AE193: 0 | AF193: 0 | AG193: 0 | AH193: 0 | AI193: 0 | AJ193: 0 | AK193: 0 | AL193: 0 | AM193: 0 | AN193: 0 | AO193: 0 | AP193: 0 | AQ193: 0 | AR193: 0 | AS193: 0 | AT193: 0 | AU193: 0 | AV193: 0 | AW193: 0 | AX193: 0 | AY193: 0 | AZ193: 0 | BA193: 0 | BB193: 0 | BC193: 0 | BD193: 0 | BE193: 0 | BF193: =BF$135*$A138 -> 0 | BG193: =BG$135*$A137 -> 0 | CA193: 0
A194: 0 | B194: 58 | C194: 0 | D194: 0 | E194: 0 | F194: 0 | G194: 0 | H194: 0 | I194: 0 | J194: 0 | K194: 0 | L194: 0 | M194: 0 | N194: 0 | O194: 0 | P194: 0 | Q194: 0 | R194: 0 | S194: 0 | T194: 0 | U194: 0 | V194: 0 | W194: 0 | X194: 0 | Y194: 0 | Z194: 0 | AA194: 0 | AB194: 0 | AC194: 0 | AD194: 0 | AE194: 0 | AF194: 0 | AG194: 0 | AH194: 0 | AI194: 0 | AJ194: 0 | AK194: 0 | AL194: 0 | AM194: 0 | AN194: 0 | AO194: 0 | AP194: 0 | AQ194: 0 | AR194: 0 | AS194: 0 | AT194: 0 | AU194: 0 | AV194: 0 | AW194: 0 | AX194: 0 | AY194: 0 | AZ194: 0 | BA194: 0 | BB194: 0 | BC194: 0 | BD194: 0 | BE194: 0 | BF194: 0 | BG194: =BG$135*$A138 -> 0 | BH194: =BH$135*$A137 -> 0 | CA194: 0
A195: 0 | B195: 59 | C195: 0 | D195: 0 | E195: 0 | F195: 0 | G195: 0 | H195: 0 | I195: 0 | J195: 0 | K195: 0 | L195: 0 | M195: 0 | N195: 0 | O195: 0 | P195: 0 | Q195: 0 | R195: 0 | S195: 0 | T195: 0 | U195: 0 | V195: 0 | W195: 0 | X195: 0 | Y195: 0 | Z195: 0 | AA195: 0 | AB195: 0 | AC195: 0 | AD195: 0 | AE195: 0 | AF195: 0 | AG195: 0 | AH195: 0 | AI195: 0 | AJ195: 0 | AK195: 0 | AL195: 0 | AM195: 0 | AN195: 0 | AO195: 0 | AP195: 0 | AQ195: 0 | AR195: 0 | AS195: 0 | AT195: 0 | AU195: 0 | AV195: 0 | AW195: 0 | AX195: 0 | AY195: 0 | AZ195: 0 | BA195: 0 | BB195: 0 | BC195: 0 | BD195: 0 | BE195: 0 | BF195: 0 | BG195: 0 | BH195: =BH$135*$A138 -> 0 | BI195: =BI$135*$A137 -> 0 | CA195: 0
A196: 0 | B196: 60 | C196: 0 | D196: 0 | E196: 0 | F196: 0 | G196: 0 | H196: 0 | I196: 0 | J196: 0 | K196: 0 | L196: 0 | M196: 0 | N196: 0 | O196: 0 | P196: 0 | Q196: 0 | R196: 0 | S196: 0 | T196: 0 | U196: 0 | V196: 0 | W196: 0 | X196: 0 | Y196: 0 | Z196: 0 | AA196: 0 | AB196: 0 | AC196: 0 | AD196: 0 | AE196: 0 | AF196: 0 | AG196: 0 | AH196: 0 | AI196: 0 | AJ196: 0 | AK196: 0 | AL196: 0 | AM196: 0 | AN196: 0 | AO196: 0 | AP196: 0 | AQ196: 0 | AR196: 0 | AS196: 0 | AT196: 0 | AU196: 0 | AV196: 0 | AW196: 0 | AX196: 0 | AY196: 0 | AZ196: 0 | BA196: 0 | BB196: 0 | BC196: 0 | BD196: 0 | BE196: 0 | BF196: 0 | BG196: 0 | BH196: 0 | BI196: =BI$135*$A138 -> 0 | BJ196: =BJ$135*$A137 -> 0 | CA196: 0
A197: 0 | B197: 61 | C197: 0 | D197: 0 | E197: 0 | F197: 0 | G197: 0 | H197: 0 | I197: 0 | J197: 0 | K197: 0 | L197: 0 | M197: 0 | N197: 0 | O197: 0 | P197: 0 | Q197: 0 | R197: 0 | S197: 0 | T197: 0 | U197: 0 | V197: 0 | W197: 0 | X197: 0 | Y197: 0 | Z197: 0 | AA197: 0 | AB197: 0 | AC197: 0 | AD197: 0 | AE197: 0 | AF197: 0 | AG197: 0 | AH197: 0 | AI197: 0 | AJ197: 0 | AK197: 0 | AL197: 0 | AM197: 0 | AN197: 0 | AO197: 0 | AP197: 0 | AQ197: 0 | AR197: 0 | AS197: 0 | AT197: 0 | AU197: 0 | AV197: 0 | AW197: 0 | AX197: 0 | AY197: 0 | AZ197: 0 | BA197: 0 | BB197: 0 | BC197: 0 | BD197: 0 | BE197: 0 | BF197: 0 | BG197: 0 | BH197: 0 | BI197: 0 | BJ197: =BJ$135*$A138 -> 0 | BK197: =BK$135*$A137 -> 0 | CA197: 0
A198: 0 | B198: 62 | C198: 0 | D198: 0 | E198: 0 | F198: 0 | G198: 0 | H198: 0 | I198: 0 | J198: 0 | K198: 0 | L198: 0 | M198: 0 | N198: 0 | O198: 0 | P198: 0 | Q198: 0 | R198: 0 | S198: 0 | T198: 0 | U198: 0 | V198: 0 | W198: 0 | X198: 0 | Y198: 0 | Z198: 0 | AA198: 0 | AB198: 0 | AC198: 0 | AD198: 0 | AE198: 0 | AF198: 0 | AG198: 0 | AH198: 0 | AI198: 0 | AJ198: 0 | AK198: 0 | AL198: 0 | AM198: 0 | AN198: 0 | AO198: 0 | AP198: 0 | AQ198: 0 | AR198: 0 | AS198: 0 | AT198: 0 | AU198: 0 | AV198: 0 | AW198: 0 | AX198: 0 | AY198: 0 | AZ198: 0 | BA198: 0 | BB198: 0 | BC198: 0 | BD198: 0 | BE198: 0 | BF198: 0 | BG198: 0 | BH198: 0 | BI198: 0 | BJ198: 0 | BK198: =BK$135*$A138 -> 0 | BL198: =BL$135*$A137 -> 0 | CA198: 0
A199: 0 | B199: 63 | C199: 0 | D199: 0 | E199: 0 | F199: 0 | G199: 0 | H199: 0 | I199: 0 | J199: 0 | K199: 0 | L199: 0 | M199: 0 | N199: 0 | O199: 0 | P199: 0 | Q199: 0 | R199: 0 | S199: 0 | T199: 0 | U199: 0 | V199: 0 | W199: 0 | X199: 0 | Y199: 0 | Z199: 0 | AA199: 0 | AB199: 0 | AC199: 0 | AD199: 0 | AE199: 0 | AF199: 0 | AG199: 0 | AH199: 0 | AI199: 0 | AJ199: 0 | AK199: 0 | AL199: 0 | AM199: 0 | AN199: 0 | AO199: 0 | AP199: 0 | AQ199: 0 | AR199: 0 | AS199: 0 | AT199: 0 | AU199: 0 | AV199: 0 | AW199: 0 | AX199: 0 | AY199: 0 | AZ199: 0 | BA199: 0 | BB199: 0 | BC199: 0 | BD199: 0 | BE199: 0 | BF199: 0 | BG199: 0 | BH199: 0 | BI199: 0 | BJ199: 0 | BK199: 0 | BL199: =BL$135*$A138 -> 0 | BM199: =BM$135*$A137 -> 0 | CA199: 0
A200: 0 | B200: 64 | C200: 0 | D200: 0 | E200: 0 | F200: 0 | G200: 0 | H200: 0 | I200: 0 | J200: 0 | K200: 0 | L200: 0 | M200: 0 | N200: 0 | O200: 0 | P200: 0 | Q200: 0 | R200: 0 | S200: 0 | T200: 0 | U200: 0 | V200: 0 | W200: 0 | X200: 0 | Y200: 0 | Z200: 0 | AA200: 0 | AB200: 0 | AC200: 0 | AD200: 0 | AE200: 0 | AF200: 0 | AG200: 0 | AH200: 0 | AI200: 0 | AJ200: 0 | AK200: 0 | AL200: 0 | AM200: 0 | AN200: 0 | AO200: 0 | AP200: 0 | AQ200: 0 | AR200: 0 | AS200: 0 | AT200: 0 | AU200: 0 | AV200: 0 | AW200: 0 | AX200: 0 | AY200: 0 | AZ200: 0 | BA200: 0 | BB200: 0 | BC200: 0 | BD200: 0 | BE200: 0 | BF200: 0 | BG200: 0 | BH200: 0 | BI200: 0 | BJ200: 0 | BK200: 0 | BL200: 0 | BM200: =BM$135*$A138 -> 0 | BN200: =BN$135*$A137 -> 0 | CA200: 0
A201: 0 | B201: 65 | C201: 0 | D201: 0 | E201: 0 | F201: 0 | G201: 0 | H201: 0 | I201: 0 | J201: 0 | K201: 0 | L201: 0 | M201: 0 | N201: 0 | O201: 0 | P201: 0 | Q201: 0 | R201: 0 | S201: 0 | T201: 0 | U201: 0 | V201: 0 | W201: 0 | X201: 0 | Y201: 0 | Z201: 0 | AA201: 0 | AB201: 0 | AC201: 0 | AD201: 0 | AE201: 0 | AF201: 0 | AG201: 0 | AH201: 0 | AI201: 0 | AJ201: 0 | AK201: 0 | AL201: 0 | AM201: 0 | AN201: 0 | AO201: 0 | AP201: 0 | AQ201: 0 | AR201: 0 | AS201: 0 | AT201: 0 | AU201: 0 | AV201: 0 | AW201: 0 | AX201: 0 | AY201: 0 | AZ201: 0 | BA201: 0 | BB201: 0 | BC201: 0 | BD201: 0 | BE201: 0 | BF201: 0 | BG201: 0 | BH201: 0 | BI201: 0 | BJ201: 0 | BK201: 0 | BL201: 0 | BM201: 0 | BN201: =BN$135*$A138 -> 0 | BO201: =BO$135*$A137 -> 0 | CA201: =SUM($C201:$BZ201) -> 0
A202: =IF($B$132=1,CC202,IF($B$132=2,CD202,IF($B$132=3,CE202,IF($B$132=4,CF202,#VALUE!)))) -> 0 | B202: =+B201+1 -> 66 | C202: =C$135*$A202 -> 0 | D202: 0 | E202: 0 | F202: 0 | G202: 0 | H202: 0 | I202: 0 | J202: 0 | K202: 0 | L202: 0 | M202: 0 | N202: 0 | O202: 0 | P202: 0 | Q202: 0 | R202: 0 | S202: 0 | T202: 0 | U202: 0 | V202: 0 | W202: 0 | X202: 0 | Y202: 0 | Z202: 0 | AA202: 0 | AB202: 0 | AC202: 0 | AD202: 0 | AE202: 0 | AF202: 0 | AG202: 0 | AH202: 0 | AI202: 0 | AJ202: 0 | AK202: 0 | AL202: 0 | AM202: 0 | AN202: 0 | AO202: 0 | AP202: 0 | AQ202: 0 | AR202: 0 | AS202: 0 | AT202: 0 | AU202: 0 | AV202: 0 | AW202: 0 | AX202: 0 | AY202: 0 | AZ202: 0 | BA202: 0 | BB202: 0 | BC202: 0 | BD202: 0 | BE202: 0 | BF202: 0 | BG202: 0 | BH202: 0 | BI202: 0 | BJ202: 0 | BK202: 0 | BL202: 0 | BM202: 0 | BN202: 0 | BO202: =BO$135*$A138 -> 0 | BP202: =BP$135*$A137 -> 0 | CA202: 0
A203: 0 | B203: 67 | C203: 0 | D203: =D$135*$A202 -> 0 | E203: 0 | F203: 0 | G203: 0 | H203: 0 | I203: 0 | J203: 0 | K203: 0 | L203: 0 | M203: 0 | N203: 0 | O203: 0 | P203: 0 | Q203: 0 | R203: 0 | S203: 0 | T203: 0 | U203: 0 | V203: 0 | W203: 0 | X203: 0 | Y203: 0 | Z203: 0 | AA203: 0 | AB203: 0 | AC203: 0 | AD203: 0 | AE203: 0 | AF203: 0 | AG203: 0 | AH203: 0 | AI203: 0 | AJ203: 0 | AK203: 0 | AL203: 0 | AM203: 0 | AN203: 0 | AO203: 0 | AP203: 0 | AQ203: 0 | AR203: 0 | AS203: 0 | AT203: 0 | AU203: 0 | AV203: 0 | AW203: 0 | AX203: 0 | AY203: 0 | AZ203: 0 | BA203: 0 | BB203: 0 | BC203: 0 | BD203: 0 | BE203: 0 | BF203: 0 | BG203: 0 | BH203: 0 | BI203: 0 | BJ203: 0 | BK203: 0 | BL203: 0 | BM203: 0 | BN203: 0 | BO203: 0 | BP203: =BP$135*$A138 -> 0 | BQ203: =BQ$135*$A137 -> 0 | CA203: 0
A204: 0 | B204: 68 | C204: 0 | D204: 0 | E204: =E$135*$A202 -> 0 | F204: 0 | G204: 0 | H204: 0 | I204: 0 | J204: 0 | K204: 0 | L204: 0 | M204: 0 | N204: 0 | O204: 0 | P204: 0 | Q204: 0 | R204: 0 | S204: 0 | T204: 0 | U204: 0 | V204: 0 | W204: 0 | X204: 0 | Y204: 0 | Z204: 0 | AA204: 0 | AB204: 0 | AC204: 0 | AD204: 0 | AE204: 0 | AF204: 0 | AG204: 0 | AH204: 0 | AI204: 0 | AJ204: 0 | AK204: 0 | AL204: 0 | AM204: 0 | AN204: 0 | AO204: 0 | AP204: 0 | AQ204: 0 | AR204: 0 | AS204: 0 | AT204: 0 | AU204: 0 | AV204: 0 | AW204: 0 | AX204: 0 | AY204: 0 | AZ204: 0 | BA204: 0 | BB204: 0 | BC204: 0 | BD204: 0 | BE204: 0 | BF204: 0 | BG204: 0 | BH204: 0 | BI204: 0 | BJ204: 0 | BK204: 0 | BL204: 0 | BM204: 0 | BN204: 0 | BO204: 0 | BP204: 0 | BQ204: =BQ$135*$A138 -> 0 | BR204: =BR$135*$A137 -> 0 | CA204: 0
A205: 0 | B205: 69 | C205: 0 | D205: 0 | E205: 0 | F205: =F$135*$A202 -> 0 | G205: 0 | H205: 0 | I205: 0 | J205: 0 | K205: 0 | L205: 0 | M205: 0 | N205: 0 | O205: 0 | P205: 0 | Q205: 0 | R205: 0 | S205: 0 | T205: 0 | U205: 0 | V205: 0 | W205: 0 | X205: 0 | Y205: 0 | Z205: 0 | AA205: 0 | AB205: 0 | AC205: 0 | AD205: 0 | AE205: 0 | AF205: 0 | AG205: 0 | AH205: 0 | AI205: 0 | AJ205: 0 | AK205: 0 | AL205: 0 | AM205: 0 | AN205: 0 | AO205: 0 | AP205: 0 | AQ205: 0 | AR205: 0 | AS205: 0 | AT205: 0 | AU205: 0 | AV205: 0 | AW205: 0 | AX205: 0 | AY205: 0 | AZ205: 0 | BA205: 0 | BB205: 0 | BC205: 0 | BD205: 0 | BE205: 0 | BF205: 0 | BG205: 0 | BH205: 0 | BI205: 0 | BJ205: 0 | BK205: 0 | BL205: 0 | BM205: 0 | BN205: 0 | BO205: 0 | BP205: 0 | BQ205: 0 | BR205: =BR$135*$A138 -> 0 | BS205: =BS$135*$A137 -> 0 | CA205: 0
... 177 more rows

Sheet DLC-Smart TS
A1: State Income Tax Rate ............ | D1: 0.0164024 | I1: Debt ........................... | L1: 0.5 | M1: 0.052 | N1: =ROUND(L1*M1,4) -> 0.026 | O1: =N1*(1-D2) -> 0.02054 | Q1: Gross Revenue | T1: 1
A2: Federal Income Tax Rate ........ | D2: 0.21 | I2: Preferred Stock ................. | L2: 0 | M2: 0 | N2: =ROUND(L2*M2,4) -> 0 | O2: =N2 -> 0 | Q2: Uncollectables | T2: 0
A3: Discount Factor ...................... | D3: =+O4 -> 0.06804 | I3: Common Equity ...................... | L3: 0.5 | M3: 0.095 | N3: =ROUND(L3*M3,4) -> 0.0475 | O3: =N3 -> 0.0475 | Q3: Commission Fees | T3: 0
A4: Capital Class ........................... | D4: 4 | E4: (1) General Structures. | N4: =SUM(N1:N3) -> 0.0735 | O4: =SUM(O1:O3) -> 0.06804 | Q4: Excise Tax | T4: 0
E5: (2) Generation, Transmission, | Q5: Franchise Fees | T5: 0
E6: and Distribution. | Q6: ERSA | T6: 0
E7: (3) Other Equipment. | N7: IRR CALC | T7: -
E8: (4) Transportation Equipment. | I8: Principal ...................... | L8: =T24 -> 1.642570859e-51 | N8: =L8 -> 1.642570859e-51 | O8: pv princ | Q8: Misc. Revenue Items | T8: =SUM(T2:T6) -> 0
A9: Book Life (Years) .............. | D9: 10 | I9: Interest ....................... | L9: =D3 -> 0.06804 | N9: =V20 -> 0 | O9: pv lvlized margin | T9: -
A10: Property Tax Rate ............... | D10: 0.015 | I10: Term ............................. | L10: 10 | N10: =IRR($AI$28:$AI$102,0.059065190478108) ->  | O10: IRR | Q10: Before State Income Tax | T10: =T1-T8 -> 1
A11: O&M Escalation Factor .......... | D11: 0.03 | I11: Levelized Gr. Mar. Requirement ....... | L11: =PMT($L$9,$L$10,-$L$8) -> 2.317507992e-52 | Q11: State Income Tax | T11: 0
T12: -
B13: Idaho | C13: Oregon | D13: Washington | Q13: Before Federal Income Tax | T13: =T10-T11 -> 1
A14: Electric | B14: 0.35 | C14: 0 | D14: 0.65 | E14: =SUM(B14:D14) -> 1 | K14: Lev ROE | L14: =PMT(L9,L10,-L15) -> 27543.09047 | Q14: Federal Income Tax | T14: =T13*D2 -> 0.21 | V14: (v) | W14: (w) | X14: (x) | Y14: (y) | Z14: (z) | AA14: (aa) | AB14: (ab) | AC14: (ac) | AD14: (ad) | AE14: (ae) | AF14: (af) | AG14: (ag) | AH14: (ah)
A15: Gas | B15: 0 | C15: 0 | D15: 0 | E15: =SUM(B15:D15) -> 0 | K15: NPV equity | L15: =NPV(L9,$M$28:$M$103) -> 195216.0593 | T15: - | V15: PV GM
B16: =SUM(B14:B15) -> 0.35 | C16: =SUM(C14:C15) -> 0 | D16: 0.65 | E16: 1 | Q16: Conversion Factor | T16: =T13-T14 -> 0.79 | V16: =NPV(O4,$V$29:$V$103)+V28 -> 0
A17: ...................................................................................................................................................................................................................... | V17: TERM
B18: Capital Additions | V18: =L10 -> 10 | AD18: pv of contribution to fixed costs | AG18: =NPV(O4,20,AG28:AG28) -> 18.72589042
B19: ----------------- | D19: Rate | E19: Accum. | G19: Book Dep. | I19: Rate | K19: Average | P19: Misc. | Q19: State | R19: Federal | S19: Total | T19: Present Val | V19: LEVELIZED | AE19: Interest ....................... | AG19: =O4 -> 0.06804 | AL19: Inter.
B20: Tax | C20: Book | D20: Base | E20: Book | F20: Tax | G20: on Tax | H20: Deferred | I20: Base | J20: Book | K20: Rate | L20: Interest | M20: Equity | N20: O&M & A&G | O20: Property | P20: Revenue | Q20: Income | R20: Income | S20: Gross Marg | T20: Gross Marg | V20: =PMT(L9,V18,-V16) -> 0 | AE20: Term ............................. | AG20: 50 | AH20: per kwh | AL20: Revenue | AN20: Net Book
B21: Basis | C21: Basis | D21: BOP | E21: Deprec. | F21: Deprec. | G21: Basis | H21: Taxes | I21: EOP | J21: Deprec. | K21: Base | L21: Expense | M21: Return | N21: Expense | O21: Taxes | P21: Items | Q21: Tax | R21: Taxes | S21: Reqmnt | T21: Reqmnt | AD21: levelized cont. to fixed costs | AG21: =PMT(AG19,AG20,-AG18) -> 1.323347304 | AH21: =AG21/(400*1000) -> 3.308368259e-06 | AL21: Requirement | AN21: BOP
A22: (a) | B22: (b) | C22: (c) | D22: (d) | E22: (e) | F22: (f) | G22: (g) | H22: (h) | I22: (i) | J22: (j) | K22: (k) | L22: (l) | M22: (m) | N22: (n) | O22: (o) | P22: (p) | Q22: (q) | R22: (r) | S22: (s) | T22: (t) | W22: - | X22: - | Y22: - | Z22: - | AA22: - | AB22: - | AC22: - | AD22: - | AE22: - | AF22: - | AG22: - | AH22: -
B23: - | C23: - | D23: - | E23: - | F23: - | G23: - | H23: - | I23: - | J23: - | K23: - | L23: - | M23: - | N23: - | O23: - | P23: - | Q23: - | R23: - | S23: - | T23: - | Z23: RES LOAD @ | AG23: ANNUAL | AH23: CUMULATIVE | AL23: - | AN23: -
A24: Total => | B24: =SUM(B25:B104) -> 1692371.336 | C24: =SUM(C25:C104) -> 1692371.336 | F24: =SUM(F25:F104) -> 1692371.336 | G24: =SUM(G25:G104) -> 1692371.336 | H24: =SUM(H25:H104) -> -1.045918907e-11 | J24: =SUM(J25:J104) -> 1692371.336 | L24: =SUM(L25:L104) -> 195044.5509 | M24: 356331.3911 | N24: 20683452.34 | O24: 139620.6353 | P24: 0 | Q24: 1288.340799 | R24: 16224.0814 | S24: 23992108.45 | T24: 1.642570859e-51 | V24: Offsets | X24: NEW | Y24: CUML | Z24: 12000 | AA24: COMM | AB24: COMM | AC24: TOTAL | AD24: TOTAL | AE24: REVENUE | AF24: ESTIMATED | AG24: (SHORTFALL) | AH24: (SHORTFALL)
A25: Period | B25: - | C25: - | D25: - | E25: - | F25: - | G25: - | H25: - | I25: - | J25: - | K25: - | L25: - | M25: - | N25: - | O25: - | P25: - | Q25: - | R25: - | S25: - | T25: - | W25: YR | X25: CUST | Y25: CUST | Z25: KWH EA | AA25: CUST | AB25: LOAD | AC25: CUST | AD25: LOAD | AE25: REQ | AF25: MARGIN | AG25: EXCESS | AH25: EXCESS | AI25: 0.05906519048 | AL25: - | AN25: -
W26: - | X26: - | Y26: - | Z26: - | AA26: - | AB26: - | AC26: - | AD26: - | AE26: - | AF26: - | AG26: - | AH26: - | AJ26: =NPV(AI25,$AI$28:$AI$103) -> 0
S27: =-PMT(O4,20,NPV(O4,S28:S51)) -> 907775.7683
A28: 2023 | B28: =HLOOKUP($A28,'AEG Input File'!$AC$2:$AZ$8,4,FALSE)*Inflation!$B4/100 -> 0 | C28: =B28 -> 0 | D28: =I27+C28 -> 0 | E28: =E27+J28 -> 0 | F28: =CA137 -> 0 | G28: =CA229 -> 0 | H28: =(F28-G28)*$D$2 -> 0 | I28: =D28-J28-H28 -> 0 | J28: =CA323 -> 0 | K28: =(+I28+D28)/2 -> 0 | L28: =IF(A28=1,$N$1*K28,$N$1*K28) -> 0 | M28: =IF(A28=1,($N$3+$N$2)*K28,($N$3+$N$2)*K28) -> 0 | N28: =HLOOKUP($A28,'AEG Input File'!$BA$2:$BX$8,4,FALSE)*Inflation!$B4/100 -> 0 | O28: =AN28*$D$10 -> 0 | P28: =AL28*$T$8 -> 0 | Q28: =(+AL28-(G28+L28+N28+O28+P28))*$D$1 -> 0 | R28: =(+AL28-(G28+L28+N28+O28+P28+Q28))*$D$2 -> 0 | S28: =J28+M28+L28+N28+O28+P28+Q28+R28 -> 0 | T28: =S28/(1+$D$3)^(A28-1) -> 0 | V28: 0 | W28: =1+W27 -> 1 | X28: 0 | Y28: =+X28 -> 0 | Z28: =X28*$Z$24 -> 0 | AA28: 0 | AB28: 0 | AC28: =Y28+AA28 -> 0 | AD28: 0 | AE28: =S28 -> 0 | AF28: =V28 -> 0 | AG28: =AF28-AE28 -> 0 | AH28: =AF28-AE28 -> 0 | AI28: =IF(A28=1,AF28-T24,AF28) -> 0 | AL28: =(+J28+L28+M28+N28+O28-(($D$1+(1-$D$1)*$D$2)*(G28+L28+N28+O28)))/$T$16 -> 0 | AN28: =C28-J27+AN27 -> 0
A29: =1+A28 -> 2024 | B29: =HLOOKUP($A29,'AEG Input File'!$AC$2:$AZ$8,4,FALSE)*Inflation!$B5/100 -> 108406.8892 | C29: =B29 -> 108406.8892 | D29: =I28+C29 -> 108406.8892 | E29: 10840.68892 | F29: 21681.37784 | G29: =CA230 -> 10840.68892 | H29: 2276.544674 | I29: 95289.65562 | J29: 10840.68892 | K29: 101848.2724 | L29: =IF(A29=1,$N$1*K29,$N$1*K29) -> 2648.055083 | M29: 4837.79294 | N29: =HLOOKUP($A29,'AEG Input File'!$BA$2:$BX$8,4,FALSE)*Inflation!$B5/100 -> 145670.3987 | O29: 1626.103338 | P29: =AL29*$T$8 -> 0 | Q29: 57.18737129 | R29: 720.1608204 | S29: 166400.3872 | T29: =S29/(1+$D$3)^(A29-1) -> 2.446838011e-53 | V29: 0 | W29: =1+W28 -> 2 | X29: 0 | Y29: =+X29 -> 0 | Z29: =X29*$Z$24 -> 0 | AA29: 0 | AB29: 0 | AC29: 0 | AD29: 0 | AE29: 166400.3872 | AF29: 0 | AG29: -166400.3872 | AH29: =AF29-AE29 -> -166400.3872 | AI29: =IF(A29=1,AF29-T25,AF29) -> 0 | AL29: =(+J29+L29+M29+N29+O29-(($D$1+(1-$D$1)*$D$2)*(G29+L29+N29+O29)))/$T$16 -> 164271.7707 | AN29: =C29-J28+AN28 -> 108406.8892
A30: 2025 | B30: =HLOOKUP($A30,'AEG Input File'!$AC$2:$AZ$8,4,FALSE)*Inflation!$B6/100 -> 220181.772 | C30: 220181.772 | D30: 315471.4276 | E30: 43699.55504 | F30: 78726.55895 | G30: 32858.86612 | H30: 9632.215494 | I30: 272980.346 | J30: 32858.86612 | K30: 294225.8868 | L30: 7649.873058 | M30: 13975.72962 | N30: =HLOOKUP($A30,'AEG Input File'!$BA$2:$BX$8,4,FALSE)*Inflation!$B6/100 -> 271309.4478 | O30: 4766.219585 | P30: 0 | Q30: 204.9980633 | R30: 2581.54152 | S30: 333346.6758 | T30: 4.589437886e-53 | V30: 0 | W30: 3 | X30: 0 | Y30: 0 | Z30: 0 | AA30: 0 | AB30: 0 | AC30: 0 | AD30: 0 | AE30: 333346.6758 | AF30: 0 | AG30: -333346.6758 | AH30: -333346.6758 | AI30: 0 | AL30: 329082.4595 | AN30: 317747.9723
A31: 2026 | B31: =HLOOKUP($A31,'AEG Input File'!$AC$2:$AZ$8,4,FALSE)*Inflation!$B7/100 -> 450641.8929 | C31: 450641.8929 | D31: 723622.2389 | E31: 121622.6105 | F31: 181400.6683 | G31: 77923.05541 | H31: 21730.29872 | I31: 623968.8848 | J31: 77923.05541 | K31: 673795.5618 | L31: 17518.68461 | M31: 32005.28919 | N31: =HLOOKUP($A31,'AEG Input File'!$BA$2:$BX$8,4,FALSE)*Inflation!$B7/100 -> 530817.9925 | O31: 11032.96499 | P31: 0 | Q31: 493.0544143 | R31: 6209.036427 | S31: 676000.0775 | T31: 8.714101125e-53 | V31: 0 | W31: 4 | X31: 0 | Y31: 0 | Z31: 0 | AA31: 0 | AB31: 0 | AC31: 0 | AD31: 0 | AE31: 676000.0775 | AF31: 0 | AG31: -676000.0775 | AH31: -676000.0775 | AI31: 0 | AL31: 667352.592 | AN31: 735530.999
A32: 2027 | B32: =HLOOKUP($A32,'AEG Input File'!$AC$2:$AZ$8,4,FALSE)*Inflation!$B8/100 -> 248126.0441 | C32: 248126.0441 | D32: 872094.9289 | E32: 224358.2703 | F32: 248593.9884 | G32: 102735.6598 | H32: 30630.249 | I32: 738729.0201 | J32: 102735.6598 | K32: 805411.9745 | L32: 20940.71134 | M32: 38257.06879 | N32: =HLOOKUP($A32,'AEG Input File'!$BA$2:$BX$8,4,FALSE)*Inflation!$B8/100 -> 681567.482 | O32: 13586.00982 | P32: 0 | Q32: 574.0166584 | R32: 7228.594327 | S32: 864889.5427 | T32: 1.043876156e-52 | V32: 0 | W32: 5 | X32: 0 | Y32: 0 | Z32: 0 | AA32: 0 | AB32: 0 | AC32: 0 | AD32: 0 | AE32: 864889.5427 | AF32: 0 | AG32: -864889.5427 | AH32: -864889.5427 | AI32: 0 | AL32: 853825.7574 | AN32: 905733.9878
A33: 2028 | B33: =HLOOKUP($A33,'AEG Input File'!$AC$2:$AZ$8,4,FALSE)*Inflation!$B9/100 -> 142436.2048 | C33: 142436.2048 | D33: 881165.2249 | E33: 341337.5506 | F33: 232264.2323 | G33: 116979.2803 | H33: 24209.83992 | I33: 739976.1046 | J33: 116979.2803 | K33: 810570.6648 | L33: 21074.83728 | M33: 38502.10658 | N33: =HLOOKUP($A33,'AEG Input File'!$BA$2:$BX$8,4,FALSE)*Inflation!$B9/100 -> 775644.0195 | O33: 14181.51799 | P33: 0 | Q33: 549.7656461 | R33: 6923.201222 | S33: 973854.7285 | T33: 1.100512528e-52 | V33: 0 | W33: 6 | X33: 0 | Y33: 0 | Z33: 0 | AA33: 0 | AB33: 0 | AC33: 0 | AD33: 0 | AE33: 973854.7285 | AF33: 0 | AG33: -973854.7285 | AH33: -973854.7285 | AI33: 0 | AL33: 961397.0455 | AN33: 945434.5327
A34: 2029 | B34: =HLOOKUP($A34,'AEG Input File'!$AC$2:$AZ$8,4,FALSE)*Inflation!$B10/100 -> 26117.97756 | C34: 26117.97756 | D34: 766094.0822 | E34: 460928.6286 | F34: 181966.5045 | G34: 119591.0781 | H34: 13098.83956 | I34: 633404.1646 | J34: 119591.0781 | K34: 699749.1234 | L34: 18193.47721 | M34: 33238.08336 | N34: =HLOOKUP($A34,'AEG Input File'!$BA$2:$BX$8,4,FALSE)*Inflation!$B10/100 -> 805206.6763 | O34: 12818.59845 | P34: 0 | Q34: 432.9568989 | R34: 5452.228149 | S34: 994933.0984 | T34: 1.052706184e-52 | V34: 0 | W34: 7 | X34: 0 | Y34: 0 | Z34: 0 | AA34: 0 | AB34: 0 | AC34: 0 | AD34: 0 | AE34: 994933.0984 | AF34: 0 | AG34: -994933.0984 | AH34: -994933.0984 | AI34: 0 | AL34: 982205.7781 | AN34: 854573.23
A35: 2030 | B35: =HLOOKUP($A35,'AEG Input File'!$AC$2:$AZ$8,4,FALSE)*Inflation!$B11/100 -> 27099.71599 | C35: 27099.71599 | D35: 660503.8806 | E35: 583229.6783 | F35: 134305.9837 | G35: 122301.0497 | H35: 2521.036159 | I35: 535681.7948 | J35: 122301.0497 | K35: 598092.8377 | L35: 15550.41378 | M35: 28409.40979 | N35: =HLOOKUP($A35,'AEG Input File'!$BA$2:$BX$8,4,FALSE)*Inflation!$B11/100 -> 835939.6414 | O35: 11431.22802 | P35: 0 | Q35: 324.7883088 | R35: 4090.060614 | S35: 1018046.592 | T35: 1.008540706e-52 | V35: 0 | W35: 8 | X35: 0 | Y35: 0 | Z35: 0 | AA35: 0 | AB35: 0 | AC35: 0 | AD35: 0 | AE35: 1018046.592 | AF35: 0 | AG35: -1018046.592 | AH35: -1018046.592 | AI35: 0 | AL35: 1005023.6 | AN35: 762081.8679
A36: 2031 | B36: =HLOOKUP($A36,'AEG Input File'!$AC$2:$AZ$8,4,FALSE)*Inflation!$B12/100 -> 24654.63482 | C36: 24654.63482 | D36: 560336.4296 | E36: 707996.1914 | F36: 89567.23188 | G36: 124766.5131 | H36: -7391.849065 | I36: 442961.7655 | J36: 124766.5131 | K36: 501649.0975 | L36: 13042.87654 | M36: 23828.33213 | N36: =HLOOKUP($A36,'AEG Input File'!$BA$2:$BX$8,4,FALSE)*Inflation!$B12/100 -> 864774.3184 | O36: 9966.531797 | P36: 0 | Q36: 222.3212737 | R36: 2799.692786 | S36: 1039400.586 | T36: 9.64098077e-53 | V36: 0 | W36: 9 | X36: 0 | Y36: 0 | Z36: 0 | AA36: 0 | AB36: 0 | AC36: 0 | AD36: 0 | AE36: 1039400.586 | AF36: 0 | AG36: -1039400.586 | AH36: -1039400.586 | AI36: 0 | AL36: 1026104.432 | AN36: 664435.4531
A37: 2032 | B37: =HLOOKUP($A37,'AEG Input File'!$AC$2:$AZ$8,4,FALSE)*Inflation!$B13/100 -> 25468.08866 | C37: 25468.08866 | D37: 468429.8542 | E37: 835309.5134 | F37: 51895.7483 | G37: 127313.322 | H37: -15837.69048 | I37: 356954.2226 | J37: 127313.322 | K37: 412692.0384 | L37: 10729.993 | M37: 19602.87182 | N37: =HLOOKUP($A37,'AEG Input File'!$BA$2:$BX$8,4,FALSE)*Inflation!$B13/100 -> 894620.7825 | O37: 8477.055429 | P37: 0 | Q37: 126.8979575 | R37: 1598.026542 | S37: 1062468.949 | T37: 9.227137402e-53 | V37: 0 | W37: 10 | X37: 0 | Y37: 0 | Z37: 0 | AA37: 0 | AB37: 0 | AC37: 0 | AD37: 0 | AE37: 1062468.949 | AF37: 0 | AG37: -1062468.949 | AH37: -1062468.949 | AI37: 0 | AL37: 1048877.701 | AN37: 565137.0286
A38: 2033 | B38: =HLOOKUP($A38,'AEG Input File'!$AC$2:$AZ$8,4,FALSE)*Inflation!$B14/100 -> 26309.39521 | C38: 26309.39521 | D38: 383263.6179 | E38: 965253.775 | F38: 32480.36099 | G38: 129944.2615 | H38: -20467.41911 | I38: 273786.7754 | J38: 129944.2615 | K38: 328525.1966 | L38: 8541.655113 | M38: 15604.94684 | N38: =HLOOKUP($A38,'AEG Input File'!$BA$2:$BX$8,4,FALSE)*Inflation!$B14/100 -> 925514.9884 | O38: 6961.996527 | P38: 0 | Q38: 35.86770822 | R38: 451.6822088 | S38: 1087055.398 | T38: 8.839239477e-53 | V38: 0 | W38: 11 | X38: 0 | Y38: 0 | Z38: 0 | AA38: 0 | AB38: 0 | AC38: 0 | AD38: 0 | AE38: 1087055.398 | AF38: 0 | AG38: -1087055.398 | AH38: -1087055.398 | AI38: 0 | AL38: 1073149.637 | AN38: 464133.1018
A39: 2034 | B39: =HLOOKUP($A39,'AEG Input File'!$AC$2:$AZ$8,4,FALSE)*Inflation!$B15/100 -> 27179.54479 | C39: 27179.54479 | D39: 300966.3202 | E39: 1087075.302 | F39: 26211.28517 | G39: 121821.5271 | H39: -20078.1508 | I39: 199222.9439 | J39: 121821.5271 | K39: 250094.6321 | L39: 6502.460434 | M39: 11879.49502 | N39: =HLOOKUP($A39,'AEG Input File'!$BA$2:$BX$8,4,FALSE)*Inflation!$B15/100 -> 957494.1605 | O39: 5420.525776 | P39: 0 | Q39: -46.93707093 | R39: -591.0787426 | S39: 1102480.153 | T39: 8.393565522e-53 | V39: 0 | W39: 12 | X39: 0 | Y39: 0 | Z39: 0 | AA39: 0 | AB39: 0 | AC39: 0 | AD39: 0 | AE39: 1102480.153 | AF39: 0 | AG39: -1102480.153 | AH39: -1102480.153 | AI39: 0 | AL39: 1088377.076 | AN39: 361368.3851
A40: 2035 | B40: =HLOOKUP($A40,'AEG Input File'!$AC$2:$AZ$8,4,FALSE)*Inflation!$B16/100 -> 28079.5626 | C40: 28079.5626 | D40: 227302.5065 | E40: 1189686.608 | F40: 26699.85212 | G40: 102611.3061 | H40: -15941.40534 | I40: 140632.6057 | J40: 102611.3061 | K40: 183967.5561 | L40: 4783.15646 | M40: 8738.458917 | N40: =HLOOKUP($A40,'AEG Input File'!$BA$2:$BX$8,4,FALSE)*Inflation!$B16/100 -> 990596.8807 | O40: 4014.396309 | P40: 0 | Q40: -115.0496902 | R40: -1448.821259 | S40: 1109180.328 | T40: 7.906610506e-53 | V40: 0 | W40: 13 | X40: 0 | Y40: 0 | Z40: 0 | AA40: 0 | AB40: 0 | AC40: 0 | AD40: 0 | AE40: 1109180.328 | AF40: 0 | AG40: -1109180.328 | AH40: -1109180.328 | AI40: 0 | AL40: 1094991.541 | AN40: 267626.4206
A41: 2036 | B41: =HLOOKUP($A41,'AEG Input File'!$AC$2:$AZ$8,4,FALSE)*Inflation!$B17/100 -> 29010.48711 | C41: 29010.48711 | D41: 169643.0928 | E41: 1250134.774 | F41: 27390.90316 | G41: 60448.16557 | H41: -6942.025106 | I41: 116136.9524 | J41: 60448.16557 | K41: 142890.0226 | L41: 3715.140588 | M41: 6787.276074 | N41: =HLOOKUP($A41,'AEG Input File'!$BA$2:$BX$8,4,FALSE)*Inflation!$B17/100 -> 1024863.07 | O41: 2910.384024 | P41: 0 | Q41: -152.8522404 | R41: -1924.868942 | S41: 1096646.315 | T41: 7.319261312e-53 | V41: 0 | W41: 14 | X41: 0 | Y41: 0 | Z41: 0 | AA41: 0 | AB41: 0 | AC41: 0 | AD41: 0 | AE41: 1096646.315 | AF41: 0 | AG41: -1096646.315 | AH41: -1096646.315 | AI41: 0 | AL41: 1082617.866 | AN41: 194025.6016
A42: 2037 | B42: =HLOOKUP($A42,'AEG Input File'!$AC$2:$AZ$8,4,FALSE)*Inflation!$B18/100 -> 29973.40753 | C42: 29973.40753 | D42: 146110.3599 | E42: 1288767.676 | F42: 28298.20119 | G42: 38632.90191 | H42: -2170.28715 | I42: 109647.7452 | J42: 38632.90191 | K42: 127879.0525 | L42: 3324.855366 | M42: 6074.254996 | N42: =HLOOKUP($A42,'AEG Input File'!$BA$2:$BX$8,4,FALSE)*Inflation!$B18/100 -> 1060334.143 | O42: 2453.262653 | P42: 0 | Q42: -171.1023194 | R42: -2154.692268 | S42: 1108493.624 | T42: 6.927018539e-53 | V42: 0 | W42: 15 | X42: 0 | Y42: 0 | Z42: 0 | AA42: 0 | AB42: 0 | AC42: 0 | AD42: 0 | AE42: 1108493.624 | AF42: 0 | AG42: -1108493.624 | AH42: -1108493.624 | AI42: 0 | AL42: 1094313.622 | AN42: 163550.8435
A43: 2038 | B43: =HLOOKUP($A43,'AEG Input File'!$AC$2:$AZ$8,4,FALSE)*Inflation!$B19/100 -> 30969.48248 | C43: 30969.48248 | D43: 140617.2276 | E43: 1316253.905 | F43: 29236.67077 | G43: 27486.22968 | H43: 367.592629 | I43: 112763.4053 | J43: 27486.22968 | K43: 126690.3165 | L43: 3293.948229 | M43: 6017.790033 | N43: =HLOOKUP($A43,'AEG Input File'!$BA$2:$BX$8,4,FALSE)*Inflation!$B19/100 -> 1097052.936 | O43: 2338.311362 | P43: 0 | Q43: -179.1153242 | R43: -2255.600072 | S43: 1133754.5 | T43: 6.633529371e-53 | V43: 0 | W43: 16 | X43: 0 | Y43: 0 | Z43: 0 | AA43: 0 | AB43: 0 | AC43: 0 | AD43: 0 | AE43: 1133754.5 | AF43: 0 | AG43: -1133754.5 | AH43: -1133754.5 | AI43: 0 | AL43: 1119251.357 | AN43: 155887.4241
A44: 2039 | B44: =HLOOKUP($A44,'AEG Input File'!$AC$2:$AZ$8,4,FALSE)*Inflation!$B20/100 -> 31999.83144 | C44: 31999.83144 | D44: 144763.2368 | E44: 1344328.32 | F44: 30207.41043 | G44: 28074.41506 | H44: 447.9290278 | I44: 116240.8927 | J44: 28074.41506 | K44: =(+I44+D44)/2 -> 130502.0647 | L44: 3393.053683 | M44: 6198.848075 | N44: =HLOOKUP($A44,'AEG Input File'!$BA$2:$BX$8,4,FALSE)*Inflation!$B20/100 -> 1135063.892 | O44: 2406.015388 | P44: 0 | Q44: -185.7856428 | R44: =(+AL44-(G44+L44+N44+O44+P44+Q44))*$D$2 -> -2339.599424 | S44: 1172610.839 | T44: 6.423800114e-53 | V44: 0 | W44: 17 | X44: 0 | Y44: 0 | Z44: 0 | AA44: 0 | AB44: 0 | AC44: =Y44+AA44 -> 0 | AD44: 0 | AE44: 1172610.839 | AF44: 0 | AG44: -1172610.839 | AH44: -1172610.839 | AI44: 0 | AL44: 1157610.641 | AN44: 160401.0259
A45: 2040 | B45: =HLOOKUP($A45,'AEG Input File'!$AC$2:$AZ$8,4,FALSE)*Inflation!$B21/100 -> 33065.71747 | C45: 33065.71747 | D45: 149306.6102 | E45: 1372999.336 | F45: 31211.55766 | G45: 28671.01521 | H45: 533.5139141 | I45: 120102.081 | J45: 28671.01521 | K45: 134704.3456 | L45: 3502.312985 | M45: 6398.456416 | N45: =HLOOKUP($A45,'AEG Input File'!$BA$2:$BX$8,4,FALSE)*Inflation!$B21/100 -> 1174412.949 | O45: 2480.884924 | P45: 0 | Q45: -192.4377349 | R45: -2423.369249 | S45: 1212849.812 | T45: 6.220963045e-53 | V45: 0 | W45: 18 | X45: 0 | Y45: 0 | Z45: 0 | AA45: 0 | AB45: 0 | AC45: 0 | AD45: 0 | AE45: 1212849.812 | AF45: 0 | AG45: -1212849.812 | AH45: -1212849.812 | AI45: 0 | AL45: 1197334.871 | AN45: 165392.3283
A46: 2041 | B46: =HLOOKUP($A46,'AEG Input File'!$AC$2:$AZ$8,4,FALSE)*Inflation!$B22/100 -> 34168.39113 | C46: 34168.39113 | D46: 154270.4722 | E46: 1402621.726 | F46: 32250.30044 | G46: 29622.39084 | H46: 551.8610155 | I46: 124096.2203 | J46: 29622.39084 | K46: 139183.3462 | L46: 3618.767002 | M46: 6611.208946 | N46: =HLOOKUP($A46,'AEG Input File'!$BA$2:$BX$8,4,FALSE)*Inflation!$B22/100 -> 1215147.823 | O46: 2563.345563 | P46: 0 | Q46: -199.289185 | R46: -2509.649592 | S46: 1254854.597 | T46: 6.0263796e-53 | V46: 0 | W46: 19 | X46: 0 | Y46: 0 | Z46: 0 | AA46: 0 | AB46: 0 | AC46: 0 | AD46: 0 | AE46: 1254854.597 | AF46: 0 | AG46: -1254854.597 | AH46: -1254854.597 | AI46: 0 | AL46: 1238802.325 | AN46: 170889.7042
A47: 2042 | B47: =HLOOKUP($A47,'AEG Input File'!$AC$2:$AZ$8,4,FALSE)*Inflation!$B23/100 -> 35309.12879 | C47: 35309.12879 | D47: 159405.3491 | E47: 1433228.221 | F47: 33324.86191 | G47: 30606.49485 | H47: 570.8570817 | I47: =D47-J47-H47 -> 128227.9972 | J47: 30606.49485 | K47: 143816.6731 | L47: 3739.233501 | M47: 6831.291973 | N47: =HLOOKUP($A47,'AEG Input File'!$BA$2:$BX$8,4,FALSE)*Inflation!$B23/100 -> 1257317.822 | O47: 2648.646632 | P47: 0 | Q47: -206.3851884 | R47: -2599.009593 | S47: 1298338.094 | T47: 5.837990177e-53 | V47: 0 | W47: 20 | X47: 0 | Y47: 0 | Z47: 0 | AA47: 0 | AB47: 0 | AC47: 0 | AD47: 0 | AE47: 1298338.094 | AF47: 0 | AG47: -1298338.094 | AH47: -1298338.094 | AI47: 0 | AL47: 1281729.575 | AN47: 176576.4421
A48: 2043 | B48: =HLOOKUP($A48,'AEG Input File'!$AC$2:$AZ$8,4,FALSE)*Inflation!$B24/100 -> 36489.29394 | C48: 36489.29394 | D48: =I47+C48 -> 164717.2911 | E48: 1464852.706 | F48: 34436.50452 | G48: 31624.48473 | H48: 590.5241569 | I48: 132502.2822 | J48: 31624.48473 | K48: 148609.7867 | L48: 3863.854453 | M48: 7058.964866 | N48: =HLOOKUP($A48,'AEG Input File'!$BA$2:$BX$8,4,FALSE)*Inflation!$B24/100 -> 1300974.101 | O48: 2736.888618 | P48: 0 | Q48: -213.7344996 | R48: -2691.559503 | S48: 1343353 | T48: 5.655593565e-53 | V48: 0 | W48: 21 | X48: 0 | Y48: 0 | Z48: 0 | AA48: 0 | AB48: 0 | AC48: 0 | AD48: 0 | AE48: 1343353 | AF48: 0 | AG48: -1343353 | AH48: -1343353 | AI48: 0 | AL48: 1326168.645 | AN48: 182459.2412
A49: 2044 | B49: =HLOOKUP($A49,'AEG Input File'!$AC$2:$AZ$8,4,FALSE)*Inflation!$B25/100 -> 37710.30732 | C49: 37710.30732 | D49: 170212.5895 | E49: 1497530.267 | F49: 35586.54785 | G49: 32677.56098 | H49: 610.8872435 | I49: 136924.1413 | J49: 32677.56098 | K49: 153568.3654 | L49: 3992.777501 | M49: 7294.497357 | N49: =HLOOKUP($A49,'AEG Input File'!$BA$2:$BX$8,4,FALSE)*Inflation!$B25/100 -> 1346169.606 | O49: 2828.175957 | P49: 0 | Q49: -221.3461533 | R49: -2787.413091 | S49: 1389953.859 | T49: 5.478995044e-53 | V49: 0 | W49: 22 | X49: 0 | Y49: 0 | Z49: 0 | AA49: 0 | AB49: 0 | AC49: 0 | AD49: 0 | AE49: 1389953.859 | AF49: 0 | AG49: -1389953.859 | AH49: -1389953.859 | AI49: 0 | AL49: 1372173.379 | AN49: 188545.0638
A50: 2045 | B50: =HLOOKUP($A50,'AEG Input File'!$AC$2:$AZ$8,4,FALSE)*Inflation!$B26/100 -> 38973.5666 | C50: 38973.5666 | D50: 175897.7079 | E50: 1531297.228 | F50: 36776.35172 | G50: 33766.96138 | H50: 631.9719711 | I50: 141498.7746 | J50: 33766.96138 | K50: 158698.2412 | L50: 4126.154272 | M50: 7538.166458 | N50: =HLOOKUP($A50,'AEG Input File'!$BA$2:$BX$8,4,FALSE)*Inflation!$B26/100 -> 1392959.21 | O50: 2922.616042 | P50: 0 | Q50: -229.2295638 | R50: -2886.688914 | S50: 1438197.19 | T50: 5.308006448e-53 | V50: 0 | W50: 23 | X50: 0 | Y50: 0 | Z50: 0 | AA50: 0 | AB50: 0 | AC50: 0 | AD50: 0 | AE50: 1438197.19 | AF50: 0 | AG50: -1438197.19 | AH50: -1438197.19 | AI50: 0 | AL50: 1419799.575 | AN50: 194841.0694
A51: 2046 | B51: ='AEG Input File'!$AZ$532*Inflation!B26/100 -> 0 | C51: 0 | D51: 141498.7746 | E51: 1562163.141 | F51: 29951.19794 | G51: 30865.91267 | H51: -192.0900925 | I51: 110824.952 | J51: 30865.91267 | K51: 126161.8633 | L51: 3280.208445 | M51: 5992.688505 | N51: ='AEG Input File'!$BX$532*Inflation!$B$26/100 -> 0 | O51: 2416.111621 | P51: 0 | Q51: 114.5867282 | R51: 1442.991177 | S51: 44112.49915 | T51: 1.524358619e-54 | V51: 0 | W51: 24 | X51: 0 | Y51: 0 | Z51: 0 | AA51: 0 | AB51: 0 | AC51: 0 | AD51: 0 | AE51: 44112.49915 | AF51: 0 | AG51: -44112.49915 | AH51: -44112.49915 | AI51: 0 | AL51: 43548.20602 | AN51: 161074.1081
A52: 2047 | B52: 0 | C52: 0 | D52: 110824.952 | E52: 1590031.713 | F52: 18064.52467 | G52: 27868.57192 | H52: -2058.849922 | I52: 85015.22998 | J52: 27868.57192 | K52: 97920.09098 | L52: 2545.922365 | M52: 4651.204321 | N52: 0 | O52: 1953.122931 | P52: 0 | Q52: 87.86263442 | R52: 1106.454545 | S52: 38213.13871 | T52: 1.236376326e-54 | V52: 0 | W52: 25 | X52: 0 | Y52: 0 | Z52: 0 | AA52: 0 | AB52: 0 | AC52: 0 | AD52: 0 | AE52: 38213.13871 | AF52: 0 | AG52: -38213.13871 | AH52: -38213.13871 | AI52: 0 | AL52: 37724.31101 | AN52: 130208.1954
A53: 2048 | B53: 0 | C53: 0 | D53: 85015.22998 | E53: 1614803.337 | F53: 10935.76561 | G53: 24771.62367 | H53: -2905.530193 | I53: 63149.13651 | J53: 24771.62367 | K53: 74082.18324 | L53: 1926.136764 | M53: 3518.903704 | N53: 0 | O53: 1535.094352 | P53: 0 | Q53: 65.46561824 | R53: 824.408821 | S53: 32641.63293 | T53: 9.888315807e-55 | V53: 0 | W53: 26 | X53: 0 | Y53: 0 | Z53: 0 | AA53: 0 | AB53: 0 | AC53: 0 | AD53: 0 | AE53: 32641.63293 | AF53: 0 | AG53: -32641.63293 | AH53: -32641.63293 | AI53: 0 | AL53: 32224.07669 | AN53: 102339.6235
A54: 2049 | B54: 0 | C54: 0 | D54: 63149.13651 | E54: 1636374.977 | F54: 6661.868574 | G54: 21571.64052 | H54: -3131.05211 | I54: 44708.54809 | J54: 21571.64052 | K54: 53928.8423 | L54: 1402.1499 | M54: 2561.620009 | N54: 0 | O54: 1163.519997 | P54: 0 | Q54: 46.69184527 | R54: 587.9906147 | S54: 27333.61289 | T54: 7.752824857e-55 | V54: 0 | W54: 27 | X54: 0 | Y54: 0 | Z54: 0 | AA54: 0 | AB54: 0 | AC54: 0 | AD54: 0 | AE54: 27333.61289 | AF54: 0 | AG54: -27333.61289 | AH54: -27333.61289 | AI54: 0 | AL54: 26983.95757 | AN54: 77567.9998
A55: 2050 | B55: 0 | C55: 0 | D55: 44708.54809 | E55: 1654640.046 | F55: 2244.877436 | G55: 18265.06878 | H55: -3364.240182 | I55: 29807.7195 | J55: 18265.06878 | K55: 37258.13379 | L55: 968.7114786 | M55: 1769.761355 | N55: 0 | O55: 839.9453892 | P55: 0 | Q55: 31.34411657 | R55: 394.7165991 | S55: 22269.54772 | T55: 5.914074788e-55 | V55: 0 | W55: 28 | X55: 0 | Y55: 0 | Z55: 0 | AA55: 0 | AB55: 0 | AC55: 0 | AD55: 0 | AE55: 22269.54772 | AF55: 0 | AG55: -22269.54772 | AH55: -22269.54772 | AI55: 0 | AL55: 21984.67261 | AN55: 55996.35928
A56: 2051 | B56: 0 | C56: 0 | D56: 29807.7195 | E56: 1669488.276 | F56: 0 | G56: 14848.22966 | H56: -3118.12823 | I56: 18077.61806 | J56: 14848.22966 | K56: 23942.66878 | L56: 622.5093882 | M56: 1137.276767 | N56: 0 | O56: 565.9693575 | P56: 0 | Q56: 19.29824927 | R56: 243.0229387 | S56: 17436.30637 | T56: 4.335531925e-55 | V56: 0 | W56: 29 | X56: 0 | Y56: 0 | Z56: 0 | AA56: 0 | AB56: 0 | AC56: 0 | AD56: 0 | AE56: 17436.30637 | AF56: 0 | AG56: -17436.30637 | AH56: -17436.30637 | AI56: 0 | AL56: 17213.25875 | AN56: 37731.2905
A57: 2052 | B57: 0 | C57: 0 | D57: 18077.61806 | E57: 1680805.592 | F57: 0 | G57: 11317.31679 | H57: -2376.636525 | I57: 9136.9378 | J57: 11317.31679 | K57: 13607.27793 | L57: 353.7892262 | M57: 646.3457017 | N57: 0 | O57: 343.2459126 | P57: 0 | Q57: 10.18744715 | R57: 128.2905672 | S57: 12799.17564 | T57: 2.979767493e-55 | V57: 0 | W57: 30 | X57: 0 | Y57: 0 | Z57: 0 | AA57: 0 | AB57: 0 | AC57: 0 | AD57: 0 | AE57: 12799.17564 | AF57: 0 | AG57: -12799.17564 | AH57: -12799.17564 | AI57: 0 | AL57: 12635.44683 | AN57: 22883.06084
A58: 2053 | B58: 0 | C58: 0 | D58: 9136.9378 | E58: 1688473.98 | F58: 0 | G58: 7668.387392 | H58: -1610.361352 | I58: 3078.911761 | J58: 7668.387392 | K58: 6107.924781 | L58: 158.8060443 | M58: 290.1264271 | N58: 0 | O58: 173.4861608 | P58: 0 | Q58: 3.87126648 | R58: 48.75087596 | S58: 8343.428166 | T58: 1.818684612e-55 | V58: 0 | W58: 31 | X58: 0 | Y58: 0 | Z58: 0 | AA58: 0 | AB58: 0 | AC58: 0 | AD58: 0 | AE58: 8343.428166 | AF58: 0 | AG58: -8343.428166 | AH58: -8343.428166 | AI58: 0 | AL58: 8236.697892 | AN58: 11565.74405
A59: 2054 | B59: 0 | C59: 0 | D59: 3078.911761 | E59: 1692371.336 | F59: 0 | G59: 3897.35666 | H59: -818.4448985 | I59: 2.460183168e-10 | J59: 3897.35666 | K59: 1539.455881 | L59: 40.02585289 | M59: 73.12415433 | N59: 0 | O59: 58.46034989 | P59: 0 | Q59: 0.4432060962 | R59: 5.581296337 | S59: 4074.991519 | T59: 8.316719463e-56 | V59: 0 | W59: 32 | X59: 0 | Y59: 0 | Z59: 0 | AA59: 0 | AB59: 0 | AC59: 0 | AD59: 0 | AE59: 4074.991519 | AF59: 0 | AG59: -4074.991519 | AH59: -4074.991519 | AI59: 0 | AL59: 4022.86367 | AN59: 3897.35666
A60: 2055 | B60: 0 | C60: 0 | D60: 2.460183168e-10 | E60: 1692371.336 | F60: 0 | G60: 0 | H60: 0 | I60: 2.460183168e-10 | J60: 0 | K60: 2.460183168e-10 | L60: 6.396476238e-12 | M60: 1.168587005e-11 | N60: 0 | O60: 1.03000275e-12 | P60: 0 | Q60: 2.406302363e-13 | R60: 3.030257633e-12 | S60: 2.238323691e-11 | T60: 4.277211406e-70 | V60: 0 | W60: 33 | X60: 0 | Y60: 0 | Z60: 0 | AA60: 0 | AB60: 0 | AC60: 0 | AD60: 0 | AE60: 2.238323691e-11 | AF60: 0 | AG60: -2.238323691e-11 | AH60: -2.238323691e-11 | AI60: 0 | AL60: 2.209690748e-11 | AN60: 6.866684998e-11
A61: 2056 | B61: 0 | C61: 0 | D61: 2.460183168e-10 | E61: 1692371.336 | F61: 0 | G61: 0 | H61: 0 | I61: 2.460183168e-10 | J61: 0 | K61: 2.460183168e-10 | L61: 6.396476238e-12 | M61: 1.168587005e-11 | N61: 0 | O61: 1.03000275e-12 | P61: 0 | Q61: 2.406302363e-13 | R61: 3.030257633e-12 | S61: 2.238323691e-11 | T61: 4.004729604e-70 | V61: 0 | W61: 34 | X61: 0 | Y61: 0 | Z61: 0 | AA61: 0 | AB61: 0 | AC61: 0 | AD61: 0 | AE61: 2.238323691e-11 | AF61: 0 | AG61: -2.238323691e-11 | AH61: -2.238323691e-11 | AI61: 0 | AL61: 2.209690748e-11 | AN61: 6.866684998e-11
A62: 2057 | B62: 0 | C62: 0 | D62: 2.460183168e-10 | E62: 1692371.336 | F62: 0 | G62: 0 | H62: 0 | I62: 2.460183168e-10 | J62: 0 | K62: 2.460183168e-10 | L62: 6.396476238e-12 | M62: 1.168587005e-11 | N62: 0 | O62: 1.03000275e-12 | P62: 0 | Q62: 2.406302363e-13 | R62: 3.030257633e-12 | S62: 2.238323691e-11 | T62: 3.749606385e-70 | V62: 0 | W62: 35 | X62: 0 | Y62: 0 | Z62: 0 | AA62: 0 | AB62: 0 | AC62: 0 | AD62: 0 | AE62: 2.238323691e-11 | AF62: 0 | AG62: -2.238323691e-11 | AH62: -2.238323691e-11 | AI62: 0 | AL62: 2.209690748e-11 | AN62: 6.866684998e-11
A63: 2058 | B63: 0 | C63: 0 | D63: 2.460183168e-10 | E63: 1692371.336 | F63: 0 | G63: 0 | H63: 0 | I63: 2.460183168e-10 | J63: 0 | K63: 2.460183168e-10 | L63: 6.396476238e-12 | M63: 1.168587005e-11 | N63: 0 | O63: 1.03000275e-12 | P63: 0 | Q63: 2.406302363e-13 | R63: 3.030257633e-12 | S63: 2.238323691e-11 | T63: 3.510735914e-70 | V63: 0 | W63: 36 | X63: 0 | Y63: 0 | Z63: 0 | AA63: 0 | AB63: 0 | AC63: 0 | AD63: 0 | AE63: 2.238323691e-11 | AF63: 0 | AG63: -2.238323691e-11 | AH63: -2.238323691e-11 | AI63: 0 | AL63: 2.209690748e-11 | AN63: 6.866684998e-11
A64: 2059 | B64: 0 | C64: 0 | D64: 2.460183168e-10 | E64: 1692371.336 | F64: 0 | G64: 0 | H64: 0 | I64: 2.460183168e-10 | J64: 0 | K64: 2.460183168e-10 | L64: 6.396476238e-12 | M64: 1.168587005e-11 | N64: 0 | O64: 1.03000275e-12 | P64: 0 | Q64: 2.406302363e-13 | R64: 3.030257633e-12 | S64: 2.238323691e-11 | T64: 3.2870828e-70 | V64: 0 | W64: 37 | X64: 0 | Y64: 0 | Z64: 0 | AA64: 0 | AB64: 0 | AC64: 0 | AD64: 0 | AE64: 2.238323691e-11 | AF64: 0 | AG64: -2.238323691e-11 | AH64: -2.238323691e-11 | AI64: 0 | AL64: 2.209690748e-11 | AN64: 6.866684998e-11
A65: 2060 | B65: 0 | C65: 0 | D65: 2.460183168e-10 | E65: 1692371.336 | F65: 0 | G65: 0 | H65: 0 | I65: 2.460183168e-10 | J65: 0 | K65: 2.460183168e-10 | L65: 6.396476238e-12 | M65: 1.168587005e-11 | N65: 0 | O65: 1.03000275e-12 | P65: 0 | Q65: 2.406302363e-13 | R65: 3.030257633e-12 | S65: 2.238323691e-11 | T65: 3.077677615e-70 | V65: 0 | W65: 38 | X65: 0 | Y65: 0 | Z65: 0 | AA65: 0 | AB65: 0 | AC65: 0 | AD65: 0 | AE65: 2.238323691e-11 | AF65: 0 | AG65: -2.238323691e-11 | AH65: -2.238323691e-11 | AI65: 0 | AL65: 2.209690748e-11 | AN65: 6.866684998e-11
A66: 2061 | B66: 0 | C66: 0 | D66: 2.460183168e-10 | E66: 1692371.336 | F66: 0 | G66: 0 | H66: 0 | I66: 2.460183168e-10 | J66: 0 | K66: 2.460183168e-10 | L66: 6.396476238e-12 | M66: 1.168587005e-11 | N66: 0 | O66: 1.03000275e-12 | P66: 0 | Q66: 2.406302363e-13 | R66: 3.030257633e-12 | S66: 2.238323691e-11 | T66: 2.881612688e-70 | V66: 0 | W66: 39 | X66: 0 | Y66: 0 | Z66: 0 | AA66: 0 | AB66: 0 | AC66: 0 | AD66: 0 | AE66: 2.238323691e-11 | AF66: 0 | AG66: -2.238323691e-11 | AH66: -2.238323691e-11 | AI66: 0 | AL66: 2.209690748e-11 | AN66: 6.866684998e-11
A67: 2062 | B67: 0 | C67: 0 | D67: 2.460183168e-10 | E67: 1692371.336 | F67: 0 | G67: 0 | H67: 0 | I67: 2.460183168e-10 | J67: 0 | K67: 2.460183168e-10 | L67: 6.396476238e-12 | M67: 1.168587005e-11 | N67: 0 | O67: 1.03000275e-12 | P67: 0 | Q67: 2.406302363e-13 | R67: 3.030257633e-12 | S67: 2.238323691e-11 | T67: 2.698038171e-70 | V67: 0 | W67: 40 | X67: 0 | Y67: 0 | Z67: 0 | AA67: 0 | AB67: 0 | AC67: 0 | AD67: 0 | AE67: 2.238323691e-11 | AF67: 0 | AG67: -2.238323691e-11 | AH67: -2.238323691e-11 | AI67: 0 | AL67: 2.209690748e-11 | AN67: 6.866684998e-11
A68: 2063 | B68: 0 | C68: 0 | D68: 2.460183168e-10 | E68: 1692371.336 | F68: 0 | G68: 0 | H68: 0 | I68: 2.460183168e-10 | J68: 0 | K68: 2.460183168e-10 | L68: 6.396476238e-12 | M68: 1.168587005e-11 | N68: 0 | O68: 1.03000275e-12 | P68: 0 | Q68: 2.406302363e-13 | R68: 3.030257633e-12 | S68: 2.238323691e-11 | T68: 2.526158356e-70 | V68: 0 | W68: 41 | X68: 0 | Y68: 0 | Z68: 0 | AA68: 0 | AB68: 0 | AC68: 0 | AD68: 0 | AE68: 2.238323691e-11 | AF68: 0 | AG68: -2.238323691e-11 | AH68: -2.238323691e-11 | AI68: 0 | AL68: 2.209690748e-11 | AN68: 6.866684998e-11
A69: 2064 | B69: 0 | C69: 0 | D69: 2.460183168e-10 | E69: 1692371.336 | F69: 0 | G69: 0 | H69: 0 | I69: 2.460183168e-10 | J69: 0 | K69: 2.460183168e-10 | L69: 6.396476238e-12 | M69: 1.168587005e-11 | N69: 0 | O69: 1.03000275e-12 | P69: 0 | Q69: 2.406302363e-13 | R69: 3.030257633e-12 | S69: 2.238323691e-11 | T69: 2.365228227e-70 | V69: 0 | W69: 42 | X69: 0 | Y69: 0 | Z69: 0 | AA69: 0 | AB69: 0 | AC69: 0 | AD69: 0 | AE69: 2.238323691e-11 | AF69: 0 | AG69: -2.238323691e-11 | AH69: -2.238323691e-11 | AI69: 0 | AL69: 2.209690748e-11 | AN69: 6.866684998e-11
A70: 2065 | B70: 0 | C70: 0 | D70: 2.460183168e-10 | E70: 1692371.336 | F70: 0 | G70: 0 | H70: 0 | I70: 2.460183168e-10 | J70: 0 | K70: 2.460183168e-10 | L70: 6.396476238e-12 | M70: 1.168587005e-11 | N70: 0 | O70: 1.03000275e-12 | P70: 0 | Q70: 2.406302363e-13 | R70: 3.030257633e-12 | S70: 2.238323691e-11 | T70: 2.21455023e-70 | V70: 0 | W70: 43 | X70: 0 | Y70: 0 | Z70: 0 | AA70: 0 | AB70: 0 | AC70: 0 | AD70: 0 | AE70: 2.238323691e-11 | AF70: 0 | AG70: -2.238323691e-11 | AH70: -2.238323691e-11 | AI70: 0 | AL70: 2.209690748e-11 | AN70: 6.866684998e-11
A71: 2066 | B71: 0 | C71: 0 | D71: 2.460183168e-10 | E71: 1692371.336 | F71: 0 | G71: 0 | H71: 0 | I71: 2.460183168e-10 | J71: 0 | K71: 2.460183168e-10 | L71: 6.396476238e-12 | M71: 1.168587005e-11 | N71: 0 | O71: 1.03000275e-12 | P71: 0 | Q71: 2.406302363e-13 | R71: 3.030257633e-12 | S71: 2.238323691e-11 | T71: 2.073471246e-70 | V71: 0 | W71: 44 | X71: 0 | Y71: 0 | Z71: 0 | AA71: 0 | AB71: 0 | AC71: 0 | AD71: 0 | AE71: 2.238323691e-11 | AF71: 0 | AG71: -2.238323691e-11 | AH71: -2.238323691e-11 | AI71: 0 | AL71: 2.209690748e-11 | AN71: 6.866684998e-11
A72: 2067 | B72: 0 | C72: 0 | D72: 2.460183168e-10 | E72: 1692371.336 | F72: 0 | G72: 0 | H72: 0 | I72: 2.460183168e-10 | J72: 0 | K72: 2.460183168e-10 | L72: 6.396476238e-12 | M72: 1.168587005e-11 | N72: 0 | O72: 1.03000275e-12 | P72: 0 | Q72: 2.406302363e-13 | R72: 3.030257633e-12 | S72: 2.238323691e-11 | T72: 1.941379767e-70 | V72: 0 | W72: 45 | X72: 0 | Y72: 0 | Z72: 0 | AA72: 0 | AB72: 0 | AC72: 0 | AD72: 0 | AE72: 2.238323691e-11 | AF72: 0 | AG72: -2.238323691e-11 | AH72: -2.238323691e-11 | AI72: 0 | AL72: 2.209690748e-11 | AN72: 6.866684998e-11
A73: 2068 | B73: 0 | C73: 0 | D73: 2.460183168e-10 | E73: 1692371.336 | F73: 0 | G73: 0 | H73: 0 | I73: 2.460183168e-10 | J73: 0 | K73: 2.460183168e-10 | L73: 6.396476238e-12 | M73: 1.168587005e-11 | N73: 0 | O73: 1.03000275e-12 | P73: 0 | Q73: 2.406302363e-13 | R73: 3.030257633e-12 | S73: 2.238323691e-11 | T73: 1.817703238e-70 | V73: 0 | W73: 46 | X73: 0 | Y73: 0 | Z73: 0 | AA73: 0 | AB73: 0 | AC73: 0 | AD73: 0 | AE73: 2.238323691e-11 | AF73: 0 | AG73: -2.238323691e-11 | AH73: -2.238323691e-11 | AI73: 0 | AL73: 2.209690748e-11 | AN73: 6.866684998e-11
A74: 2069 | B74: 0 | C74: 0 | D74: 2.460183168e-10 | E74: 1692371.336 | F74: 0 | G74: 0 | H74: 0 | I74: 2.460183168e-10 | J74: 0 | K74: 2.460183168e-10 | L74: 6.396476238e-12 | M74: 1.168587005e-11 | N74: 0 | O74: 1.03000275e-12 | P74: 0 | Q74: 2.406302363e-13 | R74: 3.030257633e-12 | S74: 2.238323691e-11 | T74: 1.701905583e-70 | V74: 0 | W74: 47 | X74: 0 | Y74: 0 | Z74: 0 | AA74: 0 | AB74: 0 | AC74: 0 | AD74: 0 | AE74: 2.238323691e-11 | AF74: 0 | AG74: -2.238323691e-11 | AH74: -2.238323691e-11 | AI74: 0 | AL74: 2.209690748e-11 | AN74: 6.866684998e-11
A75: 2070 | B75: 0 | C75: 0 | D75: 2.460183168e-10 | E75: 1692371.336 | F75: 0 | G75: 0 | H75: 0 | I75: 2.460183168e-10 | J75: 0 | K75: 2.460183168e-10 | L75: 6.396476238e-12 | M75: 1.168587005e-11 | N75: 0 | O75: 1.03000275e-12 | P75: 0 | Q75: 2.406302363e-13 | R75: 3.030257633e-12 | S75: 2.238323691e-11 | T75: 1.593484872e-70 | V75: 0 | W75: 48 | X75: 0 | Y75: 0 | Z75: 0 | AA75: 0 | AB75: 0 | AC75: 0 | AD75: 0 | AE75: 2.238323691e-11 | AF75: 0 | AG75: -2.238323691e-11 | AH75: -2.238323691e-11 | AI75: 0 | AL75: 2.209690748e-11 | AN75: 6.866684998e-11
A76: 2071 | B76: 0 | C76: 0 | D76: 2.460183168e-10 | E76: 1692371.336 | F76: 0 | G76: 0 | H76: 0 | I76: 2.460183168e-10 | J76: 0 | K76: 2.460183168e-10 | L76: 6.396476238e-12 | M76: 1.168587005e-11 | N76: 0 | O76: 1.03000275e-12 | P76: 0 | Q76: 2.406302363e-13 | R76: 3.030257633e-12 | S76: 2.238323691e-11 | T76: 1.491971155e-70 | V76: 0 | W76: 49 | X76: 0 | Y76: 0 | Z76: 0 | AA76: 0 | AB76: 0 | AC76: 0 | AD76: 0 | AE76: 2.238323691e-11 | AF76: 0 | AG76: -2.238323691e-11 | AH76: -2.238323691e-11 | AI76: 0 | AL76: 2.209690748e-11 | AN76: 6.866684998e-11
A77: 2072 | B77: 0 | C77: 0 | D77: 2.460183168e-10 | E77: 1692371.336 | F77: 0 | G77: 0 | H77: 0 | I77: 2.460183168e-10 | J77: 0 | K77: 2.460183168e-10 | L77: 6.396476238e-12 | M77: 1.168587005e-11 | N77: 0 | O77: 1.03000275e-12 | P77: 0 | Q77: 2.406302363e-13 | R77: 3.030257633e-12 | S77: 2.238323691e-11 | T77: 1.396924417e-70 | V77: 0 | W77: 50 | X77: 0 | Y77: 0 | Z77: 0 | AA77: 0 | AB77: 0 | AC77: 0 | AD77: 0 | AE77: 2.238323691e-11 | AF77: 0 | AG77: -2.238323691e-11 | AH77: -2.238323691e-11 | AI77: 0 | AL77: 2.209690748e-11 | AN77: 6.866684998e-11
A78: 2073 | B78: 0 | C78: 0 | D78: 2.460183168e-10 | E78: 1692371.336 | F78: 0 | G78: 0 | H78: 0 | I78: 2.460183168e-10 | J78: 0 | K78: 2.460183168e-10 | L78: 6.396476238e-12 | M78: 1.168587005e-11 | N78: 0 | O78: 1.03000275e-12 | P78: 0 | Q78: 2.406302363e-13 | R78: 3.030257633e-12 | S78: 2.238323691e-11 | T78: 1.307932678e-70 | V78: 0 | W78: 51 | X78: 0 | Y78: 0 | Z78: 0 | AA78: 0 | AB78: 0 | AC78: 0 | AD78: 0 | AE78: 2.238323691e-11 | AF78: 0 | AG78: -2.238323691e-11 | AH78: -2.238323691e-11 | AI78: 0 | AL78: 2.209690748e-11 | AN78: 6.866684998e-11
A79: 2074 | B79: 0 | C79: 0 | D79: 2.460183168e-10 | E79: 1692371.336 | F79: 0 | G79: 0 | H79: 0 | I79: 2.460183168e-10 | J79: 0 | K79: 2.460183168e-10 | L79: 6.396476238e-12 | M79: 1.168587005e-11 | N79: 0 | O79: 1.03000275e-12 | P79: 0 | Q79: 2.406302363e-13 | R79: 3.030257633e-12 | S79: 2.238323691e-11 | T79: 1.2246102e-70 | V79: 0 | W79: 52 | X79: 0 | Y79: 0 | Z79: 0 | AA79: 0 | AB79: 0 | AC79: 0 | AD79: 0 | AE79: 2.238323691e-11 | AF79: 0 | AG79: -2.238323691e-11 | AH79: -2.238323691e-11 | AI79: 0 | AL79: 2.209690748e-11 | AN79: 6.866684998e-11
A80: 2075 | B80: 0 | C80: 0 | D80: 2.460183168e-10 | E80: 1692371.336 | F80: 0 | G80: 0 | H80: 0 | I80: 2.460183168e-10 | J80: 0 | K80: 2.460183168e-10 | L80: 6.396476238e-12 | M80: 1.168587005e-11 | N80: 0 | O80: 1.03000275e-12 | P80: 0 | Q80: 2.406302363e-13 | R80: 3.030257633e-12 | S80: 2.238323691e-11 | T80: 1.14659582e-70 | V80: 0 | W80: 53 | X80: 0 | Y80: 0 | Z80: 0 | AA80: 0 | AB80: 0 | AC80: 0 | AD80: 0 | AE80: 2.238323691e-11 | AF80: 0 | AG80: -2.238323691e-11 | AH80: -2.238323691e-11 | AI80: 0 | AL80: 2.209690748e-11 | AN80: 6.866684998e-11
A81: 2076 | B81: 0 | C81: 0 | D81: 2.460183168e-10 | E81: 1692371.336 | F81: 0 | G81: 0 | H81: 0 | I81: 2.460183168e-10 | J81: 0 | K81: 2.460183168e-10 | L81: 6.396476238e-12 | M81: 1.168587005e-11 | N81: 0 | O81: 1.03000275e-12 | P81: 0 | Q81: 2.406302363e-13 | R81: 3.030257633e-12 | S81: 2.238323691e-11 | T81: 1.073551384e-70 | V81: 0 | W81: 54 | X81: 0 | Y81: 0 | Z81: 0 | AA81: 0 | AB81: 0 | AC81: 0 | AD81: 0 | AE81: 2.238323691e-11 | AF81: 0 | AG81: -2.238323691e-11 | AH81: -2.238323691e-11 | AI81: 0 | AL81: 2.209690748e-11 | AN81: 6.866684998e-11
A82: 2077 | B82: 0 | C82: 0 | D82: 2.460183168e-10 | E82: 1692371.336 | F82: 0 | G82: 0 | H82: 0 | I82: 2.460183168e-10 | J82: 0 | K82: 2.460183168e-10 | L82: 6.396476238e-12 | M82: 1.168587005e-11 | N82: 0 | O82: 1.03000275e-12 | P82: 0 | Q82: 2.406302363e-13 | R82: 3.030257633e-12 | S82: 2.238323691e-11 | T82: 1.005160279e-70 | V82: 0 | W82: 55 | X82: 0 | Y82: 0 | Z82: 0 | AA82: 0 | AB82: 0 | AC82: 0 | AD82: 0 | AE82: 2.238323691e-11 | AF82: 0 | AG82: -2.238323691e-11 | AH82: -2.238323691e-11 | AI82: 0 | AL82: 2.209690748e-11 | AN82: 6.866684998e-11
A83: 2078 | B83: 0 | C83: 0 | D83: 2.460183168e-10 | E83: 1692371.336 | F83: 0 | G83: 0 | H83: 0 | I83: 2.460183168e-10 | J83: 0 | K83: 2.460183168e-10 | L83: 6.396476238e-12 | M83: 1.168587005e-11 | N83: 0 | O83: 1.03000275e-12 | P83: 0 | Q83: 2.406302363e-13 | R83: 3.030257633e-12 | S83: 2.238323691e-11 | T83: 9.411260615e-71 | V83: 0 | W83: 56 | X83: 0 | Y83: 0 | Z83: 0 | AA83: 0 | AB83: 0 | AC83: 0 | AD83: 0 | AE83: 2.238323691e-11 | AF83: 0 | AG83: -2.238323691e-11 | AH83: -2.238323691e-11 | AI83: 0 | AL83: 2.209690748e-11 | AN83: 6.866684998e-11
A84: 2079 | B84: 0 | C84: 0 | D84: 2.460183168e-10 | E84: 1692371.336 | F84: 0 | G84: 0 | H84: 0 | I84: 2.460183168e-10 | J84: 0 | K84: 2.460183168e-10 | L84: 6.396476238e-12 | M84: 1.168587005e-11 | N84: 0 | O84: 1.03000275e-12 | P84: 0 | Q84: 2.406302363e-13 | R84: 3.030257633e-12 | S84: 2.238323691e-11 | T84: 8.811711747e-71 | V84: 0 | W84: 57 | X84: 0 | Y84: 0 | Z84: 0 | AA84: 0 | AB84: 0 | AC84: 0 | AD84: 0 | AE84: 2.238323691e-11 | AF84: 0 | AG84: -2.238323691e-11 | AH84: -2.238323691e-11 | AI84: 0 | AL84: 2.209690748e-11 | AN84: 6.866684998e-11
A85: 2080 | B85: 0 | C85: 0 | D85: 2.460183168e-10 | E85: 1692371.336 | F85: 0 | G85: 0 | H85: 0 | I85: 2.460183168e-10 | J85: 0 | K85: 2.460183168e-10 | L85: 6.396476238e-12 | M85: 1.168587005e-11 | N85: 0 | O85: 1.03000275e-12 | P85: 0 | Q85: 2.406302363e-13 | R85: 3.030257633e-12 | S85: 2.238323691e-11 | T85: 8.250357428e-71 | V85: 0 | W85: 58 | X85: 0 | Y85: 0 | Z85: 0 | AA85: 0 | AB85: 0 | AC85: 0 | AD85: 0 | AE85: 2.238323691e-11 | AF85: 0 | AG85: -2.238323691e-11 | AH85: -2.238323691e-11 | AI85: 0 | AL85: 2.209690748e-11 | AN85: 6.866684998e-11
A86: 2081 | B86: 0 | C86: 0 | D86: 2.460183168e-10 | E86: 1692371.336 | F86: 0 | G86: 0 | H86: 0 | I86: 2.460183168e-10 | J86: 0 | K86: 2.460183168e-10 | L86: 6.396476238e-12 | M86: 1.168587005e-11 | N86: 0 | O86: 1.03000275e-12 | P86: 0 | Q86: 2.406302363e-13 | R86: 3.030257633e-12 | S86: 2.238323691e-11 | T86: 7.724764455e-71 | V86: 0 | W86: 59 | X86: 0 | Y86: 0 | Z86: 0 | AA86: 0 | AB86: 0 | AC86: 0 | AD86: 0 | AE86: 2.238323691e-11 | AF86: 0 | AG86: -2.238323691e-11 | AH86: -2.238323691e-11 | AI86: 0 | AL86: 2.209690748e-11 | AN86: 6.866684998e-11
A87: 2082 | B87: 0 | C87: 0 | D87: 2.460183168e-10 | E87: 1692371.336 | F87: 0 | G87: 0 | H87: 0 | I87: 2.460183168e-10 | J87: 0 | K87: 2.460183168e-10 | L87: 6.396476238e-12 | M87: 1.168587005e-11 | N87: 0 | O87: 1.03000275e-12 | P87: 0 | Q87: 2.406302363e-13 | R87: 3.030257633e-12 | S87: 2.238323691e-11 | T87: 7.232654633e-71 | V87: 0 | W87: 60 | X87: 0 | Y87: 0 | Z87: 0 | AA87: 0 | AB87: 0 | AC87: 0 | AD87: 0 | AE87: 2.238323691e-11 | AF87: 0 | AG87: -2.238323691e-11 | AH87: -2.238323691e-11 | AI87: 0 | AL87: 2.209690748e-11 | AN87: 6.866684998e-11
A88: 2083 | B88: 0 | C88: 0 | D88: 2.460183168e-10 | E88: 1692371.336 | F88: 0 | G88: 0 | H88: 0 | I88: 2.460183168e-10 | J88: 0 | K88: 2.460183168e-10 | L88: 6.396476238e-12 | M88: =IF(A88=1,($N$3+$N$2)*K88,($N$3+$N$2)*K88) -> 1.168587005e-11 | N88: 0 | O88: 1.03000275e-12 | P88: 0 | Q88: 2.406302363e-13 | R88: 3.030257633e-12 | S88: 2.238323691e-11 | T88: 6.771894904e-71 | V88: 0 | W88: 61 | X88: 0 | Y88: 0 | Z88: 0 | AA88: 0 | AB88: 0 | AC88: 0 | AD88: 0 | AE88: 2.238323691e-11 | AF88: 0 | AG88: -2.238323691e-11 | AH88: -2.238323691e-11 | AI88: 0 | AL88: 2.209690748e-11 | AN88: 6.866684998e-11
A89: 2084 | B89: 0 | C89: 0 | D89: 2.460183168e-10 | E89: 1692371.336 | F89: 0 | G89: 0 | H89: 0 | I89: 2.460183168e-10 | J89: 0 | K89: 2.460183168e-10 | L89: 6.396476238e-12 | M89: =IF(A89=1,($N$3+$N$2)*K89,($N$3+$N$2)*K89) -> 1.168587005e-11 | N89: 0 | O89: 1.03000275e-12 | P89: 0 | Q89: 2.406302363e-13 | R89: 3.030257633e-12 | S89: 2.238323691e-11 | T89: 6.340488094e-71 | V89: 0 | W89: 62 | X89: 0 | Y89: 0 | Z89: 0 | AA89: 0 | AB89: 0 | AC89: 0 | AD89: 0 | AE89: 2.238323691e-11 | AF89: 0 | AG89: -2.238323691e-11 | AH89: -2.238323691e-11 | AI89: 0 | AL89: 2.209690748e-11 | AN89: 6.866684998e-11
A90: 2085 | B90: 0 | C90: 0 | D90: 2.460183168e-10 | E90: 1692371.336 | F90: 0 | G90: 0 | H90: 0 | I90: 2.460183168e-10 | J90: 0 | K90: 2.460183168e-10 | L90: 6.396476238e-12 | M90: 1.168587005e-11 | N90: 0 | O90: 1.03000275e-12 | P90: 0 | Q90: 2.406302363e-13 | R90: 3.030257633e-12 | S90: 2.238323691e-11 | T90: 5.936564262e-71 | V90: 0 | W90: 63 | X90: 0 | Y90: 0 | Z90: 0 | AA90: 0 | AB90: 0 | AC90: 0 | AD90: 0 | AE90: 2.238323691e-11 | AF90: 0 | AG90: -2.238323691e-11 | AH90: -2.238323691e-11 | AI90: 0 | AL90: 2.209690748e-11 | AN90: 6.866684998e-11
A91: 2086 | B91: 0 | C91: 0 | D91: 2.460183168e-10 | E91: 1692371.336 | F91: 0 | G91: 0 | H91: 0 | I91: 2.460183168e-10 | J91: 0 | K91: 2.460183168e-10 | L91: 6.396476238e-12 | M91: 1.168587005e-11 | N91: 0 | O91: 1.03000275e-12 | P91: 0 | Q91: 2.406302363e-13 | R91: 3.030257633e-12 | S91: 2.238323691e-11 | T91: 5.558372591e-71 | V91: 0 | W91: 64 | X91: 0 | Y91: 0 | Z91: 0 | AA91: 0 | AB91: 0 | AC91: 0 | AD91: 0 | AE91: 2.238323691e-11 | AF91: 0 | AG91: -2.238323691e-11 | AH91: -2.238323691e-11 | AI91: 0 | AL91: 2.209690748e-11 | AN91: 6.866684998e-11
A92: =1+A91 -> 2087 | B92: 0 | C92: 0 | D92: =I91+C92 -> 2.460183168e-10 | E92: =E91+J92 -> 1692371.336 | F92: =CA201 -> 0 | G92: 0 | H92: =(F92-G92)*$D$2 -> 0 | I92: =D92-J92-H92 -> 2.460183168e-10 | J92: =CA387 -> 0 | K92: =(+I92+D92)/2 -> 2.460183168e-10 | L92: 6.396476238e-12 | M92: 1.168587005e-11 | N92: 0 | O92: =AN92*$D$10 -> 1.03000275e-12 | P92: 0 | Q92: =(+AL92-(G92+L92+N92+O92+P92))*$D$1 -> 2.406302363e-13 | R92: =(+AL92-(G92+L92+N92+O92+P92+Q92))*$D$2 -> 3.030257633e-12 | S92: =J92+M92+L92+N92+O92+P92+Q92+R92 -> 2.238323691e-11 | T92: 5.204273801e-71 | V92: 0 | W92: 65 | X92: 0 | Y92: 0 | Z92: 0 | AA92: 0 | AB92: 0 | AC92: 0 | AD92: 0 | AE92: =S92 -> 2.238323691e-11 | AF92: =V92 -> 0 | AG92: =AF92-AE92 -> -2.238323691e-11 | AH92: -2.238323691e-11 | AI92: 0 | AL92: 2.209690748e-11 | AN92: 6.866684998e-11
A93: 2088 | B93: 0 | C93: =B93 -> 0 | D93: 2.460183168e-10 | E93: 1692371.336 | F93: 0 | G93: =CA294 -> 0 | H93: 0 | I93: 2.460183168e-10 | J93: 0 | K93: 2.460183168e-10 | L93: =IF(A93=1,$N$1*K93,$N$1*K93) -> 6.396476238e-12 | M93: 1.168587005e-11 | N93: 0 | O93: 1.03000275e-12 | P93: =AL93*$T$8 -> 0 | Q93: 2.406302363e-13 | R93: 3.030257633e-12 | S93: 2.238323691e-11 | T93: =S93/(1+$D$3)^(A93-1) -> 4.872733045e-71 | V93: 0 | W93: =1+W92 -> 66 | X93: 0 | Y93: =+X93 -> 0 | Z93: =X93*$Z$24 -> 0 | AA93: 0 | AB93: 0 | AC93: 0 | AD93: 0 | AE93: 2.238323691e-11 | AF93: 0 | AG93: -2.238323691e-11 | AH93: =AF93-AE93 -> -2.238323691e-11 | AI93: =IF(A93=1,AF93-T89,AF93) -> 0 | AL93: =(+J93+L93+M93+N93+O93-(($D$1+(1-$D$1)*$D$2)*(G93+L93+N93+O93)))/$T$16 -> 2.209690748e-11 | AN93: =C93-J92+AN92 -> 6.866684998e-11
A94: 2089 | B94: 0 | C94: 0 | D94: 2.460183168e-10 | E94: 1692371.336 | F94: 0 | G94: 0 | H94: 0 | I94: 2.460183168e-10 | J94: 0 | K94: 2.460183168e-10 | L94: 6.396476238e-12 | M94: 1.168587005e-11 | N94: 0 | O94: 1.03000275e-12 | P94: 0 | Q94: 2.406302363e-13 | R94: 3.030257633e-12 | S94: 2.238323691e-11 | T94: 4.562313251e-71 | V94: 0 | W94: 67 | X94: 0 | Y94: 0 | Z94: 0 | AA94: 0 | AB94: 0 | AC94: 0 | AD94: 0 | AE94: 2.238323691e-11 | AF94: 0 | AG94: -2.238323691e-11 | AH94: -2.238323691e-11 | AI94: 0 | AL94: 2.209690748e-11 | AN94: 6.866684998e-11
A95: 2090 | B95: 0 | C95: 0 | D95: 2.460183168e-10 | E95: 1692371.336 | F95: 0 | G95: 0 | H95: 0 | I95: 2.460183168e-10 | J95: 0 | K95: 2.460183168e-10 | L95: 6.396476238e-12 | M95: 1.168587005e-11 | N95: 0 | O95: 1.03000275e-12 | P95: 0 | Q95: 2.406302363e-13 | R95: 3.030257633e-12 | S95: 2.238323691e-11 | T95: 4.271668899e-71 | V95: 0 | W95: 68 | X95: 0 | Y95: 0 | Z95: 0 | AA95: 0 | AB95: 0 | AC95: 0 | AD95: 0 | AE95: 2.238323691e-11 | AF95: 0 | AG95: -2.238323691e-11 | AH95: -2.238323691e-11 | AI95: 0 | AL95: 2.209690748e-11 | AN95: 6.866684998e-11
A96: 2091 | B96: 0 | C96: 0 | D96: 2.460183168e-10 | E96: 1692371.336 | F96: 0 | G96: 0 | H96: 0 | I96: 2.460183168e-10 | J96: 0 | K96: 2.460183168e-10 | L96: 6.396476238e-12 | M96: 1.168587005e-11 | N96: 0 | O96: 1.03000275e-12 | P96: 0 | Q96: 2.406302363e-13 | R96: 3.030257633e-12 | S96: 2.238323691e-11 | T96: 3.999540185e-71 | V96: 0 | W96: 69 | X96: 0 | Y96: 0 | Z96: 0 | AA96: 0 | AB96: 0 | AC96: 0 | AD96: 0 | AE96: 2.238323691e-11 | AF96: 0 | AG96: -2.238323691e-11 | AH96: -2.238323691e-11 | AI96: 0 | AL96: 2.209690748e-11 | AN96: 6.866684998e-11
A97: 2092 | B97: 0 | C97: 0 | D97: 2.460183168e-10 | E97: 1692371.336 | F97: 0 | G97: 0 | H97: 0 | I97: 2.460183168e-10 | J97: 0 | K97: 2.460183168e-10 | L97: 6.396476238e-12 | M97: 1.168587005e-11 | N97: 0 | O97: 1.03000275e-12 | P97: 0 | Q97: 2.406302363e-13 | R97: 3.030257633e-12 | S97: 2.238323691e-11 | T97: 3.744747561e-71 | V97: 0 | W97: 70 | X97: 0 | Y97: 0 | Z97: 0 | AA97: 0 | AB97: 0 | AC97: 0 | AD97: 0 | AE97: 2.238323691e-11 | AF97: 0 | AG97: -2.238323691e-11 | AH97: -2.238323691e-11 | AI97: 0 | AL97: 2.209690748e-11 | AN97: 6.866684998e-11
A98: 2093 | B98: 0 | C98: 0 | D98: 2.460183168e-10 | E98: 1692371.336 | F98: 0 | G98: 0 | H98: 0 | I98: 2.460183168e-10 | J98: 0 | K98: 2.460183168e-10 | L98: 6.396476238e-12 | M98: 1.168587005e-11 | N98: 0 | O98: 1.03000275e-12 | P98: 0 | Q98: 2.406302363e-13 | R98: 3.030257633e-12 | S98: 2.238323691e-11 | T98: 3.506186623e-71 | V98: 0 | W98: 71 | X98: 0 | Y98: 0 | Z98: 0 | AA98: 0 | AB98: 0 | AC98: 0 | AD98: 0 | AE98: 2.238323691e-11 | AF98: 0 | AG98: -2.238323691e-11 | AH98: -2.238323691e-11 | AI98: 0 | AL98: 2.209690748e-11 | AN98: 6.866684998e-11
A99: 2094 | B99: 0 | C99: 0 | D99: 2.460183168e-10 | E99: 1692371.336 | F99: 0 | G99: 0 | H99: 0 | I99: 2.460183168e-10 | J99: 0 | K99: 2.460183168e-10 | L99: 6.396476238e-12 | M99: 1.168587005e-11 | N99: 0 | O99: 1.03000275e-12 | P99: 0 | Q99: 2.406302363e-13 | R99: 3.030257633e-12 | S99: 2.238323691e-11 | T99: 3.282823324e-71 | V99: 0 | W99: 72 | X99: 0 | Y99: 0 | Z99: 0 | AA99: 0 | AB99: 0 | AC99: 0 | AD99: 0 | AE99: 2.238323691e-11 | AF99: 0 | AG99: -2.238323691e-11 | AH99: -2.238323691e-11 | AI99: 0 | AL99: 2.209690748e-11 | AN99: 6.866684998e-11
A100: 2095 | B100: 0 | C100: 0 | D100: 2.460183168e-10 | E100: 1692371.336 | F100: 0 | G100: 0 | H100: 0 | I100: 2.460183168e-10 | J100: 0 | K100: 2.460183168e-10 | L100: 6.396476238e-12 | M100: 1.168587005e-11 | N100: 0 | O100: 1.03000275e-12 | P100: 0 | Q100: 2.406302363e-13 | R100: 3.030257633e-12 | S100: 2.238323691e-11 | T100: 3.073689491e-71 | V100: 0 | W100: 73 | X100: 0 | Y100: 0 | Z100: 0 | AA100: 0 | AB100: 0 | AC100: 0 | AD100: 0 | AE100: 2.238323691e-11 | AF100: 0 | AG100: -2.238323691e-11 | AH100: -2.238323691e-11 | AI100: 0 | AL100: 2.209690748e-11 | AN100: 6.866684998e-11
A101: 2096 | B101: 0 | C101: 0 | D101: 2.460183168e-10 | E101: 1692371.336 | F101: 0 | G101: 0 | H101: 0 | I101: 2.460183168e-10 | J101: 0 | K101: 2.460183168e-10 | L101: 6.396476238e-12 | M101: 1.168587005e-11 | N101: 0 | O101: 1.03000275e-12 | P101: 0 | Q101: 2.406302363e-13 | R101: 3.030257633e-12 | S101: 2.238323691e-11 | T101: 2.877878629e-71 | V101: 0 | W101: 74 | X101: 0 | Y101: 0 | Z101: 0 | AA101: 0 | AB101: 0 | AC101: 0 | AD101: 0 | AE101: 2.238323691e-11 | AF101: 0 | AG101: -2.238323691e-11 | AH101: -2.238323691e-11 | AI101: 0 | AL101: 2.209690748e-11 | AN101: 6.866684998e-11
A102: 2097 | B102: 0 | C102: 0 | D102: 2.460183168e-10 | E102: 1692371.336 | F102: 0 | G102: 0 | H102: 0 | I102: 2.460183168e-10 | J102: 0 | K102: 2.460183168e-10 | L102: 6.396476238e-12 | M102: 1.168587005e-11 | N102: 0 | O102: 1.03000275e-12 | P102: 0 | Q102: 2.406302363e-13 | R102: 3.030257633e-12 | S102: 2.238323691e-11 | T102: 2.694541992e-71 | V102: 0 | W102: 75 | X102: 0 | Y102: 0 | Z102: 0 | AA102: 0 | AB102: 0 | AC102: 0 | AD102: 0 | AE102: 2.238323691e-11 | AF102: 0 | AG102: -2.238323691e-11 | AH102: -2.238323691e-11 | AI102: 0 | AL102: 2.209690748e-11 | AN102: 6.866684998e-11
A103: 2098 | B103: 0 | C103: 0 | D103: 2.460183168e-10 | E103: 1692371.336 | F103: 0 | G103: 0 | H103: 0 | I103: 2.460183168e-10 | J103: 0 | K103: 2.460183168e-10 | L103: 6.396476238e-12 | M103: 1.168587005e-11 | N103: 0 | O103: 1.03000275e-12 | P103: 0 | Q103: 2.406302363e-13 | R103: 3.030257633e-12 | S103: 2.238323691e-11 | T103: 2.522884903e-71 | V103: 0 | W103: 76 | X103: 0 | Y103: 0 | Z103: 0 | AA103: 0 | AB103: 0 | AC103: 0 | AD103: 0 | AE103: 2.238323691e-11 | AF103: 0 | AG103: -2.238323691e-11 | AH103: -2.238323691e-11 | AI103: 0 | AL103: 2.209690748e-11 | AN103: 6.866684998e-11
A104: = | B104: = | C104: = | D104: = | E104: = | F104: = | G104: = | H104: = | I104: = | J104: = | K104: = | L104: = | M104: = | N104: = | O104: = | P104: = | Q104: = | R104: = | S104: = | T104: =
A106: (a) Time Period in Years
A107: (b) Capital Additions Tax Basis
A108: (c) Capital Additions Book Basis
A109: (d) Rate Base Beginning of Period = Previous(i) + Previous(c)
A110: (e) Accumulated Depreciation = Previous(e) + (j)
A111: (f) Tax Depreciation = Modified ACRS Schedules Times The Tax Basis
A112: (g) Book Depreciation on Tax Basis = Straight Line Depreciation of Tax Basis
A113: (h) Deferred Taxes = [(f)-(g)] * Federal Income Tax Rate
A114: (i) Rate Base End of Period = (d) - (j) - (h)
A115: (j) Book Depreciation = Straight Line Per Book Life
A116: (k) Average Rate Base = [(d) + (i)] / 2
A117: (l) Interest Expense = Weighted Cost of Debt * (k)
A118: (m) Equity Return = [Weighted Cost of Preferred + Weighted Cost of Common] * (k)
A119: (n) Operating and Maintenance Expense = Previous(n) * [1 + O&M Escalation Factor]
A120: (o) Property Taxes = Property Tax Rate * (d)
A121: (p) Miscellaneous Revenue Items = Revenue Requirements * Miscellaneous Revenue Items Percentage
A122: (q) State Income Tax = [Revenue Requirement - [(g) + (l) + (m) + (n) + (o) + (p)] * State Income Tax Rate
A123: (r) Federal Income Taxes = [Revenue Requirements - [(g) + (l) + (n) + (o) + Miscellaneous Revenue Items + State Tax] * Federal Income Tax Rate
A124: (s) Total Revenue Requirements = (j) + (l) + (m) + (n) + (o) + (p) + (q) + (r)
A125: (t) Present Value Revenue Requirements = Total Revenue Requirements / [1 + Discount Factor] ^ [(a) - .5]
A127: Revenue Requirements = [(j) + (l) + (m) + (n) + (o) - Federal Income Tax Rate * [(g) + (l) + (n) + (o)]] / Conversion Factor
A130: TAX DEPRECIATION
A132: Class => | B132: =$D$4 -> 4
C133: 1 | D133: 2 | E133: 3 | F133: 4 | G133: 5 | H133: 6 | I133: 7 | J133: 8 | K133: 9 | L133: 10 | M133: 11 | N133: 12 | O133: 13 | P133: 14 | Q133: 15 | R133: 16 | S133: 17 | T133: 18 | U133: 19 | V133: 20 | W133: 21 | X133: 22 | Y133: 23 | Z133: 24 | AA133: 25 | AB133: 26 | AC133: 27 | AD133: 28 | AE133: 29 | AF133: 30 | AG133: 31 | AH133: 32 | AI133: 33 | AJ133: 34 | AK133: 35 | AL133: 36 | AM133: 37 | AN133: 38 | AO133: 39 | AP133: 40 | AQ133: 41 | AR133: 42 | AS133: 43 | AT133: 44 | AU133: 45 | AV133: 46 | AW133: 47 | AX133: 48 | AY133: 49 | AZ133: 50 | BA133: 51 | BB133: 52 | BC133: 53 | BD133: 54 | BE133: 55 | BF133: 56 | BG133: 57 | BH133: 58 | BI133: 59 | BJ133: 60 | BK133: 61 | BL133: 62 | BM133: 63 | BN133: 64 | BO133: 65 | BP133: 66 | BQ133: 67 | BR133: 68 | BS133: 69 | BT133: 70 | BU133: 71 | BV133: 72 | BW133: 73 | BX133: 74 | BY133: 75 | BZ133: 76 | CA133: Total
C134: - | D134: - | E134: - | F134: - | G134: - | H134: - | I134: - | J134: - | K134: - | L134: - | M134: - | N134: - | O134: - | P134: - | Q134: - | R134: - | S134: - | T134: - | U134: - | V134: - | W134: - | X134: - | Y134: - | Z134: - | AA134: - | AB134: - | AC134: - | AD134: - | AE134: - | AF134: - | AG134: - | AH134: - | AI134: - | AJ134: - | AK134: - | AL134: - | AM134: - | AN134: - | AO134: - | AP134: - | AQ134: - | AR134: - | AS134: - | AT134: - | AU134: - | AV134: - | AW134: - | AX134: - | AY134: - | AZ134: - | BA134: - | BB134: - | BC134: - | BD134: - | BE134: - | BF134: - | BG134: - | BH134: - | BI134: - | BJ134: - | BK134: - | BL134: - | BM134: - | BN134: - | BO134: - | BP134: - | BQ134: - | BR134: - | BS134: - | BT134: - | BU134: - | BV134: - | BW134: - | BX134: - | BY134: - | BZ134: - | CA134: -
A135: Rate | B135: Capital | C135: =$B28 -> 0 | D135: =$B29 -> 108406.8892 | E135: =$B30 -> 220181.772 | F135: =$B31 -> 450641.8929 | G135: =$B32 -> 248126.0441 | H135: =$B33 -> 142436.2048 | I135: =$B34 -> 26117.97756 | J135: =$B35 -> 27099.71599 | K135: =$B36 -> 24654.63482 | L135: =$B37 -> 25468.08866 | M135: =$B38 -> 26309.39521 | N135: =$B39 -> 27179.54479 | O135: =$B40 -> 28079.5626 | P135: =$B41 -> 29010.48711 | Q135: =$B42 -> 29973.40753 | R135: =$B43 -> 30969.48248 | S135: =$B44 -> 31999.83144 | T135: =$B45 -> 33065.71747 | U135: =$B46 -> 34168.39113 | V135: =$B47 -> 35309.12879 | W135: =$B48 -> 36489.29394 | X135: =$B49 -> 37710.30732 | Y135: =$B50 -> 38973.5666 | Z135: =$B51 -> 0 | AA135: =$B52 -> 0 | AB135: =$B53 -> 0 | AC135: =$B54 -> 0 | AD135: =$B55 -> 0 | AE135: =$B56 -> 0 | AF135: =$B57 -> 0 | AG135: =$B58 -> 0 | AH135: =$B59 -> 0 | AI135: =$B60 -> 0 | AJ135: =$B61 -> 0 | AK135: =$B62 -> 0 | AL135: =$B63 -> 0 | AM135: =$B64 -> 0 | AN135: =$B65 -> 0 | AO135: =$B66 -> 0 | AP135: =$B67 -> 0 | AQ135: =$B68 -> 0 | AR135: =$B69 -> 0 | AS135: =$B70 -> 0 | AT135: =$B71 -> 0 | AU135: =$B72 -> 0 | AV135: =$B73 -> 0 | AW135: =$B74 -> 0 | AX135: =$B75 -> 0 | AY135: =$B76 -> 0 | AZ135: =$B77 -> 0 | BA135: =$B78 -> 0 | BB135: =$B79 -> 0 | BC135: =$B80 -> 0 | BD135: =$B81 -> 0 | BE135: =$B82 -> 0 | BF135: =$B83 -> 0 | BG135: =$B84 -> 0 | BH135: =$B85 -> 0 | BI135: =$B86 -> 0 | BJ135: =$B87 -> 0 | BK135: =$B88 -> 0 | BL135: =$B89 -> 0 | BM135: =$B90 -> 0 | BN135: =$B91 -> 0 | BO135: =$B92 -> 0 | BP135: =$B93 -> 0 | BQ135: =$B94 -> 0 | BR135: =$B95 -> 0 | BS135: =$B96 -> 0 | BT135: =$B97 -> 0 | BU135: =$B98 -> 0 | BV135: =$B99 -> 0 | BW135: =$B100 -> 0 | BX135: =$B101 -> 0 | BY135: =$B102 -> 0 | BZ135: =$B103 -> 0 | CA135: =SUM($C135:$BZ135) -> 1692371.336 | CC135: 31.5 Year | CD135: 20 Years | CE135: 7 Years | CF135: 5 Years
C136: - | D136: - | E136: - | F136: - | G136: - | H136: - | I136: - | J136: - | K136: - | L136: - | M136: - | N136: - | O136: - | P136: - | Q136: - | R136: - | S136: - | T136: - | U136: - | V136: - | W136: - | X136: - | Y136: - | Z136: - | AA136: - | AB136: - | AC136: - | AD136: - | AE136: - | AF136: - | AG136: - | AH136: - | AI136: - | AJ136: - | AK136: - | AL136: - | AM136: - | AN136: - | AO136: - | AP136: - | AQ136: - | AR136: - | AS136: - | AT136: - | AU136: - | AV136: - | AW136: - | AX136: - | AY136: - | AZ136: - | BA136: - | BB136: - | BC136: - | BD136: - | BE136: - | BF136: - | BG136: - | BH136: - | BI136: - | BJ136: - | BK136: - | BL136: - | BM136: - | BN136: - | BO136: - | BP136: - | BQ136: - | BR136: - | BS136: - | BT136: - | BU136: - | BV136: - | BW136: - | BX136: - | BY136: - | BZ136: - | CA136: -
A137: =IF($B$132=1,CC137,IF($B$132=2,CD137,IF($B$132=3,CE137,IF($B$132=4,CF137,#VALUE!)))) -> 0.2 | B137: =+B136+1 -> 1 | C137: =C$135*$A137 -> 0 | CA137: =SUM($C137:$BZ137) -> 0 | CC137: 0.01587 | CD137: 0.0375 | CE137: 0.14286 | CF137: 0.2
A138: =IF($B$132=1,CC138,IF($B$132=2,CD138,IF($B$132=3,CE138,IF($B$132=4,CF138,#VALUE!)))) -> 0.32 | B138: =+B137+1 -> 2 | C138: =C$135*$A138 -> 0 | D138: =D$135*$A137 -> 21681.37784 | CA138: 21681.37784 | CC138: 0.03175 | CD138: 0.07219 | CE138: 0.2449 | CF138: 0.32
A139: 0.192 | B139: 3 | C139: 0 | D139: =D$135*$A138 -> 34690.20455 | E139: =E$135*$A137 -> 44036.3544 | CA139: 78726.55895 | CC139: 0.03175 | CD139: 0.06678 | CE139: 0.17493 | CF139: 0.192
A140: 0.1152 | B140: 4 | C140: 0 | D140: 20814.12273 | E140: =E$135*$A138 -> 70458.16705 | F140: =F$135*$A137 -> 90128.37857 | CA140: 181400.6683 | CC140: 0.03175 | CD140: 0.06178 | CE140: 0.12495 | CF140: 0.1152
A141: 0.1152 | B141: 5 | C141: 0 | D141: 12488.47364 | E141: 42274.90023 | F141: =F$135*$A138 -> 144205.4057 | G141: =G$135*$A137 -> 49625.20883 | CA141: 248593.9884 | CC141: 0.03175 | CD141: 0.05715 | CE141: 0.08925 | CF141: 0.1152
A142: 0.0576 | B142: 6 | C142: 0 | D142: 12488.47364 | E142: 25364.94014 | F142: 86523.24343 | G142: =G$135*$A138 -> 79400.33412 | H142: =H$135*$A137 -> 28487.24096 | CA142: 232264.2323 | CC142: 0.03175 | CD142: 0.05286 | CE142: 0.08925 | CF142: 0.0576
A143: 0 | B143: 7 | C143: 0 | D143: 6244.236819 | E143: 25364.94014 | F143: 51913.94606 | G143: 47640.20047 | H143: =H$135*$A138 -> 45579.58554 | I143: =I$135*$A137 -> 5223.595512 | CA143: 181966.5045 | CC143: 0.03175 | CD143: 0.0489 | CE143: 0.08925 | CF143: 0
A144: 0 | B144: 8 | C144: 0 | D144: 0 | E144: 12682.47007 | F144: 51913.94606 | G144: 28584.12028 | H144: 27347.75132 | I144: =I$135*$A138 -> 8357.752819 | J144: =J$135*$A137 -> 5419.943199 | CA144: 134305.9837 | CC144: 0.03175 | CD144: 0.04523 | CE144: 0.04461 | CF144: 0
A145: 0 | B145: 9 | C145: 0 | D145: 0 | E145: 0 | F145: 25956.97303 | G145: 28584.12028 | H145: 16408.65079 | I145: 5014.651691 | J145: =J$135*$A138 -> 8671.909118 | K145: =K$135*$A137 -> 4930.926964 | CA145: 89567.23188 | CC145: 0.03175 | CD145: 0.04461 | CE145: 0 | CF145: 0
A146: 0 | B146: 10 | C146: 0 | D146: 0 | E146: 0 | F146: 0 | G146: 14292.06014 | H146: 16408.65079 | I146: 3008.791015 | J146: 5203.145471 | K146: =K$135*$A138 -> 7889.483143 | L146: =L$135*$A137 -> 5093.617733 | CA146: 51895.7483 | CC146: 0.03175 | CD146: 0.04461 | CE146: 0 | CF146: 0
A147: 0 | B147: 11 | C147: 0 | D147: 0 | E147: 0 | F147: 0 | G147: 0 | H147: 8204.325396 | I147: 3008.791015 | J147: 3121.887283 | K147: 4733.689886 | L147: =L$135*$A138 -> 8149.788372 | M147: =M$135*$A137 -> 5261.879042 | CA147: 32480.36099 | CC147: 0.03175 | CD147: 0.04461 | CE147: 0 | CF147: 0
A148: 0 | B148: 12 | C148: 0 | D148: 0 | E148: 0 | F148: 0 | G148: 0 | H148: 0 | I148: 1504.395507 | J148: 3121.887283 | K148: 2840.213931 | L148: 4889.873023 | M148: =M$135*$A138 -> 8419.006467 | N148: =N$135*$A137 -> 5435.908958 | CA148: 26211.28517 | CC148: 0.03175 | CD148: 0.04461 | CE148: 0 | CF148: 0
A149: 0 | B149: 13 | C149: 0 | D149: 0 | E149: 0 | F149: 0 | G149: 0 | H149: 0 | I149: 0 | J149: 1560.943641 | K149: 2840.213931 | L149: 2933.923814 | M149: 5051.40388 | N149: =N$135*$A138 -> 8697.454333 | O149: =O$135*$A137 -> 5615.912519 | CA149: 26699.85212 | CC149: 0.03175 | CD149: 0.04461 | CE149: 0 | CF149: 0
A150: 0 | B150: 14 | C150: 0 | D150: 0 | E150: 0 | F150: 0 | G150: 0 | H150: 0 | I150: 0 | J150: 0 | K150: 1420.106966 | L150: 2933.923814 | M150: 3030.842328 | N150: 5218.4726 | O150: =O$135*$A138 -> 8985.460031 | P150: =P$135*$A137 -> 5802.097421 | CA150: 27390.90316 | CC150: 0.03175 | CD150: 0.04461 | CE150: 0 | CF150: 0
A151: 0 | B151: 15 | C151: 0 | D151: 0 | E151: 0 | F151: 0 | G151: 0 | H151: 0 | I151: 0 | J151: 0 | K151: 0 | L151: 1466.961907 | M151: 3030.842328 | N151: 3131.08356 | O151: 5391.276018 | P151: =P$135*$A138 -> 9283.355874 | Q151: =Q$135*$A137 -> 5994.681506 | CA151: 28298.20119 | CC151: 0.03175 | CD151: 0.04461 | CE151: 0 | CF151: 0
A152: 0 | B152: 16 | C152: 0 | D152: 0 | E152: 0 | F152: 0 | G152: 0 | H152: 0 | I152: 0 | J152: 0 | K152: 0 | L152: 0 | M152: 1515.421164 | N152: 3131.08356 | O152: 3234.765611 | P152: 5570.013525 | Q152: =Q$135*$A138 -> 9591.49041 | R152: =R$135*$A137 -> 6193.896496 | CA152: 29236.67077 | CC152: 0.03175 | CD152: 0.04461 | CE152: 0 | CF152: 0
A153: 0 | B153: 17 | C153: 0 | D153: 0 | E153: 0 | F153: 0 | G153: 0 | H153: 0 | I153: 0 | J153: 0 | K153: 0 | L153: 0 | M153: 0 | N153: 1565.54178 | O153: 3234.765611 | P153: 3342.008115 | Q153: 5754.894246 | R153: =R$135*$A138 -> 9910.234394 | S153: =S$135*$A137 -> 6399.966288 | CA153: 30207.41043 | CC153: 0.03175 | CD153: 0.04461 | CE153: 0 | CF153: 0
A154: 0 | B154: 18 | C154: 0 | D154: 0 | E154: 0 | F154: 0 | G154: 0 | H154: 0 | I154: 0 | J154: 0 | K154: 0 | L154: 0 | M154: 0 | N154: 0 | O154: 1617.382805 | P154: 3342.008115 | Q154: 3452.936548 | R154: 5946.140636 | S154: =S$135*$A138 -> 10239.94606 | T154: =T$135*$A137 -> 6613.143494 | CA154: 31211.55766 | CC154: 0.03175 | CD154: 0.04461 | CE154: 0 | CF154: 0
A155: 0 | B155: 19 | C155: 0 | D155: 0 | E155: 0 | F155: 0 | G155: 0 | H155: 0 | I155: 0 | J155: 0 | K155: 0 | L155: 0 | M155: 0 | N155: 0 | O155: 0 | P155: 1671.004057 | Q155: 3452.936548 | R155: 3567.684382 | S155: 6143.967637 | T155: =T$135*$A138 -> 10581.02959 | U155: =U$135*$A137 -> 6833.678225 | CA155: 32250.30044 | CC155: 0.03175 | CD155: 0.04461 | CE155: 0 | CF155: 0
A156: 0 | B156: 20 | C156: 0 | D156: 0 | E156: 0 | F156: 0 | G156: 0 | H156: 0 | I156: 0 | J156: 0 | K156: 0 | L156: 0 | M156: 0 | N156: 0 | O156: 0 | P156: 0 | Q156: 1726.468274 | R156: 3567.684382 | S156: 3686.380582 | T156: 6348.617754 | U156: =U$135*$A138 -> 10933.88516 | V156: =V$135*$A137 -> 7061.825758 | CA156: 33324.86191 | CC156: 0.03175 | CD156: 0.04461 | CE156: 0 | CF156: 0
A157: 0 | B157: 21 | C157: 0 | D157: 0 | E157: 0 | F157: 0 | G157: 0 | H157: 0 | I157: 0 | J157: 0 | K157: 0 | L157: 0 | M157: 0 | N157: 0 | O157: 0 | P157: 0 | Q157: 0 | R157: 1783.842191 | S157: 3686.380582 | T157: 3809.170652 | U157: 6560.331096 | V157: =V$135*$A138 -> 11298.92121 | W157: =W$135*$A137 -> 7297.858788 | CA157: 34436.50452 | CC157: 0.03175 | CD157: 0.02229 | CE157: 0 | CF157: 0
A158: 0 | B158: 22 | C158: 0 | D158: 0 | E158: 0 | F158: 0 | G158: 0 | H158: 0 | I158: 0 | J158: 0 | K158: 0 | L158: 0 | M158: 0 | N158: 0 | O158: 0 | P158: 0 | Q158: 0 | R158: 0 | S158: 1843.190291 | T158: 3809.170652 | U158: 3936.198658 | V158: 6779.352727 | W158: =W$135*$A138 -> 11676.57406 | X158: =X$135*$A137 -> 7542.061464 | CA158: 35586.54785 | CC158: 0.03175 | CD158: 0 | CE158: 0 | CF158: 0
A159: 0 | B159: 23 | C159: 0 | D159: 0 | E159: 0 | F159: 0 | G159: 0 | H159: 0 | I159: 0 | J159: 0 | K159: 0 | L159: 0 | M159: 0 | N159: 0 | O159: 0 | P159: 0 | Q159: 0 | R159: 0 | S159: 0 | T159: 1904.585326 | U159: 3936.198658 | V159: 4067.611636 | W159: 7005.944437 | X159: =X$135*$A138 -> 12067.29834 | Y159: =Y$135*$A137 -> 7794.713319 | CA159: 36776.35172 | CC159: 0.03175 | CD159: 0 | CE159: 0 | CF159: 0
A160: 0 | B160: 24 | C160: 0 | D160: 0 | E160: 0 | F160: 0 | G160: 0 | H160: 0 | I160: 0 | J160: 0 | K160: 0 | L160: 0 | M160: 0 | N160: 0 | O160: 0 | P160: 0 | Q160: 0 | R160: 0 | S160: 0 | T160: 0 | U160: 1968.099329 | V160: 4067.611636 | W160: 4203.566662 | X160: 7240.379006 | Y160: =Y$135*$A138 -> 12471.54131 | Z160: =Z$135*$A137 -> 0 | CA160: 29951.19794 | CC160: 0.03175 | CD160: 0 | CE160: 0 | CF160: 0
A161: 0 | B161: 25 | C161: 0 | D161: 0 | E161: 0 | F161: 0 | G161: 0 | H161: 0 | I161: 0 | J161: 0 | K161: 0 | L161: 0 | M161: 0 | N161: 0 | O161: 0 | P161: 0 | Q161: 0 | R161: 0 | S161: 0 | T161: 0 | U161: 0 | V161: 2033.805818 | W161: 4203.566662 | X161: 4344.227403 | Y161: 7482.924786 | Z161: =Z$135*$A138 -> 0 | AA161: =AA$135*$A137 -> 0 | CA161: 18064.52467 | CC161: 0.03175 | CD161: 0 | CE161: 0 | CF161: 0
A162: 0 | B162: 26 | C162: 0 | D162: 0 | E162: 0 | F162: 0 | G162: 0 | H162: 0 | I162: 0 | J162: 0 | K162: 0 | L162: 0 | M162: 0 | N162: 0 | O162: 0 | P162: 0 | Q162: 0 | R162: 0 | S162: 0 | T162: 0 | U162: 0 | V162: 0 | W162: 2101.783331 | X162: 4344.227403 | Y162: 4489.754872 | Z162: 0 | AA162: =AA$135*$A138 -> 0 | AB162: =AB$135*$A137 -> 0 | CA162: 10935.76561 | CC162: 0.03175 | CD162: 0 | CE162: 0 | CF162: 0
A163: 0 | B163: 27 | C163: 0 | D163: 0 | E163: 0 | F163: 0 | G163: 0 | H163: 0 | I163: 0 | J163: 0 | K163: 0 | L163: 0 | M163: 0 | N163: 0 | O163: 0 | P163: 0 | Q163: 0 | R163: 0 | S163: 0 | T163: 0 | U163: 0 | V163: 0 | W163: 0 | X163: 2172.113702 | Y163: 4489.754872 | Z163: 0 | AA163: 0 | AB163: =AB$135*$A138 -> 0 | AC163: =AC$135*$A137 -> 0 | CA163: 6661.868574 | CC163: 0.03175 | CD163: 0 | CE163: 0 | CF163: 0
A164: 0 | B164: 28 | C164: 0 | D164: 0 | E164: 0 | F164: 0 | G164: 0 | H164: 0 | I164: 0 | J164: 0 | K164: 0 | L164: 0 | M164: 0 | N164: 0 | O164: 0 | P164: 0 | Q164: 0 | R164: 0 | S164: 0 | T164: 0 | U164: 0 | V164: 0 | W164: 0 | X164: 0 | Y164: 2244.877436 | Z164: 0 | AA164: 0 | AB164: 0 | AC164: =AC$135*$A138 -> 0 | AD164: =AD$135*$A137 -> 0 | CA164: 2244.877436 | CC164: 0.03175 | CD164: 0 | CE164: 0 | CF164: 0
A165: 0 | B165: 29 | C165: 0 | D165: 0 | E165: 0 | F165: 0 | G165: 0 | H165: 0 | I165: 0 | J165: 0 | K165: 0 | L165: 0 | M165: 0 | N165: 0 | O165: 0 | P165: 0 | Q165: 0 | R165: 0 | S165: 0 | T165: 0 | U165: 0 | V165: 0 | W165: 0 | X165: 0 | Y165: 0 | Z165: 0 | AA165: 0 | AB165: 0 | AC165: 0 | AD165: =AD$135*$A138 -> 0 | AE165: =AE$135*$A137 -> 0 | CA165: 0 | CC165: 0.03175 | CD165: 0 | CE165: 0 | CF165: 0
A166: 0 | B166: 30 | C166: 0 | D166: 0 | E166: 0 | F166: 0 | G166: 0 | H166: 0 | I166: 0 | J166: 0 | K166: 0 | L166: 0 | M166: 0 | N166: 0 | O166: 0 | P166: 0 | Q166: 0 | R166: 0 | S166: 0 | T166: 0 | U166: 0 | V166: 0 | W166: 0 | X166: 0 | Y166: 0 | Z166: 0 | AA166: 0 | AB166: 0 | AC166: 0 | AD166: 0 | AE166: =AE$135*$A138 -> 0 | AF166: =AF$135*$A137 -> 0 | CA166: 0 | CC166: 0.03175 | CD166: 0 | CE166: 0 | CF166: 0
A167: 0 | B167: 31 | C167: 0 | D167: 0 | E167: 0 | F167: 0 | G167: 0 | H167: 0 | I167: 0 | J167: 0 | K167: 0 | L167: 0 | M167: 0 | N167: 0 | O167: 0 | P167: 0 | Q167: 0 | R167: 0 | S167: 0 | T167: 0 | U167: 0 | V167: 0 | W167: 0 | X167: 0 | Y167: 0 | Z167: 0 | AA167: 0 | AB167: 0 | AC167: 0 | AD167: 0 | AE167: 0 | AF167: =AF$135*$A138 -> 0 | AG167: =AG$135*$A137 -> 0 | CA167: 0 | CC167: 0.03175 | CD167: 0 | CE167: 0 | CF167: 0
A168: 0 | B168: 32 | C168: 0 | D168: 0 | E168: 0 | F168: 0 | G168: 0 | H168: 0 | I168: 0 | J168: 0 | K168: 0 | L168: 0 | M168: 0 | N168: 0 | O168: 0 | P168: 0 | Q168: 0 | R168: 0 | S168: 0 | T168: 0 | U168: 0 | V168: 0 | W168: 0 | X168: 0 | Y168: 0 | Z168: 0 | AA168: 0 | AB168: 0 | AC168: 0 | AD168: 0 | AE168: 0 | AF168: 0 | AG168: =AG$135*$A138 -> 0 | AH168: =AH$135*$A137 -> 0 | CA168: 0 | CC168: 0.03163 | CD168: 0 | CE168: 0 | CF168: 0
A169: 0 | B169: 33 | C169: 0 | D169: 0 | E169: 0 | F169: 0 | G169: 0 | H169: 0 | I169: 0 | J169: 0 | K169: 0 | L169: 0 | M169: 0 | N169: 0 | O169: 0 | P169: 0 | Q169: 0 | R169: 0 | S169: 0 | T169: 0 | U169: 0 | V169: 0 | W169: 0 | X169: 0 | Y169: 0 | Z169: 0 | AA169: 0 | AB169: 0 | AC169: 0 | AD169: 0 | AE169: 0 | AF169: 0 | AG169: 0 | AH169: =AH$135*$A138 -> 0 | AI169: =AI$135*$A137 -> 0 | CA169: 0
A170: 0 | B170: 34 | C170: 0 | D170: 0 | E170: 0 | F170: 0 | G170: 0 | H170: 0 | I170: 0 | J170: 0 | K170: 0 | L170: 0 | M170: 0 | N170: 0 | O170: 0 | P170: 0 | Q170: 0 | R170: 0 | S170: 0 | T170: 0 | U170: 0 | V170: 0 | W170: 0 | X170: 0 | Y170: 0 | Z170: 0 | AA170: 0 | AB170: 0 | AC170: 0 | AD170: 0 | AE170: 0 | AF170: 0 | AG170: 0 | AH170: 0 | AI170: =AI$135*$A138 -> 0 | AJ170: =AJ$135*$A137 -> 0 | CA170: 0
A171: 0 | B171: 35 | C171: 0 | D171: 0 | E171: 0 | F171: 0 | G171: 0 | H171: 0 | I171: 0 | J171: 0 | K171: 0 | L171: 0 | M171: 0 | N171: 0 | O171: 0 | P171: 0 | Q171: 0 | R171: 0 | S171: 0 | T171: 0 | U171: 0 | V171: 0 | W171: 0 | X171: 0 | Y171: 0 | Z171: 0 | AA171: 0 | AB171: 0 | AC171: 0 | AD171: 0 | AE171: 0 | AF171: 0 | AG171: 0 | AH171: 0 | AI171: 0 | AJ171: =AJ$135*$A138 -> 0 | AK171: =AK$135*$A137 -> 0 | CA171: 0
A172: 0 | B172: 36 | C172: 0 | D172: 0 | E172: 0 | F172: 0 | G172: 0 | H172: 0 | I172: 0 | J172: 0 | K172: 0 | L172: 0 | M172: 0 | N172: 0 | O172: 0 | P172: 0 | Q172: 0 | R172: 0 | S172: 0 | T172: 0 | U172: 0 | V172: 0 | W172: 0 | X172: 0 | Y172: 0 | Z172: 0 | AA172: 0 | AB172: 0 | AC172: 0 | AD172: 0 | AE172: 0 | AF172: 0 | AG172: 0 | AH172: 0 | AI172: 0 | AJ172: 0 | AK172: =AK$135*$A138 -> 0 | AL172: =AL$135*$A137 -> 0 | CA172: 0
A173: 0 | B173: 37 | C173: 0 | D173: 0 | E173: 0 | F173: 0 | G173: 0 | H173: 0 | I173: 0 | J173: 0 | K173: 0 | L173: 0 | M173: 0 | N173: 0 | O173: 0 | P173: 0 | Q173: 0 | R173: 0 | S173: 0 | T173: 0 | U173: 0 | V173: 0 | W173: 0 | X173: 0 | Y173: 0 | Z173: 0 | AA173: 0 | AB173: 0 | AC173: 0 | AD173: 0 | AE173: 0 | AF173: 0 | AG173: 0 | AH173: 0 | AI173: 0 | AJ173: 0 | AK173: 0 | AL173: =AL$135*$A138 -> 0 | AM173: =AM$135*$A137 -> 0 | CA173: 0
A174: 0 | B174: 38 | C174: 0 | D174: 0 | E174: 0 | F174: 0 | G174: 0 | H174: 0 | I174: 0 | J174: 0 | K174: 0 | L174: 0 | M174: 0 | N174: 0 | O174: 0 | P174: 0 | Q174: 0 | R174: 0 | S174: 0 | T174: 0 | U174: 0 | V174: 0 | W174: 0 | X174: 0 | Y174: 0 | Z174: 0 | AA174: 0 | AB174: 0 | AC174: 0 | AD174: 0 | AE174: 0 | AF174: 0 | AG174: 0 | AH174: 0 | AI174: 0 | AJ174: 0 | AK174: 0 | AL174: 0 | AM174: =AM$135*$A138 -> 0 | AN174: =AN$135*$A137 -> 0 | CA174: 0
A175: 0 | B175: 39 | C175: 0 | D175: 0 | E175: 0 | F175: 0 | G175: 0 | H175: 0 | I175: 0 | J175: 0 | K175: 0 | L175: 0 | M175: 0 | N175: 0 | O175: 0 | P175: 0 | Q175: 0 | R175: 0 | S175: 0 | T175: 0 | U175: 0 | V175: 0 | W175: 0 | X175: 0 | Y175: 0 | Z175: 0 | AA175: 0 | AB175: 0 | AC175: 0 | AD175: 0 | AE175: 0 | AF175: 0 | AG175: 0 | AH175: 0 | AI175: 0 | AJ175: 0 | AK175: 0 | AL175: 0 | AM175: 0 | AN175: =AN$135*$A138 -> 0 | AO175: =AO$135*$A137 -> 0 | CA175: 0
A176: 0 | B176: 40 | C176: 0 | D176: 0 | E176: 0 | F176: 0 | G176: 0 | H176: 0 | I176: 0 | J176: 0 | K176: 0 | L176: 0 | M176: 0 | N176: 0 | O176: 0 | P176: 0 | Q176: 0 | R176: 0 | S176: 0 | T176: 0 | U176: 0 | V176: 0 | W176: 0 | X176: 0 | Y176: 0 | Z176: 0 | AA176: 0 | AB176: 0 | AC176: 0 | AD176: 0 | AE176: 0 | AF176: 0 | AG176: 0 | AH176: 0 | AI176: 0 | AJ176: 0 | AK176: 0 | AL176: 0 | AM176: 0 | AN176: 0 | AO176: =AO$135*$A138 -> 0 | AP176: =AP$135*$A137 -> 0 | CA176: 0
A177: 0 | B177: 41 | C177: 0 | D177: 0 | E177: 0 | F177: 0 | G177: 0 | H177: 0 | I177: 0 | J177: 0 | K177: 0 | L177: 0 | M177: 0 | N177: 0 | O177: 0 | P177: 0 | Q177: 0 | R177: 0 | S177: 0 | T177: 0 | U177: 0 | V177: 0 | W177: 0 | X177: 0 | Y177: 0 | Z177: 0 | AA177: 0 | AB177: 0 | AC177: 0 | AD177: 0 | AE177: 0 | AF177: 0 | AG177: 0 | AH177: 0 | AI177: 0 | AJ177: 0 | AK177: 0 | AL177: 0 | AM177: 0 | AN177: 0 | AO177: 0 | AP177: =AP$135*$A138 -> 0 | AQ177: =AQ$135*$A137 -> 0 | CA177: 0
A178: 0 | B178: 42 | C178: 0 | D178: 0 | E178: 0 | F178: 0 | G178: 0 | H178: 0 | I178: 0 | J178: 0 | K178: 0 | L178: 0 | M178: 0 | N178: 0 | O178: 0 | P178: 0 | Q178: 0 | R178: 0 | S178: 0 | T178: 0 | U178: 0 | V178: 0 | W178: 0 | X178: 0 | Y178: 0 | Z178: 0 | AA178: 0 | AB178: 0 | AC178: 0 | AD178: 0 | AE178: 0 | AF178: 0 | AG178: 0 | AH178: 0 | AI178: 0 | AJ178: 0 | AK178: 0 | AL178: 0 | AM178: 0 | AN178: 0 | AO178: 0 | AP178: 0 | AQ178: =AQ$135*$A138 -> 0 | AR178: =AR$135*$A137 -> 0 | CA178: 0
A179: 0 | B179: 43 | C179: 0 | D179: 0 | E179: 0 | F179: 0 | G179: 0 | H179: 0 | I179: 0 | J179: 0 | K179: 0 | L179: 0 | M179: 0 | N179: 0 | O179: 0 | P179: 0 | Q179: 0 | R179: 0 | S179: 0 | T179: 0 | U179: 0 | V179: 0 | W179: 0 | X179: 0 | Y179: 0 | Z179: 0 | AA179: 0 | AB179: 0 | AC179: 0 | AD179: 0 | AE179: 0 | AF179: 0 | AG179: 0 | AH179: 0 | AI179: 0 | AJ179: 0 | AK179: 0 | AL179: 0 | AM179: 0 | AN179: 0 | AO179: 0 | AP179: 0 | AQ179: 0 | AR179: =AR$135*$A138 -> 0 | AS179: =AS$135*$A137 -> 0 | CA179: 0
A180: 0 | B180: 44 | C180: 0 | D180: 0 | E180: 0 | F180: 0 | G180: 0 | H180: 0 | I180: 0 | J180: 0 | K180: 0 | L180: 0 | M180: 0 | N180: 0 | O180: 0 | P180: 0 | Q180: 0 | R180: 0 | S180: 0 | T180: 0 | U180: 0 | V180: 0 | W180: 0 | X180: 0 | Y180: 0 | Z180: 0 | AA180: 0 | AB180: 0 | AC180: 0 | AD180: 0 | AE180: 0 | AF180: 0 | AG180: 0 | AH180: 0 | AI180: 0 | AJ180: 0 | AK180: 0 | AL180: 0 | AM180: 0 | AN180: 0 | AO180: 0 | AP180: 0 | AQ180: 0 | AR180: 0 | AS180: =AS$135*$A138 -> 0 | AT180: =AT$135*$A137 -> 0 | CA180: 0
A181: 0 | B181: 45 | C181: 0 | D181: 0 | E181: 0 | F181: 0 | G181: 0 | H181: 0 | I181: 0 | J181: 0 | K181: 0 | L181: 0 | M181: 0 | N181: 0 | O181: 0 | P181: 0 | Q181: 0 | R181: 0 | S181: 0 | T181: 0 | U181: 0 | V181: 0 | W181: 0 | X181: 0 | Y181: 0 | Z181: 0 | AA181: 0 | AB181: 0 | AC181: 0 | AD181: 0 | AE181: 0 | AF181: 0 | AG181: 0 | AH181: 0 | AI181: 0 | AJ181: 0 | AK181: 0 | AL181: 0 | AM181: 0 | AN181: 0 | AO181: 0 | AP181: 0 | AQ181: 0 | AR181: 0 | AS181: 0 | AT181: =AT$135*$A138 -> 0 | AU181: =AU$135*$A137 -> 0 | CA181: 0
A182: 0 | B182: 46 | C182: 0 | D182: 0 | E182: 0 | F182: 0 | G182: 0 | H182: 0 | I182: 0 | J182: 0 | K182: 0 | L182: 0 | M182: 0 | N182: 0 | O182: 0 | P182: 0 | Q182: 0 | R182: 0 | S182: 0 | T182: 0 | U182: 0 | V182: 0 | W182: 0 | X182: 0 | Y182: 0 | Z182: 0 | AA182: 0 | AB182: 0 | AC182: 0 | AD182: 0 | AE182: 0 | AF182: 0 | AG182: 0 | AH182: 0 | AI182: 0 | AJ182: 0 | AK182: 0 | AL182: 0 | AM182: 0 | AN182: 0 | AO182: 0 | AP182: 0 | AQ182: 0 | AR182: 0 | AS182: 0 | AT182: 0 | AU182: =AU$135*$A138 -> 0 | AV182: =AV$135*$A137 -> 0 | CA182: 0
A183: 0 | B183: 47 | C183: 0 | D183: 0 | E183: 0 | F183: 0 | G183: 0 | H183: 0 | I183: 0 | J183: 0 | K183: 0 | L183: 0 | M183: 0 | N183: 0 | O183: 0 | P183: 0 | Q183: 0 | R183: 0 | S183: 0 | T183: 0 | U183: 0 | V183: 0 | W183: 0 | X183: 0 | Y183: 0 | Z183: 0 | AA183: 0 | AB183: 0 | AC183: 0 | AD183: 0 | AE183: 0 | AF183: 0 | AG183: 0 | AH183: 0 | AI183: 0 | AJ183: 0 | AK183: 0 | AL183: 0 | AM183: 0 | AN183: 0 | AO183: 0 | AP183: 0 | AQ183: 0 | AR183: 0 | AS183: 0 | AT183: 0 | AU183: 0 | AV183: =AV$135*$A138 -> 0 | AW183: =AW$135*$A137 -> 0 | CA183: 0
A184: 0 | B184: 48 | C184: 0 | D184: 0 | E184: 0 | F184: 0 | G184: 0 | H184: 0 | I184: 0 | J184: 0 | K184: 0 | L184: 0 | M184: 0 | N184: 0 | O184: 0 | P184: 0 | Q184: 0 | R184: 0 | S184: 0 | T184: 0 | U184: 0 | V184: 0 | W184: 0 | X184: 0 | Y184: 0 | Z184: 0 | AA184: 0 | AB184: 0 | AC184: 0 | AD184: 0 | AE184: 0 | AF184: 0 | AG184: 0 | AH184: 0 | AI184: 0 | AJ184: 0 | AK184: 0 | AL184: 0 | AM184: 0 | AN184: 0 | AO184: 0 | AP184: 0 | AQ184: 0 | AR184: 0 | AS184: 0 | AT184: 0 | AU184: 0 | AV184: 0 | AW184: =AW$135*$A138 -> 0 | AX184: =AX$135*$A137 -> 0 | CA184: 0
A185: 0 | B185: 49 | C185: 0 | D185: 0 | E185: 0 | F185: 0 | G185: 0 | H185: 0 | I185: 0 | J185: 0 | K185: 0 | L185: 0 | M185: 0 | N185: 0 | O185: 0 | P185: 0 | Q185: 0 | R185: 0 | S185: 0 | T185: 0 | U185: 0 | V185: 0 | W185: 0 | X185: 0 | Y185: 0 | Z185: 0 | AA185: 0 | AB185: 0 | AC185: 0 | AD185: 0 | AE185: 0 | AF185: 0 | AG185: 0 | AH185: 0 | AI185: 0 | AJ185: 0 | AK185: 0 | AL185: 0 | AM185: 0 | AN185: 0 | AO185: 0 | AP185: 0 | AQ185: 0 | AR185: 0 | AS185: 0 | AT185: 0 | AU185: 0 | AV185: 0 | AW185: 0 | AX185: =AX$135*$A138 -> 0 | AY185: =AY$135*$A137 -> 0 | CA185: 0
A186: 0 | B186: 50 | C186: 0 | D186: 0 | E186: 0 | F186: 0 | G186: 0 | H186: 0 | I186: 0 | J186: 0 | K186: 0 | L186: 0 | M186: 0 | N186: 0 | O186: 0 | P186: 0 | Q186: 0 | R186: 0 | S186: 0 | T186: 0 | U186: 0 | V186: 0 | W186: 0 | X186: 0 | Y186: 0 | Z186: 0 | AA186: 0 | AB186: 0 | AC186: 0 | AD186: 0 | AE186: 0 | AF186: 0 | AG186: 0 | AH186: 0 | AI186: 0 | AJ186: 0 | AK186: 0 | AL186: 0 | AM186: 0 | AN186: 0 | AO186: 0 | AP186: 0 | AQ186: 0 | AR186: 0 | AS186: 0 | AT186: 0 | AU186: 0 | AV186: 0 | AW186: 0 | AX186: 0 | AY186: =AY$135*$A138 -> 0 | AZ186: =AZ$135*$A137 -> 0 | CA186: 0
A187: 0 | B187: 51 | C187: 0 | D187: 0 | E187: 0 | F187: 0 | G187: 0 | H187: 0 | I187: 0 | J187: 0 | K187: 0 | L187: 0 | M187: 0 | N187: 0 | O187: 0 | P187: 0 | Q187: 0 | R187: 0 | S187: 0 | T187: 0 | U187: 0 | V187: 0 | W187: 0 | X187: 0 | Y187: 0 | Z187: 0 | AA187: 0 | AB187: 0 | AC187: 0 | AD187: 0 | AE187: 0 | AF187: 0 | AG187: 0 | AH187: 0 | AI187: 0 | AJ187: 0 | AK187: 0 | AL187: 0 | AM187: 0 | AN187: 0 | AO187: 0 | AP187: 0 | AQ187: 0 | AR187: 0 | AS187: 0 | AT187: 0 | AU187: 0 | AV187: 0 | AW187: 0 | AX187: 0 | AY187: 0 | AZ187: =AZ$135*$A138 -> 0 | BA187: =BA$135*$A137 -> 0 | CA187: 0
A188: 0 | B188: 52 | C188: 0 | D188: 0 | E188: 0 | F188: 0 | G188: 0 | H188: 0 | I188: 0 | J188: 0 | K188: 0 | L188: 0 | M188: 0 | N188: 0 | O188: 0 | P188: 0 | Q188: 0 | R188: 0 | S188: 0 | T188: 0 | U188: 0 | V188: 0 | W188: 0 | X188: 0 | Y188: 0 | Z188: 0 | AA188: 0 | AB188: 0 | AC188: 0 | AD188: 0 | AE188: 0 | AF188: 0 | AG188: 0 | AH188: 0 | AI188: 0 | AJ188: 0 | AK188: 0 | AL188: 0 | AM188: 0 | AN188: 0 | AO188: 0 | AP188: 0 | AQ188: 0 | AR188: 0 | AS188: 0 | AT188: 0 | AU188: 0 | AV188: 0 | AW188: 0 | AX188: 0 | AY188: 0 | AZ188: 0 | BA188: =BA$135*$A138 -> 0 | BB188: =BB$135*$A137 -> 0 | CA188: 0
A189: 0 | B189: 53 | C189: 0 | D189: 0 | E189: 0 | F189: 0 | G189: 0 | H189: 0 | I189: 0 | J189: 0 | K189: 0 | L189: 0 | M189: 0 | N189: 0 | O189: 0 | P189: 0 | Q189: 0 | R189: 0 | S189: 0 | T189: 0 | U189: 0 | V189: 0 | W189: 0 | X189: 0 | Y189: 0 | Z189: 0 | AA189: 0 | AB189: 0 | AC189: 0 | AD189: 0 | AE189: 0 | AF189: 0 | AG189: 0 | AH189: 0 | AI189: 0 | AJ189: 0 | AK189: 0 | AL189: 0 | AM189: 0 | AN189: 0 | AO189: 0 | AP189: 0 | AQ189: 0 | AR189: 0 | AS189: 0 | AT189: 0 | AU189: 0 | AV189: 0 | AW189: 0 | AX189: 0 | AY189: 0 | AZ189: 0 | BA189: 0 | BB189: =BB$135*$A138 -> 0 | BC189: =BC$135*$A137 -> 0 | CA189: 0
A190: 0 | B190: 54 | C190: 0 | D190: 0 | E190: 0 | F190: 0 | G190: 0 | H190: 0 | I190: 0 | J190: 0 | K190: 0 | L190: 0 | M190: 0 | N190: 0 | O190: 0 | P190: 0 | Q190: 0 | R190: 0 | S190: 0 | T190: 0 | U190: 0 | V190: 0 | W190: 0 | X190: 0 | Y190: 0 | Z190: 0 | AA190: 0 | AB190: 0 | AC190: 0 | AD190: 0 | AE190: 0 | AF190: 0 | AG190: 0 | AH190: 0 | AI190: 0 | AJ190: 0 | AK190: 0 | AL190: 0 | AM190: 0 | AN190: 0 | AO190: 0 | AP190: 0 | AQ190: 0 | AR190: 0 | AS190: 0 | AT190: 0 | AU190: 0 | AV190: 0 | AW190: 0 | AX190: 0 | AY190: 0 | AZ190: 0 | BA190: 0 | BB190: 0 | BC190: =BC$135*$A138 -> 0 | BD190: =BD$135*$A137 -> 0 | CA190: 0
A191: 0 | B191: 55 | C191: 0 | D191: 0 | E191: 0 | F191: 0 | G191: 0 | H191: 0 | I191: 0 | J191: 0 | K191: 0 | L191: 0 | M191: 0 | N191: 0 | O191: 0 | P191: 0 | Q191: 0 | R191: 0 | S191: 0 | T191: 0 | U191: 0 | V191: 0 | W191: 0 | X191: 0 | Y191: 0 | Z191: 0 | AA191: 0 | AB191: 0 | AC191: 0 | AD191: 0 | AE191: 0 | AF191: 0 | AG191: 0 | AH191: 0 | AI191: 0 | AJ191: 0 | AK191: 0 | AL191: 0 | AM191: 0 | AN191: 0 | AO191: 0 | AP191: 0 | AQ191: 0 | AR191: 0 | AS191: 0 | AT191: 0 | AU191: 0 | AV191: 0 | AW191: 0 | AX191: 0 | AY191: 0 | AZ191: 0 | BA191: 0 | BB191: 0 | BC191: 0 | BD191: =BD$135*$A138 -> 0 | BE191: =BE$135*$A137 -> 0 | CA191: 0
A192: 0 | B192: 56 | C192: 0 | D192: 0 | E192: 0 | F192: 0 | G192: 0 | H192: 0 | I192: 0 | J192: 0 | K192: 0 | L192: 0 | M192: 0 | N192: 0 | O192: 0 | P192: 0 | Q192: 0 | R192: 0 | S192: 0 | T192: 0 | U192: 0 | V192: 0 | W192: 0 | X192: 0 | Y192: 0 | Z192: 0 | AA192: 0 | AB192: 0 | AC192: 0 | AD192: 0 | AE192: 0 | AF192: 0 | AG192: 0 | AH192: 0 | AI192: 0 | AJ192: 0 | AK192: 0 | AL192: 0 | AM192: 0 | AN192: 0 | AO192: 0 | AP192: 0 | AQ192: 0 | AR192: 0 | AS192: 0 | AT192: 0 | AU192: 0 | AV192: 0 | AW192: 0 | AX192: 0 | AY192: 0 | AZ192: 0 | BA192: 0 | BB192: 0 | BC192: 0 | BD192: 0 | BE192: =BE$135*$A138 -> 0 | BF192: =BF$135*$A137 -> 0 | CA192: 0
A193: 0 | B193: 57 | C193: 0 | D193: 0 | E193: 0 | F193: 0 | G193: 0 | H193: 0 | I193: 0 | J193: 0 | K193: 0 | L193: 0 | M193: 0 | N193: 0 | O193: 0 | P193: 0 | Q193: 0 | R193: 0 | S193: 0 | T193: 0 | U193: 0 | V193: 0 | W193: 0 | X193: 0 | Y193: 0 | Z193: 0 | AA193: 0 | AB193: 0 | AC193: 0 | AD193: 0 | AE193: 0 | AF193: 0 | AG193: 0 | AH193: 0 | AI193: 0 | AJ193: 0 | AK193: 0 | AL193: 0 | AM193: 0 | AN193: 0 | AO193: 0 | AP193: 0 | AQ193: 0 | AR193: 0 | AS193: 0 | AT193: 0 | AU193: 0 | AV193: 0 | AW193: 0 | AX193: 0 | AY193: 0 | AZ193: 0 | BA193: 0 | BB193: 0 | BC193: 0 | BD193: 0 | BE193: 0 | BF193: =BF$135*$A138 -> 0 | BG193: =BG$135*$A137 -> 0 | CA193: 0
A194: 0 | B194: 58 | C194: 0 | D194: 0 | E194: 0 | F194: 0 | G194: 0 | H194: 0 | I194: 0 | J194: 0 | K194: 0 | L194: 0 | M194: 0 | N194: 0 | O194: 0 | P194: 0 | Q194: 0 | R194: 0 | S194: 0 | T194: 0 | U194: 0 | V194: 0 | W194: 0 | X194: 0 | Y194: 0 | Z194: 0 | AA194: 0 | AB194: 0 | AC194: 0 | AD194: 0 | AE194: 0 | AF194: 0 | AG194: 0 | AH194: 0 | AI194: 0 | AJ194: 0 | AK194: 0 | AL194: 0 | AM194: 0 | AN194: 0 | AO194: 0 | AP194: 0 | AQ194: 0 | AR194: 0 | AS194: 0 | AT194: 0 | AU194: 0 | AV194: 0 | AW194: 0 | AX194: 0 | AY194: 0 | AZ194: 0 | BA194: 0 | BB194: 0 | BC194: 0 | BD194: 0 | BE194: 0 | BF194: 0 | BG194: =BG$135*$A138 -> 0 | BH194: =BH$135*$A137 -> 0 | CA194: 0
A195: 0 | B195: 59 | C195: 0 | D195: 0 | E195: 0 | F195: 0 | G195: 0 | H195: 0 | I195: 0 | J195: 0 | K195: 0 | L195: 0 | M195: 0 | N195: 0 | O195: 0 | P195: 0 | Q195: 0 | R195: 0 | S195: 0 | T195: 0 | U195: 0 | V195: 0 | W195: 0 | X195: 0 | Y195: 0 | Z195: 0 | AA195: 0 | AB195: 0 | AC195: 0 | AD195: 0 | AE195: 0 | AF195: 0 | AG195: 0 | AH195: 0 | AI195: 0 | AJ195: 0 | AK195: 0 | AL195: 0 | AM195: 0 | AN195: 0 | AO195: 0 | AP195: 0 | AQ195: 0 | AR195: 0 | AS195: 0 | AT195: 0 | AU195: 0 | AV195: 0 | AW195: 0 | AX195: 0 | AY195: 0 | AZ195: 0 | BA195: 0 | BB195: 0 | BC195: 0 | BD195: 0 | BE195: 0 | BF195: 0 | BG195: 0 | BH195: =BH$135*$A138 -> 0 | BI195: =BI$135*$A137 -> 0 | CA195: 0
A196: 0 | B196: 60 | C196: 0 | D196: 0 | E196: 0 | F196: 0 | G196: 0 | H196: 0 | I196: 0 | J196: 0 | K196: 0 | L196: 0 | M196: 0 | N196: 0 | O196: 0 | P196: 0 | Q196: 0 | R196: 0 | S196: 0 | T196: 0 | U196: 0 | V196: 0 | W196: 0 | X196: 0 | Y196: 0 | Z196: 0 | AA196: 0 | AB196: 0 | AC196: 0 | AD196: 0 | AE196: 0 | AF196: 0 | AG196: 0 | AH196: 0 | AI196: 0 | AJ196: 0 | AK196: 0 | AL196: 0 | AM196: 0 | AN196: 0 | AO196: 0 | AP196: 0 | AQ196: 0 | AR196: 0 | AS196: 0 | AT196: 0 | AU196: 0 | AV196: 0 | AW196: 0 | AX196: 0 | AY196: 0 | AZ196: 0 | BA196: 0 | BB196: 0 | BC196: 0 | BD196: 0 | BE196: 0 | BF196: 0 | BG196: 0 | BH196: 0 | BI196: =BI$135*$A138 -> 0 | BJ196: =BJ$135*$A137 -> 0 | CA196: 0
A197: 0 | B197: 61 | C197: 0 | D197: 0 | E197: 0 | F197: 0 | G197: 0 | H197: 0 | I197: 0 | J197: 0 | K197: 0 | L197: 0 | M197: 0 | N197: 0 | O197: 0 | P197: 0 | Q197: 0 | R197: 0 | S197: 0 | T197: 0 | U197: 0 | V197: 0 | W197: 0 | X197: 0 | Y197: 0 | Z197: 0 | AA197: 0 | AB197: 0 | AC197: 0 | AD197: 0 | AE197: 0 | AF197: 0 | AG197: 0 | AH197: 0 | AI197: 0 | AJ197: 0 | AK197: 0 | AL197: 0 | AM197: 0 | AN197: 0 | AO197: 0 | AP197: 0 | AQ197: 0 | AR197: 0 | AS197: 0 | AT197: 0 | AU197: 0 | AV197: 0 | AW197: 0 | AX197: 0 | AY197: 0 | AZ197: 0 | BA197: 0 | BB197: 0 | BC197: 0 | BD197: 0 | BE197: 0 | BF197: 0 | BG197: 0 | BH197: 0 | BI197: 0 | BJ197: =BJ$135*$A138 -> 0 | BK197: =BK$135*$A137 -> 0 | CA197: 0
A198: 0 | B198: 62 | C198: 0 | D198: 0 | E198: 0 | F198: 0 | G198: 0 | H198: 0 | I198: 0 | J198: 0 | K198: 0 | L198: 0 | M198: 0 | N198: 0 | O198: 0 | P198: 0 | Q198: 0 | R198: 0 | S198: 0 | T198: 0 | U198: 0 | V198: 0 | W198: 0 | X198: 0 | Y198: 0 | Z198: 0 | AA198: 0 | AB198: 0 | AC198: 0 | AD198: 0 | AE198: 0 | AF198: 0 | AG198: 0 | AH198: 0 | AI198: 0 | AJ198: 0 | AK198: 0 | AL198: 0 | AM198: 0 | AN198: 0 | AO198: 0 | AP198: 0 | AQ198: 0 | AR198: 0 | AS198: 0 | AT198: 0 | AU198: 0 | AV198: 0 | AW198: 0 | AX198: 0 | AY198: 0 | AZ198: 0 | BA198: 0 | BB198: 0 | BC198: 0 | BD198: 0 | BE198: 0 | BF198: 0 | BG198: 0 | BH198: 0 | BI198: 0 | BJ198: 0 | BK198: =BK$135*$A138 -> 0 | BL198: =BL$135*$A137 -> 0 | CA198: 0
A199: 0 | B199: 63 | C199: 0 | D199: 0 | E199: 0 | F199: 0 | G199: 0 | H199: 0 | I199: 0 | J199: 0 | K199: 0 | L199: 0 | M199: 0 | N199: 0 | O199: 0 | P199: 0 | Q199: 0 | R199: 0 | S199: 0 | T199: 0 | U199: 0 | V199: 0 | W199: 0 | X199: 0 | Y199: 0 | Z199: 0 | AA199: 0 | AB199: 0 | AC199: 0 | AD199: 0 | AE199: 0 | AF199: 0 | AG199: 0 | AH199: 0 | AI199: 0 | AJ199: 0 | AK199: 0 | AL199: 0 | AM199: 0 | AN199: 0 | AO199: 0 | AP199: 0 | AQ199: 0 | AR199: 0 | AS199: 0 | AT199: 0 | AU199: 0 | AV199: 0 | AW199: 0 | AX199: 0 | AY199: 0 | AZ199: 0 | BA199: 0 | BB199: 0 | BC199: 0 | BD199: 0 | BE199: 0 | BF199: 0 | BG199: 0 | BH199: 0 | BI199: 0 | BJ199: 0 | BK199: 0 | BL199: =BL$135*$A138 -> 0 | BM199: =BM$135*$A137 -> 0 | CA199: 0
A200: 0 | B200: 64 | C200: 0 | D200: 0 | E200: 0 | F200: 0 | G200: 0 | H200: 0 | I200: 0 | J200: 0 | K200: 0 | L200: 0 | M200: 0 | N200: 0 | O200: 0 | P200: 0 | Q200: 0 | R200: 0 | S200: 0 | T200: 0 | U200: 0 | V200: 0 | W200: 0 | X200: 0 | Y200: 0 | Z200: 0 | AA200: 0 | AB200: 0 | AC200: 0 | AD200: 0 | AE200: 0 | AF200: 0 | AG200: 0 | AH200: 0 | AI200: 0 | AJ200: 0 | AK200: 0 | AL200: 0 | AM200: 0 | AN200: 0 | AO200: 0 | AP200: 0 | AQ200: 0 | AR200: 0 | AS200: 0 | AT200: 0 | AU200: 0 | AV200: 0 | AW200: 0 | AX200: 0 | AY200: 0 | AZ200: 0 | BA200: 0 | BB200: 0 | BC200: 0 | BD200: 0 | BE200: 0 | BF200: 0 | BG200: 0 | BH200: 0 | BI200: 0 | BJ200: 0 | BK200: 0 | BL200: 0 | BM200: =BM$135*$A138 -> 0 | BN200: =BN$135*$A137 -> 0 | CA200: 0
A201: 0 | B201: 65 | C201: 0 | D201: 0 | E201: 0 | F201: 0 | G201: 0 | H201: 0 | I201: 0 | J201: 0 | K201: 0 | L201: 0 | M201: 0 | N201: 0 | O201: 0 | P201: 0 | Q201: 0 | R201: 0 | S201: 0 | T201: 0 | U201: 0 | V201: 0 | W201: 0 | X201: 0 | Y201: 0 | Z201: 0 | AA201: 0 | AB201: 0 | AC201: 0 | AD201: 0 | AE201: 0 | AF201: 0 | AG201: 0 | AH201: 0 | AI201: 0 | AJ201: 0 | AK201: 0 | AL201: 0 | AM201: 0 | AN201: 0 | AO201: 0 | AP201: 0 | AQ201: 0 | AR201: 0 | AS201: 0 | AT201: 0 | AU201: 0 | AV201: 0 | AW201: 0 | AX201: 0 | AY201: 0 | AZ201: 0 | BA201: 0 | BB201: 0 | BC201: 0 | BD201: 0 | BE201: 0 | BF201: 0 | BG201: 0 | BH201: 0 | BI201: 0 | BJ201: 0 | BK201: 0 | BL201: 0 | BM201: 0 | BN201: =BN$135*$A138 -> 0 | BO201: =BO$135*$A137 -> 0 | CA201: =SUM($C201:$BZ201) -> 0
A202: =IF($B$132=1,CC202,IF($B$132=2,CD202,IF($B$132=3,CE202,IF($B$132=4,CF202,#VALUE!)))) -> 0 | B202: =+B201+1 -> 66 | C202: =C$135*$A202 -> 0 | D202: 0 | E202: 0 | F202: 0 | G202: 0 | H202: 0 | I202: 0 | J202: 0 | K202: 0 | L202: 0 | M202: 0 | N202: 0 | O202: 0 | P202: 0 | Q202: 0 | R202: 0 | S202: 0 | T202: 0 | U202: 0 | V202: 0 | W202: 0 | X202: 0 | Y202: 0 | Z202: 0 | AA202: 0 | AB202: 0 | AC202: 0 | AD202: 0 | AE202: 0 | AF202: 0 | AG202: 0 | AH202: 0 | AI202: 0 | AJ202: 0 | AK202: 0 | AL202: 0 | AM202: 0 | AN202: 0 | AO202: 0 | AP202: 0 | AQ202: 0 | AR202: 0 | AS202: 0 | AT202: 0 | AU202: 0 | AV202: 0 | AW202: 0 | AX202: 0 | AY202: 0 | AZ202: 0 | BA202: 0 | BB202: 0 | BC202: 0 | BD202: 0 | BE202: 0 | BF202: 0 | BG202: 0 | BH202: 0 | BI202: 0 | BJ202: 0 | BK202: 0 | BL202: 0 | BM202: 0 | BN202: 0 | BO202: =BO$135*$A138 -> 0 | BP202: =BP$135*$A137 -> 0 | CA202: 0
A203: 0 | B203: 67 | C203: 0 | D203: =D$135*$A202 -> 0 | E203: 0 | F203: 0 | G203: 0 | H203: 0 | I203: 0 | J203: 0 | K203: 0 | L203: 0 | M203: 0 | N203: 0 | O203: 0 | P203: 0 | Q203: 0 | R203: 0 | S203: 0 | T203: 0 | U203: 0 | V203: 0 | W203: 0 | X203: 0 | Y203: 0 | Z203: 0 | AA203: 0 | AB203: 0 | AC203: 0 | AD203: 0 | AE203: 0 | AF203: 0 | AG203: 0 | AH203: 0 | AI203: 0 | AJ203: 0 | AK203: 0 | AL203: 0 | AM203: 0 | AN203: 0 | AO203: 0 | AP203: 0 | AQ203: 0 | AR203: 0 | AS203: 0 | AT203: 0 | AU203: 0 | AV203: 0 | AW203: 0 | AX203: 0 | AY203: 0 | AZ203: 0 | BA203: 0 | BB203: 0 | BC203: 0 | BD203: 0 | BE203: 0 | BF203: 0 | BG203: 0 | BH203: 0 | BI203: 0 | BJ203: 0 | BK203: 0 | BL203: 0 | BM203: 0 | BN203: 0 | BO203: 0 | BP203: =BP$135*$A138 -> 0 | BQ203: =BQ$135*$A137 -> 0 | CA203: 0
A204: 0 | B204: 68 | C204: 0 | D204: 0 | E204: =E$135*$A202 -> 0 | F204: 0 | G204: 0 | H204: 0 | I204: 0 | J204: 0 | K204: 0 | L204: 0 | M204: 0 | N204: 0 | O204: 0 | P204: 0 | Q204: 0 | R204: 0 | S204: 0 | T204: 0 | U204: 0 | V204: 0 | W204: 0 | X204: 0 | Y204: 0 | Z204: 0 | AA204: 0 | AB204: 0 | AC204: 0 | AD204: 0 | AE204: 0 | AF204: 0 | AG204: 0 | AH204: 0 | AI204: 0 | AJ204: 0 | AK204: 0 | AL204: 0 | AM204: 0 | AN204: 0 | AO204: 0 | AP204: 0 | AQ204: 0 | AR204: 0 | AS204: 0 | AT204: 0 | AU204: 0 | AV204: 0 | AW204: 0 | AX204: 0 | AY204: 0 | AZ204: 0 | BA204: 0 | BB204: 0 | BC204: 0 | BD204: 0 | BE204: 0 | BF204: 0 | BG204: 0 | BH204: 0 | BI204: 0 | BJ204: 0 | BK204: 0 | BL204: 0 | BM204: 0 | BN204: 0 | BO204: 0 | BP204: 0 | BQ204: =BQ$135*$A138 -> 0 | BR204: =BR$135*$A137 -> 0 | CA204: 0
A205: 0 | B205: 69 | C205: 0 | D205: 0 | E205: 0 | F205: =F$135*$A202 -> 0 | G205: 0 | H205: 0 | I205: 0 | J205: 0 | K205: 0 | L205: 0 | M205: 0 | N205: 0 | O205: 0 | P205: 0 | Q205: 0 | R205: 0 | S205: 0 | T205: 0 | U205: 0 | V205: 0 | W205: 0 | X205: 0 | Y205: 0 | Z205: 0 | AA205: 0 | AB205: 0 | AC205: 0 | AD205: 0 | AE205: 0 | AF205: 0 | AG205: 0 | AH205: 0 | AI205: 0 | AJ205: 0 | AK205: 0 | AL205: 0 | AM205: 0 | AN205: 0 | AO205: 0 | AP205: 0 | AQ205: 0 | AR205: 0 | AS205: 0 | AT205: 0 | AU205: 0 | AV205: 0 | AW205: 0 | AX205: 0 | AY205: 0 | AZ205: 0 | BA205: 0 | BB205: 0 | BC205: 0 | BD205: 0 | BE205: 0 | BF205: 0 | BG205: 0 | BH205: 0 | BI205: 0 | BJ205: 0 | BK205: 0 | BL205: 0 | BM205: 0 | BN205: 0 | BO205: 0 | BP205: 0 | BQ205: 0 | BR205: =BR$135*$A138 -> 0 | BS205: =BS$135*$A137 -> 0 | CA205: 0
... 177 more rows

Sheet TOU
A1: State Income Tax Rate ............ | D1: 0.0164024 | I1: Debt ........................... | L1: 0.5 | M1: 0.052 | N1: =ROUND(L1*M1,4) -> 0.026 | O1: =N1*(1-D2) -> 0.02054 | Q1: Gross Revenue | T1: 1
A2: Federal Income Tax Rate ........ | D2: 0.21 | I2: Preferred Stock ................. | L2: 0 | M2: 0 | N2: =ROUND(L2*M2,4) -> 0 | O2: =N2 -> 0 | Q2: Uncollectables | T2: 0
A3: Discount Factor ...................... | D3: =+O4 -> 0.06804 | I3: Common Equity ...................... | L3: 0.5 | M3: 0.095 | N3: =ROUND(L3*M3,4) -> 0.0475 | O3: =N3 -> 0.0475 | Q3: Commission Fees | T3: 0
A4: Capital Class ........................... | D4: 4 | E4: (1) General Structures. | N4: =SUM(N1:N3) -> 0.0735 | O4: =SUM(O1:O3) -> 0.06804 | Q4: Excise Tax | T4: 0
E5: (2) Generation, Transmission, | Q5: Franchise Fees | T5: 0
E6: and Distribution. | Q6: ERSA | T6: 0
E7: (3) Other Equipment. | N7: IRR CALC | T7: -
E8: (4) Transportation Equipment. | I8: Principal ...................... | L8: =T24 -> 5.244151301e-52 | N8: =L8 -> 5.244151301e-52 | O8: pv princ | Q8: Misc. Revenue Items | T8: =SUM(T2:T6) -> 0
A9: Book Life (Years) .............. | D9: 10 | I9: Interest ....................... | L9: =D3 -> 0.06804 | N9: =V20 -> 0 | O9: pv lvlized margin | T9: -
A10: Property Tax Rate ............... | D10: 0.015 | I10: Term ............................. | L10: 10 | N10: =IRR($AI$28:$AI$102,0.059065190478108) ->  | O10: IRR | Q10: Before State Income Tax | T10: =T1-T8 -> 1
A11: O&M Escalation Factor .......... | D11: 0.03 | I11: Levelized Gr. Mar. Requirement ....... | L11: =PMT($L$9,$L$10,-$L$8) -> 7.398988292e-53 | Q11: State Income Tax | T11: 0
T12: -
B13: Idaho | C13: Oregon | D13: Washington | Q13: Before Federal Income Tax | T13: =T10-T11 -> 1
A14: Electric | B14: 0.35 | C14: 0 | D14: 0.65 | E14: =SUM(B14:D14) -> 1 | K14: Lev ROE | L14: =PMT(L9,L10,-L15) -> 22716.26319 | Q14: Federal Income Tax | T14: =T13*D2 -> 0.21 | V14: (v) | W14: (w) | X14: (x) | Y14: (y) | Z14: (z) | AA14: (aa) | AB14: (ab) | AC14: (ac) | AD14: (ad) | AE14: (ae) | AF14: (af) | AG14: (ag) | AH14: (ah)
A15: Gas | B15: 0 | C15: 0 | D15: 0 | E15: =SUM(B15:D15) -> 0 | K15: NPV equity | L15: =NPV(L9,$M$28:$M$103) -> 161005.1489 | T15: - | V15: PV GM
B16: =SUM(B14:B15) -> 0.35 | C16: =SUM(C14:C15) -> 0 | D16: 0.65 | E16: 1 | Q16: Conversion Factor | T16: =T13-T14 -> 0.79 | V16: =NPV(O4,$V$29:$V$103)+V28 -> 0
A17: ...................................................................................................................................................................................................................... | V17: TERM
B18: Capital Additions | V18: =L10 -> 10 | AD18: pv of contribution to fixed costs | AG18: =NPV(O4,20,AG28:AG28) -> 18.72589042
B19: ----------------- | D19: Rate | E19: Accum. | G19: Book Dep. | I19: Rate | K19: Average | P19: Misc. | Q19: State | R19: Federal | S19: Total | T19: Present Val | V19: LEVELIZED | AE19: Interest ....................... | AG19: =O4 -> 0.06804 | AL19: Inter.
B20: Tax | C20: Book | D20: Base | E20: Book | F20: Tax | G20: on Tax | H20: Deferred | I20: Base | J20: Book | K20: Rate | L20: Interest | M20: Equity | N20: O&M & A&G | O20: Property | P20: Revenue | Q20: Income | R20: Income | S20: Gross Marg | T20: Gross Marg | V20: =PMT(L9,V18,-V16) -> 0 | AE20: Term ............................. | AG20: 50 | AH20: per kwh | AL20: Revenue | AN20: Net Book
B21: Basis | C21: Basis | D21: BOP | E21: Deprec. | F21: Deprec. | G21: Basis | H21: Taxes | I21: EOP | J21: Deprec. | K21: Base | L21: Expense | M21: Return | N21: Expense | O21: Taxes | P21: Items | Q21: Tax | R21: Taxes | S21: Reqmnt | T21: Reqmnt | AD21: levelized cont. to fixed costs | AG21: =PMT(AG19,AG20,-AG18) -> 1.323347304 | AH21: =AG21/(400*1000) -> 3.308368259e-06 | AL21: Requirement | AN21: BOP
A22: (a) | B22: (b) | C22: (c) | D22: (d) | E22: (e) | F22: (f) | G22: (g) | H22: (h) | I22: (i) | J22: (j) | K22: (k) | L22: (l) | M22: (m) | N22: (n) | O22: (o) | P22: (p) | Q22: (q) | R22: (r) | S22: (s) | T22: (t) | W22: - | X22: - | Y22: - | Z22: - | AA22: - | AB22: - | AC22: - | AD22: - | AE22: - | AF22: - | AG22: - | AH22: -
B23: - | C23: - | D23: - | E23: - | F23: - | G23: - | H23: - | I23: - | J23: - | K23: - | L23: - | M23: - | N23: - | O23: - | P23: - | Q23: - | R23: - | S23: - | T23: - | Z23: RES LOAD @ | AG23: ANNUAL | AH23: CUMULATIVE | AL23: - | AN23: -
A24: Total => | B24: =SUM(B25:B104) -> 1437771.722 | C24: =SUM(C25:C104) -> 1437771.722 | F24: =SUM(F25:F104) -> 1437771.722 | G24: =SUM(G25:G104) -> 1437771.722 | H24: =SUM(H25:H104) -> 8.867573342e-12 | J24: =SUM(J25:J104) -> 1437771.722 | L24: =SUM(L25:L104) -> 165702.1328 | M24: 302725.0503 | N24: 4640895.328 | O24: 118616.1671 | P24: 0 | Q24: 4573.448966 | R24: 57593.46313 | S24: 7016029.89 | T24: 5.244151301e-52 | V24: Offsets | X24: NEW | Y24: CUML | Z24: 12000 | AA24: COMM | AB24: COMM | AC24: TOTAL | AD24: TOTAL | AE24: REVENUE | AF24: ESTIMATED | AG24: (SHORTFALL) | AH24: (SHORTFALL)
